Workbook

Sheet Executive Summary (hidden)
A1: Connor Group, Inc.
A2: CFO Compensation Analysis

Sheet Summary Tables - By Date
A1: Connor Group, Inc.
A2: CFO Compensation Study | K2: Start Date | L2: 2012-01-01
K3: End Date | L3: 2014-01-01
K5: Salary + Bonus + Other | N5: Share-Based Compensation | Q5: Total Compensation
I6: Count | K6: Average | L6: Median | N6: Average | O6: Median | Q6: Average | R6: Median
B7: Tech/Biotech Industries - Analysis by Revenue
C8: Year Prior to IPO
D9: $49,999,999 and below | F9: -1000000000000 | G9: 49999999 | I9: =COUNTIFS('Officer Compensation - Filtered'!$I$9:$I$53,">="&$F9,'Officer Compensation - Filtered'!$I$9:$I$53,"<="&$G9,'Officer Compensation - Filtered'!$AK$9:$AK$53,"Yes",'Officer Compensation - Filtered'!$G$9:$G$53,">="&'Summary Tables - By Date'!$L$2,'Officer Compensation - Filtered'!$G$9:$G$53,"<="&'Summary Tables - By Date'!$L$3) -> 14 | K9: =AVERAGEIFS('Officer Compensation - Filtered'!$AA$9:$AA$53,'Officer Compensation - Filtered'!$I$9:$I$53,">="&$F9,'Officer Compensation - Filtered'!$I$9:$I$53,"<="&$G9,'Officer Compensation - Filtered'!$AK$9:$AK$53,"Yes",'Officer Compensation - Filtered'!$G$9:$G$53,">="&'Summary Tables - By Date'!$L$2,'Officer Compensation - Filtered'!$G$9:$G$53,"<="&'Summary Tables - By Date'!$L$3) -> 407087.2772 | L9: =MEDIAN(IF('Officer Compensation - Filtered'!$I$9:$I$53>=$F9,IF('Officer Compensation - Filtered'!$I$9:$I$53<=$G9,IF('Officer Compensation - Filtered'!$AK$9:$AK$53="Yes",IF('Officer Compensation - Filtered'!$G$9:$G$53>='Summary Tables - By Date'!$L$2,IF('Officer Compensation - Filtered'!$G$9:$G$53<=$L$3,'Officer Compensation - Filtered'!$AA$9:$AA$53,""),""),""),""),"")) -> 308221.5 | N9: =AVERAGEIFS('Officer Compensation - Filtered'!$AC$9:$AC$53,'Officer Compensation - Filtered'!$I$9:$I$53,">="&$F9,'Officer Compensation - Filtered'!$I$9:$I$53,"<="&$G9,'Officer Compensation - Filtered'!$AK$9:$AK$53,"Yes",'Officer Compensation - Filtered'!$G$9:$G$53,">="&'Summary Tables - By Date'!$L$2,'Officer Compensation - Filtered'!$G$9:$G$53,"<="&'Summary Tables - By Date'!$L$3) -> 269232.1858 | O9: =MEDIAN(IF('Officer Compensation - Filtered'!$I$9:$I$53>=$F9,IF('Officer Compensation - Filtered'!$I$9:$I$53<=$G9,IF('Officer Compensation - Filtered'!$AK$9:$AK$53="Yes",IF('Officer Compensation - Filtered'!$G$9:$G$53>='Summary Tables - By Date'!$L$2,IF('Officer Compensation - Filtered'!$G$9:$G$53<=$L$3,'Officer Compensation - Filtered'!$AC$9:$AC$53,""),""),""),""),"")) -> 29038.80078 | Q9: =AVERAGEIFS('Officer Compensation - Filtered'!$AE$9:$AE$53,'Officer Compensation - Filtered'!$I$9:$I$53,">="&$F9,'Officer Compensation - Filtered'!$I$9:$I$53,"<="&$G9,'Officer Compensation - Filtered'!$AK$9:$AK$53,"Yes",'Officer Compensation - Filtered'!$G$9:$G$53,">="&'Summary Tables - By Date'!$L$2,'Officer Compensation - Filtered'!$G$9:$G$53,"<="&'Summary Tables - By Date'!$L$3) -> 676319.463 | R9: =MEDIAN(IF('Officer Compensation - Filtered'!$I$9:$I$53>=$F9,IF('Officer Compensation - Filtered'!$I$9:$I$53<=$G9,IF('Officer Compensation - Filtered'!$AK$9:$AK$53="Yes",IF('Officer Compensation - Filtered'!$G$9:$G$53>='Summary Tables - By Date'!$L$2,IF('Officer Compensation - Filtered'!$G$9:$G$53<=$L$3,'Officer Compensation - Filtered'!$AE$9:$AE$53,""),""),""),""),"")) -> 419810.5
D10: $50,000,000 to $149,999,999 | F10: =G9+1 -> 50000000 | G10: 149999999 | I10: =COUNTIFS('Officer Compensation - Filtered'!$I$9:$I$53,">="&$F10,'Officer Compensation - Filtered'!$I$9:$I$53,"<="&$G10,'Officer Compensation - Filtered'!$AK$9:$AK$53,"Yes",'Officer Compensation - Filtered'!$G$9:$G$53,">="&'Summary Tables - By Date'!$L$2,'Officer Compensation - Filtered'!$G$9:$G$53,"<="&'Summary Tables - By Date'!$L$3) -> 5 | K10: =AVERAGEIFS('Officer Compensation - Filtered'!$AA$9:$AA$53,'Officer Compensation - Filtered'!$I$9:$I$53,">="&$F10,'Officer Compensation - Filtered'!$I$9:$I$53,"<="&$G10,'Officer Compensation - Filtered'!$AK$9:$AK$53,"Yes",'Officer Compensation - Filtered'!$G$9:$G$53,">="&'Summary Tables - By Date'!$L$2,'Officer Compensation - Filtered'!$G$9:$G$53,"<="&'Summary Tables - By Date'!$L$3) -> 357951.4 | L10: =MEDIAN(IF('Officer Compensation - Filtered'!$I$9:$I$53>=$F10,IF('Officer Compensation - Filtered'!$I$9:$I$53<=$G10,IF('Officer Compensation - Filtered'!$AK$9:$AK$53="Yes",IF('Officer Compensation - Filtered'!$G$9:$G$53>='Summary Tables - By Date'!$L$2,IF('Officer Compensation - Filtered'!$G$9:$G$53<=$L$3,'Officer Compensation - Filtered'!$AA$9:$AA$53,""),""),""),""),"")) -> 385506 | N10: =AVERAGEIFS('Officer Compensation - Filtered'!$AC$9:$AC$53,'Officer Compensation - Filtered'!$I$9:$I$53,">="&$F10,'Officer Compensation - Filtered'!$I$9:$I$53,"<="&$G10,'Officer Compensation - Filtered'!$AK$9:$AK$53,"Yes",'Officer Compensation - Filtered'!$G$9:$G$53,">="&'Summary Tables - By Date'!$L$2,'Officer Compensation - Filtered'!$G$9:$G$53,"<="&'Summary Tables - By Date'!$L$3) -> 1229225.8 | O10: =MEDIAN(IF('Officer Compensation - Filtered'!$I$9:$I$53>=$F10,IF('Officer Compensation - Filtered'!$I$9:$I$53<=$G10,IF('Officer Compensation - Filtered'!$AK$9:$AK$53="Yes",IF('Officer Compensation - Filtered'!$G$9:$G$53>='Summary Tables - By Date'!$L$2,IF('Officer Compensation - Filtered'!$G$9:$G$53<=$L$3,'Officer Compensation - Filtered'!$AC$9:$AC$53,""),""),""),""),"")) -> 357904 | Q10: =AVERAGEIFS('Officer Compensation - Filtered'!$AE$9:$AE$53,'Officer Compensation - Filtered'!$I$9:$I$53,">="&$F10,'Officer Compensation - Filtered'!$I$9:$I$53,"<="&$G10,'Officer Compensation - Filtered'!$AK$9:$AK$53,"Yes",'Officer Compensation - Filtered'!$G$9:$G$53,">="&'Summary Tables - By Date'!$L$2,'Officer Compensation - Filtered'!$G$9:$G$53,"<="&'Summary Tables - By Date'!$L$3) -> 1587177.2 | R10: =MEDIAN(IF('Officer Compensation - Filtered'!$I$9:$I$53>=$F10,IF('Officer Compensation - Filtered'!$I$9:$I$53<=$G10,IF('Officer Compensation - Filtered'!$AK$9:$AK$53="Yes",IF('Officer Compensation - Filtered'!$G$9:$G$53>='Summary Tables - By Date'!$L$2,IF('Officer Compensation - Filtered'!$G$9:$G$53<=$L$3,'Officer Compensation - Filtered'!$AE$9:$AE$53,""),""),""),""),"")) -> 753824
D11: $150,000,000 and above | F11: =G10+1 -> 150000000 | G11: 1000000000000 | I11: =COUNTIFS('Officer Compensation - Filtered'!$I$9:$I$53,">="&$F11,'Officer Compensation - Filtered'!$I$9:$I$53,"<="&$G11,'Officer Compensation - Filtered'!$AK$9:$AK$53,"Yes",'Officer Compensation - Filtered'!$G$9:$G$53,">="&'Summary Tables - By Date'!$L$2,'Officer Compensation - Filtered'!$G$9:$G$53,"<="&'Summary Tables - By Date'!$L$3) -> 3 | K11: =AVERAGEIFS('Officer Compensation - Filtered'!$AA$9:$AA$53,'Officer Compensation - Filtered'!$I$9:$I$53,">="&$F11,'Officer Compensation - Filtered'!$I$9:$I$53,"<="&$G11,'Officer Compensation - Filtered'!$AK$9:$AK$53,"Yes",'Officer Compensation - Filtered'!$G$9:$G$53,">="&'Summary Tables - By Date'!$L$2,'Officer Compensation - Filtered'!$G$9:$G$53,"<="&'Summary Tables - By Date'!$L$3) -> 543421 | L11: =MEDIAN(IF('Officer Compensation - Filtered'!$I$9:$I$53>=$F11,IF('Officer Compensation - Filtered'!$I$9:$I$53<=$G11,IF('Officer Compensation - Filtered'!$AK$9:$AK$53="Yes",IF('Officer Compensation - Filtered'!$G$9:$G$53>='Summary Tables - By Date'!$L$2,IF('Officer Compensation - Filtered'!$G$9:$G$53<=$L$3,'Officer Compensation - Filtered'!$AA$9:$AA$53,""),""),""),""),"")) -> 591375 | N11: =AVERAGEIFS('Officer Compensation - Filtered'!$AC$9:$AC$53,'Officer Compensation - Filtered'!$I$9:$I$53,">="&$F11,'Officer Compensation - Filtered'!$I$9:$I$53,"<="&$G11,'Officer Compensation - Filtered'!$AK$9:$AK$53,"Yes",'Officer Compensation - Filtered'!$G$9:$G$53,">="&'Summary Tables - By Date'!$L$2,'Officer Compensation - Filtered'!$G$9:$G$53,"<="&'Summary Tables - By Date'!$L$3) -> 91365.66667 | O11: =MEDIAN(IF('Officer Compensation - Filtered'!$I$9:$I$53>=$F11,IF('Officer Compensation - Filtered'!$I$9:$I$53<=$G11,IF('Officer Compensation - Filtered'!$AK$9:$AK$53="Yes",IF('Officer Compensation - Filtered'!$G$9:$G$53>='Summary Tables - By Date'!$L$2,IF('Officer Compensation - Filtered'!$G$9:$G$53<=$L$3,'Officer Compensation - Filtered'!$AC$9:$AC$53,""),""),""),""),"")) -> 0 | Q11: =AVERAGEIFS('Officer Compensation - Filtered'!$AE$9:$AE$53,'Officer Compensation - Filtered'!$I$9:$I$53,">="&$F11,'Officer Compensation - Filtered'!$I$9:$I$53,"<="&$G11,'Officer Compensation - Filtered'!$AK$9:$AK$53,"Yes",'Officer Compensation - Filtered'!$G$9:$G$53,">="&'Summary Tables - By Date'!$L$2,'Officer Compensation - Filtered'!$G$9:$G$53,"<="&'Summary Tables - By Date'!$L$3) -> 634786.6667 | R11: =MEDIAN(IF('Officer Compensation - Filtered'!$I$9:$I$53>=$F11,IF('Officer Compensation - Filtered'!$I$9:$I$53<=$G11,IF('Officer Compensation - Filtered'!$AK$9:$AK$53="Yes",IF('Officer Compensation - Filtered'!$G$9:$G$53>='Summary Tables - By Date'!$L$2,IF('Officer Compensation - Filtered'!$G$9:$G$53<=$L$3,'Officer Compensation - Filtered'!$AE$9:$AE$53,""),""),""),""),"")) -> 623863
C13: Year of IPO
D14: $49,999,999 and below | F14: -1000000000000 | G14: 49999999 | I14: =COUNTIFS('Officer Compensation - Filtered'!$I$9:$I$53,">="&$F14,'Officer Compensation - Filtered'!$I$9:$I$53,"<="&$G14,'Officer Compensation - Filtered'!$AK$9:$AK$53,"Yes",'Officer Compensation - Filtered'!$G$9:$G$53,">="&'Summary Tables - By Date'!$L$2,'Officer Compensation - Filtered'!$G$9:$G$53,"<="&'Summary Tables - By Date'!$L$3) -> 14 | K14: =AVERAGEIFS('Officer Compensation - Filtered'!$AB$9:$AB$53,'Officer Compensation - Filtered'!$I$9:$I$53,">="&$F14,'Officer Compensation - Filtered'!$I$9:$I$53,"<="&$G14,'Officer Compensation - Filtered'!$AK$9:$AK$53,"Yes",'Officer Compensation - Filtered'!$G$9:$G$53,">="&'Summary Tables - By Date'!$L$2,'Officer Compensation - Filtered'!$G$9:$G$53,"<="&'Summary Tables - By Date'!$L$3) -> 401432.2708 | L14: =MEDIAN(IF('Officer Compensation - Filtered'!$I$9:$I$53>=$F14,IF('Officer Compensation - Filtered'!$I$9:$I$53<=$G14,IF('Officer Compensation - Filtered'!$AK$9:$AK$53="Yes",IF('Officer Compensation - Filtered'!$G$9:$G$53>='Summary Tables - By Date'!$L$2,IF('Officer Compensation - Filtered'!$G$9:$G$53<=$L$3,'Officer Compensation - Filtered'!$AB$9:$AB$53,""),""),""),""),"")) -> 388267 | N14: =AVERAGEIFS('Officer Compensation - Filtered'!$AD$9:$AD$53,'Officer Compensation - Filtered'!$I$9:$I$53,">="&$F14,'Officer Compensation - Filtered'!$I$9:$I$53,"<="&$G14,'Officer Compensation - Filtered'!$AK$9:$AK$53,"Yes",'Officer Compensation - Filtered'!$G$9:$G$53,">="&'Summary Tables - By Date'!$L$2,'Officer Compensation - Filtered'!$G$9:$G$53,"<="&'Summary Tables - By Date'!$L$3) -> 1299198.357 | O14: =MEDIAN(IF('Officer Compensation - Filtered'!$I$9:$I$53>=$F14,IF('Officer Compensation - Filtered'!$I$9:$I$53<=$G14,IF('Officer Compensation - Filtered'!$AK$9:$AK$53="Yes",IF('Officer Compensation - Filtered'!$G$9:$G$53>='Summary Tables - By Date'!$L$2,IF('Officer Compensation - Filtered'!$G$9:$G$53<=$L$3,'Officer Compensation - Filtered'!$AD$9:$AD$53,""),""),""),""),"")) -> 643080.5 | Q14: =AVERAGEIFS('Officer Compensation - Filtered'!$AF$9:$AF$53,'Officer Compensation - Filtered'!$I$9:$I$53,">="&$F14,'Officer Compensation - Filtered'!$I$9:$I$53,"<="&$G14,'Officer Compensation - Filtered'!$AK$9:$AK$53,"Yes",'Officer Compensation - Filtered'!$G$9:$G$53,">="&'Summary Tables - By Date'!$L$2,'Officer Compensation - Filtered'!$G$9:$G$53,"<="&'Summary Tables - By Date'!$L$3) -> 1700630.628 | R14: =MEDIAN(IF('Officer Compensation - Filtered'!$I$9:$I$53>=$F14,IF('Officer Compensation - Filtered'!$I$9:$I$53<=$G14,IF('Officer Compensation - Filtered'!$AK$9:$AK$53="Yes",IF('Officer Compensation - Filtered'!$G$9:$G$53>='Summary Tables - By Date'!$L$2,IF('Officer Compensation - Filtered'!$G$9:$G$53<=$L$3,'Officer Compensation - Filtered'!$AF$9:$AF$53,""),""),""),""),"")) -> 990154
D15: $50,000,000 to $149,999,999 | F15: =G14+1 -> 50000000 | G15: 149999999 | I15: =COUNTIFS('Officer Compensation - Filtered'!$I$9:$I$53,">="&$F15,'Officer Compensation - Filtered'!$I$9:$I$53,"<="&$G15,'Officer Compensation - Filtered'!$AK$9:$AK$53,"Yes",'Officer Compensation - Filtered'!$G$9:$G$53,">="&'Summary Tables - By Date'!$L$2,'Officer Compensation - Filtered'!$G$9:$G$53,"<="&'Summary Tables - By Date'!$L$3) -> 5 | K15: =AVERAGEIFS('Officer Compensation - Filtered'!$AB$9:$AB$53,'Officer Compensation - Filtered'!$I$9:$I$53,">="&$F15,'Officer Compensation - Filtered'!$I$9:$I$53,"<="&$G15,'Officer Compensation - Filtered'!$AK$9:$AK$53,"Yes",'Officer Compensation - Filtered'!$G$9:$G$53,">="&'Summary Tables - By Date'!$L$2,'Officer Compensation - Filtered'!$G$9:$G$53,"<="&'Summary Tables - By Date'!$L$3) -> 446219.8 | L15: =MEDIAN(IF('Officer Compensation - Filtered'!$I$9:$I$53>=$F15,IF('Officer Compensation - Filtered'!$I$9:$I$53<=$G15,IF('Officer Compensation - Filtered'!$AK$9:$AK$53="Yes",IF('Officer Compensation - Filtered'!$G$9:$G$53>='Summary Tables - By Date'!$L$2,IF('Officer Compensation - Filtered'!$G$9:$G$53<=$L$3,'Officer Compensation - Filtered'!$AB$9:$AB$53,""),""),""),""),"")) -> 421447 | N15: =AVERAGEIFS('Officer Compensation - Filtered'!$AD$9:$AD$53,'Officer Compensation - Filtered'!$I$9:$I$53,">="&$F15,'Officer Compensation - Filtered'!$I$9:$I$53,"<="&$G15,'Officer Compensation - Filtered'!$AK$9:$AK$53,"Yes",'Officer Compensation - Filtered'!$G$9:$G$53,">="&'Summary Tables - By Date'!$L$2,'Officer Compensation - Filtered'!$G$9:$G$53,"<="&'Summary Tables - By Date'!$L$3) -> 500453 | O15: =MEDIAN(IF('Officer Compensation - Filtered'!$I$9:$I$53>=$F15,IF('Officer Compensation - Filtered'!$I$9:$I$53<=$G15,IF('Officer Compensation - Filtered'!$AK$9:$AK$53="Yes",IF('Officer Compensation - Filtered'!$G$9:$G$53>='Summary Tables - By Date'!$L$2,IF('Officer Compensation - Filtered'!$G$9:$G$53<=$L$3,'Officer Compensation - Filtered'!$AD$9:$AD$53,""),""),""),""),"")) -> 440320 | Q15: =AVERAGEIFS('Officer Compensation - Filtered'!$AF$9:$AF$53,'Officer Compensation - Filtered'!$I$9:$I$53,">="&$F15,'Officer Compensation - Filtered'!$I$9:$I$53,"<="&$G15,'Officer Compensation - Filtered'!$AK$9:$AK$53,"Yes",'Officer Compensation - Filtered'!$G$9:$G$53,">="&'Summary Tables - By Date'!$L$2,'Officer Compensation - Filtered'!$G$9:$G$53,"<="&'Summary Tables - By Date'!$L$3) -> 946672.8 | R15: =MEDIAN(IF('Officer Compensation - Filtered'!$I$9:$I$53>=$F15,IF('Officer Compensation - Filtered'!$I$9:$I$53<=$G15,IF('Officer Compensation - Filtered'!$AK$9:$AK$53="Yes",IF('Officer Compensation - Filtered'!$G$9:$G$53>='Summary Tables - By Date'!$L$2,IF('Officer Compensation - Filtered'!$G$9:$G$53<=$L$3,'Officer Compensation - Filtered'!$AF$9:$AF$53,""),""),""),""),"")) -> 842917
D16: $150,000,000 and above | F16: =G15+1 -> 150000000 | G16: 1000000000000 | I16: =COUNTIFS('Officer Compensation - Filtered'!$I$9:$I$53,">="&$F16,'Officer Compensation - Filtered'!$I$9:$I$53,"<="&$G16,'Officer Compensation - Filtered'!$AK$9:$AK$53,"Yes",'Officer Compensation - Filtered'!$G$9:$G$53,">="&'Summary Tables - By Date'!$L$2,'Officer Compensation - Filtered'!$G$9:$G$53,"<="&'Summary Tables - By Date'!$L$3) -> 3 | K16: =AVERAGEIFS('Officer Compensation - Filtered'!$AB$9:$AB$53,'Officer Compensation - Filtered'!$I$9:$I$53,">="&$F16,'Officer Compensation - Filtered'!$I$9:$I$53,"<="&$G16,'Officer Compensation - Filtered'!$AK$9:$AK$53,"Yes",'Officer Compensation - Filtered'!$G$9:$G$53,">="&'Summary Tables - By Date'!$L$2,'Officer Compensation - Filtered'!$G$9:$G$53,"<="&'Summary Tables - By Date'!$L$3) -> 591893.6667 | L16: =MEDIAN(IF('Officer Compensation - Filtered'!$I$9:$I$53>=$F16,IF('Officer Compensation - Filtered'!$I$9:$I$53<=$G16,IF('Officer Compensation - Filtered'!$AK$9:$AK$53="Yes",IF('Officer Compensation - Filtered'!$G$9:$G$53>='Summary Tables - By Date'!$L$2,IF('Officer Compensation - Filtered'!$G$9:$G$53<=$L$3,'Officer Compensation - Filtered'!$AB$9:$AB$53,""),""),""),""),"")) -> 607917 | N16: =AVERAGEIFS('Officer Compensation - Filtered'!$AD$9:$AD$53,'Officer Compensation - Filtered'!$I$9:$I$53,">="&$F16,'Officer Compensation - Filtered'!$I$9:$I$53,"<="&$G16,'Officer Compensation - Filtered'!$AK$9:$AK$53,"Yes",'Officer Compensation - Filtered'!$G$9:$G$53,">="&'Summary Tables - By Date'!$L$2,'Officer Compensation - Filtered'!$G$9:$G$53,"<="&'Summary Tables - By Date'!$L$3) -> 228127.6667 | O16: =MEDIAN(IF('Officer Compensation - Filtered'!$I$9:$I$53>=$F16,IF('Officer Compensation - Filtered'!$I$9:$I$53<=$G16,IF('Officer Compensation - Filtered'!$AK$9:$AK$53="Yes",IF('Officer Compensation - Filtered'!$G$9:$G$53>='Summary Tables - By Date'!$L$2,IF('Officer Compensation - Filtered'!$G$9:$G$53<=$L$3,'Officer Compensation - Filtered'!$AD$9:$AD$53,""),""),""),""),"")) -> 0 | Q16: =AVERAGEIFS('Officer Compensation - Filtered'!$AF$9:$AF$53,'Officer Compensation - Filtered'!$I$9:$I$53,">="&$F16,'Officer Compensation - Filtered'!$I$9:$I$53,"<="&$G16,'Officer Compensation - Filtered'!$AK$9:$AK$53,"Yes",'Officer Compensation - Filtered'!$G$9:$G$53,">="&'Summary Tables - By Date'!$L$2,'Officer Compensation - Filtered'!$G$9:$G$53,"<="&'Summary Tables - By Date'!$L$3) -> 820021.3333 | R16: =MEDIAN(IF('Officer Compensation - Filtered'!$I$9:$I$53>=$F16,IF('Officer Compensation - Filtered'!$I$9:$I$53<=$G16,IF('Officer Compensation - Filtered'!$AK$9:$AK$53="Yes",IF('Officer Compensation - Filtered'!$G$9:$G$53>='Summary Tables - By Date'!$L$2,IF('Officer Compensation - Filtered'!$G$9:$G$53<=$L$3,'Officer Compensation - Filtered'!$AF$9:$AF$53,""),""),""),""),"")) -> 607917
C18: Percentage Increase over Year Prior to IPO
D19: $49,999,999 and below | F19: -1000000000000 | G19: 49999999 | I19: =COUNTIFS('Officer Compensation - Filtered'!$I$9:$I$53,">="&$F19,'Officer Compensation - Filtered'!$I$9:$I$53,"<="&$G19,'Officer Compensation - Filtered'!$AK$9:$AK$53,"Yes",'Officer Compensation - Filtered'!$G$9:$G$53,">="&'Summary Tables - By Date'!$L$2,'Officer Compensation - Filtered'!$G$9:$G$53,"<="&'Summary Tables - By Date'!$L$3) -> 14 | K19: =(K14/K9)-1 -> -0.01389138585 | L19: =(L14/L9)-1 -> 0.2597012214 | N19: 3.825568508 | O19: 21.14555983 | Q19: 1.514537465 | R19: 1.35857369
D20: $50,000,000 to $149,999,999 | F20: =G19+1 -> 50000000 | G20: 149999999 | I20: =COUNTIFS('Officer Compensation - Filtered'!$I$9:$I$53,">="&$F20,'Officer Compensation - Filtered'!$I$9:$I$53,"<="&$G20,'Officer Compensation - Filtered'!$AK$9:$AK$53,"Yes",'Officer Compensation - Filtered'!$G$9:$G$53,">="&'Summary Tables - By Date'!$L$2,'Officer Compensation - Filtered'!$G$9:$G$53,"<="&'Summary Tables - By Date'!$L$3) -> 5 | K20: =(K15/K10)-1 -> 0.2465932526 | L20: 0.09323071496 | N20: -0.5928713829 | O20: 0.23027404 | Q20: -0.4035493957 | R20: 0.1181880651
D21: $150,000,000 and above | F21: =G20+1 -> 150000000 | G21: 1000000000000 | I21: =COUNTIFS('Officer Compensation - Filtered'!$I$9:$I$53,">="&$F21,'Officer Compensation - Filtered'!$I$9:$I$53,"<="&$G21,'Officer Compensation - Filtered'!$AK$9:$AK$53,"Yes",'Officer Compensation - Filtered'!$G$9:$G$53,">="&'Summary Tables - By Date'!$L$2,'Officer Compensation - Filtered'!$G$9:$G$53,"<="&'Summary Tables - By Date'!$L$3) -> 3 | K21: 0.08919910468 | L21: 0.02797209892 | N21: 1.496864249 | Q21: 0.2918061711 | R21: -0.02556009893
B24: Tech/Biotech Industries - Analysis by Market Cap
C25: Year Prior to IPO
D26: $199,999,999 and below | F26: -1000000000000 | G26: 199999999 | I26: =COUNTIFS('Officer Compensation - Filtered'!$H$9:$H$53,">="&$F26,'Officer Compensation - Filtered'!$H$9:$H$53,"<="&$G26,'Officer Compensation - Filtered'!$AK$9:$AK$53,"Yes",'Officer Compensation - Filtered'!$G$9:$G$53,">="&'Summary Tables - By Date'!$L$2,'Officer Compensation - Filtered'!$G$9:$G$53,"<="&'Summary Tables - By Date'!$L$3) -> 8 | K26: =AVERAGEIFS('Officer Compensation - Filtered'!$AA$9:$AA$53,'Officer Compensation - Filtered'!$H$9:$H$53,">="&$F26,'Officer Compensation - Filtered'!$H$9:$H$53,"<="&$G26,'Officer Compensation - Filtered'!$AK$9:$AK$53,"Yes",'Officer Compensation - Filtered'!$G$9:$G$53,">="&'Summary Tables - By Date'!$L$2,'Officer Compensation - Filtered'!$G$9:$G$53,"<="&'Summary Tables - By Date'!$L$3) -> 403199.25 | L26: =MEDIAN(IF('Officer Compensation - Filtered'!$H$9:$H$53>=$F26,IF('Officer Compensation - Filtered'!$H$9:$H$53<=$G26,IF('Officer Compensation - Filtered'!$AK$9:$AK$53="Yes",IF('Officer Compensation - Filtered'!$G$9:$G$53>='Summary Tables - By Date'!$L$2,IF('Officer Compensation - Filtered'!$G$9:$G$53<=$L$3,'Officer Compensation - Filtered'!$AA$9:$AA$53,""),""),""),""),"")) -> 279417 | N26: =AVERAGEIFS('Officer Compensation - Filtered'!$AC$9:$AC$53,'Officer Compensation - Filtered'!$H$9:$H$53,">="&$F26,'Officer Compensation - Filtered'!$H$9:$H$53,"<="&$G26,'Officer Compensation - Filtered'!$AK$9:$AK$53,"Yes",'Officer Compensation - Filtered'!$G$9:$G$53,">="&'Summary Tables - By Date'!$L$2,'Officer Compensation - Filtered'!$G$9:$G$53,"<="&'Summary Tables - By Date'!$L$3) -> 412723.5 | O26: =MEDIAN(IF('Officer Compensation - Filtered'!$H$9:$H$53>=$F26,IF('Officer Compensation - Filtered'!$H$9:$H$53<=$G26,IF('Officer Compensation - Filtered'!$AK$9:$AK$53="Yes",IF('Officer Compensation - Filtered'!$G$9:$G$53>='Summary Tables - By Date'!$L$2,IF('Officer Compensation - Filtered'!$G$9:$G$53<=$L$3,'Officer Compensation - Filtered'!$AC$9:$AC$53,""),""),""),""),"")) -> 60444 | Q26: =AVERAGEIFS('Officer Compensation - Filtered'!$AE$9:$AE$53,'Officer Compensation - Filtered'!$H$9:$H$53,">="&$F26,'Officer Compensation - Filtered'!$H$9:$H$53,"<="&$G26,'Officer Compensation - Filtered'!$AK$9:$AK$53,"Yes",'Officer Compensation - Filtered'!$G$9:$G$53,">="&'Summary Tables - By Date'!$L$2,'Officer Compensation - Filtered'!$G$9:$G$53,"<="&'Summary Tables - By Date'!$L$3) -> 815922.75 | R26: =MEDIAN(IF('Officer Compensation - Filtered'!$H$9:$H$53>=$F26,IF('Officer Compensation - Filtered'!$H$9:$H$53<=$G26,IF('Officer Compensation - Filtered'!$AK$9:$AK$53="Yes",IF('Officer Compensation - Filtered'!$G$9:$G$53>='Summary Tables - By Date'!$L$2,IF('Officer Compensation - Filtered'!$G$9:$G$53<=$L$3,'Officer Compensation - Filtered'!$AE$9:$AE$53,""),""),""),""),"")) -> 361555.5
D27: $200,000,000 to $299,999,999 | F27: =G26+1 -> 200000000 | G27: 299999999 | I27: =COUNTIFS('Officer Compensation - Filtered'!$H$9:$H$53,">="&$F27,'Officer Compensation - Filtered'!$H$9:$H$53,"<="&$G27,'Officer Compensation - Filtered'!$AK$9:$AK$53,"Yes",'Officer Compensation - Filtered'!$G$9:$G$53,">="&'Summary Tables - By Date'!$L$2,'Officer Compensation - Filtered'!$G$9:$G$53,"<="&'Summary Tables - By Date'!$L$3) -> 4 | K27: =AVERAGEIFS('Officer Compensation - Filtered'!$AA$9:$AA$53,'Officer Compensation - Filtered'!$H$9:$H$53,">="&$F27,'Officer Compensation - Filtered'!$H$9:$H$53,"<="&$G27,'Officer Compensation - Filtered'!$AK$9:$AK$53,"Yes",'Officer Compensation - Filtered'!$G$9:$G$53,">="&'Summary Tables - By Date'!$L$2,'Officer Compensation - Filtered'!$G$9:$G$53,"<="&'Summary Tables - By Date'!$L$3) -> 377743.9702 | L27: =MEDIAN(IF('Officer Compensation - Filtered'!$H$9:$H$53>=$F27,IF('Officer Compensation - Filtered'!$H$9:$H$53<=$G27,IF('Officer Compensation - Filtered'!$AK$9:$AK$53="Yes",IF('Officer Compensation - Filtered'!$G$9:$G$53>='Summary Tables - By Date'!$L$2,IF('Officer Compensation - Filtered'!$G$9:$G$53<=$L$3,'Officer Compensation - Filtered'!$AA$9:$AA$53,""),""),""),""),"")) -> 360131.5 | N27: =AVERAGEIFS('Officer Compensation - Filtered'!$AC$9:$AC$53,'Officer Compensation - Filtered'!$H$9:$H$53,">="&$F27,'Officer Compensation - Filtered'!$H$9:$H$53,"<="&$G27,'Officer Compensation - Filtered'!$AK$9:$AK$53,"Yes",'Officer Compensation - Filtered'!$G$9:$G$53,">="&'Summary Tables - By Date'!$L$2,'Officer Compensation - Filtered'!$G$9:$G$53,"<="&'Summary Tables - By Date'!$L$3) -> 1007069.4 | O27: =MEDIAN(IF('Officer Compensation - Filtered'!$H$9:$H$53>=$F27,IF('Officer Compensation - Filtered'!$H$9:$H$53<=$G27,IF('Officer Compensation - Filtered'!$AK$9:$AK$53="Yes",IF('Officer Compensation - Filtered'!$G$9:$G$53>='Summary Tables - By Date'!$L$2,IF('Officer Compensation - Filtered'!$G$9:$G$53<=$L$3,'Officer Compensation - Filtered'!$AC$9:$AC$53,""),""),""),""),"")) -> 25804.80078 | Q27: =AVERAGEIFS('Officer Compensation - Filtered'!$AE$9:$AE$53,'Officer Compensation - Filtered'!$H$9:$H$53,">="&$F27,'Officer Compensation - Filtered'!$H$9:$H$53,"<="&$G27,'Officer Compensation - Filtered'!$AK$9:$AK$53,"Yes",'Officer Compensation - Filtered'!$G$9:$G$53,">="&'Summary Tables - By Date'!$L$2,'Officer Compensation - Filtered'!$G$9:$G$53,"<="&'Summary Tables - By Date'!$L$3) -> 1384813.371 | R27: =MEDIAN(IF('Officer Compensation - Filtered'!$H$9:$H$53>=$F27,IF('Officer Compensation - Filtered'!$H$9:$H$53<=$G27,IF('Officer Compensation - Filtered'!$AK$9:$AK$53="Yes",IF('Officer Compensation - Filtered'!$G$9:$G$53>='Summary Tables - By Date'!$L$2,IF('Officer Compensation - Filtered'!$G$9:$G$53<=$L$3,'Officer Compensation - Filtered'!$AE$9:$AE$53,""),""),""),""),"")) -> 486278.7412
D28: $300,000,000 to $399,999,999 | F28: =G27+1 -> 300000000 | G28: 399999999 | I28: =COUNTIFS('Officer Compensation - Filtered'!$H$9:$H$53,">="&$F28,'Officer Compensation - Filtered'!$H$9:$H$53,"<="&$G28,'Officer Compensation - Filtered'!$AK$9:$AK$53,"Yes",'Officer Compensation - Filtered'!$G$9:$G$53,">="&'Summary Tables - By Date'!$L$2,'Officer Compensation - Filtered'!$G$9:$G$53,"<="&'Summary Tables - By Date'!$L$3) -> 3 | K28: =AVERAGEIFS('Officer Compensation - Filtered'!$AA$9:$AA$53,'Officer Compensation - Filtered'!$H$9:$H$53,">="&$F28,'Officer Compensation - Filtered'!$H$9:$H$53,"<="&$G28,'Officer Compensation - Filtered'!$AK$9:$AK$53,"Yes",'Officer Compensation - Filtered'!$G$9:$G$53,">="&'Summary Tables - By Date'!$L$2,'Officer Compensation - Filtered'!$G$9:$G$53,"<="&'Summary Tables - By Date'!$L$3) -> 394556 | L28: =MEDIAN(IF('Officer Compensation - Filtered'!$H$9:$H$53>=$F28,IF('Officer Compensation - Filtered'!$H$9:$H$53<=$G28,IF('Officer Compensation - Filtered'!$AK$9:$AK$53="Yes",IF('Officer Compensation - Filtered'!$G$9:$G$53>='Summary Tables - By Date'!$L$2,IF('Officer Compensation - Filtered'!$G$9:$G$53<=$L$3,'Officer Compensation - Filtered'!$AA$9:$AA$53,""),""),""),""),"")) -> 408758 | N28: =AVERAGEIFS('Officer Compensation - Filtered'!$AC$9:$AC$53,'Officer Compensation - Filtered'!$H$9:$H$53,">="&$F28,'Officer Compensation - Filtered'!$H$9:$H$53,"<="&$G28,'Officer Compensation - Filtered'!$AK$9:$AK$53,"Yes",'Officer Compensation - Filtered'!$G$9:$G$53,">="&'Summary Tables - By Date'!$L$2,'Officer Compensation - Filtered'!$G$9:$G$53,"<="&'Summary Tables - By Date'!$L$3) -> 120682.6667 | O28: =MEDIAN(IF('Officer Compensation - Filtered'!$H$9:$H$53>=$F28,IF('Officer Compensation - Filtered'!$H$9:$H$53<=$G28,IF('Officer Compensation - Filtered'!$AK$9:$AK$53="Yes",IF('Officer Compensation - Filtered'!$G$9:$G$53>='Summary Tables - By Date'!$L$2,IF('Officer Compensation - Filtered'!$G$9:$G$53<=$L$3,'Officer Compensation - Filtered'!$AC$9:$AC$53,""),""),""),""),"")) -> 0 | Q28: =AVERAGEIFS('Officer Compensation - Filtered'!$AE$9:$AE$53,'Officer Compensation - Filtered'!$H$9:$H$53,">="&$F28,'Officer Compensation - Filtered'!$H$9:$H$53,"<="&$G28,'Officer Compensation - Filtered'!$AK$9:$AK$53,"Yes",'Officer Compensation - Filtered'!$G$9:$G$53,">="&'Summary Tables - By Date'!$L$2,'Officer Compensation - Filtered'!$G$9:$G$53,"<="&'Summary Tables - By Date'!$L$3) -> 515238.6667 | R28: =MEDIAN(IF('Officer Compensation - Filtered'!$H$9:$H$53>=$F28,IF('Officer Compensation - Filtered'!$H$9:$H$53<=$G28,IF('Officer Compensation - Filtered'!$AK$9:$AK$53="Yes",IF('Officer Compensation - Filtered'!$G$9:$G$53>='Summary Tables - By Date'!$L$2,IF('Officer Compensation - Filtered'!$G$9:$G$53<=$L$3,'Officer Compensation - Filtered'!$AE$9:$AE$53,""),""),""),""),"")) -> 408758
D29: $400,000,000 to $999,999,999 | F29: =G28+1 -> 400000000 | G29: 999999999 | I29: =COUNTIFS('Officer Compensation - Filtered'!$H$9:$H$53,">="&$F29,'Officer Compensation - Filtered'!$H$9:$H$53,"<="&$G29,'Officer Compensation - Filtered'!$AK$9:$AK$53,"Yes",'Officer Compensation - Filtered'!$G$9:$G$53,">="&'Summary Tables - By Date'!$L$2,'Officer Compensation - Filtered'!$G$9:$G$53,"<="&'Summary Tables - By Date'!$L$3) -> 4 | K29: =AVERAGEIFS('Officer Compensation - Filtered'!$AA$9:$AA$53,'Officer Compensation - Filtered'!$H$9:$H$53,">="&$F29,'Officer Compensation - Filtered'!$H$9:$H$53,"<="&$G29,'Officer Compensation - Filtered'!$AK$9:$AK$53,"Yes",'Officer Compensation - Filtered'!$G$9:$G$53,">="&'Summary Tables - By Date'!$L$2,'Officer Compensation - Filtered'!$G$9:$G$53,"<="&'Summary Tables - By Date'!$L$3) -> 383250.25 | L29: =MEDIAN(IF('Officer Compensation - Filtered'!$H$9:$H$53>=$F29,IF('Officer Compensation - Filtered'!$H$9:$H$53<=$G29,IF('Officer Compensation - Filtered'!$AK$9:$AK$53="Yes",IF('Officer Compensation - Filtered'!$G$9:$G$53>='Summary Tables - By Date'!$L$2,IF('Officer Compensation - Filtered'!$G$9:$G$53<=$L$3,'Officer Compensation - Filtered'!$AA$9:$AA$53,""),""),""),""),"")) -> 372843 | N29: =AVERAGEIFS('Officer Compensation - Filtered'!$AC$9:$AC$53,'Officer Compensation - Filtered'!$H$9:$H$53,">="&$F29,'Officer Compensation - Filtered'!$H$9:$H$53,"<="&$G29,'Officer Compensation - Filtered'!$AK$9:$AK$53,"Yes",'Officer Compensation - Filtered'!$G$9:$G$53,">="&'Summary Tables - By Date'!$L$2,'Officer Compensation - Filtered'!$G$9:$G$53,"<="&'Summary Tables - By Date'!$L$3) -> 171451.5 | O29: =MEDIAN(IF('Officer Compensation - Filtered'!$H$9:$H$53>=$F29,IF('Officer Compensation - Filtered'!$H$9:$H$53<=$G29,IF('Officer Compensation - Filtered'!$AK$9:$AK$53="Yes",IF('Officer Compensation - Filtered'!$G$9:$G$53>='Summary Tables - By Date'!$L$2,IF('Officer Compensation - Filtered'!$G$9:$G$53<=$L$3,'Officer Compensation - Filtered'!$AC$9:$AC$53,""),""),""),""),"")) -> 163951 | Q29: =AVERAGEIFS('Officer Compensation - Filtered'!$AE$9:$AE$53,'Officer Compensation - Filtered'!$H$9:$H$53,">="&$F29,'Officer Compensation - Filtered'!$H$9:$H$53,"<="&$G29,'Officer Compensation - Filtered'!$AK$9:$AK$53,"Yes",'Officer Compensation - Filtered'!$G$9:$G$53,">="&'Summary Tables - By Date'!$L$2,'Officer Compensation - Filtered'!$G$9:$G$53,"<="&'Summary Tables - By Date'!$L$3) -> 554701.75 | R29: =MEDIAN(IF('Officer Compensation - Filtered'!$H$9:$H$53>=$F29,IF('Officer Compensation - Filtered'!$H$9:$H$53<=$G29,IF('Officer Compensation - Filtered'!$AK$9:$AK$53="Yes",IF('Officer Compensation - Filtered'!$G$9:$G$53>='Summary Tables - By Date'!$L$2,IF('Officer Compensation - Filtered'!$G$9:$G$53<=$L$3,'Officer Compensation - Filtered'!$AE$9:$AE$53,""),""),""),""),"")) -> 562381
D30: $1,000,000,000 and above | F30: =G29+1 -> 1000000000 | G30: 1000000000000 | I30: =COUNTIFS('Officer Compensation - Filtered'!$H$9:$H$53,">="&$F30,'Officer Compensation - Filtered'!$H$9:$H$53,"<="&$G30,'Officer Compensation - Filtered'!$AK$9:$AK$53,"Yes",'Officer Compensation - Filtered'!$G$9:$G$53,">="&'Summary Tables - By Date'!$L$2,'Officer Compensation - Filtered'!$G$9:$G$53,"<="&'Summary Tables - By Date'!$L$3) -> 3 | K30: =AVERAGEIFS('Officer Compensation - Filtered'!$AA$9:$AA$53,'Officer Compensation - Filtered'!$H$9:$H$53,">="&$F30,'Officer Compensation - Filtered'!$H$9:$H$53,"<="&$G30,'Officer Compensation - Filtered'!$AK$9:$AK$53,"Yes",'Officer Compensation - Filtered'!$G$9:$G$53,">="&'Summary Tables - By Date'!$L$2,'Officer Compensation - Filtered'!$G$9:$G$53,"<="&'Summary Tables - By Date'!$L$3) -> 555334.3333 | L30: =MEDIAN(IF('Officer Compensation - Filtered'!$H$9:$H$53>=$F30,IF('Officer Compensation - Filtered'!$H$9:$H$53<=$G30,IF('Officer Compensation - Filtered'!$AK$9:$AK$53="Yes",IF('Officer Compensation - Filtered'!$G$9:$G$53>='Summary Tables - By Date'!$L$2,IF('Officer Compensation - Filtered'!$G$9:$G$53<=$L$3,'Officer Compensation - Filtered'!$AA$9:$AA$53,""),""),""),""),"")) -> 591375 | N30: =AVERAGEIFS('Officer Compensation - Filtered'!$AC$9:$AC$53,'Officer Compensation - Filtered'!$H$9:$H$53,">="&$F30,'Officer Compensation - Filtered'!$H$9:$H$53,"<="&$G30,'Officer Compensation - Filtered'!$AK$9:$AK$53,"Yes",'Officer Compensation - Filtered'!$G$9:$G$53,">="&'Summary Tables - By Date'!$L$2,'Officer Compensation - Filtered'!$G$9:$G$53,"<="&'Summary Tables - By Date'!$L$3) -> 603852.3333 | O30: =MEDIAN(IF('Officer Compensation - Filtered'!$H$9:$H$53>=$F30,IF('Officer Compensation - Filtered'!$H$9:$H$53<=$G30,IF('Officer Compensation - Filtered'!$AK$9:$AK$53="Yes",IF('Officer Compensation - Filtered'!$G$9:$G$53>='Summary Tables - By Date'!$L$2,IF('Officer Compensation - Filtered'!$G$9:$G$53<=$L$3,'Officer Compensation - Filtered'!$AC$9:$AC$53,""),""),""),""),"")) -> 0 | Q30: =AVERAGEIFS('Officer Compensation - Filtered'!$AE$9:$AE$53,'Officer Compensation - Filtered'!$H$9:$H$53,">="&$F30,'Officer Compensation - Filtered'!$H$9:$H$53,"<="&$G30,'Officer Compensation - Filtered'!$AK$9:$AK$53,"Yes",'Officer Compensation - Filtered'!$G$9:$G$53,">="&'Summary Tables - By Date'!$L$2,'Officer Compensation - Filtered'!$G$9:$G$53,"<="&'Summary Tables - By Date'!$L$3) -> 1159186.667 | R30: =MEDIAN(IF('Officer Compensation - Filtered'!$H$9:$H$53>=$F30,IF('Officer Compensation - Filtered'!$H$9:$H$53<=$G30,IF('Officer Compensation - Filtered'!$AK$9:$AK$53="Yes",IF('Officer Compensation - Filtered'!$G$9:$G$53>='Summary Tables - By Date'!$L$2,IF('Officer Compensation - Filtered'!$G$9:$G$53<=$L$3,'Officer Compensation - Filtered'!$AE$9:$AE$53,""),""),""),""),"")) -> 689122
C32: Year of IPO
D33: $199,999,999 and below | F33: -1000000000000 | G33: 199999999 | I33: =COUNTIFS('Officer Compensation - Filtered'!$H$9:$H$53,">="&$F33,'Officer Compensation - Filtered'!$H$9:$H$53,"<="&$G33,'Officer Compensation - Filtered'!$AK$9:$AK$53,"Yes",'Officer Compensation - Filtered'!$G$9:$G$53,">="&'Summary Tables - By Date'!$L$2,'Officer Compensation - Filtered'!$G$9:$G$53,"<="&'Summary Tables - By Date'!$L$3) -> 8 | K33: =AVERAGEIFS('Officer Compensation - Filtered'!$AB$9:$AB$53,'Officer Compensation - Filtered'!$H$9:$H$53,">="&$F33,'Officer Compensation - Filtered'!$H$9:$H$53,"<="&$G33,'Officer Compensation - Filtered'!$AK$9:$AK$53,"Yes",'Officer Compensation - Filtered'!$G$9:$G$53,">="&'Summary Tables - By Date'!$L$2,'Officer Compensation - Filtered'!$G$9:$G$53,"<="&'Summary Tables - By Date'!$L$3) -> 289048.875 | L33: =MEDIAN(IF('Officer Compensation - Filtered'!$H$9:$H$53>=$F33,IF('Officer Compensation - Filtered'!$H$9:$H$53<=$G33,IF('Officer Compensation - Filtered'!$AK$9:$AK$53="Yes",IF('Officer Compensation - Filtered'!$G$9:$G$53>='Summary Tables - By Date'!$L$2,IF('Officer Compensation - Filtered'!$G$9:$G$53<=$L$3,'Officer Compensation - Filtered'!$AB$9:$AB$53,""),""),""),""),"")) -> 332373.5 | N33: =AVERAGEIFS('Officer Compensation - Filtered'!$AD$9:$AD$53,'Officer Compensation - Filtered'!$H$9:$H$53,">="&$F33,'Officer Compensation - Filtered'!$H$9:$H$53,"<="&$G33,'Officer Compensation - Filtered'!$AK$9:$AK$53,"Yes",'Officer Compensation - Filtered'!$G$9:$G$53,">="&'Summary Tables - By Date'!$L$2,'Officer Compensation - Filtered'!$G$9:$G$53,"<="&'Summary Tables - By Date'!$L$3) -> 1057107.312 | O33: =MEDIAN(IF('Officer Compensation - Filtered'!$H$9:$H$53>=$F33,IF('Officer Compensation - Filtered'!$H$9:$H$53<=$G33,IF('Officer Compensation - Filtered'!$AK$9:$AK$53="Yes",IF('Officer Compensation - Filtered'!$G$9:$G$53>='Summary Tables - By Date'!$L$2,IF('Officer Compensation - Filtered'!$G$9:$G$53<=$L$3,'Officer Compensation - Filtered'!$AD$9:$AD$53,""),""),""),""),"")) -> 347176 | Q33: =AVERAGEIFS('Officer Compensation - Filtered'!$AF$9:$AF$53,'Officer Compensation - Filtered'!$H$9:$H$53,">="&$F33,'Officer Compensation - Filtered'!$H$9:$H$53,"<="&$G33,'Officer Compensation - Filtered'!$AK$9:$AK$53,"Yes",'Officer Compensation - Filtered'!$G$9:$G$53,">="&'Summary Tables - By Date'!$L$2,'Officer Compensation - Filtered'!$G$9:$G$53,"<="&'Summary Tables - By Date'!$L$3) -> 1346156.188 | R33: =MEDIAN(IF('Officer Compensation - Filtered'!$H$9:$H$53>=$F33,IF('Officer Compensation - Filtered'!$H$9:$H$53<=$G33,IF('Officer Compensation - Filtered'!$AK$9:$AK$53="Yes",IF('Officer Compensation - Filtered'!$G$9:$G$53>='Summary Tables - By Date'!$L$2,IF('Officer Compensation - Filtered'!$G$9:$G$53<=$L$3,'Officer Compensation - Filtered'!$AF$9:$AF$53,""),""),""),""),"")) -> 713393
D34: $200,000,000 to $299,999,999 | F34: =G33+1 -> 200000000 | G34: 299999999 | I34: =COUNTIFS('Officer Compensation - Filtered'!$H$9:$H$53,">="&$F34,'Officer Compensation - Filtered'!$H$9:$H$53,"<="&$G34,'Officer Compensation - Filtered'!$AK$9:$AK$53,"Yes",'Officer Compensation - Filtered'!$G$9:$G$53,">="&'Summary Tables - By Date'!$L$2,'Officer Compensation - Filtered'!$G$9:$G$53,"<="&'Summary Tables - By Date'!$L$3) -> 4 | K34: =AVERAGEIFS('Officer Compensation - Filtered'!$AB$9:$AB$53,'Officer Compensation - Filtered'!$H$9:$H$53,">="&$F34,'Officer Compensation - Filtered'!$H$9:$H$53,"<="&$G34,'Officer Compensation - Filtered'!$AK$9:$AK$53,"Yes",'Officer Compensation - Filtered'!$G$9:$G$53,">="&'Summary Tables - By Date'!$L$2,'Officer Compensation - Filtered'!$G$9:$G$53,"<="&'Summary Tables - By Date'!$L$3) -> 483839 | L34: =MEDIAN(IF('Officer Compensation - Filtered'!$H$9:$H$53>=$F34,IF('Officer Compensation - Filtered'!$H$9:$H$53<=$G34,IF('Officer Compensation - Filtered'!$AK$9:$AK$53="Yes",IF('Officer Compensation - Filtered'!$G$9:$G$53>='Summary Tables - By Date'!$L$2,IF('Officer Compensation - Filtered'!$G$9:$G$53<=$L$3,'Officer Compensation - Filtered'!$AB$9:$AB$53,""),""),""),""),"")) -> 482111.5 | N34: =AVERAGEIFS('Officer Compensation - Filtered'!$AD$9:$AD$53,'Officer Compensation - Filtered'!$H$9:$H$53,">="&$F34,'Officer Compensation - Filtered'!$H$9:$H$53,"<="&$G34,'Officer Compensation - Filtered'!$AK$9:$AK$53,"Yes",'Officer Compensation - Filtered'!$G$9:$G$53,">="&'Summary Tables - By Date'!$L$2,'Officer Compensation - Filtered'!$G$9:$G$53,"<="&'Summary Tables - By Date'!$L$3) -> 1225478 | O34: =MEDIAN(IF('Officer Compensation - Filtered'!$H$9:$H$53>=$F34,IF('Officer Compensation - Filtered'!$H$9:$H$53<=$G34,IF('Officer Compensation - Filtered'!$AK$9:$AK$53="Yes",IF('Officer Compensation - Filtered'!$G$9:$G$53>='Summary Tables - By Date'!$L$2,IF('Officer Compensation - Filtered'!$G$9:$G$53<=$L$3,'Officer Compensation - Filtered'!$AD$9:$AD$53,""),""),""),""),"")) -> 1005873.5 | Q34: =AVERAGEIFS('Officer Compensation - Filtered'!$AF$9:$AF$53,'Officer Compensation - Filtered'!$H$9:$H$53,">="&$F34,'Officer Compensation - Filtered'!$H$9:$H$53,"<="&$G34,'Officer Compensation - Filtered'!$AK$9:$AK$53,"Yes",'Officer Compensation - Filtered'!$G$9:$G$53,">="&'Summary Tables - By Date'!$L$2,'Officer Compensation - Filtered'!$G$9:$G$53,"<="&'Summary Tables - By Date'!$L$3) -> 1709317 | R34: =MEDIAN(IF('Officer Compensation - Filtered'!$H$9:$H$53>=$F34,IF('Officer Compensation - Filtered'!$H$9:$H$53<=$G34,IF('Officer Compensation - Filtered'!$AK$9:$AK$53="Yes",IF('Officer Compensation - Filtered'!$G$9:$G$53>='Summary Tables - By Date'!$L$2,IF('Officer Compensation - Filtered'!$G$9:$G$53<=$L$3,'Officer Compensation - Filtered'!$AF$9:$AF$53,""),""),""),""),"")) -> 1491440
D35: $300,000,000 to $399,999,999 | F35: =G34+1 -> 300000000 | G35: 399999999 | I35: =COUNTIFS('Officer Compensation - Filtered'!$H$9:$H$53,">="&$F35,'Officer Compensation - Filtered'!$H$9:$H$53,"<="&$G35,'Officer Compensation - Filtered'!$AK$9:$AK$53,"Yes",'Officer Compensation - Filtered'!$G$9:$G$53,">="&'Summary Tables - By Date'!$L$2,'Officer Compensation - Filtered'!$G$9:$G$53,"<="&'Summary Tables - By Date'!$L$3) -> 3 | K35: =AVERAGEIFS('Officer Compensation - Filtered'!$AB$9:$AB$53,'Officer Compensation - Filtered'!$H$9:$H$53,">="&$F35,'Officer Compensation - Filtered'!$H$9:$H$53,"<="&$G35,'Officer Compensation - Filtered'!$AK$9:$AK$53,"Yes",'Officer Compensation - Filtered'!$G$9:$G$53,">="&'Summary Tables - By Date'!$L$2,'Officer Compensation - Filtered'!$G$9:$G$53,"<="&'Summary Tables - By Date'!$L$3) -> 531502.3333 | L35: =MEDIAN(IF('Officer Compensation - Filtered'!$H$9:$H$53>=$F35,IF('Officer Compensation - Filtered'!$H$9:$H$53<=$G35,IF('Officer Compensation - Filtered'!$AK$9:$AK$53="Yes",IF('Officer Compensation - Filtered'!$G$9:$G$53>='Summary Tables - By Date'!$L$2,IF('Officer Compensation - Filtered'!$G$9:$G$53<=$L$3,'Officer Compensation - Filtered'!$AB$9:$AB$53,""),""),""),""),"")) -> 469532 | N35: =AVERAGEIFS('Officer Compensation - Filtered'!$AD$9:$AD$53,'Officer Compensation - Filtered'!$H$9:$H$53,">="&$F35,'Officer Compensation - Filtered'!$H$9:$H$53,"<="&$G35,'Officer Compensation - Filtered'!$AK$9:$AK$53,"Yes",'Officer Compensation - Filtered'!$G$9:$G$53,">="&'Summary Tables - By Date'!$L$2,'Officer Compensation - Filtered'!$G$9:$G$53,"<="&'Summary Tables - By Date'!$L$3) -> 539539 | O35: =MEDIAN(IF('Officer Compensation - Filtered'!$H$9:$H$53>=$F35,IF('Officer Compensation - Filtered'!$H$9:$H$53<=$G35,IF('Officer Compensation - Filtered'!$AK$9:$AK$53="Yes",IF('Officer Compensation - Filtered'!$G$9:$G$53>='Summary Tables - By Date'!$L$2,IF('Officer Compensation - Filtered'!$G$9:$G$53<=$L$3,'Officer Compensation - Filtered'!$AD$9:$AD$53,""),""),""),""),"")) -> 607417 | Q35: =AVERAGEIFS('Officer Compensation - Filtered'!$AF$9:$AF$53,'Officer Compensation - Filtered'!$H$9:$H$53,">="&$F35,'Officer Compensation - Filtered'!$H$9:$H$53,"<="&$G35,'Officer Compensation - Filtered'!$AK$9:$AK$53,"Yes",'Officer Compensation - Filtered'!$G$9:$G$53,">="&'Summary Tables - By Date'!$L$2,'Officer Compensation - Filtered'!$G$9:$G$53,"<="&'Summary Tables - By Date'!$L$3) -> 1071041.333 | R35: =MEDIAN(IF('Officer Compensation - Filtered'!$H$9:$H$53>=$F35,IF('Officer Compensation - Filtered'!$H$9:$H$53<=$G35,IF('Officer Compensation - Filtered'!$AK$9:$AK$53="Yes",IF('Officer Compensation - Filtered'!$G$9:$G$53>='Summary Tables - By Date'!$L$2,IF('Officer Compensation - Filtered'!$G$9:$G$53<=$L$3,'Officer Compensation - Filtered'!$AF$9:$AF$53,""),""),""),""),"")) -> 1036857
D36: $400,000,000 to $999,999,999 | F36: =G35+1 -> 400000000 | G36: 999999999 | I36: =COUNTIFS('Officer Compensation - Filtered'!$H$9:$H$53,">="&$F36,'Officer Compensation - Filtered'!$H$9:$H$53,"<="&$G36,'Officer Compensation - Filtered'!$AK$9:$AK$53,"Yes",'Officer Compensation - Filtered'!$G$9:$G$53,">="&'Summary Tables - By Date'!$L$2,'Officer Compensation - Filtered'!$G$9:$G$53,"<="&'Summary Tables - By Date'!$L$3) -> 4 | K36: =AVERAGEIFS('Officer Compensation - Filtered'!$AB$9:$AB$53,'Officer Compensation - Filtered'!$H$9:$H$53,">="&$F36,'Officer Compensation - Filtered'!$H$9:$H$53,"<="&$G36,'Officer Compensation - Filtered'!$AK$9:$AK$53,"Yes",'Officer Compensation - Filtered'!$G$9:$G$53,">="&'Summary Tables - By Date'!$L$2,'Officer Compensation - Filtered'!$G$9:$G$53,"<="&'Summary Tables - By Date'!$L$3) -> 483850.1977 | L36: =MEDIAN(IF('Officer Compensation - Filtered'!$H$9:$H$53>=$F36,IF('Officer Compensation - Filtered'!$H$9:$H$53<=$G36,IF('Officer Compensation - Filtered'!$AK$9:$AK$53="Yes",IF('Officer Compensation - Filtered'!$G$9:$G$53>='Summary Tables - By Date'!$L$2,IF('Officer Compensation - Filtered'!$G$9:$G$53<=$L$3,'Officer Compensation - Filtered'!$AB$9:$AB$53,""),""),""),""),"")) -> 476082.5 | N36: =AVERAGEIFS('Officer Compensation - Filtered'!$AD$9:$AD$53,'Officer Compensation - Filtered'!$H$9:$H$53,">="&$F36,'Officer Compensation - Filtered'!$H$9:$H$53,"<="&$G36,'Officer Compensation - Filtered'!$AK$9:$AK$53,"Yes",'Officer Compensation - Filtered'!$G$9:$G$53,">="&'Summary Tables - By Date'!$L$2,'Officer Compensation - Filtered'!$G$9:$G$53,"<="&'Summary Tables - By Date'!$L$3) -> 1348663.625 | O36: =MEDIAN(IF('Officer Compensation - Filtered'!$H$9:$H$53>=$F36,IF('Officer Compensation - Filtered'!$H$9:$H$53<=$G36,IF('Officer Compensation - Filtered'!$AK$9:$AK$53="Yes",IF('Officer Compensation - Filtered'!$G$9:$G$53>='Summary Tables - By Date'!$L$2,IF('Officer Compensation - Filtered'!$G$9:$G$53<=$L$3,'Officer Compensation - Filtered'!$AD$9:$AD$53,""),""),""),""),"")) -> 1102247 | Q36: =AVERAGEIFS('Officer Compensation - Filtered'!$AF$9:$AF$53,'Officer Compensation - Filtered'!$H$9:$H$53,">="&$F36,'Officer Compensation - Filtered'!$H$9:$H$53,"<="&$G36,'Officer Compensation - Filtered'!$AK$9:$AK$53,"Yes",'Officer Compensation - Filtered'!$G$9:$G$53,">="&'Summary Tables - By Date'!$L$2,'Officer Compensation - Filtered'!$G$9:$G$53,"<="&'Summary Tables - By Date'!$L$3) -> 1832513.823 | R36: =MEDIAN(IF('Officer Compensation - Filtered'!$H$9:$H$53>=$F36,IF('Officer Compensation - Filtered'!$H$9:$H$53<=$G36,IF('Officer Compensation - Filtered'!$AK$9:$AK$53="Yes",IF('Officer Compensation - Filtered'!$G$9:$G$53>='Summary Tables - By Date'!$L$2,IF('Officer Compensation - Filtered'!$G$9:$G$53<=$L$3,'Officer Compensation - Filtered'!$AF$9:$AF$53,""),""),""),""),"")) -> 1578329.5
D37: $1,000,000,000 and above | F37: =G36+1 -> 1000000000 | G37: 1000000000000 | I37: =COUNTIFS('Officer Compensation - Filtered'!$H$9:$H$53,">="&$F37,'Officer Compensation - Filtered'!$H$9:$H$53,"<="&$G37,'Officer Compensation - Filtered'!$AK$9:$AK$53,"Yes",'Officer Compensation - Filtered'!$G$9:$G$53,">="&'Summary Tables - By Date'!$L$2,'Officer Compensation - Filtered'!$G$9:$G$53,"<="&'Summary Tables - By Date'!$L$3) -> 3 | K37: =AVERAGEIFS('Officer Compensation - Filtered'!$AB$9:$AB$53,'Officer Compensation - Filtered'!$H$9:$H$53,">="&$F37,'Officer Compensation - Filtered'!$H$9:$H$53,"<="&$G37,'Officer Compensation - Filtered'!$AK$9:$AK$53,"Yes",'Officer Compensation - Filtered'!$G$9:$G$53,">="&'Summary Tables - By Date'!$L$2,'Officer Compensation - Filtered'!$G$9:$G$53,"<="&'Summary Tables - By Date'!$L$3) -> 616392.3333 | L37: =MEDIAN(IF('Officer Compensation - Filtered'!$H$9:$H$53>=$F37,IF('Officer Compensation - Filtered'!$H$9:$H$53<=$G37,IF('Officer Compensation - Filtered'!$AK$9:$AK$53="Yes",IF('Officer Compensation - Filtered'!$G$9:$G$53>='Summary Tables - By Date'!$L$2,IF('Officer Compensation - Filtered'!$G$9:$G$53<=$L$3,'Officer Compensation - Filtered'!$AB$9:$AB$53,""),""),""),""),"")) -> 607917 | N37: =AVERAGEIFS('Officer Compensation - Filtered'!$AD$9:$AD$53,'Officer Compensation - Filtered'!$H$9:$H$53,">="&$F37,'Officer Compensation - Filtered'!$H$9:$H$53,"<="&$G37,'Officer Compensation - Filtered'!$AK$9:$AK$53,"Yes",'Officer Compensation - Filtered'!$G$9:$G$53,">="&'Summary Tables - By Date'!$L$2,'Officer Compensation - Filtered'!$G$9:$G$53,"<="&'Summary Tables - By Date'!$L$3) -> 334461 | O37: =MEDIAN(IF('Officer Compensation - Filtered'!$H$9:$H$53>=$F37,IF('Officer Compensation - Filtered'!$H$9:$H$53<=$G37,IF('Officer Compensation - Filtered'!$AK$9:$AK$53="Yes",IF('Officer Compensation - Filtered'!$G$9:$G$53>='Summary Tables - By Date'!$L$2,IF('Officer Compensation - Filtered'!$G$9:$G$53<=$L$3,'Officer Compensation - Filtered'!$AD$9:$AD$53,""),""),""),""),"")) -> 319000 | Q37: =AVERAGEIFS('Officer Compensation - Filtered'!$AF$9:$AF$53,'Officer Compensation - Filtered'!$H$9:$H$53,">="&$F37,'Officer Compensation - Filtered'!$H$9:$H$53,"<="&$G37,'Officer Compensation - Filtered'!$AK$9:$AK$53,"Yes",'Officer Compensation - Filtered'!$G$9:$G$53,">="&'Summary Tables - By Date'!$L$2,'Officer Compensation - Filtered'!$G$9:$G$53,"<="&'Summary Tables - By Date'!$L$3) -> 950853.3333 | R37: =MEDIAN(IF('Officer Compensation - Filtered'!$H$9:$H$53>=$F37,IF('Officer Compensation - Filtered'!$H$9:$H$53<=$G37,IF('Officer Compensation - Filtered'!$AK$9:$AK$53="Yes",IF('Officer Compensation - Filtered'!$G$9:$G$53>='Summary Tables - By Date'!$L$2,IF('Officer Compensation - Filtered'!$G$9:$G$53<=$L$3,'Officer Compensation - Filtered'!$AF$9:$AF$53,""),""),""),""),"")) -> 758141
C39: Percentage Increase over Year Prior to IPO
D40: $199,999,999 and below | F40: -1000000000000 | G40: 199999999 | I40: =COUNTIFS('Officer Compensation - Filtered'!$H$9:$H$53,">="&$F40,'Officer Compensation - Filtered'!$H$9:$H$53,"<="&$G40,'Officer Compensation - Filtered'!$AK$9:$AK$53,"Yes",'Officer Compensation - Filtered'!$G$9:$G$53,">="&'Summary Tables - By Date'!$L$2,'Officer Compensation - Filtered'!$G$9:$G$53,"<="&'Summary Tables - By Date'!$L$3) -> 8 | K40: =(K33/K26)-1 -> -0.2831115757 | L40: =(L33/L26)-1 -> 0.1895249752 | N40: 1.561296637 | O40: 4.743762822 | Q40: 0.6498574007 | R40: 0.9731216922
D41: $200,000,000 to $299,999,999 | F41: =G40+1 -> 200000000 | G41: 299999999 | I41: =COUNTIFS('Officer Compensation - Filtered'!$H$9:$H$53,">="&$F41,'Officer Compensation - Filtered'!$H$9:$H$53,"<="&$G41,'Officer Compensation - Filtered'!$AK$9:$AK$53,"Yes",'Officer Compensation - Filtered'!$G$9:$G$53,">="&'Summary Tables - By Date'!$L$2,'Officer Compensation - Filtered'!$G$9:$G$53,"<="&'Summary Tables - By Date'!$L$3) -> 4 | K41: =(K34/K27)-1 -> 0.2808649195 | L41: 0.3387096102 | N41: 0.2168754204 | O41: 37.98009167 | Q41: 0.2343302255 | R41: 2.067047505
D42: $300,000,000 to $399,999,999 | F42: =G41+1 -> 300000000 | G42: 399999999 | I42: =COUNTIFS('Officer Compensation - Filtered'!$H$9:$H$53,">="&$F42,'Officer Compensation - Filtered'!$H$9:$H$53,"<="&$G42,'Officer Compensation - Filtered'!$AK$9:$AK$53,"Yes",'Officer Compensation - Filtered'!$G$9:$G$53,">="&'Summary Tables - By Date'!$L$2,'Officer Compensation - Filtered'!$G$9:$G$53,"<="&'Summary Tables - By Date'!$L$3) -> 3 | K42: 0.3470897245 | L42: 0.1486796589 | N42: 3.470724876 | Q42: 1.078728563 | R42: 1.536603565
D43: $400,000,000 to $999,999,999 | F43: =G42+1 -> 400000000 | G43: 999999999 | I43: =COUNTIFS('Officer Compensation - Filtered'!$H$9:$H$53,">="&$F43,'Officer Compensation - Filtered'!$H$9:$H$53,"<="&$G43,'Officer Compensation - Filtered'!$AK$9:$AK$53,"Yes",'Officer Compensation - Filtered'!$G$9:$G$53,">="&'Summary Tables - By Date'!$L$2,'Officer Compensation - Filtered'!$G$9:$G$53,"<="&'Summary Tables - By Date'!$L$3) -> 4 | K43: 0.2624915383 | L43: 0.2768980509 | N43: 6.866152381 | O43: 5.723027002 | Q43: 2.303602022 | R43: 1.806512844
D44: $1,000,000,000 and above | F44: =G43+1 -> 1000000000 | G44: 1000000000000 | I44: =COUNTIFS('Officer Compensation - Filtered'!$H$9:$H$53,">="&$F44,'Officer Compensation - Filtered'!$H$9:$H$53,"<="&$G44,'Officer Compensation - Filtered'!$AK$9:$AK$53,"Yes",'Officer Compensation - Filtered'!$G$9:$G$53,">="&'Summary Tables - By Date'!$L$2,'Officer Compensation - Filtered'!$G$9:$G$53,"<="&'Summary Tables - By Date'!$L$3) -> 3 | K44: 0.1099481814 | L44: 0.02797209892 | N44: -0.4461212095 | Q44: -0.1797237143 | R44: 0.1001549798
B48: All Industries - Analysis by Revenue
C49: Year Prior to IPO
D50: $49,999,999 and below | F50: -1000000000000 | G50: 49999999 | I50: =COUNTIFS('Officer Compensation - Filtered'!$I$9:$I$53,">="&$F50,'Officer Compensation - Filtered'!$I$9:$I$53,"<="&$G50,'Officer Compensation - Filtered'!$G$9:$G$53,">="&'Summary Tables - By Date'!$L$2,'Officer Compensation - Filtered'!$G$9:$G$53,"<="&'Summary Tables - By Date'!$L$3) -> 15 | K50: =AVERAGEIFS('Officer Compensation - Filtered'!$AA$9:$AA$53,'Officer Compensation - Filtered'!$I$9:$I$53,">="&$F50,'Officer Compensation - Filtered'!$I$9:$I$53,"<="&$G50,'Officer Compensation - Filtered'!$G$9:$G$53,">="&'Summary Tables - By Date'!$L$2,'Officer Compensation - Filtered'!$G$9:$G$53,"<="&'Summary Tables - By Date'!$L$3) -> 379948.1254 | L50: =MEDIAN(IF('Officer Compensation - Filtered'!$I$9:$I$53>=$F50,IF('Officer Compensation - Filtered'!$I$9:$I$53<=$G50,IF('Officer Compensation - Filtered'!$G$9:$G$53>='Summary Tables - By Date'!$L$2,IF('Officer Compensation - Filtered'!$G$9:$G$53<=$L$3,'Officer Compensation - Filtered'!$AA$9:$AA$53,""),""),""),"")) -> 300000 | N50: =AVERAGEIFS('Officer Compensation - Filtered'!$AC$9:$AC$53,'Officer Compensation - Filtered'!$I$9:$I$53,">="&$F50,'Officer Compensation - Filtered'!$I$9:$I$53,"<="&$G50,'Officer Compensation - Filtered'!$G$9:$G$53,">="&'Summary Tables - By Date'!$L$2,'Officer Compensation - Filtered'!$G$9:$G$53,"<="&'Summary Tables - By Date'!$L$3) -> 251283.3734 | O50: =MEDIAN(IF('Officer Compensation - Filtered'!$I$9:$I$53>=$F50,IF('Officer Compensation - Filtered'!$I$9:$I$53<=$G50,IF('Officer Compensation - Filtered'!$G$9:$G$53>='Summary Tables - By Date'!$L$2,IF('Officer Compensation - Filtered'!$G$9:$G$53<=$L$3,'Officer Compensation - Filtered'!$AC$9:$AC$53,""),""),""),"")) -> 6468 | Q50: =AVERAGEIFS('Officer Compensation - Filtered'!$AE$9:$AE$53,'Officer Compensation - Filtered'!$I$9:$I$53,">="&$F50,'Officer Compensation - Filtered'!$I$9:$I$53,"<="&$G50,'Officer Compensation - Filtered'!$G$9:$G$53,">="&'Summary Tables - By Date'!$L$2,'Officer Compensation - Filtered'!$G$9:$G$53,"<="&'Summary Tables - By Date'!$L$3) -> 631231.4988 | R50: =MEDIAN(IF('Officer Compensation - Filtered'!$I$9:$I$53>=$F50,IF('Officer Compensation - Filtered'!$I$9:$I$53<=$G50,IF('Officer Compensation - Filtered'!$G$9:$G$53>='Summary Tables - By Date'!$L$2,IF('Officer Compensation - Filtered'!$G$9:$G$53<=$L$3,'Officer Compensation - Filtered'!$AE$9:$AE$53,""),""),""),"")) -> 408758
D51: $50,000,000 to $149,999,999 | F51: =G50+1 -> 50000000 | G51: 149999999 | I51: =COUNTIFS('Officer Compensation - Filtered'!$I$9:$I$53,">="&$F51,'Officer Compensation - Filtered'!$I$9:$I$53,"<="&$G51,'Officer Compensation - Filtered'!$G$9:$G$53,">="&'Summary Tables - By Date'!$L$2,'Officer Compensation - Filtered'!$G$9:$G$53,"<="&'Summary Tables - By Date'!$L$3) -> 10 | K51: =AVERAGEIFS('Officer Compensation - Filtered'!$AA$9:$AA$53,'Officer Compensation - Filtered'!$I$9:$I$53,">="&$F51,'Officer Compensation - Filtered'!$I$9:$I$53,"<="&$G51,'Officer Compensation - Filtered'!$G$9:$G$53,">="&'Summary Tables - By Date'!$L$2,'Officer Compensation - Filtered'!$G$9:$G$53,"<="&'Summary Tables - By Date'!$L$3) -> 482279.4 | L51: =MEDIAN(IF('Officer Compensation - Filtered'!$I$9:$I$53>=$F51,IF('Officer Compensation - Filtered'!$I$9:$I$53<=$G51,IF('Officer Compensation - Filtered'!$G$9:$G$53>='Summary Tables - By Date'!$L$2,IF('Officer Compensation - Filtered'!$G$9:$G$53<=$L$3,'Officer Compensation - Filtered'!$AA$9:$AA$53,""),""),""),"")) -> 390713 | N51: =AVERAGEIFS('Officer Compensation - Filtered'!$AC$9:$AC$53,'Officer Compensation - Filtered'!$I$9:$I$53,">="&$F51,'Officer Compensation - Filtered'!$I$9:$I$53,"<="&$G51,'Officer Compensation - Filtered'!$G$9:$G$53,">="&'Summary Tables - By Date'!$L$2,'Officer Compensation - Filtered'!$G$9:$G$53,"<="&'Summary Tables - By Date'!$L$3) -> 624545.5 | O51: =MEDIAN(IF('Officer Compensation - Filtered'!$I$9:$I$53>=$F51,IF('Officer Compensation - Filtered'!$I$9:$I$53<=$G51,IF('Officer Compensation - Filtered'!$G$9:$G$53>='Summary Tables - By Date'!$L$2,IF('Officer Compensation - Filtered'!$G$9:$G$53<=$L$3,'Officer Compensation - Filtered'!$AC$9:$AC$53,""),""),""),"")) -> 12700 | Q51: =AVERAGEIFS('Officer Compensation - Filtered'!$AE$9:$AE$53,'Officer Compensation - Filtered'!$I$9:$I$53,">="&$F51,'Officer Compensation - Filtered'!$I$9:$I$53,"<="&$G51,'Officer Compensation - Filtered'!$G$9:$G$53,">="&'Summary Tables - By Date'!$L$2,'Officer Compensation - Filtered'!$G$9:$G$53,"<="&'Summary Tables - By Date'!$L$3) -> 1106824.9 | R51: =MEDIAN(IF('Officer Compensation - Filtered'!$I$9:$I$53>=$F51,IF('Officer Compensation - Filtered'!$I$9:$I$53<=$G51,IF('Officer Compensation - Filtered'!$G$9:$G$53>='Summary Tables - By Date'!$L$2,IF('Officer Compensation - Filtered'!$G$9:$G$53<=$L$3,'Officer Compensation - Filtered'!$AE$9:$AE$53,""),""),""),"")) -> 704653.5
D52: $150,000,000 and above | F52: =G51+1 -> 150000000 | G52: 1000000000000 | I52: =COUNTIFS('Officer Compensation - Filtered'!$I$9:$I$53,">="&$F52,'Officer Compensation - Filtered'!$I$9:$I$53,"<="&$G52,'Officer Compensation - Filtered'!$G$9:$G$53,">="&'Summary Tables - By Date'!$L$2,'Officer Compensation - Filtered'!$G$9:$G$53,"<="&'Summary Tables - By Date'!$L$3) -> 20 | K52: =AVERAGEIFS('Officer Compensation - Filtered'!$AA$9:$AA$53,'Officer Compensation - Filtered'!$I$9:$I$53,">="&$F52,'Officer Compensation - Filtered'!$I$9:$I$53,"<="&$G52,'Officer Compensation - Filtered'!$G$9:$G$53,">="&'Summary Tables - By Date'!$L$2,'Officer Compensation - Filtered'!$G$9:$G$53,"<="&'Summary Tables - By Date'!$L$3) -> 888327.4692 | L52: =MEDIAN(IF('Officer Compensation - Filtered'!$I$9:$I$53>=$F52,IF('Officer Compensation - Filtered'!$I$9:$I$53<=$G52,IF('Officer Compensation - Filtered'!$G$9:$G$53>='Summary Tables - By Date'!$L$2,IF('Officer Compensation - Filtered'!$G$9:$G$53<=$L$3,'Officer Compensation - Filtered'!$AA$9:$AA$53,""),""),""),"")) -> 655325.5 | N52: =AVERAGEIFS('Officer Compensation - Filtered'!$AC$9:$AC$53,'Officer Compensation - Filtered'!$I$9:$I$53,">="&$F52,'Officer Compensation - Filtered'!$I$9:$I$53,"<="&$G52,'Officer Compensation - Filtered'!$G$9:$G$53,">="&'Summary Tables - By Date'!$L$2,'Officer Compensation - Filtered'!$G$9:$G$53,"<="&'Summary Tables - By Date'!$L$3) -> 552933.6227 | O52: =MEDIAN(IF('Officer Compensation - Filtered'!$I$9:$I$53>=$F52,IF('Officer Compensation - Filtered'!$I$9:$I$53<=$G52,IF('Officer Compensation - Filtered'!$G$9:$G$53>='Summary Tables - By Date'!$L$2,IF('Officer Compensation - Filtered'!$G$9:$G$53<=$L$3,'Officer Compensation - Filtered'!$AC$9:$AC$53,""),""),""),"")) -> 127772.7266 | Q52: =AVERAGEIFS('Officer Compensation - Filtered'!$AE$9:$AE$53,'Officer Compensation - Filtered'!$I$9:$I$53,">="&$F52,'Officer Compensation - Filtered'!$I$9:$I$53,"<="&$G52,'Officer Compensation - Filtered'!$G$9:$G$53,">="&'Summary Tables - By Date'!$L$2,'Officer Compensation - Filtered'!$G$9:$G$53,"<="&'Summary Tables - By Date'!$L$3) -> 1441261.092 | R52: =MEDIAN(IF('Officer Compensation - Filtered'!$I$9:$I$53>=$F52,IF('Officer Compensation - Filtered'!$I$9:$I$53<=$G52,IF('Officer Compensation - Filtered'!$G$9:$G$53>='Summary Tables - By Date'!$L$2,IF('Officer Compensation - Filtered'!$G$9:$G$53<=$L$3,'Officer Compensation - Filtered'!$AE$9:$AE$53,""),""),""),"")) -> 903564
C54: Year of IPO
D55: $49,999,999 and below | F55: -1000000000000 | G55: 49999999 | I55: =COUNTIFS('Officer Compensation - Filtered'!$I$9:$I$53,">="&$F55,'Officer Compensation - Filtered'!$I$9:$I$53,"<="&$G55,'Officer Compensation - Filtered'!$G$9:$G$53,">="&'Summary Tables - By Date'!$L$2,'Officer Compensation - Filtered'!$G$9:$G$53,"<="&'Summary Tables - By Date'!$L$3) -> 15 | K55: =AVERAGEIFS('Officer Compensation - Filtered'!$AB$9:$AB$53,'Officer Compensation - Filtered'!$I$9:$I$53,">="&$F55,'Officer Compensation - Filtered'!$I$9:$I$53,"<="&$G55,'Officer Compensation - Filtered'!$G$9:$G$53,">="&'Summary Tables - By Date'!$L$2,'Officer Compensation - Filtered'!$G$9:$G$53,"<="&'Summary Tables - By Date'!$L$3) -> 395615.9857 | L55: =MEDIAN(IF('Officer Compensation - Filtered'!$I$9:$I$53>=$F55,IF('Officer Compensation - Filtered'!$I$9:$I$53<=$G55,IF('Officer Compensation - Filtered'!$G$9:$G$53>='Summary Tables - By Date'!$L$2,IF('Officer Compensation - Filtered'!$G$9:$G$53<=$L$3,'Officer Compensation - Filtered'!$AB$9:$AB$53,""),""),""),"")) -> 388060 | N55: =AVERAGEIFS('Officer Compensation - Filtered'!$AD$9:$AD$53,'Officer Compensation - Filtered'!$I$9:$I$53,">="&$F55,'Officer Compensation - Filtered'!$I$9:$I$53,"<="&$G55,'Officer Compensation - Filtered'!$G$9:$G$53,">="&'Summary Tables - By Date'!$L$2,'Officer Compensation - Filtered'!$G$9:$G$53,"<="&'Summary Tables - By Date'!$L$3) -> 1255640.421 | O55: =MEDIAN(IF('Officer Compensation - Filtered'!$I$9:$I$53>=$F55,IF('Officer Compensation - Filtered'!$I$9:$I$53<=$G55,IF('Officer Compensation - Filtered'!$G$9:$G$53>='Summary Tables - By Date'!$L$2,IF('Officer Compensation - Filtered'!$G$9:$G$53<=$L$3,'Officer Compensation - Filtered'!$AD$9:$AD$53,""),""),""),"")) -> 645829.3125 | Q55: =AVERAGEIFS('Officer Compensation - Filtered'!$AF$9:$AF$53,'Officer Compensation - Filtered'!$I$9:$I$53,">="&$F55,'Officer Compensation - Filtered'!$I$9:$I$53,"<="&$G55,'Officer Compensation - Filtered'!$G$9:$G$53,">="&'Summary Tables - By Date'!$L$2,'Officer Compensation - Filtered'!$G$9:$G$53,"<="&'Summary Tables - By Date'!$L$3) -> 1651256.407 | R55: =MEDIAN(IF('Officer Compensation - Filtered'!$I$9:$I$53>=$F55,IF('Officer Compensation - Filtered'!$I$9:$I$53<=$G55,IF('Officer Compensation - Filtered'!$G$9:$G$53>='Summary Tables - By Date'!$L$2,IF('Officer Compensation - Filtered'!$G$9:$G$53<=$L$3,'Officer Compensation - Filtered'!$AF$9:$AF$53,""),""),""),"")) -> 960017.3074
D56: $50,000,000 to $149,999,999 | F56: =G55+1 -> 50000000 | G56: 149999999 | I56: =COUNTIFS('Officer Compensation - Filtered'!$I$9:$I$53,">="&$F56,'Officer Compensation - Filtered'!$I$9:$I$53,"<="&$G56,'Officer Compensation - Filtered'!$G$9:$G$53,">="&'Summary Tables - By Date'!$L$2,'Officer Compensation - Filtered'!$G$9:$G$53,"<="&'Summary Tables - By Date'!$L$3) -> 10 | K56: =AVERAGEIFS('Officer Compensation - Filtered'!$AB$9:$AB$53,'Officer Compensation - Filtered'!$I$9:$I$53,">="&$F56,'Officer Compensation - Filtered'!$I$9:$I$53,"<="&$G56,'Officer Compensation - Filtered'!$G$9:$G$53,">="&'Summary Tables - By Date'!$L$2,'Officer Compensation - Filtered'!$G$9:$G$53,"<="&'Summary Tables - By Date'!$L$3) -> 534515.1 | L56: =MEDIAN(IF('Officer Compensation - Filtered'!$I$9:$I$53>=$F56,IF('Officer Compensation - Filtered'!$I$9:$I$53<=$G56,IF('Officer Compensation - Filtered'!$G$9:$G$53>='Summary Tables - By Date'!$L$2,IF('Officer Compensation - Filtered'!$G$9:$G$53<=$L$3,'Officer Compensation - Filtered'!$AB$9:$AB$53,""),""),""),"")) -> 498320.5 | N56: =AVERAGEIFS('Officer Compensation - Filtered'!$AD$9:$AD$53,'Officer Compensation - Filtered'!$I$9:$I$53,">="&$F56,'Officer Compensation - Filtered'!$I$9:$I$53,"<="&$G56,'Officer Compensation - Filtered'!$G$9:$G$53,">="&'Summary Tables - By Date'!$L$2,'Officer Compensation - Filtered'!$G$9:$G$53,"<="&'Summary Tables - By Date'!$L$3) -> 414769.8 | O56: =MEDIAN(IF('Officer Compensation - Filtered'!$I$9:$I$53>=$F56,IF('Officer Compensation - Filtered'!$I$9:$I$53<=$G56,IF('Officer Compensation - Filtered'!$G$9:$G$53>='Summary Tables - By Date'!$L$2,IF('Officer Compensation - Filtered'!$G$9:$G$53<=$L$3,'Officer Compensation - Filtered'!$AD$9:$AD$53,""),""),""),"")) -> 379660 | Q56: =AVERAGEIFS('Officer Compensation - Filtered'!$AF$9:$AF$53,'Officer Compensation - Filtered'!$I$9:$I$53,">="&$F56,'Officer Compensation - Filtered'!$I$9:$I$53,"<="&$G56,'Officer Compensation - Filtered'!$G$9:$G$53,">="&'Summary Tables - By Date'!$L$2,'Officer Compensation - Filtered'!$G$9:$G$53,"<="&'Summary Tables - By Date'!$L$3) -> 949284.9 | R56: =MEDIAN(IF('Officer Compensation - Filtered'!$I$9:$I$53>=$F56,IF('Officer Compensation - Filtered'!$I$9:$I$53<=$G56,IF('Officer Compensation - Filtered'!$G$9:$G$53>='Summary Tables - By Date'!$L$2,IF('Officer Compensation - Filtered'!$G$9:$G$53<=$L$3,'Officer Compensation - Filtered'!$AF$9:$AF$53,""),""),""),"")) -> 862047
D57: $150,000,000 and above | F57: =G56+1 -> 150000000 | G57: 1000000000000 | I57: =COUNTIFS('Officer Compensation - Filtered'!$I$9:$I$53,">="&$F57,'Officer Compensation - Filtered'!$I$9:$I$53,"<="&$G57,'Officer Compensation - Filtered'!$G$9:$G$53,">="&'Summary Tables - By Date'!$L$2,'Officer Compensation - Filtered'!$G$9:$G$53,"<="&'Summary Tables - By Date'!$L$3) -> 20 | K57: =AVERAGEIFS('Officer Compensation - Filtered'!$AB$9:$AB$53,'Officer Compensation - Filtered'!$I$9:$I$53,">="&$F57,'Officer Compensation - Filtered'!$I$9:$I$53,"<="&$G57,'Officer Compensation - Filtered'!$G$9:$G$53,">="&'Summary Tables - By Date'!$L$2,'Officer Compensation - Filtered'!$G$9:$G$53,"<="&'Summary Tables - By Date'!$L$3) -> 1102703.9 | L57: =MEDIAN(IF('Officer Compensation - Filtered'!$I$9:$I$53>=$F57,IF('Officer Compensation - Filtered'!$I$9:$I$53<=$G57,IF('Officer Compensation - Filtered'!$G$9:$G$53>='Summary Tables - By Date'!$L$2,IF('Officer Compensation - Filtered'!$G$9:$G$53<=$L$3,'Officer Compensation - Filtered'!$AB$9:$AB$53,""),""),""),"")) -> 657279 | N57: =AVERAGEIFS('Officer Compensation - Filtered'!$AD$9:$AD$53,'Officer Compensation - Filtered'!$I$9:$I$53,">="&$F57,'Officer Compensation - Filtered'!$I$9:$I$53,"<="&$G57,'Officer Compensation - Filtered'!$G$9:$G$53,">="&'Summary Tables - By Date'!$L$2,'Officer Compensation - Filtered'!$G$9:$G$53,"<="&'Summary Tables - By Date'!$L$3) -> 755538.5 | O57: =MEDIAN(IF('Officer Compensation - Filtered'!$I$9:$I$53>=$F57,IF('Officer Compensation - Filtered'!$I$9:$I$53<=$G57,IF('Officer Compensation - Filtered'!$G$9:$G$53>='Summary Tables - By Date'!$L$2,IF('Officer Compensation - Filtered'!$G$9:$G$53<=$L$3,'Officer Compensation - Filtered'!$AD$9:$AD$53,""),""),""),"")) -> 391533 | Q57: =AVERAGEIFS('Officer Compensation - Filtered'!$AF$9:$AF$53,'Officer Compensation - Filtered'!$I$9:$I$53,">="&$F57,'Officer Compensation - Filtered'!$I$9:$I$53,"<="&$G57,'Officer Compensation - Filtered'!$G$9:$G$53,">="&'Summary Tables - By Date'!$L$2,'Officer Compensation - Filtered'!$G$9:$G$53,"<="&'Summary Tables - By Date'!$L$3) -> 1858242.4 | R57: =MEDIAN(IF('Officer Compensation - Filtered'!$I$9:$I$53>=$F57,IF('Officer Compensation - Filtered'!$I$9:$I$53<=$G57,IF('Officer Compensation - Filtered'!$G$9:$G$53>='Summary Tables - By Date'!$L$2,IF('Officer Compensation - Filtered'!$G$9:$G$53<=$L$3,'Officer Compensation - Filtered'!$AF$9:$AF$53,""),""),""),"")) -> 1465913
C59: Percentage Increase over Year Prior to IPO
D60: $49,999,999 and below | F60: -1000000000000 | G60: 49999999 | I60: =COUNTIFS('Officer Compensation - Filtered'!$I$9:$I$53,">="&$F60,'Officer Compensation - Filtered'!$I$9:$I$53,"<="&$G60,'Officer Compensation - Filtered'!$G$9:$G$53,">="&'Summary Tables - By Date'!$L$2,'Officer Compensation - Filtered'!$G$9:$G$53,"<="&'Summary Tables - By Date'!$L$3) -> 15 | K60: =(K55/K50)-1 -> 0.04123684067 | L60: =(L55/L50)-1 -> 0.2935333333 | N60: 3.996910077 | O60: 98.84992463 | Q60: 1.615928403 | R60: 1.348620229
D61: $50,000,000 to $149,999,999 | F61: =G60+1 -> 50000000 | G61: 149999999 | I61: =COUNTIFS('Officer Compensation - Filtered'!$I$9:$I$53,">="&$F61,'Officer Compensation - Filtered'!$I$9:$I$53,"<="&$G61,'Officer Compensation - Filtered'!$G$9:$G$53,">="&'Summary Tables - By Date'!$L$2,'Officer Compensation - Filtered'!$G$9:$G$53,"<="&'Summary Tables - By Date'!$L$3) -> 10 | K61: =(K56/K51)-1 -> 0.1083100377 | L61: 0.2754131549 | N61: -0.3358853758 | O61: 28.89448819 | Q61: -0.1423350703 | R61: 0.223362972
D62: $150,000,000 and above | F62: =G61+1 -> 150000000 | G62: 1000000000000 | I62: =COUNTIFS('Officer Compensation - Filtered'!$I$9:$I$53,">="&$F62,'Officer Compensation - Filtered'!$I$9:$I$53,"<="&$G62,'Officer Compensation - Filtered'!$G$9:$G$53,">="&'Summary Tables - By Date'!$L$2,'Officer Compensation - Filtered'!$G$9:$G$53,"<="&'Summary Tables - By Date'!$L$3) -> 20 | K62: 0.2413259054 | L62: 0.00298096137 | N62: 0.3664180817 | O62: 2.06429244 | Q62: 0.2893169812 | R62: 0.6223676463
B65: All Industries - Analysis by Market Cap
C66: Year Prior to IPO
D67: $199,999,999 and below | F67: -1000000000000 | G67: 199999999 | I67: =COUNTIFS('Officer Compensation - Filtered'!$H$9:$H$53,">="&$F67,'Officer Compensation - Filtered'!$H$9:$H$53,"<="&$G67,'Officer Compensation - Filtered'!$G$9:$G$53,">="&'Summary Tables - By Date'!$L$2,'Officer Compensation - Filtered'!$G$9:$G$53,"<="&'Summary Tables - By Date'!$L$3) -> 11 | K67: =AVERAGEIFS('Officer Compensation - Filtered'!$AA$9:$AA$53,'Officer Compensation - Filtered'!$H$9:$H$53,">="&$F67,'Officer Compensation - Filtered'!$H$9:$H$53,"<="&$G67,'Officer Compensation - Filtered'!$G$9:$G$53,">="&'Summary Tables - By Date'!$L$2,'Officer Compensation - Filtered'!$G$9:$G$53,"<="&'Summary Tables - By Date'!$L$3) -> 386587.0909 | L67: =MEDIAN(IF('Officer Compensation - Filtered'!$H$9:$H$53>=$F67,IF('Officer Compensation - Filtered'!$H$9:$H$53<=$G67,IF('Officer Compensation - Filtered'!$G$9:$G$53>='Summary Tables - By Date'!$L$2,IF('Officer Compensation - Filtered'!$G$9:$G$53<=$L$3,'Officer Compensation - Filtered'!$AA$9:$AA$53,""),""),""),"")) -> 285780 | N67: =AVERAGEIFS('Officer Compensation - Filtered'!$AC$9:$AC$53,'Officer Compensation - Filtered'!$H$9:$H$53,">="&$F67,'Officer Compensation - Filtered'!$H$9:$H$53,"<="&$G67,'Officer Compensation - Filtered'!$G$9:$G$53,">="&'Summary Tables - By Date'!$L$2,'Officer Compensation - Filtered'!$G$9:$G$53,"<="&'Summary Tables - By Date'!$L$3) -> 306883.0909 | O67: =MEDIAN(IF('Officer Compensation - Filtered'!$H$9:$H$53>=$F67,IF('Officer Compensation - Filtered'!$H$9:$H$53<=$G67,IF('Officer Compensation - Filtered'!$G$9:$G$53>='Summary Tables - By Date'!$L$2,IF('Officer Compensation - Filtered'!$G$9:$G$53<=$L$3,'Officer Compensation - Filtered'!$AC$9:$AC$53,""),""),""),"")) -> 6468 | Q67: =AVERAGEIFS('Officer Compensation - Filtered'!$AE$9:$AE$53,'Officer Compensation - Filtered'!$H$9:$H$53,">="&$F67,'Officer Compensation - Filtered'!$H$9:$H$53,"<="&$G67,'Officer Compensation - Filtered'!$G$9:$G$53,">="&'Summary Tables - By Date'!$L$2,'Officer Compensation - Filtered'!$G$9:$G$53,"<="&'Summary Tables - By Date'!$L$3) -> 693470.1818 | R67: =MEDIAN(IF('Officer Compensation - Filtered'!$H$9:$H$53>=$F67,IF('Officer Compensation - Filtered'!$H$9:$H$53<=$G67,IF('Officer Compensation - Filtered'!$G$9:$G$53>='Summary Tables - By Date'!$L$2,IF('Officer Compensation - Filtered'!$G$9:$G$53<=$L$3,'Officer Compensation - Filtered'!$AE$9:$AE$53,""),""),""),"")) -> 337769
D68: $200,000,000 to $299,999,999 | F68: =G67+1 -> 200000000 | G68: 299999999 | I68: =COUNTIFS('Officer Compensation - Filtered'!$H$9:$H$53,">="&$F68,'Officer Compensation - Filtered'!$H$9:$H$53,"<="&$G68,'Officer Compensation - Filtered'!$G$9:$G$53,">="&'Summary Tables - By Date'!$L$2,'Officer Compensation - Filtered'!$G$9:$G$53,"<="&'Summary Tables - By Date'!$L$3) -> 6 | K68: =AVERAGEIFS('Officer Compensation - Filtered'!$AA$9:$AA$53,'Officer Compensation - Filtered'!$H$9:$H$53,">="&$F68,'Officer Compensation - Filtered'!$H$9:$H$53,"<="&$G68,'Officer Compensation - Filtered'!$G$9:$G$53,">="&'Summary Tables - By Date'!$L$2,'Officer Compensation - Filtered'!$G$9:$G$53,"<="&'Summary Tables - By Date'!$L$3) -> 862325.3135 | L68: =MEDIAN(IF('Officer Compensation - Filtered'!$H$9:$H$53>=$F68,IF('Officer Compensation - Filtered'!$H$9:$H$53<=$G68,IF('Officer Compensation - Filtered'!$G$9:$G$53>='Summary Tables - By Date'!$L$2,IF('Officer Compensation - Filtered'!$G$9:$G$53<=$L$3,'Officer Compensation - Filtered'!$AA$9:$AA$53,""),""),""),"")) -> 397340 | N68: =AVERAGEIFS('Officer Compensation - Filtered'!$AC$9:$AC$53,'Officer Compensation - Filtered'!$H$9:$H$53,">="&$F68,'Officer Compensation - Filtered'!$H$9:$H$53,"<="&$G68,'Officer Compensation - Filtered'!$G$9:$G$53,">="&'Summary Tables - By Date'!$L$2,'Officer Compensation - Filtered'!$G$9:$G$53,"<="&'Summary Tables - By Date'!$L$3) -> 671379.6003 | O68: =MEDIAN(IF('Officer Compensation - Filtered'!$H$9:$H$53>=$F68,IF('Officer Compensation - Filtered'!$H$9:$H$53<=$G68,IF('Officer Compensation - Filtered'!$G$9:$G$53>='Summary Tables - By Date'!$L$2,IF('Officer Compensation - Filtered'!$G$9:$G$53<=$L$3,'Officer Compensation - Filtered'!$AC$9:$AC$53,""),""),""),"")) -> 0 | Q68: =AVERAGEIFS('Officer Compensation - Filtered'!$AE$9:$AE$53,'Officer Compensation - Filtered'!$H$9:$H$53,">="&$F68,'Officer Compensation - Filtered'!$H$9:$H$53,"<="&$G68,'Officer Compensation - Filtered'!$G$9:$G$53,">="&'Summary Tables - By Date'!$L$2,'Officer Compensation - Filtered'!$G$9:$G$53,"<="&'Summary Tables - By Date'!$L$3) -> 1533704.914 | R68: =MEDIAN(IF('Officer Compensation - Filtered'!$H$9:$H$53>=$F68,IF('Officer Compensation - Filtered'!$H$9:$H$53<=$G68,IF('Officer Compensation - Filtered'!$G$9:$G$53>='Summary Tables - By Date'!$L$2,IF('Officer Compensation - Filtered'!$G$9:$G$53<=$L$3,'Officer Compensation - Filtered'!$AE$9:$AE$53,""),""),""),"")) -> 486278.7412
D69: $300,000,000 to $399,999,999 | F69: =G68+1 -> 300000000 | G69: 399999999 | I69: =COUNTIFS('Officer Compensation - Filtered'!$H$9:$H$53,">="&$F69,'Officer Compensation - Filtered'!$H$9:$H$53,"<="&$G69,'Officer Compensation - Filtered'!$G$9:$G$53,">="&'Summary Tables - By Date'!$L$2,'Officer Compensation - Filtered'!$G$9:$G$53,"<="&'Summary Tables - By Date'!$L$3) -> 6 | K69: =AVERAGEIFS('Officer Compensation - Filtered'!$AA$9:$AA$53,'Officer Compensation - Filtered'!$H$9:$H$53,">="&$F69,'Officer Compensation - Filtered'!$H$9:$H$53,"<="&$G69,'Officer Compensation - Filtered'!$G$9:$G$53,">="&'Summary Tables - By Date'!$L$2,'Officer Compensation - Filtered'!$G$9:$G$53,"<="&'Summary Tables - By Date'!$L$3) -> 559067.8333 | L69: =MEDIAN(IF('Officer Compensation - Filtered'!$H$9:$H$53>=$F69,IF('Officer Compensation - Filtered'!$H$9:$H$53<=$G69,IF('Officer Compensation - Filtered'!$G$9:$G$53>='Summary Tables - By Date'!$L$2,IF('Officer Compensation - Filtered'!$G$9:$G$53<=$L$3,'Officer Compensation - Filtered'!$AA$9:$AA$53,""),""),""),"")) -> 483457 | N69: =AVERAGEIFS('Officer Compensation - Filtered'!$AC$9:$AC$53,'Officer Compensation - Filtered'!$H$9:$H$53,">="&$F69,'Officer Compensation - Filtered'!$H$9:$H$53,"<="&$G69,'Officer Compensation - Filtered'!$G$9:$G$53,">="&'Summary Tables - By Date'!$L$2,'Officer Compensation - Filtered'!$G$9:$G$53,"<="&'Summary Tables - By Date'!$L$3) -> 60341.33333 | O69: =MEDIAN(IF('Officer Compensation - Filtered'!$H$9:$H$53>=$F69,IF('Officer Compensation - Filtered'!$H$9:$H$53<=$G69,IF('Officer Compensation - Filtered'!$G$9:$G$53>='Summary Tables - By Date'!$L$2,IF('Officer Compensation - Filtered'!$G$9:$G$53<=$L$3,'Officer Compensation - Filtered'!$AC$9:$AC$53,""),""),""),"")) -> 0 | Q69: =AVERAGEIFS('Officer Compensation - Filtered'!$AE$9:$AE$53,'Officer Compensation - Filtered'!$H$9:$H$53,">="&$F69,'Officer Compensation - Filtered'!$H$9:$H$53,"<="&$G69,'Officer Compensation - Filtered'!$G$9:$G$53,">="&'Summary Tables - By Date'!$L$2,'Officer Compensation - Filtered'!$G$9:$G$53,"<="&'Summary Tables - By Date'!$L$3) -> 619409.1667 | R69: =MEDIAN(IF('Officer Compensation - Filtered'!$H$9:$H$53>=$F69,IF('Officer Compensation - Filtered'!$H$9:$H$53<=$G69,IF('Officer Compensation - Filtered'!$G$9:$G$53>='Summary Tables - By Date'!$L$2,IF('Officer Compensation - Filtered'!$G$9:$G$53<=$L$3,'Officer Compensation - Filtered'!$AE$9:$AE$53,""),""),""),"")) -> 545777.5
D70: $400,000,000 to $999,999,999 | F70: =G69+1 -> 400000000 | G70: 999999999 | I70: =COUNTIFS('Officer Compensation - Filtered'!$H$9:$H$53,">="&$F70,'Officer Compensation - Filtered'!$H$9:$H$53,"<="&$G70,'Officer Compensation - Filtered'!$G$9:$G$53,">="&'Summary Tables - By Date'!$L$2,'Officer Compensation - Filtered'!$G$9:$G$53,"<="&'Summary Tables - By Date'!$L$3) -> 9 | K70: =AVERAGEIFS('Officer Compensation - Filtered'!$AA$9:$AA$53,'Officer Compensation - Filtered'!$H$9:$H$53,">="&$F70,'Officer Compensation - Filtered'!$H$9:$H$53,"<="&$G70,'Officer Compensation - Filtered'!$G$9:$G$53,">="&'Summary Tables - By Date'!$L$2,'Officer Compensation - Filtered'!$G$9:$G$53,"<="&'Summary Tables - By Date'!$L$3) -> 503079.8889 | L70: =MEDIAN(IF('Officer Compensation - Filtered'!$H$9:$H$53>=$F70,IF('Officer Compensation - Filtered'!$H$9:$H$53<=$G70,IF('Officer Compensation - Filtered'!$G$9:$G$53>='Summary Tables - By Date'!$L$2,IF('Officer Compensation - Filtered'!$G$9:$G$53<=$L$3,'Officer Compensation - Filtered'!$AA$9:$AA$53,""),""),""),"")) -> 500899 | N70: =AVERAGEIFS('Officer Compensation - Filtered'!$AC$9:$AC$53,'Officer Compensation - Filtered'!$H$9:$H$53,">="&$F70,'Officer Compensation - Filtered'!$H$9:$H$53,"<="&$G70,'Officer Compensation - Filtered'!$G$9:$G$53,">="&'Summary Tables - By Date'!$L$2,'Officer Compensation - Filtered'!$G$9:$G$53,"<="&'Summary Tables - By Date'!$L$3) -> 250984.6667 | O70: =MEDIAN(IF('Officer Compensation - Filtered'!$H$9:$H$53>=$F70,IF('Officer Compensation - Filtered'!$H$9:$H$53<=$G70,IF('Officer Compensation - Filtered'!$G$9:$G$53>='Summary Tables - By Date'!$L$2,IF('Officer Compensation - Filtered'!$G$9:$G$53<=$L$3,'Officer Compensation - Filtered'!$AC$9:$AC$53,""),""),""),"")) -> 53805 | Q70: =AVERAGEIFS('Officer Compensation - Filtered'!$AE$9:$AE$53,'Officer Compensation - Filtered'!$H$9:$H$53,">="&$F70,'Officer Compensation - Filtered'!$H$9:$H$53,"<="&$G70,'Officer Compensation - Filtered'!$G$9:$G$53,">="&'Summary Tables - By Date'!$L$2,'Officer Compensation - Filtered'!$G$9:$G$53,"<="&'Summary Tables - By Date'!$L$3) -> 754064.5556 | R70: =MEDIAN(IF('Officer Compensation - Filtered'!$H$9:$H$53>=$F70,IF('Officer Compensation - Filtered'!$H$9:$H$53<=$G70,IF('Officer Compensation - Filtered'!$G$9:$G$53>='Summary Tables - By Date'!$L$2,IF('Officer Compensation - Filtered'!$G$9:$G$53<=$L$3,'Officer Compensation - Filtered'!$AE$9:$AE$53,""),""),""),"")) -> 655483
D71: $1,000,000,000 and above | F71: =G70+1 -> 1000000000 | G71: 1000000000000 | I71: =COUNTIFS('Officer Compensation - Filtered'!$H$9:$H$53,">="&$F71,'Officer Compensation - Filtered'!$H$9:$H$53,"<="&$G71,'Officer Compensation - Filtered'!$G$9:$G$53,">="&'Summary Tables - By Date'!$L$2,'Officer Compensation - Filtered'!$G$9:$G$53,"<="&'Summary Tables - By Date'!$L$3) -> 13 | K71: =AVERAGEIFS('Officer Compensation - Filtered'!$AA$9:$AA$53,'Officer Compensation - Filtered'!$H$9:$H$53,">="&$F71,'Officer Compensation - Filtered'!$H$9:$H$53,"<="&$G71,'Officer Compensation - Filtered'!$G$9:$G$53,">="&'Summary Tables - By Date'!$L$2,'Officer Compensation - Filtered'!$G$9:$G$53,"<="&'Summary Tables - By Date'!$L$3) -> 844617.6449 | L71: =MEDIAN(IF('Officer Compensation - Filtered'!$H$9:$H$53>=$F71,IF('Officer Compensation - Filtered'!$H$9:$H$53<=$G71,IF('Officer Compensation - Filtered'!$G$9:$G$53>='Summary Tables - By Date'!$L$2,IF('Officer Compensation - Filtered'!$G$9:$G$53<=$L$3,'Officer Compensation - Filtered'!$AA$9:$AA$53,""),""),""),"")) -> 684656 | N71: =AVERAGEIFS('Officer Compensation - Filtered'!$AC$9:$AC$53,'Officer Compensation - Filtered'!$H$9:$H$53,">="&$F71,'Officer Compensation - Filtered'!$H$9:$H$53,"<="&$G71,'Officer Compensation - Filtered'!$G$9:$G$53,">="&'Summary Tables - By Date'!$L$2,'Officer Compensation - Filtered'!$G$9:$G$53,"<="&'Summary Tables - By Date'!$L$3) -> 849882.8041 | O71: =MEDIAN(IF('Officer Compensation - Filtered'!$H$9:$H$53>=$F71,IF('Officer Compensation - Filtered'!$H$9:$H$53<=$G71,IF('Officer Compensation - Filtered'!$G$9:$G$53>='Summary Tables - By Date'!$L$2,IF('Officer Compensation - Filtered'!$G$9:$G$53<=$L$3,'Officer Compensation - Filtered'!$AC$9:$AC$53,""),""),""),"")) -> 262500 | Q71: =AVERAGEIFS('Officer Compensation - Filtered'!$AE$9:$AE$53,'Officer Compensation - Filtered'!$H$9:$H$53,">="&$F71,'Officer Compensation - Filtered'!$H$9:$H$53,"<="&$G71,'Officer Compensation - Filtered'!$G$9:$G$53,">="&'Summary Tables - By Date'!$L$2,'Officer Compensation - Filtered'!$G$9:$G$53,"<="&'Summary Tables - By Date'!$L$3) -> 1694500.449 | R71: =MEDIAN(IF('Officer Compensation - Filtered'!$H$9:$H$53>=$F71,IF('Officer Compensation - Filtered'!$H$9:$H$53<=$G71,IF('Officer Compensation - Filtered'!$G$9:$G$53>='Summary Tables - By Date'!$L$2,IF('Officer Compensation - Filtered'!$G$9:$G$53<=$L$3,'Officer Compensation - Filtered'!$AE$9:$AE$53,""),""),""),"")) -> 998243
C73: Year of IPO
D74: $199,999,999 and below | F74: -1000000000000 | G74: 199999999 | I74: =COUNTIFS('Officer Compensation - Filtered'!$H$9:$H$53,">="&$F74,'Officer Compensation - Filtered'!$H$9:$H$53,"<="&$G74,'Officer Compensation - Filtered'!$G$9:$G$53,">="&'Summary Tables - By Date'!$L$2,'Officer Compensation - Filtered'!$G$9:$G$53,"<="&'Summary Tables - By Date'!$L$3) -> 11 | K74: =AVERAGEIFS('Officer Compensation - Filtered'!$AB$9:$AB$53,'Officer Compensation - Filtered'!$H$9:$H$53,">="&$F74,'Officer Compensation - Filtered'!$H$9:$H$53,"<="&$G74,'Officer Compensation - Filtered'!$G$9:$G$53,">="&'Summary Tables - By Date'!$L$2,'Officer Compensation - Filtered'!$G$9:$G$53,"<="&'Summary Tables - By Date'!$L$3) -> 368955.3632 | L74: =MEDIAN(IF('Officer Compensation - Filtered'!$H$9:$H$53>=$F74,IF('Officer Compensation - Filtered'!$H$9:$H$53<=$G74,IF('Officer Compensation - Filtered'!$G$9:$G$53>='Summary Tables - By Date'!$L$2,IF('Officer Compensation - Filtered'!$G$9:$G$53<=$L$3,'Officer Compensation - Filtered'!$AB$9:$AB$53,""),""),""),"")) -> 338874 | N74: =AVERAGEIFS('Officer Compensation - Filtered'!$AD$9:$AD$53,'Officer Compensation - Filtered'!$H$9:$H$53,">="&$F74,'Officer Compensation - Filtered'!$H$9:$H$53,"<="&$G74,'Officer Compensation - Filtered'!$G$9:$G$53,">="&'Summary Tables - By Date'!$L$2,'Officer Compensation - Filtered'!$G$9:$G$53,"<="&'Summary Tables - By Date'!$L$3) -> 928805.892 | O74: =MEDIAN(IF('Officer Compensation - Filtered'!$H$9:$H$53>=$F74,IF('Officer Compensation - Filtered'!$H$9:$H$53<=$G74,IF('Officer Compensation - Filtered'!$G$9:$G$53>='Summary Tables - By Date'!$L$2,IF('Officer Compensation - Filtered'!$G$9:$G$53<=$L$3,'Officer Compensation - Filtered'!$AD$9:$AD$53,""),""),""),"")) -> 503852 | Q74: =AVERAGEIFS('Officer Compensation - Filtered'!$AF$9:$AF$53,'Officer Compensation - Filtered'!$H$9:$H$53,">="&$F74,'Officer Compensation - Filtered'!$H$9:$H$53,"<="&$G74,'Officer Compensation - Filtered'!$G$9:$G$53,">="&'Summary Tables - By Date'!$L$2,'Officer Compensation - Filtered'!$G$9:$G$53,"<="&'Summary Tables - By Date'!$L$3) -> 1297761.255 | R74: =MEDIAN(IF('Officer Compensation - Filtered'!$H$9:$H$53>=$F74,IF('Officer Compensation - Filtered'!$H$9:$H$53<=$G74,IF('Officer Compensation - Filtered'!$G$9:$G$53>='Summary Tables - By Date'!$L$2,IF('Officer Compensation - Filtered'!$G$9:$G$53<=$L$3,'Officer Compensation - Filtered'!$AF$9:$AF$53,""),""),""),"")) -> 881177
D75: $200,000,000 to $299,999,999 | F75: =G74+1 -> 200000000 | G75: 299999999 | I75: =COUNTIFS('Officer Compensation - Filtered'!$H$9:$H$53,">="&$F75,'Officer Compensation - Filtered'!$H$9:$H$53,"<="&$G75,'Officer Compensation - Filtered'!$G$9:$G$53,">="&'Summary Tables - By Date'!$L$2,'Officer Compensation - Filtered'!$G$9:$G$53,"<="&'Summary Tables - By Date'!$L$3) -> 6 | K75: =AVERAGEIFS('Officer Compensation - Filtered'!$AB$9:$AB$53,'Officer Compensation - Filtered'!$H$9:$H$53,">="&$F75,'Officer Compensation - Filtered'!$H$9:$H$53,"<="&$G75,'Officer Compensation - Filtered'!$G$9:$G$53,">="&'Summary Tables - By Date'!$L$2,'Officer Compensation - Filtered'!$G$9:$G$53,"<="&'Summary Tables - By Date'!$L$3) -> 898788.3333 | L75: =MEDIAN(IF('Officer Compensation - Filtered'!$H$9:$H$53>=$F75,IF('Officer Compensation - Filtered'!$H$9:$H$53<=$G75,IF('Officer Compensation - Filtered'!$G$9:$G$53>='Summary Tables - By Date'!$L$2,IF('Officer Compensation - Filtered'!$G$9:$G$53<=$L$3,'Officer Compensation - Filtered'!$AB$9:$AB$53,""),""),""),"")) -> 482111.5 | N75: =AVERAGEIFS('Officer Compensation - Filtered'!$AD$9:$AD$53,'Officer Compensation - Filtered'!$H$9:$H$53,">="&$F75,'Officer Compensation - Filtered'!$H$9:$H$53,"<="&$G75,'Officer Compensation - Filtered'!$G$9:$G$53,">="&'Summary Tables - By Date'!$L$2,'Officer Compensation - Filtered'!$G$9:$G$53,"<="&'Summary Tables - By Date'!$L$3) -> 987254.5 | O75: =MEDIAN(IF('Officer Compensation - Filtered'!$H$9:$H$53>=$F75,IF('Officer Compensation - Filtered'!$H$9:$H$53<=$G75,IF('Officer Compensation - Filtered'!$G$9:$G$53>='Summary Tables - By Date'!$L$2,IF('Officer Compensation - Filtered'!$G$9:$G$53<=$L$3,'Officer Compensation - Filtered'!$AD$9:$AD$53,""),""),""),"")) -> 510807.5 | Q75: =AVERAGEIFS('Officer Compensation - Filtered'!$AF$9:$AF$53,'Officer Compensation - Filtered'!$H$9:$H$53,">="&$F75,'Officer Compensation - Filtered'!$H$9:$H$53,"<="&$G75,'Officer Compensation - Filtered'!$G$9:$G$53,">="&'Summary Tables - By Date'!$L$2,'Officer Compensation - Filtered'!$G$9:$G$53,"<="&'Summary Tables - By Date'!$L$3) -> 1886042.833 | R75: =MEDIAN(IF('Officer Compensation - Filtered'!$H$9:$H$53>=$F75,IF('Officer Compensation - Filtered'!$H$9:$H$53<=$G75,IF('Officer Compensation - Filtered'!$G$9:$G$53>='Summary Tables - By Date'!$L$2,IF('Officer Compensation - Filtered'!$G$9:$G$53<=$L$3,'Officer Compensation - Filtered'!$AF$9:$AF$53,""),""),""),"")) -> 1522382
D76: $300,000,000 to $399,999,999 | F76: =G75+1 -> 300000000 | G76: 399999999 | I76: =COUNTIFS('Officer Compensation - Filtered'!$H$9:$H$53,">="&$F76,'Officer Compensation - Filtered'!$H$9:$H$53,"<="&$G76,'Officer Compensation - Filtered'!$G$9:$G$53,">="&'Summary Tables - By Date'!$L$2,'Officer Compensation - Filtered'!$G$9:$G$53,"<="&'Summary Tables - By Date'!$L$3) -> 6 | K76: =AVERAGEIFS('Officer Compensation - Filtered'!$AB$9:$AB$53,'Officer Compensation - Filtered'!$H$9:$H$53,">="&$F76,'Officer Compensation - Filtered'!$H$9:$H$53,"<="&$G76,'Officer Compensation - Filtered'!$G$9:$G$53,">="&'Summary Tables - By Date'!$L$2,'Officer Compensation - Filtered'!$G$9:$G$53,"<="&'Summary Tables - By Date'!$L$3) -> 574333 | L76: =MEDIAN(IF('Officer Compensation - Filtered'!$H$9:$H$53>=$F76,IF('Officer Compensation - Filtered'!$H$9:$H$53<=$G76,IF('Officer Compensation - Filtered'!$G$9:$G$53>='Summary Tables - By Date'!$L$2,IF('Officer Compensation - Filtered'!$G$9:$G$53<=$L$3,'Officer Compensation - Filtered'!$AB$9:$AB$53,""),""),""),"")) -> 534289.5 | N76: =AVERAGEIFS('Officer Compensation - Filtered'!$AD$9:$AD$53,'Officer Compensation - Filtered'!$H$9:$H$53,">="&$F76,'Officer Compensation - Filtered'!$H$9:$H$53,"<="&$G76,'Officer Compensation - Filtered'!$G$9:$G$53,">="&'Summary Tables - By Date'!$L$2,'Officer Compensation - Filtered'!$G$9:$G$53,"<="&'Summary Tables - By Date'!$L$3) -> 609814.8333 | O76: =MEDIAN(IF('Officer Compensation - Filtered'!$H$9:$H$53>=$F76,IF('Officer Compensation - Filtered'!$H$9:$H$53<=$G76,IF('Officer Compensation - Filtered'!$G$9:$G$53>='Summary Tables - By Date'!$L$2,IF('Officer Compensation - Filtered'!$G$9:$G$53<=$L$3,'Officer Compensation - Filtered'!$AD$9:$AD$53,""),""),""),"")) -> 501603.5 | Q76: =AVERAGEIFS('Officer Compensation - Filtered'!$AF$9:$AF$53,'Officer Compensation - Filtered'!$H$9:$H$53,">="&$F76,'Officer Compensation - Filtered'!$H$9:$H$53,"<="&$G76,'Officer Compensation - Filtered'!$G$9:$G$53,">="&'Summary Tables - By Date'!$L$2,'Officer Compensation - Filtered'!$G$9:$G$53,"<="&'Summary Tables - By Date'!$L$3) -> 1184147.833 | R76: =MEDIAN(IF('Officer Compensation - Filtered'!$H$9:$H$53>=$F76,IF('Officer Compensation - Filtered'!$H$9:$H$53<=$G76,IF('Officer Compensation - Filtered'!$G$9:$G$53>='Summary Tables - By Date'!$L$2,IF('Officer Compensation - Filtered'!$G$9:$G$53<=$L$3,'Officer Compensation - Filtered'!$AF$9:$AF$53,""),""),""),"")) -> 951089.5
D77: $400,000,000 to $999,999,999 | F77: =G76+1 -> 400000000 | G77: 999999999 | I77: =COUNTIFS('Officer Compensation - Filtered'!$H$9:$H$53,">="&$F77,'Officer Compensation - Filtered'!$H$9:$H$53,"<="&$G77,'Officer Compensation - Filtered'!$G$9:$G$53,">="&'Summary Tables - By Date'!$L$2,'Officer Compensation - Filtered'!$G$9:$G$53,"<="&'Summary Tables - By Date'!$L$3) -> 9 | K77: =AVERAGEIFS('Officer Compensation - Filtered'!$AB$9:$AB$53,'Officer Compensation - Filtered'!$H$9:$H$53,">="&$F77,'Officer Compensation - Filtered'!$H$9:$H$53,"<="&$G77,'Officer Compensation - Filtered'!$G$9:$G$53,">="&'Summary Tables - By Date'!$L$2,'Officer Compensation - Filtered'!$G$9:$G$53,"<="&'Summary Tables - By Date'!$L$3) -> 485737.5323 | L77: =MEDIAN(IF('Officer Compensation - Filtered'!$H$9:$H$53>=$F77,IF('Officer Compensation - Filtered'!$H$9:$H$53<=$G77,IF('Officer Compensation - Filtered'!$G$9:$G$53>='Summary Tables - By Date'!$L$2,IF('Officer Compensation - Filtered'!$G$9:$G$53<=$L$3,'Officer Compensation - Filtered'!$AB$9:$AB$53,""),""),""),"")) -> 550988 | N77: =AVERAGEIFS('Officer Compensation - Filtered'!$AD$9:$AD$53,'Officer Compensation - Filtered'!$H$9:$H$53,">="&$F77,'Officer Compensation - Filtered'!$H$9:$H$53,"<="&$G77,'Officer Compensation - Filtered'!$G$9:$G$53,">="&'Summary Tables - By Date'!$L$2,'Officer Compensation - Filtered'!$G$9:$G$53,"<="&'Summary Tables - By Date'!$L$3) -> 1006098.5 | O77: =MEDIAN(IF('Officer Compensation - Filtered'!$H$9:$H$53>=$F77,IF('Officer Compensation - Filtered'!$H$9:$H$53<=$G77,IF('Officer Compensation - Filtered'!$G$9:$G$53>='Summary Tables - By Date'!$L$2,IF('Officer Compensation - Filtered'!$G$9:$G$53<=$L$3,'Officer Compensation - Filtered'!$AD$9:$AD$53,""),""),""),"")) -> 493531 | Q77: =AVERAGEIFS('Officer Compensation - Filtered'!$AF$9:$AF$53,'Officer Compensation - Filtered'!$H$9:$H$53,">="&$F77,'Officer Compensation - Filtered'!$H$9:$H$53,"<="&$G77,'Officer Compensation - Filtered'!$G$9:$G$53,">="&'Summary Tables - By Date'!$L$2,'Officer Compensation - Filtered'!$G$9:$G$53,"<="&'Summary Tables - By Date'!$L$3) -> 1491836.032 | R77: =MEDIAN(IF('Officer Compensation - Filtered'!$H$9:$H$53>=$F77,IF('Officer Compensation - Filtered'!$H$9:$H$53<=$G77,IF('Officer Compensation - Filtered'!$G$9:$G$53>='Summary Tables - By Date'!$L$2,IF('Officer Compensation - Filtered'!$G$9:$G$53<=$L$3,'Officer Compensation - Filtered'!$AF$9:$AF$53,""),""),""),"")) -> 1051031
D78: $1,000,000,000 and above | F78: =G77+1 -> 1000000000 | G78: 1000000000000 | I78: =COUNTIFS('Officer Compensation - Filtered'!$H$9:$H$53,">="&$F78,'Officer Compensation - Filtered'!$H$9:$H$53,"<="&$G78,'Officer Compensation - Filtered'!$G$9:$G$53,">="&'Summary Tables - By Date'!$L$2,'Officer Compensation - Filtered'!$G$9:$G$53,"<="&'Summary Tables - By Date'!$L$3) -> 13 | K78: =AVERAGEIFS('Officer Compensation - Filtered'!$AB$9:$AB$53,'Officer Compensation - Filtered'!$H$9:$H$53,">="&$F78,'Officer Compensation - Filtered'!$H$9:$H$53,"<="&$G78,'Officer Compensation - Filtered'!$G$9:$G$53,">="&'Summary Tables - By Date'!$L$2,'Officer Compensation - Filtered'!$G$9:$G$53,"<="&'Summary Tables - By Date'!$L$3) -> 1235738 | L78: =MEDIAN(IF('Officer Compensation - Filtered'!$H$9:$H$53>=$F78,IF('Officer Compensation - Filtered'!$H$9:$H$53<=$G78,IF('Officer Compensation - Filtered'!$G$9:$G$53>='Summary Tables - By Date'!$L$2,IF('Officer Compensation - Filtered'!$G$9:$G$53<=$L$3,'Officer Compensation - Filtered'!$AB$9:$AB$53,""),""),""),"")) -> 824991 | N78: =AVERAGEIFS('Officer Compensation - Filtered'!$AD$9:$AD$53,'Officer Compensation - Filtered'!$H$9:$H$53,">="&$F78,'Officer Compensation - Filtered'!$H$9:$H$53,"<="&$G78,'Officer Compensation - Filtered'!$G$9:$G$53,">="&'Summary Tables - By Date'!$L$2,'Officer Compensation - Filtered'!$G$9:$G$53,"<="&'Summary Tables - By Date'!$L$3) -> 710685.1538 | O78: =MEDIAN(IF('Officer Compensation - Filtered'!$H$9:$H$53>=$F78,IF('Officer Compensation - Filtered'!$H$9:$H$53<=$G78,IF('Officer Compensation - Filtered'!$G$9:$G$53>='Summary Tables - By Date'!$L$2,IF('Officer Compensation - Filtered'!$G$9:$G$53<=$L$3,'Officer Compensation - Filtered'!$AD$9:$AD$53,""),""),""),"")) -> 338699 | Q78: =AVERAGEIFS('Officer Compensation - Filtered'!$AF$9:$AF$53,'Officer Compensation - Filtered'!$H$9:$H$53,">="&$F78,'Officer Compensation - Filtered'!$H$9:$H$53,"<="&$G78,'Officer Compensation - Filtered'!$G$9:$G$53,">="&'Summary Tables - By Date'!$L$2,'Officer Compensation - Filtered'!$G$9:$G$53,"<="&'Summary Tables - By Date'!$L$3) -> 1946423.154 | R78: =MEDIAN(IF('Officer Compensation - Filtered'!$H$9:$H$53>=$F78,IF('Officer Compensation - Filtered'!$H$9:$H$53<=$G78,IF('Officer Compensation - Filtered'!$G$9:$G$53>='Summary Tables - By Date'!$L$2,IF('Officer Compensation - Filtered'!$G$9:$G$53<=$L$3,'Officer Compensation - Filtered'!$AF$9:$AF$53,""),""),""),"")) -> 1486502
C80: Percentage Increase over Year Prior to IPO
D81: $199,999,999 and below | F81: -1000000000000 | G81: 199999999 | I81: =COUNTIFS('Officer Compensation - Filtered'!$H$9:$H$53,">="&$F81,'Officer Compensation - Filtered'!$H$9:$H$53,"<="&$G81,'Officer Compensation - Filtered'!$G$9:$G$53,">="&'Summary Tables - By Date'!$L$2,'Officer Compensation - Filtered'!$G$9:$G$53,"<="&'Summary Tables - By Date'!$L$3) -> 11 | K81: =(K74/K67)-1 -> -0.04560868211 | L81: =(L74/L67)-1 -> 0.1857862692 | N81: 2.026578914 | O81: 76.89919604 | Q81: 0.8714016684 | R81: 1.608815492
D82: $200,000,000 to $299,999,999 | F82: =G81+1 -> 200000000 | G82: 299999999 | I82: =COUNTIFS('Officer Compensation - Filtered'!$H$9:$H$53,">="&$F82,'Officer Compensation - Filtered'!$H$9:$H$53,"<="&$G82,'Officer Compensation - Filtered'!$G$9:$G$53,">="&'Summary Tables - By Date'!$L$2,'Officer Compensation - Filtered'!$G$9:$G$53,"<="&'Summary Tables - By Date'!$L$3) -> 6 | K82: =(K75/K68)-1 -> 0.04228452915 | L82: 0.2133475109 | N82: 0.4704862936 | Q82: 0.2297299281 | R82: 2.130677677
D83: $300,000,000 to $399,999,999 | F83: =G82+1 -> 300000000 | G83: 399999999 | I83: =COUNTIFS('Officer Compensation - Filtered'!$H$9:$H$53,">="&$F83,'Officer Compensation - Filtered'!$H$9:$H$53,"<="&$G83,'Officer Compensation - Filtered'!$G$9:$G$53,">="&'Summary Tables - By Date'!$L$2,'Officer Compensation - Filtered'!$G$9:$G$53,"<="&'Summary Tables - By Date'!$L$3) -> 6 | K83: 0.0273046771 | L83: 0.1051437873 | N83: 9.106088143 | Q83: 0.911737664 | R83: 0.7426322998
D84: $400,000,000 to $999,999,999 | F84: =G83+1 -> 400000000 | G84: 999999999 | I84: =COUNTIFS('Officer Compensation - Filtered'!$H$9:$H$53,">="&$F84,'Officer Compensation - Filtered'!$H$9:$H$53,"<="&$G84,'Officer Compensation - Filtered'!$G$9:$G$53,">="&'Summary Tables - By Date'!$L$2,'Officer Compensation - Filtered'!$G$9:$G$53,"<="&'Summary Tables - By Date'!$L$3) -> 9 | K84: -0.03447237104 | L84: 0.09999820323 | N84: 3.008605439 | O84: 8.172586191 | Q84: 0.9783929921 | R84: 0.6034450932
D85: $1,000,000,000 and above | F85: =G84+1 -> 1000000000 | G85: 1000000000000 | I85: =COUNTIFS('Officer Compensation - Filtered'!$H$9:$H$53,">="&$F85,'Officer Compensation - Filtered'!$H$9:$H$53,"<="&$G85,'Officer Compensation - Filtered'!$G$9:$G$53,">="&'Summary Tables - By Date'!$L$2,'Officer Compensation - Filtered'!$G$9:$G$53,"<="&'Summary Tables - By Date'!$L$3) -> 13 | K85: 0.4630738624 | L85: 0.2049715478 | N85: -0.1637845237 | O85: 0.2902819048 | Q85: 0.1486707808 | R85: 0.489118381

Sheet Summary Tables
A1: Connor Group, Inc.
A2: CFO Compensation Study
K3: Salary + Bonus + Other | N3: Share-Based Compensation | Q3: Total Compensation
I4: Count | K4: Average | L4: Median | N4: Average | O4: Median | Q4: Average | R4: Median
B5: Tech/Biotech Industries - Analysis by Revenue
C6: Year Prior to IPO
D7: $49,999,999 and below | F7: -1000000000000 | G7: 49999999 | I7: =COUNTIFS('Officer Compensation - Filtered'!$I$9:$I$53,">="&$F7,'Officer Compensation - Filtered'!$I$9:$I$53,"<="&$G7,'Officer Compensation - Filtered'!$AK$9:$AK$53,"Yes") -> 14 | K7: =AVERAGEIFS('Officer Compensation - Filtered'!$AA$9:$AA$53,'Officer Compensation - Filtered'!$I$9:$I$53,">="&$F7,'Officer Compensation - Filtered'!$I$9:$I$53,"<="&$G7,'Officer Compensation - Filtered'!$AK$9:$AK$53,"Yes") -> 407087.2772 | L7: =MEDIAN(IF('Officer Compensation - Filtered'!$I$9:$I$53>=$F7,IF('Officer Compensation - Filtered'!$I$9:$I$53<=$G7,IF('Officer Compensation - Filtered'!$AK$9:$AK$53="Yes",'Officer Compensation - Filtered'!$AA$9:$AA$53,""),""),"")) -> 308221.5 | N7: =AVERAGEIFS('Officer Compensation - Filtered'!$AC$9:$AC$53,'Officer Compensation - Filtered'!$I$9:$I$53,">="&$F7,'Officer Compensation - Filtered'!$I$9:$I$53,"<="&$G7,'Officer Compensation - Filtered'!$AK$9:$AK$53,"Yes") -> 269232.1858 | O7: =MEDIAN(IF('Officer Compensation - Filtered'!$I$9:$I$53>=$F7,IF('Officer Compensation - Filtered'!$I$9:$I$53<=$G7,IF('Officer Compensation - Filtered'!$AK$9:$AK$53="Yes",'Officer Compensation - Filtered'!$AC$9:$AC$53,""),""),"")) -> 29038.80078 | Q7: =AVERAGEIFS('Officer Compensation - Filtered'!$AE$9:$AE$53,'Officer Compensation - Filtered'!$I$9:$I$53,">="&$F7,'Officer Compensation - Filtered'!$I$9:$I$53,"<="&$G7,'Officer Compensation - Filtered'!$AK$9:$AK$53,"Yes") -> 676319.463 | R7: =MEDIAN(IF('Officer Compensation - Filtered'!$I$9:$I$53>=$F7,IF('Officer Compensation - Filtered'!$I$9:$I$53<=$G7,IF('Officer Compensation - Filtered'!$AK$9:$AK$53="Yes",'Officer Compensation - Filtered'!$AE$9:$AE$53,""),""),"")) -> 419810.5
D8: $50,000,000 to $149,999,999 | F8: =G7+1 -> 50000000 | G8: 149999999 | I8: =COUNTIFS('Officer Compensation - Filtered'!$I$9:$I$53,">="&$F8,'Officer Compensation - Filtered'!$I$9:$I$53,"<="&$G8,'Officer Compensation - Filtered'!$AK$9:$AK$53,"Yes") -> 5 | K8: =AVERAGEIFS('Officer Compensation - Filtered'!$AA$9:$AA$53,'Officer Compensation - Filtered'!$I$9:$I$53,">="&$F8,'Officer Compensation - Filtered'!$I$9:$I$53,"<="&$G8,'Officer Compensation - Filtered'!$AK$9:$AK$53,"Yes") -> 357951.4 | L8: =MEDIAN(IF('Officer Compensation - Filtered'!$I$9:$I$53>=$F8,IF('Officer Compensation - Filtered'!$I$9:$I$53<=$G8,IF('Officer Compensation - Filtered'!$AK$9:$AK$53="Yes",'Officer Compensation - Filtered'!$AA$9:$AA$53,""),""),"")) -> 385506 | N8: =AVERAGEIFS('Officer Compensation - Filtered'!$AC$9:$AC$53,'Officer Compensation - Filtered'!$I$9:$I$53,">="&$F8,'Officer Compensation - Filtered'!$I$9:$I$53,"<="&$G8,'Officer Compensation - Filtered'!$AK$9:$AK$53,"Yes") -> 1229225.8 | O8: =MEDIAN(IF('Officer Compensation - Filtered'!$I$9:$I$53>=$F8,IF('Officer Compensation - Filtered'!$I$9:$I$53<=$G8,IF('Officer Compensation - Filtered'!$AK$9:$AK$53="Yes",'Officer Compensation - Filtered'!$AC$9:$AC$53,""),""),"")) -> 357904 | Q8: =AVERAGEIFS('Officer Compensation - Filtered'!$AE$9:$AE$53,'Officer Compensation - Filtered'!$I$9:$I$53,">="&$F8,'Officer Compensation - Filtered'!$I$9:$I$53,"<="&$G8,'Officer Compensation - Filtered'!$AK$9:$AK$53,"Yes") -> 1587177.2 | R8: =MEDIAN(IF('Officer Compensation - Filtered'!$I$9:$I$53>=$F8,IF('Officer Compensation - Filtered'!$I$9:$I$53<=$G8,IF('Officer Compensation - Filtered'!$AK$9:$AK$53="Yes",'Officer Compensation - Filtered'!$AE$9:$AE$53,""),""),"")) -> 753824
D9: $150,000,000 and above | F9: =G8+1 -> 150000000 | G9: 1000000000000 | I9: =COUNTIFS('Officer Compensation - Filtered'!$I$9:$I$53,">="&$F9,'Officer Compensation - Filtered'!$I$9:$I$53,"<="&$G9,'Officer Compensation - Filtered'!$AK$9:$AK$53,"Yes") -> 3 | K9: =AVERAGEIFS('Officer Compensation - Filtered'!$AA$9:$AA$53,'Officer Compensation - Filtered'!$I$9:$I$53,">="&$F9,'Officer Compensation - Filtered'!$I$9:$I$53,"<="&$G9,'Officer Compensation - Filtered'!$AK$9:$AK$53,"Yes") -> 543421 | L9: =MEDIAN(IF('Officer Compensation - Filtered'!$I$9:$I$53>=$F9,IF('Officer Compensation - Filtered'!$I$9:$I$53<=$G9,IF('Officer Compensation - Filtered'!$AK$9:$AK$53="Yes",'Officer Compensation - Filtered'!$AA$9:$AA$53,""),""),"")) -> 591375 | N9: =AVERAGEIFS('Officer Compensation - Filtered'!$AC$9:$AC$53,'Officer Compensation - Filtered'!$I$9:$I$53,">="&$F9,'Officer Compensation - Filtered'!$I$9:$I$53,"<="&$G9,'Officer Compensation - Filtered'!$AK$9:$AK$53,"Yes") -> 91365.66667 | O9: =MEDIAN(IF('Officer Compensation - Filtered'!$I$9:$I$53>=$F9,IF('Officer Compensation - Filtered'!$I$9:$I$53<=$G9,IF('Officer Compensation - Filtered'!$AK$9:$AK$53="Yes",'Officer Compensation - Filtered'!$AC$9:$AC$53,""),""),"")) -> 0 | Q9: =AVERAGEIFS('Officer Compensation - Filtered'!$AE$9:$AE$53,'Officer Compensation - Filtered'!$I$9:$I$53,">="&$F9,'Officer Compensation - Filtered'!$I$9:$I$53,"<="&$G9,'Officer Compensation - Filtered'!$AK$9:$AK$53,"Yes") -> 634786.6667 | R9: =MEDIAN(IF('Officer Compensation - Filtered'!$I$9:$I$53>=$F9,IF('Officer Compensation - Filtered'!$I$9:$I$53<=$G9,IF('Officer Compensation - Filtered'!$AK$9:$AK$53="Yes",'Officer Compensation - Filtered'!$AE$9:$AE$53,""),""),"")) -> 623863
C11: Year of IPO
D12: $49,999,999 and below | F12: -1000000000000 | G12: 49999999 | I12: =COUNTIFS('Officer Compensation - Filtered'!$I$9:$I$53,">="&$F12,'Officer Compensation - Filtered'!$I$9:$I$53,"<="&$G12,'Officer Compensation - Filtered'!$AK$9:$AK$53,"Yes") -> 14 | K12: =AVERAGEIFS('Officer Compensation - Filtered'!$AB$9:$AB$53,'Officer Compensation - Filtered'!$I$9:$I$53,">="&$F12,'Officer Compensation - Filtered'!$I$9:$I$53,"<="&$G12,'Officer Compensation - Filtered'!$AK$9:$AK$53,"Yes") -> 401432.2708 | L12: =MEDIAN(IF('Officer Compensation - Filtered'!$I$9:$I$53>=$F12,IF('Officer Compensation - Filtered'!$I$9:$I$53<=$G12,IF('Officer Compensation - Filtered'!$AK$9:$AK$53="Yes",'Officer Compensation - Filtered'!$AB$9:$AB$53,""),""),"")) -> 388267 | N12: =AVERAGEIFS('Officer Compensation - Filtered'!$AD$9:$AD$53,'Officer Compensation - Filtered'!$I$9:$I$53,">="&$F12,'Officer Compensation - Filtered'!$I$9:$I$53,"<="&$G12,'Officer Compensation - Filtered'!$AK$9:$AK$53,"Yes") -> 1299198.357 | O12: =MEDIAN(IF('Officer Compensation - Filtered'!$I$9:$I$53>=$F12,IF('Officer Compensation - Filtered'!$I$9:$I$53<=$G12,IF('Officer Compensation - Filtered'!$AK$9:$AK$53="Yes",'Officer Compensation - Filtered'!$AD$9:$AD$53,""),""),"")) -> 643080.5 | Q12: =AVERAGEIFS('Officer Compensation - Filtered'!$AF$9:$AF$53,'Officer Compensation - Filtered'!$I$9:$I$53,">="&$F12,'Officer Compensation - Filtered'!$I$9:$I$53,"<="&$G12,'Officer Compensation - Filtered'!$AK$9:$AK$53,"Yes") -> 1700630.628 | R12: =MEDIAN(IF('Officer Compensation - Filtered'!$I$9:$I$53>=$F12,IF('Officer Compensation - Filtered'!$I$9:$I$53<=$G12,IF('Officer Compensation - Filtered'!$AK$9:$AK$53="Yes",'Officer Compensation - Filtered'!$AF$9:$AF$53,""),""),"")) -> 990154
D13: $50,000,000 to $149,999,999 | F13: =G12+1 -> 50000000 | G13: 149999999 | I13: =COUNTIFS('Officer Compensation - Filtered'!$I$9:$I$53,">="&$F13,'Officer Compensation - Filtered'!$I$9:$I$53,"<="&$G13,'Officer Compensation - Filtered'!$AK$9:$AK$53,"Yes") -> 5 | K13: =AVERAGEIFS('Officer Compensation - Filtered'!$AB$9:$AB$53,'Officer Compensation - Filtered'!$I$9:$I$53,">="&$F13,'Officer Compensation - Filtered'!$I$9:$I$53,"<="&$G13,'Officer Compensation - Filtered'!$AK$9:$AK$53,"Yes") -> 446219.8 | L13: =MEDIAN(IF('Officer Compensation - Filtered'!$I$9:$I$53>=$F13,IF('Officer Compensation - Filtered'!$I$9:$I$53<=$G13,IF('Officer Compensation - Filtered'!$AK$9:$AK$53="Yes",'Officer Compensation - Filtered'!$AB$9:$AB$53,""),""),"")) -> 421447 | N13: =AVERAGEIFS('Officer Compensation - Filtered'!$AD$9:$AD$53,'Officer Compensation - Filtered'!$I$9:$I$53,">="&$F13,'Officer Compensation - Filtered'!$I$9:$I$53,"<="&$G13,'Officer Compensation - Filtered'!$AK$9:$AK$53,"Yes") -> 500453 | O13: =MEDIAN(IF('Officer Compensation - Filtered'!$I$9:$I$53>=$F13,IF('Officer Compensation - Filtered'!$I$9:$I$53<=$G13,IF('Officer Compensation - Filtered'!$AK$9:$AK$53="Yes",'Officer Compensation - Filtered'!$AD$9:$AD$53,""),""),"")) -> 440320 | Q13: =AVERAGEIFS('Officer Compensation - Filtered'!$AF$9:$AF$53,'Officer Compensation - Filtered'!$I$9:$I$53,">="&$F13,'Officer Compensation - Filtered'!$I$9:$I$53,"<="&$G13,'Officer Compensation - Filtered'!$AK$9:$AK$53,"Yes") -> 946672.8 | R13: =MEDIAN(IF('Officer Compensation - Filtered'!$I$9:$I$53>=$F13,IF('Officer Compensation - Filtered'!$I$9:$I$53<=$G13,IF('Officer Compensation - Filtered'!$AK$9:$AK$53="Yes",'Officer Compensation - Filtered'!$AF$9:$AF$53,""),""),"")) -> 842917
D14: $150,000,000 and above | F14: =G13+1 -> 150000000 | G14: 1000000000000 | I14: =COUNTIFS('Officer Compensation - Filtered'!$I$9:$I$53,">="&$F14,'Officer Compensation - Filtered'!$I$9:$I$53,"<="&$G14,'Officer Compensation - Filtered'!$AK$9:$AK$53,"Yes") -> 3 | K14: =AVERAGEIFS('Officer Compensation - Filtered'!$AB$9:$AB$53,'Officer Compensation - Filtered'!$I$9:$I$53,">="&$F14,'Officer Compensation - Filtered'!$I$9:$I$53,"<="&$G14,'Officer Compensation - Filtered'!$AK$9:$AK$53,"Yes") -> 591893.6667 | L14: =MEDIAN(IF('Officer Compensation - Filtered'!$I$9:$I$53>=$F14,IF('Officer Compensation - Filtered'!$I$9:$I$53<=$G14,IF('Officer Compensation - Filtered'!$AK$9:$AK$53="Yes",'Officer Compensation - Filtered'!$AB$9:$AB$53,""),""),"")) -> 607917 | N14: =AVERAGEIFS('Officer Compensation - Filtered'!$AD$9:$AD$53,'Officer Compensation - Filtered'!$I$9:$I$53,">="&$F14,'Officer Compensation - Filtered'!$I$9:$I$53,"<="&$G14,'Officer Compensation - Filtered'!$AK$9:$AK$53,"Yes") -> 228127.6667 | O14: =MEDIAN(IF('Officer Compensation - Filtered'!$I$9:$I$53>=$F14,IF('Officer Compensation - Filtered'!$I$9:$I$53<=$G14,IF('Officer Compensation - Filtered'!$AK$9:$AK$53="Yes",'Officer Compensation - Filtered'!$AD$9:$AD$53,""),""),"")) -> 0 | Q14: =AVERAGEIFS('Officer Compensation - Filtered'!$AF$9:$AF$53,'Officer Compensation - Filtered'!$I$9:$I$53,">="&$F14,'Officer Compensation - Filtered'!$I$9:$I$53,"<="&$G14,'Officer Compensation - Filtered'!$AK$9:$AK$53,"Yes") -> 820021.3333 | R14: =MEDIAN(IF('Officer Compensation - Filtered'!$I$9:$I$53>=$F14,IF('Officer Compensation - Filtered'!$I$9:$I$53<=$G14,IF('Officer Compensation - Filtered'!$AK$9:$AK$53="Yes",'Officer Compensation - Filtered'!$AF$9:$AF$53,""),""),"")) -> 607917
C16: Percentage Increase over Year Prior to IPO
D17: $49,999,999 and below | F17: -1000000000000 | G17: 49999999 | I17: =COUNTIFS('Officer Compensation - Filtered'!$I$9:$I$53,">="&$F17,'Officer Compensation - Filtered'!$I$9:$I$53,"<="&$G17,'Officer Compensation - Filtered'!$AK$9:$AK$53,"Yes") -> 14 | K17: =(K12/K7)-1 -> -0.01389138585 | L17: =(L12/L7)-1 -> 0.2597012214 | N17: 3.825568508 | O17: 21.14555983 | Q17: 1.514537465 | R17: 1.35857369
D18: $50,000,000 to $149,999,999 | F18: =G17+1 -> 50000000 | G18: 149999999 | I18: =COUNTIFS('Officer Compensation - Filtered'!$I$9:$I$53,">="&$F18,'Officer Compensation - Filtered'!$I$9:$I$53,"<="&$G18,'Officer Compensation - Filtered'!$AK$9:$AK$53,"Yes") -> 5 | K18: =(K13/K8)-1 -> 0.2465932526 | L18: 0.09323071496 | N18: -0.5928713829 | O18: 0.23027404 | Q18: -0.4035493957 | R18: 0.1181880651
D19: $150,000,000 and above | F19: =G18+1 -> 150000000 | G19: 1000000000000 | I19: =COUNTIFS('Officer Compensation - Filtered'!$I$9:$I$53,">="&$F19,'Officer Compensation - Filtered'!$I$9:$I$53,"<="&$G19,'Officer Compensation - Filtered'!$AK$9:$AK$53,"Yes") -> 3 | K19: 0.08919910468 | L19: 0.02797209892 | N19: 1.496864249 | Q19: 0.2918061711 | R19: -0.02556009893
B22: Tech/Biotech Industries - Analysis by Market Cap
C23: Year Prior to IPO
D24: $199,999,999 and below | F24: -1000000000000 | G24: 199999999 | I24: =COUNTIFS('Officer Compensation - Filtered'!$H$9:$H$53,">="&$F24,'Officer Compensation - Filtered'!$H$9:$H$53,"<="&$G24,'Officer Compensation - Filtered'!$AK$9:$AK$53,"Yes") -> 8 | K24: =AVERAGEIFS('Officer Compensation - Filtered'!$AA$9:$AA$53,'Officer Compensation - Filtered'!$H$9:$H$53,">="&$F24,'Officer Compensation - Filtered'!$H$9:$H$53,"<="&$G24,'Officer Compensation - Filtered'!$AK$9:$AK$53,"Yes") -> 403199.25 | L24: =MEDIAN(IF('Officer Compensation - Filtered'!$H$9:$H$53>=$F24,IF('Officer Compensation - Filtered'!$H$9:$H$53<=$G24,IF('Officer Compensation - Filtered'!$AK$9:$AK$53="Yes",'Officer Compensation - Filtered'!$AA$9:$AA$53,""),""),"")) -> 279417 | N24: =AVERAGEIFS('Officer Compensation - Filtered'!$AC$9:$AC$53,'Officer Compensation - Filtered'!$H$9:$H$53,">="&$F24,'Officer Compensation - Filtered'!$H$9:$H$53,"<="&$G24,'Officer Compensation - Filtered'!$AK$9:$AK$53,"Yes") -> 412723.5 | O24: =MEDIAN(IF('Officer Compensation - Filtered'!$H$9:$H$53>=$F24,IF('Officer Compensation - Filtered'!$H$9:$H$53<=$G24,IF('Officer Compensation - Filtered'!$AK$9:$AK$53="Yes",'Officer Compensation - Filtered'!$AC$9:$AC$53,""),""),"")) -> 60444 | Q24: =AVERAGEIFS('Officer Compensation - Filtered'!$AE$9:$AE$53,'Officer Compensation - Filtered'!$H$9:$H$53,">="&$F24,'Officer Compensation - Filtered'!$H$9:$H$53,"<="&$G24,'Officer Compensation - Filtered'!$AK$9:$AK$53,"Yes") -> 815922.75 | R24: =MEDIAN(IF('Officer Compensation - Filtered'!$H$9:$H$53>=$F24,IF('Officer Compensation - Filtered'!$H$9:$H$53<=$G24,IF('Officer Compensation - Filtered'!$AK$9:$AK$53="Yes",'Officer Compensation - Filtered'!$AE$9:$AE$53,""),""),"")) -> 361555.5
D25: $200,000,000 to $299,999,999 | F25: =G24+1 -> 200000000 | G25: 299999999 | I25: =COUNTIFS('Officer Compensation - Filtered'!$H$9:$H$53,">="&$F25,'Officer Compensation - Filtered'!$H$9:$H$53,"<="&$G25,'Officer Compensation - Filtered'!$AK$9:$AK$53,"Yes") -> 4 | K25: =AVERAGEIFS('Officer Compensation - Filtered'!$AA$9:$AA$53,'Officer Compensation - Filtered'!$H$9:$H$53,">="&$F25,'Officer Compensation - Filtered'!$H$9:$H$53,"<="&$G25,'Officer Compensation - Filtered'!$AK$9:$AK$53,"Yes") -> 377743.9702 | L25: =MEDIAN(IF('Officer Compensation - Filtered'!$H$9:$H$53>=$F25,IF('Officer Compensation - Filtered'!$H$9:$H$53<=$G25,IF('Officer Compensation - Filtered'!$AK$9:$AK$53="Yes",'Officer Compensation - Filtered'!$AA$9:$AA$53,""),""),"")) -> 360131.5 | N25: =AVERAGEIFS('Officer Compensation - Filtered'!$AC$9:$AC$53,'Officer Compensation - Filtered'!$H$9:$H$53,">="&$F25,'Officer Compensation - Filtered'!$H$9:$H$53,"<="&$G25,'Officer Compensation - Filtered'!$AK$9:$AK$53,"Yes") -> 1007069.4 | O25: =MEDIAN(IF('Officer Compensation - Filtered'!$H$9:$H$53>=$F25,IF('Officer Compensation - Filtered'!$H$9:$H$53<=$G25,IF('Officer Compensation - Filtered'!$AK$9:$AK$53="Yes",'Officer Compensation - Filtered'!$AC$9:$AC$53,""),""),"")) -> 25804.80078 | Q25: =AVERAGEIFS('Officer Compensation - Filtered'!$AE$9:$AE$53,'Officer Compensation - Filtered'!$H$9:$H$53,">="&$F25,'Officer Compensation - Filtered'!$H$9:$H$53,"<="&$G25,'Officer Compensation - Filtered'!$AK$9:$AK$53,"Yes") -> 1384813.371 | R25: =MEDIAN(IF('Officer Compensation - Filtered'!$H$9:$H$53>=$F25,IF('Officer Compensation - Filtered'!$H$9:$H$53<=$G25,IF('Officer Compensation - Filtered'!$AK$9:$AK$53="Yes",'Officer Compensation - Filtered'!$AE$9:$AE$53,""),""),"")) -> 486278.7412
D26: $300,000,000 to $399,999,999 | F26: =G25+1 -> 300000000 | G26: 399999999 | I26: =COUNTIFS('Officer Compensation - Filtered'!$H$9:$H$53,">="&$F26,'Officer Compensation - Filtered'!$H$9:$H$53,"<="&$G26,'Officer Compensation - Filtered'!$AK$9:$AK$53,"Yes") -> 3 | K26: =AVERAGEIFS('Officer Compensation - Filtered'!$AA$9:$AA$53,'Officer Compensation - Filtered'!$H$9:$H$53,">="&$F26,'Officer Compensation - Filtered'!$H$9:$H$53,"<="&$G26,'Officer Compensation - Filtered'!$AK$9:$AK$53,"Yes") -> 394556 | L26: =MEDIAN(IF('Officer Compensation - Filtered'!$H$9:$H$53>=$F26,IF('Officer Compensation - Filtered'!$H$9:$H$53<=$G26,IF('Officer Compensation - Filtered'!$AK$9:$AK$53="Yes",'Officer Compensation - Filtered'!$AA$9:$AA$53,""),""),"")) -> 408758 | N26: =AVERAGEIFS('Officer Compensation - Filtered'!$AC$9:$AC$53,'Officer Compensation - Filtered'!$H$9:$H$53,">="&$F26,'Officer Compensation - Filtered'!$H$9:$H$53,"<="&$G26,'Officer Compensation - Filtered'!$AK$9:$AK$53,"Yes") -> 120682.6667 | O26: =MEDIAN(IF('Officer Compensation - Filtered'!$H$9:$H$53>=$F26,IF('Officer Compensation - Filtered'!$H$9:$H$53<=$G26,IF('Officer Compensation - Filtered'!$AK$9:$AK$53="Yes",'Officer Compensation - Filtered'!$AC$9:$AC$53,""),""),"")) -> 0 | Q26: =AVERAGEIFS('Officer Compensation - Filtered'!$AE$9:$AE$53,'Officer Compensation - Filtered'!$H$9:$H$53,">="&$F26,'Officer Compensation - Filtered'!$H$9:$H$53,"<="&$G26,'Officer Compensation - Filtered'!$AK$9:$AK$53,"Yes") -> 515238.6667 | R26: =MEDIAN(IF('Officer Compensation - Filtered'!$H$9:$H$53>=$F26,IF('Officer Compensation - Filtered'!$H$9:$H$53<=$G26,IF('Officer Compensation - Filtered'!$AK$9:$AK$53="Yes",'Officer Compensation - Filtered'!$AE$9:$AE$53,""),""),"")) -> 408758
D27: $400,000,000 to $999,999,999 | F27: =G26+1 -> 400000000 | G27: 999999999 | I27: =COUNTIFS('Officer Compensation - Filtered'!$H$9:$H$53,">="&$F27,'Officer Compensation - Filtered'!$H$9:$H$53,"<="&$G27,'Officer Compensation - Filtered'!$AK$9:$AK$53,"Yes") -> 4 | K27: =AVERAGEIFS('Officer Compensation - Filtered'!$AA$9:$AA$53,'Officer Compensation - Filtered'!$H$9:$H$53,">="&$F27,'Officer Compensation - Filtered'!$H$9:$H$53,"<="&$G27,'Officer Compensation - Filtered'!$AK$9:$AK$53,"Yes") -> 383250.25 | L27: =MEDIAN(IF('Officer Compensation - Filtered'!$H$9:$H$53>=$F27,IF('Officer Compensation - Filtered'!$H$9:$H$53<=$G27,IF('Officer Compensation - Filtered'!$AK$9:$AK$53="Yes",'Officer Compensation - Filtered'!$AA$9:$AA$53,""),""),"")) -> 372843 | N27: =AVERAGEIFS('Officer Compensation - Filtered'!$AC$9:$AC$53,'Officer Compensation - Filtered'!$H$9:$H$53,">="&$F27,'Officer Compensation - Filtered'!$H$9:$H$53,"<="&$G27,'Officer Compensation - Filtered'!$AK$9:$AK$53,"Yes") -> 171451.5 | O27: =MEDIAN(IF('Officer Compensation - Filtered'!$H$9:$H$53>=$F27,IF('Officer Compensation - Filtered'!$H$9:$H$53<=$G27,IF('Officer Compensation - Filtered'!$AK$9:$AK$53="Yes",'Officer Compensation - Filtered'!$AC$9:$AC$53,""),""),"")) -> 163951 | Q27: =AVERAGEIFS('Officer Compensation - Filtered'!$AE$9:$AE$53,'Officer Compensation - Filtered'!$H$9:$H$53,">="&$F27,'Officer Compensation - Filtered'!$H$9:$H$53,"<="&$G27,'Officer Compensation - Filtered'!$AK$9:$AK$53,"Yes") -> 554701.75 | R27: =MEDIAN(IF('Officer Compensation - Filtered'!$H$9:$H$53>=$F27,IF('Officer Compensation - Filtered'!$H$9:$H$53<=$G27,IF('Officer Compensation - Filtered'!$AK$9:$AK$53="Yes",'Officer Compensation - Filtered'!$AE$9:$AE$53,""),""),"")) -> 562381
D28: $1,000,000,000 and above | F28: =G27+1 -> 1000000000 | G28: 1000000000000 | I28: =COUNTIFS('Officer Compensation - Filtered'!$H$9:$H$53,">="&$F28,'Officer Compensation - Filtered'!$H$9:$H$53,"<="&$G28,'Officer Compensation - Filtered'!$AK$9:$AK$53,"Yes") -> 3 | K28: =AVERAGEIFS('Officer Compensation - Filtered'!$AA$9:$AA$53,'Officer Compensation - Filtered'!$H$9:$H$53,">="&$F28,'Officer Compensation - Filtered'!$H$9:$H$53,"<="&$G28,'Officer Compensation - Filtered'!$AK$9:$AK$53,"Yes") -> 555334.3333 | L28: =MEDIAN(IF('Officer Compensation - Filtered'!$H$9:$H$53>=$F28,IF('Officer Compensation - Filtered'!$H$9:$H$53<=$G28,IF('Officer Compensation - Filtered'!$AK$9:$AK$53="Yes",'Officer Compensation - Filtered'!$AA$9:$AA$53,""),""),"")) -> 591375 | N28: =AVERAGEIFS('Officer Compensation - Filtered'!$AC$9:$AC$53,'Officer Compensation - Filtered'!$H$9:$H$53,">="&$F28,'Officer Compensation - Filtered'!$H$9:$H$53,"<="&$G28,'Officer Compensation - Filtered'!$AK$9:$AK$53,"Yes") -> 603852.3333 | O28: =MEDIAN(IF('Officer Compensation - Filtered'!$H$9:$H$53>=$F28,IF('Officer Compensation - Filtered'!$H$9:$H$53<=$G28,IF('Officer Compensation - Filtered'!$AK$9:$AK$53="Yes",'Officer Compensation - Filtered'!$AC$9:$AC$53,""),""),"")) -> 0 | Q28: =AVERAGEIFS('Officer Compensation - Filtered'!$AE$9:$AE$53,'Officer Compensation - Filtered'!$H$9:$H$53,">="&$F28,'Officer Compensation - Filtered'!$H$9:$H$53,"<="&$G28,'Officer Compensation - Filtered'!$AK$9:$AK$53,"Yes") -> 1159186.667 | R28: =MEDIAN(IF('Officer Compensation - Filtered'!$H$9:$H$53>=$F28,IF('Officer Compensation - Filtered'!$H$9:$H$53<=$G28,IF('Officer Compensation - Filtered'!$AK$9:$AK$53="Yes",'Officer Compensation - Filtered'!$AE$9:$AE$53,""),""),"")) -> 689122
C30: Year of IPO
D31: $199,999,999 and below | F31: -1000000000000 | G31: 199999999 | I31: =COUNTIFS('Officer Compensation - Filtered'!$H$9:$H$53,">="&$F31,'Officer Compensation - Filtered'!$H$9:$H$53,"<="&$G31,'Officer Compensation - Filtered'!$AK$9:$AK$53,"Yes") -> 8 | K31: =AVERAGEIFS('Officer Compensation - Filtered'!$AB$9:$AB$53,'Officer Compensation - Filtered'!$H$9:$H$53,">="&$F31,'Officer Compensation - Filtered'!$H$9:$H$53,"<="&$G31,'Officer Compensation - Filtered'!$AK$9:$AK$53,"Yes") -> 289048.875 | L31: =MEDIAN(IF('Officer Compensation - Filtered'!$H$9:$H$53>=$F31,IF('Officer Compensation - Filtered'!$H$9:$H$53<=$G31,IF('Officer Compensation - Filtered'!$AK$9:$AK$53="Yes",'Officer Compensation - Filtered'!$AB$9:$AB$53,""),""),"")) -> 332373.5 | N31: =AVERAGEIFS('Officer Compensation - Filtered'!$AD$9:$AD$53,'Officer Compensation - Filtered'!$H$9:$H$53,">="&$F31,'Officer Compensation - Filtered'!$H$9:$H$53,"<="&$G31,'Officer Compensation - Filtered'!$AK$9:$AK$53,"Yes") -> 1057107.312 | O31: =MEDIAN(IF('Officer Compensation - Filtered'!$H$9:$H$53>=$F31,IF('Officer Compensation - Filtered'!$H$9:$H$53<=$G31,IF('Officer Compensation - Filtered'!$AK$9:$AK$53="Yes",'Officer Compensation - Filtered'!$AD$9:$AD$53,""),""),"")) -> 347176 | Q31: =AVERAGEIFS('Officer Compensation - Filtered'!$AF$9:$AF$53,'Officer Compensation - Filtered'!$H$9:$H$53,">="&$F31,'Officer Compensation - Filtered'!$H$9:$H$53,"<="&$G31,'Officer Compensation - Filtered'!$AK$9:$AK$53,"Yes") -> 1346156.188 | R31: =MEDIAN(IF('Officer Compensation - Filtered'!$H$9:$H$53>=$F31,IF('Officer Compensation - Filtered'!$H$9:$H$53<=$G31,IF('Officer Compensation - Filtered'!$AK$9:$AK$53="Yes",'Officer Compensation - Filtered'!$AF$9:$AF$53,""),""),"")) -> 713393
D32: $200,000,000 to $299,999,999 | F32: =G31+1 -> 200000000 | G32: 299999999 | I32: =COUNTIFS('Officer Compensation - Filtered'!$H$9:$H$53,">="&$F32,'Officer Compensation - Filtered'!$H$9:$H$53,"<="&$G32,'Officer Compensation - Filtered'!$AK$9:$AK$53,"Yes") -> 4 | K32: =AVERAGEIFS('Officer Compensation - Filtered'!$AB$9:$AB$53,'Officer Compensation - Filtered'!$H$9:$H$53,">="&$F32,'Officer Compensation - Filtered'!$H$9:$H$53,"<="&$G32,'Officer Compensation - Filtered'!$AK$9:$AK$53,"Yes") -> 483839 | L32: =MEDIAN(IF('Officer Compensation - Filtered'!$H$9:$H$53>=$F32,IF('Officer Compensation - Filtered'!$H$9:$H$53<=$G32,IF('Officer Compensation - Filtered'!$AK$9:$AK$53="Yes",'Officer Compensation - Filtered'!$AB$9:$AB$53,""),""),"")) -> 482111.5 | N32: =AVERAGEIFS('Officer Compensation - Filtered'!$AD$9:$AD$53,'Officer Compensation - Filtered'!$H$9:$H$53,">="&$F32,'Officer Compensation - Filtered'!$H$9:$H$53,"<="&$G32,'Officer Compensation - Filtered'!$AK$9:$AK$53,"Yes") -> 1225478 | O32: =MEDIAN(IF('Officer Compensation - Filtered'!$H$9:$H$53>=$F32,IF('Officer Compensation - Filtered'!$H$9:$H$53<=$G32,IF('Officer Compensation - Filtered'!$AK$9:$AK$53="Yes",'Officer Compensation - Filtered'!$AD$9:$AD$53,""),""),"")) -> 1005873.5 | Q32: =AVERAGEIFS('Officer Compensation - Filtered'!$AF$9:$AF$53,'Officer Compensation - Filtered'!$H$9:$H$53,">="&$F32,'Officer Compensation - Filtered'!$H$9:$H$53,"<="&$G32,'Officer Compensation - Filtered'!$AK$9:$AK$53,"Yes") -> 1709317 | R32: =MEDIAN(IF('Officer Compensation - Filtered'!$H$9:$H$53>=$F32,IF('Officer Compensation - Filtered'!$H$9:$H$53<=$G32,IF('Officer Compensation - Filtered'!$AK$9:$AK$53="Yes",'Officer Compensation - Filtered'!$AF$9:$AF$53,""),""),"")) -> 1491440
D33: $300,000,000 to $399,999,999 | F33: =G32+1 -> 300000000 | G33: 399999999 | I33: =COUNTIFS('Officer Compensation - Filtered'!$H$9:$H$53,">="&$F33,'Officer Compensation - Filtered'!$H$9:$H$53,"<="&$G33,'Officer Compensation - Filtered'!$AK$9:$AK$53,"Yes") -> 3 | K33: =AVERAGEIFS('Officer Compensation - Filtered'!$AB$9:$AB$53,'Officer Compensation - Filtered'!$H$9:$H$53,">="&$F33,'Officer Compensation - Filtered'!$H$9:$H$53,"<="&$G33,'Officer Compensation - Filtered'!$AK$9:$AK$53,"Yes") -> 531502.3333 | L33: =MEDIAN(IF('Officer Compensation - Filtered'!$H$9:$H$53>=$F33,IF('Officer Compensation - Filtered'!$H$9:$H$53<=$G33,IF('Officer Compensation - Filtered'!$AK$9:$AK$53="Yes",'Officer Compensation - Filtered'!$AB$9:$AB$53,""),""),"")) -> 469532 | N33: =AVERAGEIFS('Officer Compensation - Filtered'!$AD$9:$AD$53,'Officer Compensation - Filtered'!$H$9:$H$53,">="&$F33,'Officer Compensation - Filtered'!$H$9:$H$53,"<="&$G33,'Officer Compensation - Filtered'!$AK$9:$AK$53,"Yes") -> 539539 | O33: =MEDIAN(IF('Officer Compensation - Filtered'!$H$9:$H$53>=$F33,IF('Officer Compensation - Filtered'!$H$9:$H$53<=$G33,IF('Officer Compensation - Filtered'!$AK$9:$AK$53="Yes",'Officer Compensation - Filtered'!$AD$9:$AD$53,""),""),"")) -> 607417 | Q33: =AVERAGEIFS('Officer Compensation - Filtered'!$AF$9:$AF$53,'Officer Compensation - Filtered'!$H$9:$H$53,">="&$F33,'Officer Compensation - Filtered'!$H$9:$H$53,"<="&$G33,'Officer Compensation - Filtered'!$AK$9:$AK$53,"Yes") -> 1071041.333 | R33: =MEDIAN(IF('Officer Compensation - Filtered'!$H$9:$H$53>=$F33,IF('Officer Compensation - Filtered'!$H$9:$H$53<=$G33,IF('Officer Compensation - Filtered'!$AK$9:$AK$53="Yes",'Officer Compensation - Filtered'!$AF$9:$AF$53,""),""),"")) -> 1036857
D34: $400,000,000 to $999,999,999 | F34: =G33+1 -> 400000000 | G34: 999999999 | I34: =COUNTIFS('Officer Compensation - Filtered'!$H$9:$H$53,">="&$F34,'Officer Compensation - Filtered'!$H$9:$H$53,"<="&$G34,'Officer Compensation - Filtered'!$AK$9:$AK$53,"Yes") -> 4 | K34: =AVERAGEIFS('Officer Compensation - Filtered'!$AB$9:$AB$53,'Officer Compensation - Filtered'!$H$9:$H$53,">="&$F34,'Officer Compensation - Filtered'!$H$9:$H$53,"<="&$G34,'Officer Compensation - Filtered'!$AK$9:$AK$53,"Yes") -> 483850.1977 | L34: =MEDIAN(IF('Officer Compensation - Filtered'!$H$9:$H$53>=$F34,IF('Officer Compensation - Filtered'!$H$9:$H$53<=$G34,IF('Officer Compensation - Filtered'!$AK$9:$AK$53="Yes",'Officer Compensation - Filtered'!$AB$9:$AB$53,""),""),"")) -> 476082.5 | N34: =AVERAGEIFS('Officer Compensation - Filtered'!$AD$9:$AD$53,'Officer Compensation - Filtered'!$H$9:$H$53,">="&$F34,'Officer Compensation - Filtered'!$H$9:$H$53,"<="&$G34,'Officer Compensation - Filtered'!$AK$9:$AK$53,"Yes") -> 1348663.625 | O34: =MEDIAN(IF('Officer Compensation - Filtered'!$H$9:$H$53>=$F34,IF('Officer Compensation - Filtered'!$H$9:$H$53<=$G34,IF('Officer Compensation - Filtered'!$AK$9:$AK$53="Yes",'Officer Compensation - Filtered'!$AD$9:$AD$53,""),""),"")) -> 1102247 | Q34: =AVERAGEIFS('Officer Compensation - Filtered'!$AF$9:$AF$53,'Officer Compensation - Filtered'!$H$9:$H$53,">="&$F34,'Officer Compensation - Filtered'!$H$9:$H$53,"<="&$G34,'Officer Compensation - Filtered'!$AK$9:$AK$53,"Yes") -> 1832513.823 | R34: =MEDIAN(IF('Officer Compensation - Filtered'!$H$9:$H$53>=$F34,IF('Officer Compensation - Filtered'!$H$9:$H$53<=$G34,IF('Officer Compensation - Filtered'!$AK$9:$AK$53="Yes",'Officer Compensation - Filtered'!$AF$9:$AF$53,""),""),"")) -> 1578329.5
D35: $1,000,000,000 and above | F35: =G34+1 -> 1000000000 | G35: 1000000000000 | I35: =COUNTIFS('Officer Compensation - Filtered'!$H$9:$H$53,">="&$F35,'Officer Compensation - Filtered'!$H$9:$H$53,"<="&$G35,'Officer Compensation - Filtered'!$AK$9:$AK$53,"Yes") -> 3 | K35: =AVERAGEIFS('Officer Compensation - Filtered'!$AB$9:$AB$53,'Officer Compensation - Filtered'!$H$9:$H$53,">="&$F35,'Officer Compensation - Filtered'!$H$9:$H$53,"<="&$G35,'Officer Compensation - Filtered'!$AK$9:$AK$53,"Yes") -> 616392.3333 | L35: =MEDIAN(IF('Officer Compensation - Filtered'!$H$9:$H$53>=$F35,IF('Officer Compensation - Filtered'!$H$9:$H$53<=$G35,IF('Officer Compensation - Filtered'!$AK$9:$AK$53="Yes",'Officer Compensation - Filtered'!$AB$9:$AB$53,""),""),"")) -> 607917 | N35: =AVERAGEIFS('Officer Compensation - Filtered'!$AD$9:$AD$53,'Officer Compensation - Filtered'!$H$9:$H$53,">="&$F35,'Officer Compensation - Filtered'!$H$9:$H$53,"<="&$G35,'Officer Compensation - Filtered'!$AK$9:$AK$53,"Yes") -> 334461 | O35: =MEDIAN(IF('Officer Compensation - Filtered'!$H$9:$H$53>=$F35,IF('Officer Compensation - Filtered'!$H$9:$H$53<=$G35,IF('Officer Compensation - Filtered'!$AK$9:$AK$53="Yes",'Officer Compensation - Filtered'!$AD$9:$AD$53,""),""),"")) -> 319000 | Q35: =AVERAGEIFS('Officer Compensation - Filtered'!$AF$9:$AF$53,'Officer Compensation - Filtered'!$H$9:$H$53,">="&$F35,'Officer Compensation - Filtered'!$H$9:$H$53,"<="&$G35,'Officer Compensation - Filtered'!$AK$9:$AK$53,"Yes") -> 950853.3333 | R35: =MEDIAN(IF('Officer Compensation - Filtered'!$H$9:$H$53>=$F35,IF('Officer Compensation - Filtered'!$H$9:$H$53<=$G35,IF('Officer Compensation - Filtered'!$AK$9:$AK$53="Yes",'Officer Compensation - Filtered'!$AF$9:$AF$53,""),""),"")) -> 758141
C37: Percentage Increase over Year Prior to IPO
D38: $199,999,999 and below | F38: -1000000000000 | G38: 199999999 | I38: =COUNTIFS('Officer Compensation - Filtered'!$H$9:$H$53,">="&$F38,'Officer Compensation - Filtered'!$H$9:$H$53,"<="&$G38,'Officer Compensation - Filtered'!$AK$9:$AK$53,"Yes") -> 8 | K38: =(K31/K24)-1 -> -0.2831115757 | L38: =(L31/L24)-1 -> 0.1895249752 | N38: 1.561296637 | O38: 4.743762822 | Q38: 0.6498574007 | R38: 0.9731216922
D39: $200,000,000 to $299,999,999 | F39: =G38+1 -> 200000000 | G39: 299999999 | I39: =COUNTIFS('Officer Compensation - Filtered'!$H$9:$H$53,">="&$F39,'Officer Compensation - Filtered'!$H$9:$H$53,"<="&$G39,'Officer Compensation - Filtered'!$AK$9:$AK$53,"Yes") -> 4 | K39: =(K32/K25)-1 -> 0.2808649195 | L39: 0.3387096102 | N39: 0.2168754204 | O39: 37.98009167 | Q39: 0.2343302255 | R39: 2.067047505
D40: $300,000,000 to $399,999,999 | F40: =G39+1 -> 300000000 | G40: 399999999 | I40: =COUNTIFS('Officer Compensation - Filtered'!$H$9:$H$53,">="&$F40,'Officer Compensation - Filtered'!$H$9:$H$53,"<="&$G40,'Officer Compensation - Filtered'!$AK$9:$AK$53,"Yes") -> 3 | K40: 0.3470897245 | L40: 0.1486796589 | N40: 3.470724876 | Q40: 1.078728563 | R40: 1.536603565
D41: $400,000,000 to $999,999,999 | F41: =G40+1 -> 400000000 | G41: 999999999 | I41: =COUNTIFS('Officer Compensation - Filtered'!$H$9:$H$53,">="&$F41,'Officer Compensation - Filtered'!$H$9:$H$53,"<="&$G41,'Officer Compensation - Filtered'!$AK$9:$AK$53,"Yes") -> 4 | K41: 0.2624915383 | L41: 0.2768980509 | N41: 6.866152381 | O41: 5.723027002 | Q41: 2.303602022 | R41: 1.806512844
D42: $1,000,000,000 and above | F42: =G41+1 -> 1000000000 | G42: 1000000000000 | I42: =COUNTIFS('Officer Compensation - Filtered'!$H$9:$H$53,">="&$F42,'Officer Compensation - Filtered'!$H$9:$H$53,"<="&$G42,'Officer Compensation - Filtered'!$AK$9:$AK$53,"Yes") -> 3 | K42: 0.1099481814 | L42: 0.02797209892 | N42: -0.4461212095 | Q42: -0.1797237143 | R42: 0.1001549798
B46: All Industries - Analysis by Revenue
C47: Year Prior to IPO
D48: $49,999,999 and below | F48: -1000000000000 | G48: 49999999 | I48: =COUNTIFS('Officer Compensation - Filtered'!$I$9:$I$53,">="&$F48,'Officer Compensation - Filtered'!$I$9:$I$53,"<="&$G48) -> 15 | K48: =AVERAGEIFS('Officer Compensation - Filtered'!$AA$9:$AA$53,'Officer Compensation - Filtered'!$I$9:$I$53,">="&$F48,'Officer Compensation - Filtered'!$I$9:$I$53,"<="&$G48) -> 379948.1254 | L48: =MEDIAN(IF('Officer Compensation - Filtered'!$I$9:$I$53>=$F48,IF('Officer Compensation - Filtered'!$I$9:$I$53<=$G48,'Officer Compensation - Filtered'!$AA$9:$AA$53,""),"")) -> 300000 | N48: =AVERAGEIFS('Officer Compensation - Filtered'!$AC$9:$AC$53,'Officer Compensation - Filtered'!$I$9:$I$53,">="&$F48,'Officer Compensation - Filtered'!$I$9:$I$53,"<="&$G48) -> 251283.3734 | O48: =MEDIAN(IF('Officer Compensation - Filtered'!$I$9:$I$53>=$F48,IF('Officer Compensation - Filtered'!$I$9:$I$53<=$G48,'Officer Compensation - Filtered'!$AC$9:$AC$53,""),"")) -> 6468 | Q48: =AVERAGEIFS('Officer Compensation - Filtered'!$AE$9:$AE$53,'Officer Compensation - Filtered'!$I$9:$I$53,">="&$F48,'Officer Compensation - Filtered'!$I$9:$I$53,"<="&$G48) -> 631231.4988 | R48: =MEDIAN(IF('Officer Compensation - Filtered'!$I$9:$I$53>=$F48,IF('Officer Compensation - Filtered'!$I$9:$I$53<=$G48,'Officer Compensation - Filtered'!$AE$9:$AE$53,""),"")) -> 408758
D49: $50,000,000 to $149,999,999 | F49: =G48+1 -> 50000000 | G49: 149999999 | I49: =COUNTIFS('Officer Compensation - Filtered'!$I$9:$I$53,">="&$F49,'Officer Compensation - Filtered'!$I$9:$I$53,"<="&$G49) -> 10 | K49: =AVERAGEIFS('Officer Compensation - Filtered'!$AA$9:$AA$53,'Officer Compensation - Filtered'!$I$9:$I$53,">="&$F49,'Officer Compensation - Filtered'!$I$9:$I$53,"<="&$G49) -> 482279.4 | L49: =MEDIAN(IF('Officer Compensation - Filtered'!$I$9:$I$53>=$F49,IF('Officer Compensation - Filtered'!$I$9:$I$53<=$G49,'Officer Compensation - Filtered'!$AA$9:$AA$53,""),"")) -> 390713 | N49: =AVERAGEIFS('Officer Compensation - Filtered'!$AC$9:$AC$53,'Officer Compensation - Filtered'!$I$9:$I$53,">="&$F49,'Officer Compensation - Filtered'!$I$9:$I$53,"<="&$G49) -> 624545.5 | O49: =MEDIAN(IF('Officer Compensation - Filtered'!$I$9:$I$53>=$F49,IF('Officer Compensation - Filtered'!$I$9:$I$53<=$G49,'Officer Compensation - Filtered'!$AC$9:$AC$53,""),"")) -> 12700 | Q49: =AVERAGEIFS('Officer Compensation - Filtered'!$AE$9:$AE$53,'Officer Compensation - Filtered'!$I$9:$I$53,">="&$F49,'Officer Compensation - Filtered'!$I$9:$I$53,"<="&$G49) -> 1106824.9 | R49: =MEDIAN(IF('Officer Compensation - Filtered'!$I$9:$I$53>=$F49,IF('Officer Compensation - Filtered'!$I$9:$I$53<=$G49,'Officer Compensation - Filtered'!$AE$9:$AE$53,""),"")) -> 704653.5
D50: $150,000,000 and above | F50: =G49+1 -> 150000000 | G50: 1000000000000 | I50: =COUNTIFS('Officer Compensation - Filtered'!$I$9:$I$53,">="&$F50,'Officer Compensation - Filtered'!$I$9:$I$53,"<="&$G50) -> 20 | K50: =AVERAGEIFS('Officer Compensation - Filtered'!$AA$9:$AA$53,'Officer Compensation - Filtered'!$I$9:$I$53,">="&$F50,'Officer Compensation - Filtered'!$I$9:$I$53,"<="&$G50) -> 888327.4692 | L50: =MEDIAN(IF('Officer Compensation - Filtered'!$I$9:$I$53>=$F50,IF('Officer Compensation - Filtered'!$I$9:$I$53<=$G50,'Officer Compensation - Filtered'!$AA$9:$AA$53,""),"")) -> 655325.5 | N50: =AVERAGEIFS('Officer Compensation - Filtered'!$AC$9:$AC$53,'Officer Compensation - Filtered'!$I$9:$I$53,">="&$F50,'Officer Compensation - Filtered'!$I$9:$I$53,"<="&$G50) -> 552933.6227 | O50: =MEDIAN(IF('Officer Compensation - Filtered'!$I$9:$I$53>=$F50,IF('Officer Compensation - Filtered'!$I$9:$I$53<=$G50,'Officer Compensation - Filtered'!$AC$9:$AC$53,""),"")) -> 127772.7266 | Q50: =AVERAGEIFS('Officer Compensation - Filtered'!$AE$9:$AE$53,'Officer Compensation - Filtered'!$I$9:$I$53,">="&$F50,'Officer Compensation - Filtered'!$I$9:$I$53,"<="&$G50) -> 1441261.092 | R50: =MEDIAN(IF('Officer Compensation - Filtered'!$I$9:$I$53>=$F50,IF('Officer Compensation - Filtered'!$I$9:$I$53<=$G50,'Officer Compensation - Filtered'!$AE$9:$AE$53,""),"")) -> 903564
C52: Year of IPO
D53: $49,999,999 and below | F53: -1000000000000 | G53: 49999999 | I53: =COUNTIFS('Officer Compensation - Filtered'!$I$9:$I$53,">="&$F53,'Officer Compensation - Filtered'!$I$9:$I$53,"<="&$G53) -> 15 | K53: =AVERAGEIFS('Officer Compensation - Filtered'!$AB$9:$AB$53,'Officer Compensation - Filtered'!$I$9:$I$53,">="&$F53,'Officer Compensation - Filtered'!$I$9:$I$53,"<="&$G53) -> 395615.9857 | L53: =MEDIAN(IF('Officer Compensation - Filtered'!$I$9:$I$53>=$F53,IF('Officer Compensation - Filtered'!$I$9:$I$53<=$G53,'Officer Compensation - Filtered'!$AB$9:$AB$53,""),"")) -> 388060 | N53: =AVERAGEIFS('Officer Compensation - Filtered'!$AD$9:$AD$53,'Officer Compensation - Filtered'!$I$9:$I$53,">="&$F53,'Officer Compensation - Filtered'!$I$9:$I$53,"<="&$G53) -> 1255640.421 | O53: =MEDIAN(IF('Officer Compensation - Filtered'!$I$9:$I$53>=$F53,IF('Officer Compensation - Filtered'!$I$9:$I$53<=$G53,'Officer Compensation - Filtered'!$AD$9:$AD$53,""),"")) -> 645829.3125 | Q53: =AVERAGEIFS('Officer Compensation - Filtered'!$AF$9:$AF$53,'Officer Compensation - Filtered'!$I$9:$I$53,">="&$F53,'Officer Compensation - Filtered'!$I$9:$I$53,"<="&$G53) -> 1651256.407 | R53: =MEDIAN(IF('Officer Compensation - Filtered'!$I$9:$I$53>=$F53,IF('Officer Compensation - Filtered'!$I$9:$I$53<=$G53,'Officer Compensation - Filtered'!$AF$9:$AF$53,""),"")) -> 960017.3074
D54: $50,000,000 to $149,999,999 | F54: =G53+1 -> 50000000 | G54: 149999999 | I54: =COUNTIFS('Officer Compensation - Filtered'!$I$9:$I$53,">="&$F54,'Officer Compensation - Filtered'!$I$9:$I$53,"<="&$G54) -> 10 | K54: =AVERAGEIFS('Officer Compensation - Filtered'!$AB$9:$AB$53,'Officer Compensation - Filtered'!$I$9:$I$53,">="&$F54,'Officer Compensation - Filtered'!$I$9:$I$53,"<="&$G54) -> 534515.1 | L54: =MEDIAN(IF('Officer Compensation - Filtered'!$I$9:$I$53>=$F54,IF('Officer Compensation - Filtered'!$I$9:$I$53<=$G54,'Officer Compensation - Filtered'!$AB$9:$AB$53,""),"")) -> 498320.5 | N54: =AVERAGEIFS('Officer Compensation - Filtered'!$AD$9:$AD$53,'Officer Compensation - Filtered'!$I$9:$I$53,">="&$F54,'Officer Compensation - Filtered'!$I$9:$I$53,"<="&$G54) -> 414769.8 | O54: =MEDIAN(IF('Officer Compensation - Filtered'!$I$9:$I$53>=$F54,IF('Officer Compensation - Filtered'!$I$9:$I$53<=$G54,'Officer Compensation - Filtered'!$AD$9:$AD$53,""),"")) -> 379660 | Q54: =AVERAGEIFS('Officer Compensation - Filtered'!$AF$9:$AF$53,'Officer Compensation - Filtered'!$I$9:$I$53,">="&$F54,'Officer Compensation - Filtered'!$I$9:$I$53,"<="&$G54) -> 949284.9 | R54: =MEDIAN(IF('Officer Compensation - Filtered'!$I$9:$I$53>=$F54,IF('Officer Compensation - Filtered'!$I$9:$I$53<=$G54,'Officer Compensation - Filtered'!$AF$9:$AF$53,""),"")) -> 862047
D55: $150,000,000 and above | F55: =G54+1 -> 150000000 | G55: 1000000000000 | I55: =COUNTIFS('Officer Compensation - Filtered'!$I$9:$I$53,">="&$F55,'Officer Compensation - Filtered'!$I$9:$I$53,"<="&$G55) -> 20 | K55: =AVERAGEIFS('Officer Compensation - Filtered'!$AB$9:$AB$53,'Officer Compensation - Filtered'!$I$9:$I$53,">="&$F55,'Officer Compensation - Filtered'!$I$9:$I$53,"<="&$G55) -> 1102703.9 | L55: =MEDIAN(IF('Officer Compensation - Filtered'!$I$9:$I$53>=$F55,IF('Officer Compensation - Filtered'!$I$9:$I$53<=$G55,'Officer Compensation - Filtered'!$AB$9:$AB$53,""),"")) -> 657279 | N55: =AVERAGEIFS('Officer Compensation - Filtered'!$AD$9:$AD$53,'Officer Compensation - Filtered'!$I$9:$I$53,">="&$F55,'Officer Compensation - Filtered'!$I$9:$I$53,"<="&$G55) -> 755538.5 | O55: =MEDIAN(IF('Officer Compensation - Filtered'!$I$9:$I$53>=$F55,IF('Officer Compensation - Filtered'!$I$9:$I$53<=$G55,'Officer Compensation - Filtered'!$AD$9:$AD$53,""),"")) -> 391533 | Q55: =AVERAGEIFS('Officer Compensation - Filtered'!$AF$9:$AF$53,'Officer Compensation - Filtered'!$I$9:$I$53,">="&$F55,'Officer Compensation - Filtered'!$I$9:$I$53,"<="&$G55) -> 1858242.4 | R55: =MEDIAN(IF('Officer Compensation - Filtered'!$I$9:$I$53>=$F55,IF('Officer Compensation - Filtered'!$I$9:$I$53<=$G55,'Officer Compensation - Filtered'!$AF$9:$AF$53,""),"")) -> 1465913
C57: Percentage Increase over Year Prior to IPO
D58: $49,999,999 and below | F58: -1000000000000 | G58: 49999999 | I58: =COUNTIFS('Officer Compensation - Filtered'!$I$9:$I$53,">="&$F58,'Officer Compensation - Filtered'!$I$9:$I$53,"<="&$G58) -> 15 | K58: =(K53/K48)-1 -> 0.04123684067 | L58: =(L53/L48)-1 -> 0.2935333333 | N58: 3.996910077 | O58: 98.84992463 | Q58: 1.615928403 | R58: 1.348620229
D59: $50,000,000 to $149,999,999 | F59: =G58+1 -> 50000000 | G59: 149999999 | I59: =COUNTIFS('Officer Compensation - Filtered'!$I$9:$I$53,">="&$F59,'Officer Compensation - Filtered'!$I$9:$I$53,"<="&$G59) -> 10 | K59: =(K54/K49)-1 -> 0.1083100377 | L59: 0.2754131549 | N59: -0.3358853758 | O59: 28.89448819 | Q59: -0.1423350703 | R59: 0.223362972
D60: $150,000,000 and above | F60: =G59+1 -> 150000000 | G60: 1000000000000 | I60: =COUNTIFS('Officer Compensation - Filtered'!$I$9:$I$53,">="&$F60,'Officer Compensation - Filtered'!$I$9:$I$53,"<="&$G60) -> 20 | K60: 0.2413259054 | L60: 0.00298096137 | N60: 0.3664180817 | O60: 2.06429244 | Q60: 0.2893169812 | R60: 0.6223676463
B63: All Industries - Analysis by Market Cap
C64: Year Prior to IPO
D65: $199,999,999 and below | F65: -1000000000000 | G65: 199999999 | I65: =COUNTIFS('Officer Compensation - Filtered'!$H$9:$H$53,">="&$F65,'Officer Compensation - Filtered'!$H$9:$H$53,"<="&$G65) -> 11 | K65: =AVERAGEIFS('Officer Compensation - Filtered'!$AA$9:$AA$53,'Officer Compensation - Filtered'!$H$9:$H$53,">="&$F65,'Officer Compensation - Filtered'!$H$9:$H$53,"<="&$G65) -> 386587.0909 | L65: =MEDIAN(IF('Officer Compensation - Filtered'!$H$9:$H$53>=$F65,IF('Officer Compensation - Filtered'!$H$9:$H$53<=$G65,'Officer Compensation - Filtered'!$AA$9:$AA$53,""),"")) -> 285780 | N65: =AVERAGEIFS('Officer Compensation - Filtered'!$AC$9:$AC$53,'Officer Compensation - Filtered'!$H$9:$H$53,">="&$F65,'Officer Compensation - Filtered'!$H$9:$H$53,"<="&$G65) -> 306883.0909 | O65: =MEDIAN(IF('Officer Compensation - Filtered'!$H$9:$H$53>=$F65,IF('Officer Compensation - Filtered'!$H$9:$H$53<=$G65,'Officer Compensation - Filtered'!$AC$9:$AC$53,""),"")) -> 6468 | Q65: =AVERAGEIFS('Officer Compensation - Filtered'!$AE$9:$AE$53,'Officer Compensation - Filtered'!$H$9:$H$53,">="&$F65,'Officer Compensation - Filtered'!$H$9:$H$53,"<="&$G65) -> 693470.1818 | R65: =MEDIAN(IF('Officer Compensation - Filtered'!$H$9:$H$53>=$F65,IF('Officer Compensation - Filtered'!$H$9:$H$53<=$G65,'Officer Compensation - Filtered'!$AE$9:$AE$53,""),"")) -> 337769
D66: $200,000,000 to $299,999,999 | F66: =G65+1 -> 200000000 | G66: 299999999 | I66: =COUNTIFS('Officer Compensation - Filtered'!$H$9:$H$53,">="&$F66,'Officer Compensation - Filtered'!$H$9:$H$53,"<="&$G66) -> 6 | K66: =AVERAGEIFS('Officer Compensation - Filtered'!$AA$9:$AA$53,'Officer Compensation - Filtered'!$H$9:$H$53,">="&$F66,'Officer Compensation - Filtered'!$H$9:$H$53,"<="&$G66) -> 862325.3135 | L66: =MEDIAN(IF('Officer Compensation - Filtered'!$H$9:$H$53>=$F66,IF('Officer Compensation - Filtered'!$H$9:$H$53<=$G66,'Officer Compensation - Filtered'!$AA$9:$AA$53,""),"")) -> 397340 | N66: =AVERAGEIFS('Officer Compensation - Filtered'!$AC$9:$AC$53,'Officer Compensation - Filtered'!$H$9:$H$53,">="&$F66,'Officer Compensation - Filtered'!$H$9:$H$53,"<="&$G66) -> 671379.6003 | O66: =MEDIAN(IF('Officer Compensation - Filtered'!$H$9:$H$53>=$F66,IF('Officer Compensation - Filtered'!$H$9:$H$53<=$G66,'Officer Compensation - Filtered'!$AC$9:$AC$53,""),"")) -> 0 | Q66: =AVERAGEIFS('Officer Compensation - Filtered'!$AE$9:$AE$53,'Officer Compensation - Filtered'!$H$9:$H$53,">="&$F66,'Officer Compensation - Filtered'!$H$9:$H$53,"<="&$G66) -> 1533704.914 | R66: =MEDIAN(IF('Officer Compensation - Filtered'!$H$9:$H$53>=$F66,IF('Officer Compensation - Filtered'!$H$9:$H$53<=$G66,'Officer Compensation - Filtered'!$AE$9:$AE$53,""),"")) -> 486278.7412
D67: $300,000,000 to $399,999,999 | F67: =G66+1 -> 300000000 | G67: 399999999 | I67: =COUNTIFS('Officer Compensation - Filtered'!$H$9:$H$53,">="&$F67,'Officer Compensation - Filtered'!$H$9:$H$53,"<="&$G67) -> 6 | K67: =AVERAGEIFS('Officer Compensation - Filtered'!$AA$9:$AA$53,'Officer Compensation - Filtered'!$H$9:$H$53,">="&$F67,'Officer Compensation - Filtered'!$H$9:$H$53,"<="&$G67) -> 559067.8333 | L67: =MEDIAN(IF('Officer Compensation - Filtered'!$H$9:$H$53>=$F67,IF('Officer Compensation - Filtered'!$H$9:$H$53<=$G67,'Officer Compensation - Filtered'!$AA$9:$AA$53,""),"")) -> 483457 | N67: =AVERAGEIFS('Officer Compensation - Filtered'!$AC$9:$AC$53,'Officer Compensation - Filtered'!$H$9:$H$53,">="&$F67,'Officer Compensation - Filtered'!$H$9:$H$53,"<="&$G67) -> 60341.33333 | O67: =MEDIAN(IF('Officer Compensation - Filtered'!$H$9:$H$53>=$F67,IF('Officer Compensation - Filtered'!$H$9:$H$53<=$G67,'Officer Compensation - Filtered'!$AC$9:$AC$53,""),"")) -> 0 | Q67: =AVERAGEIFS('Officer Compensation - Filtered'!$AE$9:$AE$53,'Officer Compensation - Filtered'!$H$9:$H$53,">="&$F67,'Officer Compensation - Filtered'!$H$9:$H$53,"<="&$G67) -> 619409.1667 | R67: =MEDIAN(IF('Officer Compensation - Filtered'!$H$9:$H$53>=$F67,IF('Officer Compensation - Filtered'!$H$9:$H$53<=$G67,'Officer Compensation - Filtered'!$AE$9:$AE$53,""),"")) -> 545777.5
D68: $400,000,000 to $999,999,999 | F68: =G67+1 -> 400000000 | G68: 999999999 | I68: =COUNTIFS('Officer Compensation - Filtered'!$H$9:$H$53,">="&$F68,'Officer Compensation - Filtered'!$H$9:$H$53,"<="&$G68) -> 9 | K68: =AVERAGEIFS('Officer Compensation - Filtered'!$AA$9:$AA$53,'Officer Compensation - Filtered'!$H$9:$H$53,">="&$F68,'Officer Compensation - Filtered'!$H$9:$H$53,"<="&$G68) -> 503079.8889 | L68: =MEDIAN(IF('Officer Compensation - Filtered'!$H$9:$H$53>=$F68,IF('Officer Compensation - Filtered'!$H$9:$H$53<=$G68,'Officer Compensation - Filtered'!$AA$9:$AA$53,""),"")) -> 500899 | N68: =AVERAGEIFS('Officer Compensation - Filtered'!$AC$9:$AC$53,'Officer Compensation - Filtered'!$H$9:$H$53,">="&$F68,'Officer Compensation - Filtered'!$H$9:$H$53,"<="&$G68) -> 250984.6667 | O68: =MEDIAN(IF('Officer Compensation - Filtered'!$H$9:$H$53>=$F68,IF('Officer Compensation - Filtered'!$H$9:$H$53<=$G68,'Officer Compensation - Filtered'!$AC$9:$AC$53,""),"")) -> 53805 | Q68: =AVERAGEIFS('Officer Compensation - Filtered'!$AE$9:$AE$53,'Officer Compensation - Filtered'!$H$9:$H$53,">="&$F68,'Officer Compensation - Filtered'!$H$9:$H$53,"<="&$G68) -> 754064.5556 | R68: =MEDIAN(IF('Officer Compensation - Filtered'!$H$9:$H$53>=$F68,IF('Officer Compensation - Filtered'!$H$9:$H$53<=$G68,'Officer Compensation - Filtered'!$AE$9:$AE$53,""),"")) -> 655483
D69: $1,000,000,000 and above | F69: =G68+1 -> 1000000000 | G69: 1000000000000 | I69: =COUNTIFS('Officer Compensation - Filtered'!$H$9:$H$53,">="&$F69,'Officer Compensation - Filtered'!$H$9:$H$53,"<="&$G69) -> 13 | K69: =AVERAGEIFS('Officer Compensation - Filtered'!$AA$9:$AA$53,'Officer Compensation - Filtered'!$H$9:$H$53,">="&$F69,'Officer Compensation - Filtered'!$H$9:$H$53,"<="&$G69) -> 844617.6449 | L69: =MEDIAN(IF('Officer Compensation - Filtered'!$H$9:$H$53>=$F69,IF('Officer Compensation - Filtered'!$H$9:$H$53<=$G69,'Officer Compensation - Filtered'!$AA$9:$AA$53,""),"")) -> 684656 | N69: =AVERAGEIFS('Officer Compensation - Filtered'!$AC$9:$AC$53,'Officer Compensation - Filtered'!$H$9:$H$53,">="&$F69,'Officer Compensation - Filtered'!$H$9:$H$53,"<="&$G69) -> 849882.8041 | O69: =MEDIAN(IF('Officer Compensation - Filtered'!$H$9:$H$53>=$F69,IF('Officer Compensation - Filtered'!$H$9:$H$53<=$G69,'Officer Compensation - Filtered'!$AC$9:$AC$53,""),"")) -> 262500 | Q69: =AVERAGEIFS('Officer Compensation - Filtered'!$AE$9:$AE$53,'Officer Compensation - Filtered'!$H$9:$H$53,">="&$F69,'Officer Compensation - Filtered'!$H$9:$H$53,"<="&$G69) -> 1694500.449 | R69: =MEDIAN(IF('Officer Compensation - Filtered'!$H$9:$H$53>=$F69,IF('Officer Compensation - Filtered'!$H$9:$H$53<=$G69,'Officer Compensation - Filtered'!$AE$9:$AE$53,""),"")) -> 998243
C71: Year of IPO
D72: $199,999,999 and below | F72: -1000000000000 | G72: 199999999 | I72: =COUNTIFS('Officer Compensation - Filtered'!$H$9:$H$53,">="&$F72,'Officer Compensation - Filtered'!$H$9:$H$53,"<="&$G72) -> 11 | K72: =AVERAGEIFS('Officer Compensation - Filtered'!$AB$9:$AB$53,'Officer Compensation - Filtered'!$H$9:$H$53,">="&$F72,'Officer Compensation - Filtered'!$H$9:$H$53,"<="&$G72) -> 368955.3632 | L72: =MEDIAN(IF('Officer Compensation - Filtered'!$H$9:$H$53>=$F72,IF('Officer Compensation - Filtered'!$H$9:$H$53<=$G72,'Officer Compensation - Filtered'!$AB$9:$AB$53,""),"")) -> 338874 | N72: =AVERAGEIFS('Officer Compensation - Filtered'!$AD$9:$AD$53,'Officer Compensation - Filtered'!$H$9:$H$53,">="&$F72,'Officer Compensation - Filtered'!$H$9:$H$53,"<="&$G72) -> 928805.892 | O72: =MEDIAN(IF('Officer Compensation - Filtered'!$H$9:$H$53>=$F72,IF('Officer Compensation - Filtered'!$H$9:$H$53<=$G72,'Officer Compensation - Filtered'!$AD$9:$AD$53,""),"")) -> 503852 | Q72: =AVERAGEIFS('Officer Compensation - Filtered'!$AF$9:$AF$53,'Officer Compensation - Filtered'!$H$9:$H$53,">="&$F72,'Officer Compensation - Filtered'!$H$9:$H$53,"<="&$G72) -> 1297761.255 | R72: =MEDIAN(IF('Officer Compensation - Filtered'!$H$9:$H$53>=$F72,IF('Officer Compensation - Filtered'!$H$9:$H$53<=$G72,'Officer Compensation - Filtered'!$AF$9:$AF$53,""),"")) -> 881177
D73: $200,000,000 to $299,999,999 | F73: =G72+1 -> 200000000 | G73: 299999999 | I73: =COUNTIFS('Officer Compensation - Filtered'!$H$9:$H$53,">="&$F73,'Officer Compensation - Filtered'!$H$9:$H$53,"<="&$G73) -> 6 | K73: =AVERAGEIFS('Officer Compensation - Filtered'!$AB$9:$AB$53,'Officer Compensation - Filtered'!$H$9:$H$53,">="&$F73,'Officer Compensation - Filtered'!$H$9:$H$53,"<="&$G73) -> 898788.3333 | L73: =MEDIAN(IF('Officer Compensation - Filtered'!$H$9:$H$53>=$F73,IF('Officer Compensation - Filtered'!$H$9:$H$53<=$G73,'Officer Compensation - Filtered'!$AB$9:$AB$53,""),"")) -> 482111.5 | N73: =AVERAGEIFS('Officer Compensation - Filtered'!$AD$9:$AD$53,'Officer Compensation - Filtered'!$H$9:$H$53,">="&$F73,'Officer Compensation - Filtered'!$H$9:$H$53,"<="&$G73) -> 987254.5 | O73: =MEDIAN(IF('Officer Compensation - Filtered'!$H$9:$H$53>=$F73,IF('Officer Compensation - Filtered'!$H$9:$H$53<=$G73,'Officer Compensation - Filtered'!$AD$9:$AD$53,""),"")) -> 510807.5 | Q73: =AVERAGEIFS('Officer Compensation - Filtered'!$AF$9:$AF$53,'Officer Compensation - Filtered'!$H$9:$H$53,">="&$F73,'Officer Compensation - Filtered'!$H$9:$H$53,"<="&$G73) -> 1886042.833 | R73: =MEDIAN(IF('Officer Compensation - Filtered'!$H$9:$H$53>=$F73,IF('Officer Compensation - Filtered'!$H$9:$H$53<=$G73,'Officer Compensation - Filtered'!$AF$9:$AF$53,""),"")) -> 1522382
D74: $300,000,000 to $399,999,999 | F74: =G73+1 -> 300000000 | G74: 399999999 | I74: =COUNTIFS('Officer Compensation - Filtered'!$H$9:$H$53,">="&$F74,'Officer Compensation - Filtered'!$H$9:$H$53,"<="&$G74) -> 6 | K74: =AVERAGEIFS('Officer Compensation - Filtered'!$AB$9:$AB$53,'Officer Compensation - Filtered'!$H$9:$H$53,">="&$F74,'Officer Compensation - Filtered'!$H$9:$H$53,"<="&$G74) -> 574333 | L74: =MEDIAN(IF('Officer Compensation - Filtered'!$H$9:$H$53>=$F74,IF('Officer Compensation - Filtered'!$H$9:$H$53<=$G74,'Officer Compensation - Filtered'!$AB$9:$AB$53,""),"")) -> 534289.5 | N74: =AVERAGEIFS('Officer Compensation - Filtered'!$AD$9:$AD$53,'Officer Compensation - Filtered'!$H$9:$H$53,">="&$F74,'Officer Compensation - Filtered'!$H$9:$H$53,"<="&$G74) -> 609814.8333 | O74: =MEDIAN(IF('Officer Compensation - Filtered'!$H$9:$H$53>=$F74,IF('Officer Compensation - Filtered'!$H$9:$H$53<=$G74,'Officer Compensation - Filtered'!$AD$9:$AD$53,""),"")) -> 501603.5 | Q74: =AVERAGEIFS('Officer Compensation - Filtered'!$AF$9:$AF$53,'Officer Compensation - Filtered'!$H$9:$H$53,">="&$F74,'Officer Compensation - Filtered'!$H$9:$H$53,"<="&$G74) -> 1184147.833 | R74: =MEDIAN(IF('Officer Compensation - Filtered'!$H$9:$H$53>=$F74,IF('Officer Compensation - Filtered'!$H$9:$H$53<=$G74,'Officer Compensation - Filtered'!$AF$9:$AF$53,""),"")) -> 951089.5
D75: $400,000,000 to $999,999,999 | F75: =G74+1 -> 400000000 | G75: 999999999 | I75: =COUNTIFS('Officer Compensation - Filtered'!$H$9:$H$53,">="&$F75,'Officer Compensation - Filtered'!$H$9:$H$53,"<="&$G75) -> 9 | K75: =AVERAGEIFS('Officer Compensation - Filtered'!$AB$9:$AB$53,'Officer Compensation - Filtered'!$H$9:$H$53,">="&$F75,'Officer Compensation - Filtered'!$H$9:$H$53,"<="&$G75) -> 485737.5323 | L75: =MEDIAN(IF('Officer Compensation - Filtered'!$H$9:$H$53>=$F75,IF('Officer Compensation - Filtered'!$H$9:$H$53<=$G75,'Officer Compensation - Filtered'!$AB$9:$AB$53,""),"")) -> 550988 | N75: =AVERAGEIFS('Officer Compensation - Filtered'!$AD$9:$AD$53,'Officer Compensation - Filtered'!$H$9:$H$53,">="&$F75,'Officer Compensation - Filtered'!$H$9:$H$53,"<="&$G75) -> 1006098.5 | O75: =MEDIAN(IF('Officer Compensation - Filtered'!$H$9:$H$53>=$F75,IF('Officer Compensation - Filtered'!$H$9:$H$53<=$G75,'Officer Compensation - Filtered'!$AD$9:$AD$53,""),"")) -> 493531 | Q75: =AVERAGEIFS('Officer Compensation - Filtered'!$AF$9:$AF$53,'Officer Compensation - Filtered'!$H$9:$H$53,">="&$F75,'Officer Compensation - Filtered'!$H$9:$H$53,"<="&$G75) -> 1491836.032 | R75: =MEDIAN(IF('Officer Compensation - Filtered'!$H$9:$H$53>=$F75,IF('Officer Compensation - Filtered'!$H$9:$H$53<=$G75,'Officer Compensation - Filtered'!$AF$9:$AF$53,""),"")) -> 1051031
D76: $1,000,000,000 and above | F76: =G75+1 -> 1000000000 | G76: 1000000000000 | I76: =COUNTIFS('Officer Compensation - Filtered'!$H$9:$H$53,">="&$F76,'Officer Compensation - Filtered'!$H$9:$H$53,"<="&$G76) -> 13 | K76: =AVERAGEIFS('Officer Compensation - Filtered'!$AB$9:$AB$53,'Officer Compensation - Filtered'!$H$9:$H$53,">="&$F76,'Officer Compensation - Filtered'!$H$9:$H$53,"<="&$G76) -> 1235738 | L76: =MEDIAN(IF('Officer Compensation - Filtered'!$H$9:$H$53>=$F76,IF('Officer Compensation - Filtered'!$H$9:$H$53<=$G76,'Officer Compensation - Filtered'!$AB$9:$AB$53,""),"")) -> 824991 | N76: =AVERAGEIFS('Officer Compensation - Filtered'!$AD$9:$AD$53,'Officer Compensation - Filtered'!$H$9:$H$53,">="&$F76,'Officer Compensation - Filtered'!$H$9:$H$53,"<="&$G76) -> 710685.1538 | O76: =MEDIAN(IF('Officer Compensation - Filtered'!$H$9:$H$53>=$F76,IF('Officer Compensation - Filtered'!$H$9:$H$53<=$G76,'Officer Compensation - Filtered'!$AD$9:$AD$53,""),"")) -> 338699 | Q76: =AVERAGEIFS('Officer Compensation - Filtered'!$AF$9:$AF$53,'Officer Compensation - Filtered'!$H$9:$H$53,">="&$F76,'Officer Compensation - Filtered'!$H$9:$H$53,"<="&$G76) -> 1946423.154 | R76: =MEDIAN(IF('Officer Compensation - Filtered'!$H$9:$H$53>=$F76,IF('Officer Compensation - Filtered'!$H$9:$H$53<=$G76,'Officer Compensation - Filtered'!$AF$9:$AF$53,""),"")) -> 1486502
C78: Percentage Increase over Year Prior to IPO
D79: $199,999,999 and below | F79: -1000000000000 | G79: 199999999 | I79: =COUNTIFS('Officer Compensation - Filtered'!$H$9:$H$53,">="&$F79,'Officer Compensation - Filtered'!$H$9:$H$53,"<="&$G79) -> 11 | K79: =(K72/K65)-1 -> -0.04560868211 | L79: =(L72/L65)-1 -> 0.1857862692 | N79: 2.026578914 | O79: 76.89919604 | Q79: 0.8714016684 | R79: 1.608815492
D80: $200,000,000 to $299,999,999 | F80: =G79+1 -> 200000000 | G80: 299999999 | I80: =COUNTIFS('Officer Compensation - Filtered'!$H$9:$H$53,">="&$F80,'Officer Compensation - Filtered'!$H$9:$H$53,"<="&$G80) -> 6 | K80: =(K73/K66)-1 -> 0.04228452915 | L80: 0.2133475109 | N80: 0.4704862936 | Q80: 0.2297299281 | R80: 2.130677677
D81: $300,000,000 to $399,999,999 | F81: =G80+1 -> 300000000 | G81: 399999999 | I81: =COUNTIFS('Officer Compensation - Filtered'!$H$9:$H$53,">="&$F81,'Officer Compensation - Filtered'!$H$9:$H$53,"<="&$G81) -> 6 | K81: 0.0273046771 | L81: 0.1051437873 | N81: 9.106088143 | Q81: 0.911737664 | R81: 0.7426322998
D82: $400,000,000 to $999,999,999 | F82: =G81+1 -> 400000000 | G82: 999999999 | I82: =COUNTIFS('Officer Compensation - Filtered'!$H$9:$H$53,">="&$F82,'Officer Compensation - Filtered'!$H$9:$H$53,"<="&$G82) -> 9 | K82: -0.03447237104 | L82: 0.09999820323 | N82: 3.008605439 | O82: 8.172586191 | Q82: 0.9783929921 | R82: 0.6034450932
D83: $1,000,000,000 and above | F83: =G82+1 -> 1000000000 | G83: 1000000000000 | I83: =COUNTIFS('Officer Compensation - Filtered'!$H$9:$H$53,">="&$F83,'Officer Compensation - Filtered'!$H$9:$H$53,"<="&$G83) -> 13 | K83: 0.4630738624 | L83: 0.2049715478 | N83: -0.1637845237 | O83: 0.2902819048 | Q83: 0.1486707808 | R83: 0.489118381

Sheet Officer Compensation - Filtered
A1: Connor Group, Inc.
A6: Chief Officer Compensation Analysis
AG7: * Less than 1%
A8: Company Name | B8: Excluded? | C8: 10-K Released/ Reviewed? | D8: Name | E8: Title | F8: City/State | G8: Offer Date | H8: Market Cap | I8: Revenue | J8: Shares | K8: $ Raised per Share | L8: $ Raised | M8: Months in Role Yr Prior to IPO | N8: Months in Role Yr of IPO | O8: Salary Yr Prior to IPO | P8: Bonus Yr Prior to IPO | Q8: Salary Yr of IPO | R8: Bonus Yr of IPO | S8: Salary + Bonus Yr Prior to IPO | T8: Salary + Bonus Yr of IPO | U8: Option Awards Yr Prior to IPO | V8: Option Awards Yr of IPO | W8: Stock Awards Yr Prior to IPO | X8: Stock Awards Yr of IPO | Y8: All Other Compensation Yr Prior to IPO | Z8: All Other Compensation Yr of IPO | AA8: Total Salary + Bonus + Other Yr Prior to IPO | AB8: Total Salary + Bonus + Other Yr of IPO | AC8: Total Share-Based Payments Yr Prior to IPO | AD8: Total Share-Based Payments Yr of IPO | AE8: Total Compensation Yr Prior to IPO | AF8: Total Compensation Yr of IPO | AG8: % Ownership Pre-IPO | AH8: % Ownership Post-IPO | AI8: SIC Code/Description | AJ8: SIC Description | AK8: Tech/Biotech? | AL8: Hyperlink to S-1 | AM8: Hyperlink to 10-K for Following Year or Definitive Proxy Statement with Info on Compensation | AN8: URL to S-1 | AO8: URL to 10-K for Following Year or Definitive Proxy Statement with Info on Compensation
A9: Renewable Energy Group, Inc. | B9: Included | C9: Yes | D9: Chad Stone | E9: CFO | F9: Ames, Iowa, United States | G9: 2012-01-18 | H9: 286509430 | I9: 626756000 | J9: 7200000 | K9: 10 | L9: 72000000 | M9: 12 | N9: 12 | O9: 185811 | P9: 177286 | Q9: =222897 -> 222897 | R9: 84385 | S9: =IFERROR(O9+P9,"NS/10-K") -> 363097 | T9: =IFERROR(Q9+R9,"NS/10-K") -> 307282 | U9: 0 | V9: 355008 | W9: 0 | X9: 222240 | Y9: 11320 | Z9: 20271 | AA9: =SUM(S9,Y9) -> 374417 | AB9: 327553 | AC9: =SUM(U9,W9) -> 0 | AD9: 577248 | AE9: =SUM(AA9,AC9) -> 374417 | AF9: 904801 | AG9: * | AH9: * | AI9: 2860 | AJ9: =VLOOKUP(AI9,'Appendix1_SIC-NAICS Lists'!$A$2:$B$449,2,FALSE) -> (2860) INDUSTRIAL ORGANIC CHEMICALS | AK9: =VLOOKUP(AI9,'Appendix1_SIC-NAICS Lists'!$A$2:$C$449,3,FALSE) -> No | AL9: =HYPERLINK(AN9,"S-1 for "&A9) -> S-1 for Renewable Energy Group, Inc. | AM9: =HYPERLINK(AO9,"10-K for "&A9) -> 10-K for Renewable Energy Group, Inc.
A10: Guidewire Software, Inc. | B10: Included | C10: Yes | D10: Karen Blasing | E10: CFO and Treasurer | F10: San Mateo, California, United States | G10: 2012-01-24 | H10: 635608363 | I10: 190182000 | J10: 8850000 | K10: 13 | L10: 115050000 | M10: 12 | N10: 12 | O10: =250000 -> 250000 | P10: 98600 | Q10: =250000 -> 250000 | R10: 113050 | S10: 348600 | T10: 363050 | U10: 86597 | V10: 0 | W10: 187500 | X10: 0 | Y10: 1166 | Z10: 2595 | AA10: 349766 | AB10: 365645 | AC10: 274097 | AD10: 0 | AE10: 623863 | AF10: 365645 | AG10: 0.0121 | AH10: 0.0103 | AI10: 7372 | AJ10: =VLOOKUP(AI10,'Appendix1_SIC-NAICS Lists'!$A$2:$B$449,2,FALSE) -> (7372) SERVICES-PREPACKAGED SOFTWARE | AK10: =VLOOKUP(AI10,'Appendix1_SIC-NAICS Lists'!$A$2:$C$449,3,FALSE) -> Yes | AL10: S-1 for Guidewire Software, Inc. | AM10: 10-K for Guidewire Software, Inc.
A11: Verastem, Inc. | B11: Included | C11: Yes | D11: Robert Forrester | E11: Chief Operating Officer (Principal Financial and Accounting Officer) | F11: Cambridge, Massachusetts, United States | G11: 2012-01-26 | H11: 202341160 | I11: 0 | J11: 5500000 | K11: 10 | L11: 55000000 | M11: 10 | N11: 12 | O11: 303330 | P11: 187200 | Q11: =364446 -> 364446 | R11: 190000 | S11: 490530 | T11: 554446 | U11: 0 | V11: 0 | W11: 51609.60156 | X11: 1571427 | Y11: 10154.88086 | Z11: 14090 | AA11: 500684.8809 | AB11: 568536 | AC11: 51609.60156 | AD11: 1571427 | AE11: 552294.4824 | AF11: 2139963 | AG11: * | AH11: * | AI11: 2834 | AJ11: =VLOOKUP(AI11,'Appendix1_SIC-NAICS Lists'!$A$2:$B$449,2,FALSE) -> (2834) PHARMACEUTICAL PREPARATIONS | AK11: =VLOOKUP(AI11,'Appendix1_SIC-NAICS Lists'!$A$2:$C$449,3,FALSE) -> Yes | AL11: S-1 for Verastem, Inc. | AM11: 10-K for Verastem, Inc.
A12: Greenway Medical Technologies, Inc. | B12: Included | C12: Yes | D12: James A. Cochran | E12: CFO | F12: Carrollton, Georgia, United States | G12: 2012-02-01 | H12: 278465840 | I12: 98982000 | J12: 6666667 | K12: 10 | L12: 66666670 | M12: 12 | N12: 12 | O12: =247676 -> 247676 | P12: 172587 | Q12: =248000 -> 248000 | R12: 154597 | S12: 420263 | T12: 402597 | U12: 0 | V12: 440320 | W12: 0 | X12: 0 | Y12: 0 | Z12: 0 | AA12: 420263 | AB12: 402597 | AC12: 0 | AD12: 440320 | AE12: 420263 | AF12: 842917 | AG12: * | AH12: * | AI12: 7373 | AJ12: =VLOOKUP(AI12,'Appendix1_SIC-NAICS Lists'!$A$2:$B$449,2,FALSE) -> (7373) SERVICES-COMPUTER INTEGRATED SYSTEMS DESIGN | AK12: =VLOOKUP(AI12,'Appendix1_SIC-NAICS Lists'!$A$2:$C$449,3,FALSE) -> Yes | AL12: S-1 for Greenway Medical Technologies, Inc. | AM12: 10-K for Greenway Medical Technologies, Inc.
A13: Matador Resources Company | B13: Included | C13: Yes | D13: David E. Lancaster | E13: EVP, COO, and CFO | F13: Dallas, Texas, United States | G13: 2012-02-01 | H13: 656638320 | I13: 66277000 | J13: 13333334 | K13: 12 | L13: 160000008 | M13: 12 | N13: 12 | O13: =248333 -> 248333 | P13: 390000 | Q13: =340000 -> 340000 | R13: 200000 | S13: 638333 | T13: 540000 | U13: 0 | V13: 241400 | W13: 0 | X13: 252131 | Y13: 17150 | Z13: 17500 | AA13: 655483 | AB13: 557500 | AC13: 0 | AD13: 493531 | AE13: 655483 | AF13: 1051031 | AG13: * | AH13: * | AI13: 1311 | AJ13: =VLOOKUP(AI13,'Appendix1_SIC-NAICS Lists'!$A$2:$B$449,2,FALSE) -> (1311) CRUDE PETROLEUM & NATURAL GAS | AK13: =VLOOKUP(AI13,'Appendix1_SIC-NAICS Lists'!$A$2:$C$449,3,FALSE) -> No | AL13: S-1 for Matador Resources Company | AM13: 10-K for Matador Resources Company
A14: Cempra Holdings, LLC | B14: Included | C14: Yes | D14: Mark W. Hahn | E14: EVP and CFO | F14: Chapel Hill, North Carolina, United States | G14: 2012-02-03 | H14: 118613772 | I14: 0 | J14: 8400000 | K14: 6 | L14: 50400000 | M14: 12 | N14: 12 | O14: =203333 -> 203333 | P14: 47569 | Q14: =250027 -> 250027 | R14: 51568 | S14: 250902 | T14: 301595 | U14: 0 | V14: 190500 | W14: 0 | X14: 0 | Y14: 22152 | Z14: 24278 | AA14: 273054 | AB14: 325873 | AC14: 0 | AD14: 190500 | AE14: 273054 | AF14: 516373 | AG14: NS | AH14: NS | AI14: 2834 | AJ14: =VLOOKUP(AI14,'Appendix1_SIC-NAICS Lists'!$A$2:$B$449,2,FALSE) -> (2834) PHARMACEUTICAL PREPARATIONS | AK14: =VLOOKUP(AI14,'Appendix1_SIC-NAICS Lists'!$A$2:$C$449,3,FALSE) -> Yes | AL14: S-1 for Cempra Holdings, LLC | AM14: 10-K for Cempra Holdings, LLC
A15: Taylor Morrison Home Corporation | B15: Included | C15: Yes | D15: C. David Cone | E15: VP and CFO | F15: Scottsdale, Arizona, United States | G15: 2013-04-09 | H15: 2690797208 | I15: 1435721000 | J15: 28572000 | K15: 22 | L15: 628584000 | M15: 3 | N15: 12 | O15: 338460 | P15: 389800 | Q15: 400000 | R15: 539969 | S15: 728260 | T15: 939969 | U15: 0 | V15: 2023000 | W15: 5328572 | X15: 261104 | Y15: 10680 | Z15: 18734 | AA15: 738940 | AB15: 958703 | AC15: 5328572 | AD15: 2284104 | AE15: 6067512 | AF15: 3242807 | AG15: * | AH15: * | AI15: 1531 | AJ15: =VLOOKUP(AI15,'Appendix1_SIC-NAICS Lists'!$A$2:$B$449,2,FALSE) -> (1531) OPERATIVE BUILDERS | AK15: =VLOOKUP(AI15,'Appendix1_SIC-NAICS Lists'!$A$2:$C$449,3,FALSE) -> No | AL15: S-1 for Taylor Morrison Home Corporation | AM15: 10-K for Taylor Morrison Home Corporation
A16: EVERTEC, Inc. | B16: Included | C16: Yes | D16: Juan J. Román | E16: Executive VP and CFO | F16: San Juan, Puerto Rico | G16: 2013-04-11 | H16: 1581922880 | I16: 341684000 | J16: 25263159 | K16: 20 | L16: 505263180 | M16: 12 | N16: 12 | O16: =375000 -> 375000 | P16: =15625+262500 -> 278125 | Q16: 375000 | R16: 15625 | S16: 653125 | T16: 390625 | U16: 0 | V16: 0 | W16: 0 | X16: 0 | Y16: 35997 | Z16: 217292 | AA16: 689122 | AB16: 607917 | AC16: 0 | AD16: 0 | AE16: 689122 | AF16: 607917 | AG16: * | AH16: * | AI16: 7374 | AJ16: =VLOOKUP(AI16,'Appendix1_SIC-NAICS Lists'!$A$2:$B$449,2,FALSE) -> (7374) SERVICES-COMPUTER PROCESSING & DATA PREPARATION | AK16: =VLOOKUP(AI16,'Appendix1_SIC-NAICS Lists'!$A$2:$C$449,3,FALSE) -> Yes | AL16: S-1 for EVERTEC, Inc. | AM16: 10-K for EVERTEC, Inc.
A17: Rally Software Development Corp. | B17: Included | C17: Yes | D17: James M. Lejeal | E17: CFO and Treasurer | F17: Boulder, Colorado, United States | G17: 2013-04-11 | H17: 318420606 | I17: 56846000 | J17: 6000000 | K17: 14 | L17: 84000000 | M17: 12 | N17: 12 | O17: =257500 -> 257500 | P17: 40000 | Q17: 295000 | R17: 126027 | S17: 297500 | T17: 421027 | U17: 0 | V17: 218290 | W17: 0 | X17: 397120 | Y17: 540 | Z17: 420 | AA17: 298040 | AB17: 421447 | AC17: 0 | AD17: 615410 | AE17: 298040 | AF17: 1036857 | AG17: 0.011 | AH17: * | AI17: 7372 | AJ17: =VLOOKUP(AI17,'Appendix1_SIC-NAICS Lists'!$A$2:$B$449,2,FALSE) -> (7372) SERVICES-PREPACKAGED SOFTWARE | AK17: =VLOOKUP(AI17,'Appendix1_SIC-NAICS Lists'!$A$2:$C$449,3,FALSE) -> Yes | AL17: S-1 for Rally Software Development Corp. | AM17: 10-K for Rally Software Development Corp.
A18: Fairway Group Holdings Corp. | B18: Included | C18: Yes | D18: Edward C. Arditte | E18: CFO | F18: New York, New York, United States | G18: 2013-04-16 | H18: 536670264 | I18: 632870000 | J18: 13650000 | K18: 13 | L18: 177450000 | M18: 4 | N18: 12 | O18: 361782 | P18: 300000 | Q18: 350000 | R18: 100000 | S18: 661782 | T18: 450000 | U18: 0 | V18: 563564 | W18: 0 | X18: 2565412 | Y18: 241497 | Z18: 100988 | AA18: 903279 | AB18: 550988 | AC18: 0 | AD18: 3128976 | AE18: 903279 | AF18: 3679964 | AG18: NS | AH18: * | AI18: 5411 | AJ18: =VLOOKUP(AI18,'Appendix1_SIC-NAICS Lists'!$A$2:$B$449,2,FALSE) -> (5411) RETAIL-GROCERY STORES | AK18: =VLOOKUP(AI18,'Appendix1_SIC-NAICS Lists'!$A$2:$C$449,3,FALSE) -> No | AL18: S-1 for Fairway Group Holdings Corp. | AM18: 10-K for Fairway Group Holdings Corp.
A19: Taminco Corporation | B19: Included | C19: Yes | D19: Kurt Decat | E19: CFO | F19: Allentown, Pennsylvania, United States | G19: 2013-04-17 | H19: 978426570 | I19: 972000000 | J19: 15789474 | K19: 15 | L19: 236842110 | M19: 12 | N19: 12 | O19: 285870 | P19: 110302 | Q19: 326152 | R19: 149597 | S19: 396172 | T19: 475749 | U19: 1160276 | V19: 0 | W19: 0 | X19: 0 | Y19: =67631+43343 -> 110974 | Z19: =71616+73343 -> 144959 | AA19: 507146 | AB19: 620708 | AC19: 1160276 | AD19: 0 | AE19: 1667422 | AF19: 620708 | AG19: * | AH19: * | AI19: 2860 | AJ19: =VLOOKUP(AI19,'Appendix1_SIC-NAICS Lists'!$A$2:$B$449,2,FALSE) -> (2860) INDUSTRIAL ORGANIC CHEMICALS | AK19: =VLOOKUP(AI19,'Appendix1_SIC-NAICS Lists'!$A$2:$C$449,3,FALSE) -> No | AL19: S-1 for Taminco Corporation | AM19: 10-K for Taminco Corporation
A20: Blackhawk Network Holdings, Inc. | B20: Included | C20: Yes | D20: Jerry Ulrich | E20: CFO and Chief Administrative Officer | F20: Pleasanton, California, United States | G20: 2013-04-18 | H20: 1194531105 | I20: 959069000 | J20: 10000000 | K20: 23 | L20: 230000000 | M20: 12 | N20: 12 | O20: =346514 -> 346514 | P20: 290000 | Q20: 366683 | R20: 278993 | S20: 636514 | T20: 645676 | U20: 344896 | V20: 453816 | W20: 0 | X20: 0 | Y20: 16833 | Z20: =5907+13526 -> 19433 | AA20: 653347 | AB20: 665109 | AC20: 344896 | AD20: 453816 | AE20: 998243 | AF20: 1118925 | AG20: * | AH20: * | AI20: 6199 | AJ20: =VLOOKUP(AI20,'Appendix1_SIC-NAICS Lists'!$A$2:$B$449,2,FALSE) -> (6199) FINANCE SERVICES | AK20: =VLOOKUP(AI20,'Appendix1_SIC-NAICS Lists'!$A$2:$C$449,3,FALSE) -> No | AL20: S-1 for Blackhawk Network Holdings, Inc. | AM20: 10-K for Blackhawk Network Holdings, Inc.
A21: SeaWorld Entertainment, Inc. | B21: Included | C21: Yes | D21: James M. Heaney | E21: CFO | F21: Orlando, Florida, United States | G21: 2013-04-18 | H21: 2503899216 | I21: 1423752000 | J21: 26000000 | K21: 27 | L21: 702000000 | M21: =11+(12/31) -> 11.38709677 | N21: 12 | O21: 308811.2812 | P21: 276688.375 | Q21: 342000 | R21: =21011+276379 -> 297390 | S21: 585499.6562 | T21: 639390 | U21: 0 | V21: 0 | W21: 255545.4531 | X21: 338699 | Y21: 9248.727539 | Z21: 10059 | AA21: 594748.3838 | AB21: 649449 | AC21: 255545.4531 | AD21: 338699 | AE21: 850293.8369 | AF21: 988148 | AG21: 0 | AH21: * | AI21: 7990 | AJ21: =VLOOKUP(AI21,'Appendix1_SIC-NAICS Lists'!$A$2:$B$449,2,FALSE) -> (7990) SERVICES-MISCELLANEOUS AMUSEMENT & RECREATION | AK21: =VLOOKUP(AI21,'Appendix1_SIC-NAICS Lists'!$A$2:$C$449,3,FALSE) -> No | AL21: S-1 for SeaWorld Entertainment, Inc. | AM21: 10-K for SeaWorld Entertainment, Inc.
A22: ING U.S., Inc. | B22: Included | C22: Yes | D22: Ewout L. Steenbergen | E22: Director and CFO | F22: New York, New York, United States | G22: 2013-05-01 | H22: 5084999985 | I22: 9615300000 | J22: 65192307 | K22: 19.5 | L22: 1271249987 | M22: 12 | N22: 12 | O22: =498861 -> 498861 | P22: =281032 -> 281032 | Q22: 605768 | R22: 735711 | S22: 779893 | T22: 1341479 | U22: 0 | V22: 0 | W22: 314575 | X22: 1081229 | Y22: =680376+820688 -> 1501064 | Z22: =94001+637818 -> 731819 | AA22: 2280957 | AB22: 2073298 | AC22: 314575 | AD22: 1081229 | AE22: 2595532 | AF22: 3154527 | AG22: 0 | AH22: * | AI22: 6311 | AJ22: =VLOOKUP(AI22,'Appendix1_SIC-NAICS Lists'!$A$2:$B$449,2,FALSE) -> (6311) LIFE INSURANCE | AK22: =VLOOKUP(AI22,'Appendix1_SIC-NAICS Lists'!$A$2:$C$449,3,FALSE) -> No | AL22: S-1 for ING U.S., Inc. | AM22: 10-K for ING U.S., Inc.
A23: Insys Therapeutics, Inc. | B23: Included | C23: Yes | D23: Darryl S. Baker | E23: CFO | F23: Chandler, Arizona, United States | G23: 2013-05-02 | H23: 166361816 | I23: 15476000 | J23: 4000000 | K23: 8 | L23: 32000000 | M23: =3+17/30 -> 3.566666667 | N23: 12 | O23: 108210 | P23: 63000 | Q23: 202917 | R23: 135000 | S23: 171210 | T23: 337917 | U23: 2653305 | V23: 749522 | W23: 0 | X23: 0 | Y23: 477 | Z23: 957 | AA23: 171687 | AB23: 338874 | AC23: 2653305 | AD23: 749522 | AE23: 2824992 | AF23: 1088396 | AG23: * | AH23: * | AI23: 2834 | AJ23: =VLOOKUP(AI23,'Appendix1_SIC-NAICS Lists'!$A$2:$B$449,2,FALSE) -> (2834) PHARMACEUTICAL PREPARATIONS | AK23: =VLOOKUP(AI23,'Appendix1_SIC-NAICS Lists'!$A$2:$C$449,3,FALSE) -> Yes | AL23: S-1 for Insys Therapeutics, Inc. | AM23: 10-K for Insys Therapeutics, Inc.
A24: Emerge Energy Services LP | B24: Included | C24: Yes | D24: Robert Lane | E24: CFO | F24: Southlake, Texas, United States | G24: 2013-05-08 | H24: 394734560 | I24: 956863000 | J24: 7500000 | K24: 17 | L24: 127500000 | M24: 2 | N24: 12 | O24: 206772 | P24: 269934 | Q24: 256000 | R24: 153000 | S24: 476706 | T24: 409000 | U24: 0 | V24: 0 | W24: 0 | X24: 0 | Y24: 13338 | Z24: 22083 | AA24: 490044 | AB24: 431083 | AC24: 0 | AD24: 0 | AE24: 490044 | AF24: 431083 | AG24: NS | AH24: 0 | AI24: 1446 | AJ24: =VLOOKUP(AI24,'Appendix1_SIC-NAICS Lists'!$A$2:$B$449,2,FALSE) -> (1446) INDUSTRIAL SAND | AK24: =VLOOKUP(AI24,'Appendix1_SIC-NAICS Lists'!$A$2:$C$449,3,FALSE) -> No | AL24: S-1 for Emerge Energy Services LP | AM24: 10-K for Emerge Energy Services LP
A25: Quintiles Transnational Holdings Inc. | B25: Included | C25: Yes | D25: Kevin K. Gordon | E25: Executive VP and CFO | F25: Durham, North Carolina, United States | G25: 2013-05-08 | H25: 5156615600 | I25: 4865513000 | J25: 23684210 | K25: 40 | L25: 947368400 | M25: 12 | N25: 12 | O25: =500000 -> 500000 | P25: =334600+553350 -> 887950 | Q25: 570000 | R25: =500000+700000 -> 1200000 | S25: 1387950 | T25: 1770000 | U25: 1237431 | V25: 1834757 | W25: 0 | X25: 500033 | Y25: 55783 | Z25: 48783 | AA25: =SUM(S25,Y25) -> 1443733 | AB25: 1818783 | AC25: =SUM(U25,W25) -> 1237431 | AD25: 2334790 | AE25: =SUM(AA25,AC25) -> 2681164 | AF25: 4153573 | AG25: * | AH25: * | AI25: 8731 | AJ25: =VLOOKUP(AI25,'Appendix1_SIC-NAICS Lists'!$A$2:$B$449,2,FALSE) -> (8731) SERVICES-COMMERCIAL PHYSICAL & BIOLOGICAL RESEARCH | AK25: =VLOOKUP(AI25,'Appendix1_SIC-NAICS Lists'!$A$2:$C$449,3,FALSE) -> No | AL25: S-1 for Quintiles Transnational Holdings Inc. | AM25: 10-K for Quintiles Transnational Holdings Inc.
A26: TriState Capital Holdings, Inc. | B26: Included | C26: Yes | D26: Mark L. Sullivan | E26: Vice Chairman, CFO, and Director | F26: Pittsburgh, Pennsylvania, United States | G26: 2013-05-08 | H26: 319961959 | I26: 77233000 | J26: 5700000 | K26: 11.5 | L26: 65550000 | M26: 12 | N26: 12 | O26: =425000 -> 425000 | P26: 637500 | Q26: 475000 | R26: 319500 | S26: 1062500 | T26: 794500 | U26: 0 | V26: 0 | W26: 0 | X26: 0 | Y26: 16684 | Z26: 26861 | AA26: 1079184 | AB26: 821361 | AC26: 0 | AD26: 0 | AE26: 1079184 | AF26: 821361 | AG26: 0.026 | AH26: 0.021 | AI26: 6022 | AJ26: =VLOOKUP(AI26,'Appendix1_SIC-NAICS Lists'!$A$2:$B$449,2,FALSE) -> (6022) STATE COMMERCIAL BANKS | AK26: =VLOOKUP(AI26,'Appendix1_SIC-NAICS Lists'!$A$2:$C$449,3,FALSE) -> No | AL26: S-1 for TriState Capital Holdings, Inc. | AM26: 10-K for TriState Capital Holdings, Inc.
A27: First NBC Bank Holding Company | B27: Included | C27: Yes | D27: Mary Beth Verdigets | E27: Executive VP and CFO | F27: New Orleans, Louisiana, United States | G27: 2013-05-09 | H27: 413512608 | I27: 119593000 | J27: 4166667 | K27: 24 | L27: 100000008 | M27: 12 | N27: 12 | O27: =187500 -> 187500 | P27: 65000 | Q27: 205000 | R27: 77250 | S27: 252500 | T27: 282250 | U27: 25400 | V27: 37725 | W27: 0 | X27: 0 | Y27: 19006 | Z27: 21011 | AA27: 271506 | AB27: 303261 | AC27: 25400 | AD27: 37725 | AE27: 296906 | AF27: 340986 | AG27: * | AH27: * | AI27: 6022 | AJ27: =VLOOKUP(AI27,'Appendix1_SIC-NAICS Lists'!$A$2:$B$449,2,FALSE) -> (6022) STATE COMMERCIAL BANKS | AK27: =VLOOKUP(AI27,'Appendix1_SIC-NAICS Lists'!$A$2:$C$449,3,FALSE) -> No | AL27: S-1 for First NBC Bank Holding Company | AM27: 10-K for First NBC Bank Holding Company
A28: Ambit Biosciences Corporation | B28: Included | C28: Yes | D28: Alan Fuhrman | E28: CFO | F28: San Diego, California, United States | G28: 2013-05-15 | H28: 141700464 | I28: 18992000 | J28: 8125000 | K28: 8 | L28: 65000000 | M28: 12 | N28: 12 | O28: =279812 -> 279812 | P28: 87095 | Q28: 302096 | R28: 81581 | S28: 366907 | T28: 383677 | U28: 362923 | V28: 503852 | W28: 0 | X28: 0 | Y28: 4343 | Z28: 4383 | AA28: 371250 | AB28: 388060 | AC28: 362923 | AD28: 503852 | AE28: 734173 | AF28: 891912 | AG28: * | AH28: * | AI28: 2834 | AJ28: =VLOOKUP(AI28,'Appendix1_SIC-NAICS Lists'!$A$2:$B$449,2,FALSE) -> (2834) PHARMACEUTICAL PREPARATIONS | AK28: =VLOOKUP(AI28,'Appendix1_SIC-NAICS Lists'!$A$2:$C$449,3,FALSE) -> Yes | AL28: S-1 for Ambit Biosciences Corporation | AM28: 10-K for Ambit Biosciences Corporation
A29: Tableau Software, Inc. | B29: Included | C29: Yes | D29: Thomas Walker | E29: CFO | F29: Seattle, Washington, United States | G29: 2013-05-16 | H29: 1782949748 | I29: 143066000 | J29: 8200000 | K29: 31 | L29: 254200000 | M29: 12 | N29: 12 | O29: =275000 -> 275000 | P29: =47500+27500 -> 75000 | Q29: 275000 | R29: =100000+27500 -> 127500 | S29: 350000 | T29: 402500 | U29: 1811557 | V29: 0 | W29: 0 | X29: 319000 | Y29: 35506 | Z29: 36641 | AA29: 385506 | AB29: 439141 | AC29: 1811557 | AD29: 319000 | AE29: 2197063 | AF29: 758141 | AG29: 0.0146 | AH29: 0.015 | AI29: 7372 | AJ29: =VLOOKUP(AI29,'Appendix1_SIC-NAICS Lists'!$A$2:$B$449,2,FALSE) -> (7372) SERVICES-PREPACKAGED SOFTWARE | AK29: =VLOOKUP(AI29,'Appendix1_SIC-NAICS Lists'!$A$2:$C$449,3,FALSE) -> Yes | AL29: S-1 for Tableau Software, Inc. | AM29: 10-K for Tableau Software, Inc.
A30: Portola Pharmaceuticals, Inc. | B30: Included | C30: Yes | D30: Mardi C. Dier | E30: Senior VP and CFO | F30: South San Francisco, California, United States | G30: 2013-05-21 | H30: 491302601 | I30: 72669000 | J30: 8422758 | K30: 14.5 | L30: 122129991 | M30: 12 | N30: 12 | O30: =326795 -> 326795 | P30: 68625 | Q30: 340491 | R30: =75000+147700 -> 222700 | S30: 395420 | T30: 563191 | U30: 357904 | V30: 1127535 | W30: 0 | X30: 0 | Y30: 500 | Z30: 500 | AA30: 395920 | AB30: 563691 | AC30: 357904 | AD30: 1127535 | AE30: 753824 | AF30: 1691226 | AG30: * | AH30: * | AI30: 2834 | AJ30: =VLOOKUP(AI30,'Appendix1_SIC-NAICS Lists'!$A$2:$B$449,2,FALSE) -> (2834) PHARMACEUTICAL PREPARATIONS | AK30: =VLOOKUP(AI30,'Appendix1_SIC-NAICS Lists'!$A$2:$C$449,3,FALSE) -> Yes | AL30: S-1 for Portola Pharmaceuticals, Inc. | AM30: 10-K for Portola Pharmaceuticals, Inc.
A31: ChannelAdvisor Corporation | B31: Included | C31: Yes | D31: John F. Baule | E31: CFO | F31: Morrisville, North Carolina, United States | G31: 2013-05-22 | H31: 286601854 | I31: 56343000 | J31: 5750000 | K31: 14 | L31: 80500000 | M31: =1+30/30 -> 2 | N31: 12 | O31: 287694 | P31: 0 | Q31: 275000 | R31: 125000 | S31: 287694 | T31: 400000 | U31: 3976668 | V31: 0 | W31: 0 | X31: 10-K | Y31: 2334 | Z31: 4223 | AA31: 290028 | AB31: 404223 | AC31: 3976668 | AD31: 0 | AE31: 4266696 | AF31: 404223 | AG31: 0.018 | AH31: 0.013 | AI31: 7372 | AJ31: =VLOOKUP(AI31,'Appendix1_SIC-NAICS Lists'!$A$2:$B$449,2,FALSE) -> (7372) SERVICES-PREPACKAGED SOFTWARE | AK31: =VLOOKUP(AI31,'Appendix1_SIC-NAICS Lists'!$A$2:$C$449,3,FALSE) -> Yes | AL31: S-1 for ChannelAdvisor Corporation | AM31: 10-K for ChannelAdvisor Corporation
A32: Global Brass and Copper Holdings, Inc. | B32: Included | C32: Yes | D32: Robert T. Micchelli | E32: CFO | F32: Schaumburg, Illinois, United States | G32: 2013-05-22 | H32: 232210000 | I32: 1652100000 | J32: 7000000 | K32: 11 | L32: 77000000 | M32: 12 | N32: 12 | O32: =386250 -> 386250 | P32: =180000+337319 -> 517319 | Q32: 398775 | R32: 263766 | S32: 903569 | T32: 662541 | U32: 0 | V32: 109208 | W32: 0 | X32: 335159 | Y32: 2384990 | Z32: 2467280 | AA32: 3288559 | AB32: 3129821 | AC32: 0 | AD32: 444367 | AE32: 3288559 | AF32: 3574188 | AG32: 0 | AH32: * | AI32: 3350 | AJ32: =VLOOKUP(AI32,'Appendix1_SIC-NAICS Lists'!$A$2:$B$449,2,FALSE) -> (3350) ROLLING DRAWING & EXTRUDING OF NONFERROUS METALS | AK32: =VLOOKUP(AI32,'Appendix1_SIC-NAICS Lists'!$A$2:$C$449,3,FALSE) -> No | AL32: S-1 for Global Brass and Copper Holdings, Inc. | AM32: 10-K for Global Brass and Copper Holdings, Inc.
A33: Ply Gem Holdings, Inc. | B33: Included | C33: Yes | D33: Shawn K. Poe | E33: VP and CFO | F33: Cary, North Carolina, United States | G33: 2013-05-22 | H33: 1359791328 | I33: 1139222000 | J33: 15789474 | K33: 21 | L33: 331578954 | M33: 12 | N33: 12 | O33: =350000 -> 350000 | P33: 259875 | Q33: 400000 | R33: 100000 | S33: 609875 | T33: 500000 | U33: 0 | V33: 0 | W33: 262500 | X33: 300000 | Y33: 31474 | Z33: 32746 | AA33: 641349 | AB33: 532746 | AC33: 262500 | AD33: 300000 | AE33: 903849 | AF33: 832746 | AG33: * | AH33: * | AI33: 3089 | AJ33: =VLOOKUP(AI33,'Appendix1_SIC-NAICS Lists'!$A$2:$B$449,2,FALSE) -> (3089) PLASTICS PRODUCTS, NEC | AK33: =VLOOKUP(AI33,'Appendix1_SIC-NAICS Lists'!$A$2:$C$449,3,FALSE) -> No | AL33: S-1 for Ply Gem Holdings, Inc. | AM33: 10-K for Ply Gem Holdings, Inc.
A34: Epizyme, Inc. | B34: Included | C34: Yes | D34: Jason P. Rhodes | E34: Executive VP and CFO | F34: Cambridge, Massachusetts, United States | G34: 2013-05-30 | H34: 414656460 | I34: 48450000 | J34: 5142000 | K34: 15 | L34: 77130000 | M34: 0 | N34: 10 | O34: =344793 -> 344793 | P34: 155157 | Q34: 436831.1875 | R34: 178999.2031 | S34: 499950 | T34: 615830.3906 | U34: 0 | V34: 3190160.5 | W34: 0 | X34: 0 | Y34: 949 | Z34: 1760.400024 | AA34: 500899 | AB34: 617590.7906 | AC34: 0 | AD34: 3190160.5 | AE34: 500899 | AF34: 3807751.291 | AG34: 0.014 | AH34: 0.013 | AI34: 2834 | AJ34: =VLOOKUP(AI34,'Appendix1_SIC-NAICS Lists'!$A$2:$B$449,2,FALSE) -> (2834) PHARMACEUTICAL PREPARATIONS | AK34: =VLOOKUP(AI34,'Appendix1_SIC-NAICS Lists'!$A$2:$C$449,3,FALSE) -> Yes | AL34: S-1 for Epizyme, Inc. | AM34: 10-K for Epizyme, Inc.
A35: Textura Corporation | B35: Included | C35: Yes | D35: Jillian Sheehan | E35: EVP and CFO | F35: Deerfield, Illinois, United States | G35: 2013-06-06 | H35: 328529205 | I35: 27327000 | J35: 5000000 | K35: 15 | L35: 75000000 | M35: 12 | N35: 12 | O35: =253750 -> 253750 | P35: 215000 | Q35: 280000 | R35: 419000 | S35: 468750 | T35: 699000 | U35: 362048 | V35: 455542 | W35: 0 | X35: 151875 | Y35: 8120 | Z35: 4528 | AA35: 476870 | AB35: 703528 | AC35: 362048 | AD35: 607417 | AE35: 838918 | AF35: 1310945 | AG35: * | AH35: * | AI35: 7372 | AJ35: =VLOOKUP(AI35,'Appendix1_SIC-NAICS Lists'!$A$2:$B$449,2,FALSE) -> (7372) SERVICES-PREPACKAGED SOFTWARE | AK35: =VLOOKUP(AI35,'Appendix1_SIC-NAICS Lists'!$A$2:$C$449,3,FALSE) -> Yes | AL35: S-1 for Textura Corporation | AM35: 10-K for Textura Corporation
A36: Coty Inc. | B36: Included | C36: Yes | D36: Sergio Pedreiro | E36: CFO | F36: New York, New York, United States | G36: 2013-06-12 | H36: 6699534100 | I36: 4613700000 | J36: 57142857 | K36: 17.5 | L36: 999999998 | M36: 12 | N36: 12 | O36: 515000 | P36: 681300 | Q36: 550000 | R36: 253300 | S36: 1196300 | T36: 803300 | U36: 1493400 | V36: 0 | W36: 0 | X36: 1162500 | Y36: 0 | Z36: 21691 | AA36: 1196300 | AB36: 824991 | AC36: 1493400 | AD36: 1162500 | AE36: 2689700 | AF36: 1987491 | AG36: * | AH36: * | AI36: 2844 | AJ36: =VLOOKUP(AI36,'Appendix1_SIC-NAICS Lists'!$A$2:$B$449,2,FALSE) -> (2844) PERFUMES, COSMETICS & OTHER TOILET PREPARATIONS | AK36: =VLOOKUP(AI36,'Appendix1_SIC-NAICS Lists'!$A$2:$C$449,3,FALSE) -> No | AL36: S-1 for Coty Inc. | AM36: 10-K for Coty Inc.
A37: bluebird bio, Inc. | B37: Included | C37: Yes | D37: Jeffrey T. Walsh | E37: Chief Operating Officer and Secretary (Principal Financial Officer) | F37: Cambridge, Massachusetts, United States | G37: 2013-06-18 | H37: 387781288 | I37: 1382000 | J37: 5941176 | K37: 17 | L37: 100999992 | M37: 12 | N37: 12 | O37: 300758 | P37: 108000 | Q37: 321692 | R37: 147840 | S37: 408758 | T37: 469532 | U37: 0 | V37: 395790 | W37: 0 | X37: 0 | Y37: 0 | Z37: 0 | AA37: 408758 | AB37: 469532 | AC37: 0 | AD37: 395790 | AE37: 408758 | AF37: 865322 | AG37: * | AH37: * | AI37: 2836 | AJ37: =VLOOKUP(AI37,'Appendix1_SIC-NAICS Lists'!$A$2:$B$449,2,FALSE) -> (2836) BIOLOGICAL PRODUCTS, (NO DISGNOSTIC SUBSTANCES) | AK37: =VLOOKUP(AI37,'Appendix1_SIC-NAICS Lists'!$A$2:$C$449,3,FALSE) -> Yes | AL37: S-1 for bluebird bio, Inc. | AM37: 10-K for bluebird bio, Inc.
A38: Gogo Inc. | B38: Included | C38: Yes | D38: Norman Smagley | E38: Executive VP and CFO | F38: Itasca, Illinois, United States | G38: 2013-06-20 | H38: 1443619906 | I38: 249996000 | J38: 11000000 | K38: 17 | L38: 187000000 | M38: 12 | N38: 12 | O38: =332000 -> 332000 | P38: 259375 | Q38: 338750 | R38: 461869 | S38: 591375 | T38: 800619 | U38: 0 | V38: 684383 | W38: 0 | X38: 0 | Y38: 0 | Z38: 1500 | AA38: 591375 | AB38: 802119 | AC38: 0 | AD38: 684383 | AE38: 591375 | AF38: 1486502 | AG38: 0.001 | AH38: 0.002 | AI38: 4899 | AJ38: =VLOOKUP(AI38,'Appendix1_SIC-NAICS Lists'!$A$2:$B$449,2,FALSE) -> (4899) COMMUNICATIONS SERVICES, NEC | AK38: =VLOOKUP(AI38,'Appendix1_SIC-NAICS Lists'!$A$2:$C$449,3,FALSE) -> Yes | AL38: S-1 for Gogo Inc. | AM38: 10-K for Gogo Inc.
A39: Esperion Therapeutics, Inc. | B39: Included | C39: Yes | D39: Tim M. Mayleben | E39: Principal Financial Officer | F39: Plymouth, Michigan, United States | G39: 2013-06-25 | H39: 204110270 | I39: 0 | J39: 5000000 | K39: 14 | L39: 70000000 | M39: 1 | N39: 10-K | O39: 300000 | P39: 0 | Q39: 400000 | R39: 160000 | S39: 300000 | T39: 560000 | U39: 0 | V39: 2890165 | W39: 0 | X39: 0 | Y39: 0 | Z39: 0 | AA39: 300000 | AB39: 560000 | AC39: 0 | AD39: 2890165 | AE39: 300000 | AF39: 3450165 | AG39: 0.03 | AH39: 0.022 | AI39: 2834 | AJ39: =VLOOKUP(AI39,'Appendix1_SIC-NAICS Lists'!$A$2:$B$449,2,FALSE) -> (2834) PHARMACEUTICAL PREPARATIONS | AK39: =VLOOKUP(AI39,'Appendix1_SIC-NAICS Lists'!$A$2:$C$449,3,FALSE) -> Yes | AL39: S-1 for Esperion Therapeutics, Inc. | AM39: 10-K for Esperion Therapeutics, Inc.
A40: NanoString Technologies, Inc. | B40: Included | C40: Yes | D40: James A. Johnson | E40: CFO | F40: Seattle, Washington, United States | G40: 2013-06-25 | H40: 145947450 | I40: 24147000 | J40: 5400000 | K40: 10 | L40: 54000000 | M40: 3 | N40: 12 | O40: 1050000 | P40: 718500 | Q40: 324167 | R40: =128975 -> 128975 | S40: 1768500 | T40: 453142 | U40: 164672 | V40: 114996 | W40: 0 | X40: 0 | Y40: 38880 | Z40: 0 | AA40: 1807380 | AB40: 453142 | AC40: 164672 | AD40: 114996 | AE40: 1972052 | AF40: 568138 | AG40: 0.0123 | AH40: * | AI40: 3826 | AJ40: =VLOOKUP(AI40,'Appendix1_SIC-NAICS Lists'!$A$2:$B$449,2,FALSE) -> (3826) LABORATORY ANALYTICAL INSTRUMENTS | AK40: =VLOOKUP(AI40,'Appendix1_SIC-NAICS Lists'!$A$2:$C$449,3,FALSE) -> Yes | AL40: S-1 for NanoString Technologies, Inc. | AM40: 10-K for NanoString Technologies, Inc.
A41: Aratana Therapeutics, Inc. | B41: Included | C41: Yes | D41: Louise A. Mawhinney | E41: CFO | F41: Kansas City, Kansas, United States | G41: 2013-06-26 | H41: 119158596 | I41: 0 | J41: 5750000 | K41: 6 | L41: 34500000 | M41: 4 | N41: 0 | O41: 218943 | P41: 97500 | Q41: 0 | R41: 0 | S41: 316443 | T41: 0 | U41: 63000 | V41: 0 | W41: 51420 | X41: 0 | Y41: 0 | Z41: 0 | AA41: =SUM(S41,Y41) -> 316443 | AB41: 0 | AC41: =SUM(U41,W41) -> 114420 | AD41: 0 | AE41: =SUM(AA41,AC41) -> 430863 | AF41: 0 | AG41: * | AH41: * | AI41: 2834 | AJ41: =VLOOKUP(AI41,'Appendix1_SIC-NAICS Lists'!$A$2:$B$449,2,FALSE) -> (2834) PHARMACEUTICAL PREPARATIONS | AK41: =VLOOKUP(AI41,'Appendix1_SIC-NAICS Lists'!$A$2:$C$449,3,FALSE) -> Yes | AL41: S-1 for Aratana Therapeutics, Inc. | AM41: 10-K for Aratana Therapeutics, Inc.
A42: CDW Corporation | B42: Included | C42: Yes | D42: Ann E. Ziegler | E42: Senior Vice President and CFO | F42: Vernon Hills, Illinois, United States | G42: 2013-06-26 | H42: 2863985376 | I42: 10220700000 | J42: 23250000 | K42: 17 | L42: 395250000 | M42: 12 | N42: 12 | O42: =320000 -> 320000 | P42: =525000+229012 -> 754012 | Q42: 400769 | R42: =654305+162680 -> 816985 | S42: 1074012 | T42: 1217754 | U42: 0 | V42: 0 | W42: 0 | X42: 0 | Y42: 5984 | Z42: 977174 | AA42: 1079996 | AB42: 2194928 | AC42: 0 | AD42: 0 | AE42: 1079996 | AF42: 2194928 | AG42: * | AH42: * | AI42: 5961 | AJ42: =VLOOKUP(AI42,'Appendix1_SIC-NAICS Lists'!$A$2:$B$449,2,FALSE) -> (5961) RETAIL-CATALOG & MAIL-ORDER HOUSES | AK42: =VLOOKUP(AI42,'Appendix1_SIC-NAICS Lists'!$A$2:$C$449,3,FALSE) -> No | AL42: S-1 for CDW Corporation | AM42: 10-K for CDW Corporation
A43: Silvercrest Asset Management Group Inc. | B43: Included | C43: Yes | D43: Scott A. Gerard | E43: Principal Financial and Accounting Officer | F43: New York, New York, United States | G43: 2013-06-26 | H43: 123750110 | I43: 53495000 | J43: 4790684 | K43: 11 | L43: 52697524 | M43: 12 | N43: 12 | O43: 339095 | P43: 350000 | Q43: 375000 | R43: 490000 | S43: 689095 | T43: 865000 | U43: 0 | V43: 0 | W43: =69167+4759 -> 73926 | X43: 16177 | Y43: 0 | Z43: 0 | AA43: 689095 | AB43: 865000 | AC43: 73926 | AD43: 16177 | AE43: 763021 | AF43: 881177 | AG43: * | AH43: * | AI43: 6282 | AJ43: =VLOOKUP(AI43,'Appendix1_SIC-NAICS Lists'!$A$2:$B$449,2,FALSE) -> (6282) INVESTMENT ADVICE | AK43: =VLOOKUP(AI43,'Appendix1_SIC-NAICS Lists'!$A$2:$C$449,3,FALSE) -> No | AL43: S-1 for Silvercrest Asset Management Group Inc. | AM43: 10-K for Silvercrest Asset Management Group Inc.
A44: Noodles & Company | B44: Included | C44: Yes | D44: Dave Boennighausen | E44: CFO | F44: Broomfield, Colorado, United States | G44: 2013-06-27 | H44: 514730268 | I44: 311802000 | J44: 5357143 | K44: 18 | L44: 96428574 | M44: 6 | N44: 12 | O44: 420384 | P44: 215000 | Q44: 239808 | R44: =50000+104468 -> 154468 | S44: 635384 | T44: 394276 | U44: 387380 | V44: 0 | W44: 0 | X44: 0 | Y44: 21920 | Z44: 9504 | AA44: 657304 | AB44: 403780 | AC44: 387380 | AD44: 0 | AE44: 1044684 | AF44: 403780 | AG44: * | AH44: * | AI44: 5812 | AJ44: =VLOOKUP(AI44,'Appendix1_SIC-NAICS Lists'!$A$2:$B$449,2,FALSE) -> (5812) RETAIL-EATING PLACES | AK44: =VLOOKUP(AI44,'Appendix1_SIC-NAICS Lists'!$A$2:$C$449,3,FALSE) -> No | AL44: S-1 for Noodles & Company | AM44: 10-K for Noodles & Company
A45: UCP, Inc. | B45: Included | C45: Yes | D45: William J. La Herran | E45: CFO and Treasurer | F45: San Jose, California, United States | G45: 2013-07-17 | H45: 116251500 | I45: 66394000 | J45: 7750000 | K45: 15 | L45: 116250000 | M45: 12 | N45: 12 | O45: =247680 -> 247680 | P45: 55901 | Q45: 319138 | R45: 187500 | S45: 303581 | T45: 506638 | U45: 0 | V45: 0 | W45: 0 | X45: 1098000 | Y45: 34188 | Z45: 60292 | AA45: 337769 | AB45: 566930 | AC45: 0 | AD45: 1098000 | AE45: 337769 | AF45: 1664930 | AG45: * | AH45: * | AI45: 1531 | AJ45: =VLOOKUP(AI45,'Appendix1_SIC-NAICS Lists'!$A$2:$B$449,2,FALSE) -> (1531) OPERATIVE BUILDERS | AK45: =VLOOKUP(AI45,'Appendix1_SIC-NAICS Lists'!$A$2:$C$449,3,FALSE) -> No | AL45: S-1 for UCP, Inc. | AM45: 10-K for UCP, Inc.
A46: xG Technology, Inc. | B46: Included | C46: Yes | D46: Roger G. Branton | E46: CFO, Secretary, and Director | F46: Sarasota, Florida, United States | G46: 2013-07-22 | H46: 57584628 | I46: 0 | J46: 2006688 | K46: 5.51 | L46: 7364545 | M46: 12 | N46: 12 | O46: 275000 | P46: 0 | Q46: 275000 | R46: 0 | S46: 275000 | T46: 275000 | U46: 0 | V46: 38683 | W46: 6468 | X46: 0 | Y46: 10780 | Z46: 12442 | AA46: 285780 | AB46: 287442 | AC46: 6468 | AD46: 38683 | AE46: 292248 | AF46: 326125 | AG46: 0.6846 | AH46: NS | AI46: 3669 | AJ46: =VLOOKUP(AI46,'Appendix1_SIC-NAICS Lists'!$A$2:$B$449,2,FALSE) -> (3669) COMMUNICATIONS EQUIPMENT, NEC | AK46: =VLOOKUP(AI46,'Appendix1_SIC-NAICS Lists'!$A$2:$C$449,3,FALSE) -> Yes | AL46: S-1 for xG Technology, Inc. | AM46: 10-K for xG Technology, Inc.
A47: Agios Pharmaceuticals, Inc. | B47: Included | C47: Yes | D47: Glenn Goddard | E47: VP of Finance (Principal Financial and Accounting Officer) | F47: Cambridge, Massachusetts, United States | G47: 2013-07-23 | H47: 542297160 | I47: 25106000 | J47: 5888888 | K47: 18 | L47: 105999984 | M47: 12 | N47: 12 | O47: =253707 -> 253707 | P47: 30445 | Q47: 269138 | R47: 117000 | S47: 284152 | T47: 386138 | U47: 53805 | V47: 1076959 | W47: 0 | X47: 0 | Y47: 2264 | Z47: 2336 | AA47: 286416 | AB47: 388474 | AC47: 53805 | AD47: 1076959 | AE47: 340221 | AF47: 1465433 | AG47: * | AH47: * | AI47: 2834 | AJ47: =VLOOKUP(AI47,'Appendix1_SIC-NAICS Lists'!$A$2:$B$449,2,FALSE) -> (2834) PHARMACEUTICAL PREPARATIONS | AK47: =VLOOKUP(AI47,'Appendix1_SIC-NAICS Lists'!$A$2:$C$449,3,FALSE) -> Yes | AL47: S-1 for Agios Pharmaceuticals, Inc. | AM47: 10-K for Agios Pharmaceuticals, Inc.
A48: WCI Communities, Inc | B48: Included | C48: Yes | D48: Russell Devendorf | E48: Senior VP and CFO | F48: Bonita Springs, Florida, United States | G48: 2013-07-24 | H48: 386520720 | I48: 261658000 | J48: 6819091 | K48: 15 | L48: 102286365 | M48: 12 | N48: 12 | O48: =275000 -> 275000 | P48: =134500+188698 -> 323198 | Q48: 275000 | R48: =124500+198000 -> 322500 | S48: 598198 | T48: 597500 | U48: 0 | V48: 0 | W48: 0 | X48: 2040272 | Y48: 3313 | Z48: 1547 | AA48: 601511 | AB48: 599047 | AC48: 0 | AD48: 2040272 | AE48: 601511 | AF48: 2639319 | AG48: * | AH48: * | AI48: 1531 | AJ48: =VLOOKUP(AI48,'Appendix1_SIC-NAICS Lists'!$A$2:$B$449,2,FALSE) -> (1531) OPERATIVE BUILDERS | AK48: =VLOOKUP(AI48,'Appendix1_SIC-NAICS Lists'!$A$2:$C$449,3,FALSE) -> No | AL48: S-1 for WCI Communities, Inc | AM48: 10-K for WCI Communities, Inc
A49: Marlin Midstream Partners, LP | B49: Included | C49: Yes | D49: Amanda Bush | E49: CFO | F49: Houston, Texas, United States | G49: 2013-07-25 | H49: 174490900 | I49: 47919000 | J49: 6875000 | K49: 20 | L49: 137500000 | M49: 0 | N49: 9 | O49: NS | P49: NS | Q49: 131121.3281 | R49: 180000 | S49: NS/10-K | T49: 311121.3281 | U49: NS | V49: 0 | W49: NS | X49: 645829.3125 | Y49: NS | Z49: 3066.666748 | AA49: 0 | AB49: 314187.9949 | AC49: 0 | AD49: 645829.3125 | AE49: 0 | AF49: 960017.3074 | AG49: NS | AH49: 0 | AI49: 4922 | AJ49: =VLOOKUP(AI49,'Appendix1_SIC-NAICS Lists'!$A$2:$B$449,2,FALSE) -> (4922) NATURAL GAS TRANSMISSION | AK49: =VLOOKUP(AI49,'Appendix1_SIC-NAICS Lists'!$A$2:$C$449,3,FALSE) -> No | AL49: S-1 for Marlin Midstream Partners, LP | AM49: 10-K for Marlin Midstream Partners, LP
A50: Sprouts Farmers Market, Inc. | B50: Included | C50: Yes | D50: Amin N. Maredia | E50: CFO and Treasurer | F50: Phoenix, Arizona, United States | G50: 2013-07-31 | H50: 2585860992 | I50: 1992797000 | J50: 18500000 | K50: 18 | L50: 333000000 | M50: 12 | N50: 12 | O50: =350000 -> 350000 | P50: 312375 | Q50: 360836 | R50: 378334 | S50: 662375 | T50: 739170 | U50: 0 | V50: 280386 | W50: 0 | X50: 0 | Y50: 22281 | Z50: 425768 | AA50: 684656 | AB50: 1164938 | AC50: 0 | AD50: 280386 | AE50: 684656 | AF50: 1445324 | AG50: * | AH50: * | AI50: 5411 | AJ50: =VLOOKUP(AI50,'Appendix1_SIC-NAICS Lists'!$A$2:$B$449,2,FALSE) -> (5411) RETAIL-GROCERY STORES | AK50: =VLOOKUP(AI50,'Appendix1_SIC-NAICS Lists'!$A$2:$C$449,3,FALSE) -> No | AL50: S-1 for Sprouts Farmers Market, Inc. | AM50: 10-K for Sprouts Farmers Market, Inc.
A51: Ideal Power Inc. | B51: Included | C51: Yes | D51: Timothy W. Burns | E51: CFO, Secretary, and Treasurer | F51: Spicewood, Texas, United States | G51: 2013-11-22 | H51: 31001785 | I51: 2153630 | J51: 3000000 | K51: 5 | L51: 15000000 | M51: 0 | N51: =2+11/31 -> 2.35483871 | O51: NS | P51: NS | Q51: 167310 | R51: 12594 | S51: NS/10-K | T51: 179904 | U51: NS | V51: 678744 | W51: NS | X51: 0 | Y51: NS | Z51: 0 | AA51: 0 | AB51: 179904 | AC51: 0 | AD51: 678744 | AE51: 0 | AF51: 858648 | AG51: 0 | AH51: 0 | AI51: 3679 | AJ51: =VLOOKUP(AI51,'Appendix1_SIC-NAICS Lists'!$A$2:$B$449,2,FALSE) -> (3679) ELECTRONIC COMPONENTS, NEC | AK51: =VLOOKUP(AI51,'Appendix1_SIC-NAICS Lists'!$A$2:$C$449,3,FALSE) -> Yes | AL51: S-1 for Ideal Power Inc. | AM51: 10-K for Ideal Power Inc.
A52: TetraLogic Pharmaceuticals Corporation | B52: Included | C52: Yes | D52: Pete A. Meyers | E52: CFO and Treasurer | F52: Malvern, Pennsylvania, United States | G52: 2013-12-11 | H52: 147818328 | I52: 0 | J52: 7150000 | K52: 7 | L52: 50050000 | M52: 0 | N52: 5 | O52: NS | P52: NS | Q52: 338904 | R52: 0 | S52: NS/10-K | T52: 338904 | U52: NS | V52: 6180561.5 | W52: NS | X52: 0 | Y52: NS | Z52: 192 | AA52: 0 | AB52: 339096 | AC52: 0 | AD52: 6180561.5 | AE52: 0 | AF52: 6519657.5 | AG52: NS | AH52: NS | AI52: 2834 | AJ52: =VLOOKUP(AI52,'Appendix1_SIC-NAICS Lists'!$A$2:$B$449,2,FALSE) -> (2834) PHARMACEUTICAL PREPARATIONS | AK52: =VLOOKUP(AI52,'Appendix1_SIC-NAICS Lists'!$A$2:$C$449,3,FALSE) -> Yes | AL52: S-1 for TetraLogic Pharmaceuticals Corporation | AM52: 10-K for TetraLogic Pharmaceuticals Corporation
A53: Hilton Worldwide Holdings Inc. | B53: Included | C53: Yes | D53: Kevin J. Jacobs | E53: Executive VP and CFO | F53: McLean, Virginia, United States | G53: 2013-12-11 | H53: 19692307280 | I53: 9430000000 | J53: 117640624 | K53: 20 | L53: 2352812480 | M53: 0 | N53: 4 | O53: NS | P53: NS | Q53: 1500000 | R53: 1800000 | S53: NS/10-K | T53: 3300000 | U53: NS | V53: 0 | W53: NS | X53: 0 | Y53: NS | Z53: 32472 | AA53: 0 | AB53: 3332472 | AC53: 0 | AD53: 0 | AE53: 0 | AF53: 3332472 | AG53: * | AH53: * | AI53: 7011 | AJ53: =VLOOKUP(AI53,'Appendix1_SIC-NAICS Lists'!$A$2:$B$449,2,FALSE) -> (7011) HOTELS & MOTELS | AK53: =VLOOKUP(AI53,'Appendix1_SIC-NAICS Lists'!$A$2:$C$449,3,FALSE) -> No | AL53: S-1 for Hilton Worldwide Holdings Inc. | AM53: 10-K for Hilton Worldwide Holdings Inc.

Sheet Officer Compensation - Master
A1: Connor Group, Inc.
B4: Last Batch Pulled | C4: 2015-03-05 | AI4: 6770
A6: Chief Officer Compensation Analysis
F7: =VLOOKUP(A7,'All IPO data'!$A$1:$W$703,3,FALSE) ->  | G7: =VLOOKUP(A7,'All IPO data'!$A$1:$W$703,4,FALSE) ->  | H7: =VLOOKUP(A7,'All IPO data'!$A$1:$W$703,12,FALSE) ->  | I7: =VLOOKUP(A7,'All IPO data'!$A$1:$W$703,13,FALSE) ->  | J7: =VLOOKUP(A7,'All IPO data'!$A$1:$W$703,9,FALSE) ->  | K7: =VLOOKUP('Officer Compensation - Master'!A7,'All IPO data'!$A$1:$W$703,8,FALSE) ->  | L7: =J7*K7 ->  | O7: NS - Not specified or not applicable | Q7: 10-K - information not provided until 10-K is released | S7: =IFERROR(O7+P7,"NS/10-K") -> NS/10-K | T7: =IFERROR(Q7+R7,"NS/10-K") -> NS/10-K | AA7: =SUM(S7,Y7) -> 0 | AB7: =SUM(T7,Z7) -> 0 | AC7: =SUM(U7,W7) -> 0 | AD7: =SUM(V7,X7) -> 0 | AE7: =SUM(AA7,AC7) -> 0 | AF7: =SUM(AB7,AD7) -> 0 | AG7: * Less than 1% | AI7: 6022 | AJ7: =VLOOKUP(AI7,'Appendix1_SIC-NAICS Lists'!$A$2:$B$449,2,FALSE) -> (6022) STATE COMMERCIAL BANKS | AK7: =VLOOKUP(AI7,'Appendix1_SIC-NAICS Lists'!$A$2:$C$449,3,FALSE) -> No | AL7: =HYPERLINK(AN7,"S-1 for "&A7) -> S-1 for | AM7: =HYPERLINK(AO7,"10-K for "&A7) -> 10-K for | AR7: pre ipo | AS7: pre ipo | AT7: pre ipo | AU7: pre ipo | AV7: pre ipo | AW7: post ipo | AX7: post ipo | AY7: post ipo | AZ7: post ipo | BA7: post ipo
A8: Company Name | B8: Excluded? | C8: 10-K Released/ Reviewed? | D8: Name | E8: Title | F8: City/State | G8: Offer Date | H8: Market Cap | I8: Revenue | J8: Shares | K8: $ Raised per Share | L8: $ Raised | M8: Months in Role Yr Prior to IPO | N8: Months in Role Yr of IPO | O8: Salary Yr Prior to IPO | P8: Bonus Yr Prior to IPO | Q8: Salary Yr of IPO | R8: Bonus Yr of IPO | S8: Salary + Bonus Yr Prior to IPO | T8: Salary + Bonus Yr of IPO | U8: Option Awards Yr Prior to IPO | V8: Option Awards Yr of IPO | W8: Stock Awards Yr Prior to IPO | X8: Stock Awards Yr of IPO | Y8: All Other Compensation Yr Prior to IPO | Z8: All Other Compensation Yr of IPO | AA8: Total Salary + Bonus + Other Yr Prior to IPO | AB8: Total Salary + Bonus + Other Yr of IPO | AC8: Total Share-Based Payments Yr Prior to IPO | AD8: Total Share-Based Payments Yr of IPO | AE8: Total Compensation Yr Prior to IPO | AF8: Total Compensation Yr of IPO | AG8: % Ownership Pre-IPO | AH8: % Ownership Post-IPO | AI8: SIC Code/Description | AJ8: SIC Description | AK8: Tech/Biotech? | AL8: Hyperlink to S-1 | AM8: Hyperlink to 10-K for Following Year or Definitive Proxy Statement with Info on Compensation | AN8: URL to S-1 | AO8: URL to 10-K for Following Year or Definitive Proxy Statement with Info on Compensation | AR8: Actual Salary | AS8: Actual bonus | AT8: Actual options | AU8: actual stock | AV8: actual other comp | AW8: Actual Salary | AX8: Actual bonus | AY8: Actual options | AZ8: actual stock | BA8: actual other comp
A9: Renewable Energy Group, Inc. | B9: Included | C9: Yes | D9: Chad Stone | E9: CFO | F9: Ames, Iowa, United States | G9: 2012-01-18 | H9: 286509430 | I9: 626756000 | J9: 7200000 | K9: 10 | L9: 72000000 | M9: 12 | N9: 12 | O9: 185811 | P9: 177286 | Q9: =222897 -> 222897 | R9: 84385 | S9: =IFERROR(O9+P9,"NS/10-K") -> 363097 | T9: =IFERROR(Q9+R9,"NS/10-K") -> 307282 | U9: 0 | V9: 355008 | W9: 0 | X9: 222240 | Y9: 11320 | Z9: 20271 | AA9: =SUM(S9,Y9) -> 374417 | AB9: =SUM(T9,Z9) -> 327553 | AC9: =SUM(U9,W9) -> 0 | AD9: =SUM(V9,X9) -> 577248 | AE9: =SUM(AA9,AC9) -> 374417 | AF9: =SUM(AB9,AD9) -> 904801 | AG9: * | AH9: * | AI9: 2860 | AJ9: =VLOOKUP(AI9,'Appendix1_SIC-NAICS Lists'!$A$2:$B$449,2,FALSE) -> (2860) INDUSTRIAL ORGANIC CHEMICALS | AK9: =VLOOKUP(AI9,'Appendix1_SIC-NAICS Lists'!$A$2:$C$449,3,FALSE) -> No | AL9: =HYPERLINK(AN9,"S-1 for "&A9) -> S-1 for Renewable Energy Group, Inc. | AM9: =HYPERLINK(AO9,"10-K for "&A9) -> 10-K for Renewable Energy Group, Inc. | AN9: http://www.sec.gov/Archives/edgar/data/1463258/000119312512000732/0001193125-12-000732-index.htm | AO9: http://www.sec.gov/Archives/edgar/data/1463258/000119312513142158/0001193125-13-142158-index.htm
A10: Guidewire Software, Inc. | B10: Included | C10: Yes | D10: Karen Blasing | E10: CFO and Treasurer | F10: San Mateo, California, United States | G10: 2012-01-24 | H10: 635608363 | I10: 190182000 | J10: 8850000 | K10: 13 | L10: 115050000 | M10: 12 | N10: 12 | O10: =250000 -> 250000 | P10: 98600 | Q10: =250000 -> 250000 | R10: 113050 | S10: 348600 | T10: 363050 | U10: 86597 | V10: 0 | W10: 187500 | X10: 0 | Y10: 1166 | Z10: 2595 | AA10: 349766 | AB10: 365645 | AC10: 274097 | AD10: 0 | AE10: 623863 | AF10: 365645 | AG10: 0.0121 | AH10: 0.0103 | AI10: 7372 | AJ10: =VLOOKUP(AI10,'Appendix1_SIC-NAICS Lists'!$A$2:$B$449,2,FALSE) -> (7372) SERVICES-PREPACKAGED SOFTWARE | AK10: =VLOOKUP(AI10,'Appendix1_SIC-NAICS Lists'!$A$2:$C$449,3,FALSE) -> Yes | AL10: S-1 for Guidewire Software, Inc. | AM10: 10-K for Guidewire Software, Inc. | AN10: http://www.sec.gov/Archives/edgar/data/1528396/000119312512006627/0001193125-12-006627-index.htm | AO10: http://www.sec.gov/Archives/edgar/data/1528396/000119312512440120/0001193125-12-440120-index.htm
A11: Verastem, Inc. | B11: Included | C11: Yes | D11: Robert Forrester | E11: Chief Operating Officer (Principal Financial and Accounting Officer) | F11: Cambridge, Massachusetts, United States | G11: 2012-01-26 | H11: 202341160 | I11: 0 | J11: 5500000 | K11: 10 | L11: 55000000 | M11: 10 | N11: 12 | O11: 303330 | P11: 187200 | Q11: =364446 -> 364446 | R11: 190000 | S11: 490530 | T11: 554446 | U11: 0 | V11: 0 | W11: 51609.60156 | X11: 1571427 | Y11: 10154.88086 | Z11: 14090 | AA11: 500684.8809 | AB11: 568536 | AC11: 51609.60156 | AD11: 1571427 | AE11: 552294.4824 | AF11: 2139963 | AG11: * | AH11: * | AI11: 2834 | AJ11: =VLOOKUP(AI11,'Appendix1_SIC-NAICS Lists'!$A$2:$B$449,2,FALSE) -> (2834) PHARMACEUTICAL PREPARATIONS | AK11: =VLOOKUP(AI11,'Appendix1_SIC-NAICS Lists'!$A$2:$C$449,3,FALSE) -> Yes | AL11: S-1 for Verastem, Inc. | AM11: 10-K for Verastem, Inc. | AN11: http://www.sec.gov/Archives/edgar/data/1526119/000104746912000187/0001047469-12-000187-index.htm | AO11: http://www.sec.gov/Archives/edgar/data/1526119/000104746913004811/0001047469-13-004811-index.htm | AR11: 252775 | AS11: 156000 | AT11: 0 | AU11: 43008 | AV11: 8462.400391
A12: U.S. Silica Holdings, Inc. | B12: Not employed as CFO for the full two years | C12: Yes | D12: William A. White | E12: CFO and VP of Finance | F12: Frederick, Maryland, United States | G12: 2012-01-31 | H12: 899999992 | I12: 271436000 | J12: 11764705 | K12: 17 | L12: 199999985 | M12: 12 | N12: NS | O12: 221679 | P12: 140000 | Q12: NS | R12: NS | S12: 361679 | T12: NS/10-K | U12: 0 | V12: NS | W12: 0 | X12: NS | Y12: 38002 | Z12: NS | AA12: 399681 | AB12: 0 | AC12: 0 | AD12: 0 | AE12: 399681 | AF12: 0 | AG12: 0.01 | AH12: * | AI12: 1446 | AJ12: =VLOOKUP(AI12,'Appendix1_SIC-NAICS Lists'!$A$2:$B$449,2,FALSE) -> (1446) INDUSTRIAL SAND | AK12: =VLOOKUP(AI12,'Appendix1_SIC-NAICS Lists'!$A$2:$C$449,3,FALSE) -> No | AL12: S-1 for U.S. Silica Holdings, Inc. | AM12: 10-K for U.S. Silica Holdings, Inc. | AN12: http://www.sec.gov/Archives/edgar/data/1524741/000119312512012782/0001193125-12-012782-index.htm | AO12: http://www.sec.gov/Archives/edgar/data/1524741/000119312513076838/0001193125-13-076838-index.htm
A13: AVG Technologies N.V. | B13: F-1 | C13: No | D13: John Little | E13: CFO and Managing Director | F13: Amsterdam, The Netherlands | G13: 2012-02-01 | H13: 870121456 | I13: 255521000 | J13: 8000000 | K13: 16 | L13: 128000000 | M13: 12 | N13: 10-K | O13: NS | P13: NS | Q13: 10-K | R13: 10-K | S13: NS/10-K | T13: NS/10-K | U13: NS | V13: 10-K | W13: NS | X13: 10-K | Y13: NS | Z13: 10-K | AA13: 0 | AB13: 0 | AC13: 0 | AD13: 0 | AE13: 0 | AF13: 0 | AG13: 0 | AH13: * | AI13: 7372 | AJ13: =VLOOKUP(AI13,'Appendix1_SIC-NAICS Lists'!$A$2:$B$449,2,FALSE) -> (7372) SERVICES-PREPACKAGED SOFTWARE | AK13: =VLOOKUP(AI13,'Appendix1_SIC-NAICS Lists'!$A$2:$C$449,3,FALSE) -> Yes | AL13: S-1 for AVG Technologies N.V. | AM13: 10-K for AVG Technologies N.V. | AN13: http://www.sec.gov/Archives/edgar/data/1528903/000119312512025752/0001193125-12-025752-index.htm | AO13: 10-K
A14: Greenway Medical Technologies, Inc. | B14: Included | C14: Yes | D14: James A. Cochran | E14: CFO | F14: Carrollton, Georgia, United States | G14: 2012-02-01 | H14: 278465840 | I14: 98982000 | J14: 6666667 | K14: 10 | L14: 66666670 | M14: 12 | N14: 12 | O14: =247676 -> 247676 | P14: 172587 | Q14: =248000 -> 248000 | R14: 154597 | S14: 420263 | T14: 402597 | U14: 0 | V14: 440320 | W14: 0 | X14: 0 | Y14: 0 | Z14: 0 | AA14: 420263 | AB14: 402597 | AC14: 0 | AD14: 440320 | AE14: 420263 | AF14: 842917 | AG14: * | AH14: * | AI14: 7373 | AJ14: =VLOOKUP(AI14,'Appendix1_SIC-NAICS Lists'!$A$2:$B$449,2,FALSE) -> (7373) SERVICES-COMPUTER INTEGRATED SYSTEMS DESIGN | AK14: =VLOOKUP(AI14,'Appendix1_SIC-NAICS Lists'!$A$2:$C$449,3,FALSE) -> Yes | AL14: S-1 for Greenway Medical Technologies, Inc. | AM14: 10-K for Greenway Medical Technologies, Inc. | AN14: http://www.sec.gov/Archives/edgar/data/1080747/000118811212000176/0001188112-12-000176-index.htm | AO14: http://www.sec.gov/Archives/edgar/data/1080747/000118811212002957/0001188112-12-002957-index.htm
A15: Matador Resources Company | B15: Included | C15: Yes | D15: David E. Lancaster | E15: EVP, COO, and CFO | F15: Dallas, Texas, United States | G15: 2012-02-01 | H15: 656638320 | I15: 66277000 | J15: 13333334 | K15: 12 | L15: 160000008 | M15: 12 | N15: 12 | O15: =248333 -> 248333 | P15: 390000 | Q15: =340000 -> 340000 | R15: 200000 | S15: 638333 | T15: 540000 | U15: 0 | V15: 241400 | W15: 0 | X15: 252131 | Y15: 17150 | Z15: 17500 | AA15: 655483 | AB15: 557500 | AC15: 0 | AD15: 493531 | AE15: 655483 | AF15: 1051031 | AG15: * | AH15: * | AI15: 1311 | AJ15: =VLOOKUP(AI15,'Appendix1_SIC-NAICS Lists'!$A$2:$B$449,2,FALSE) -> (1311) CRUDE PETROLEUM & NATURAL GAS | AK15: =VLOOKUP(AI15,'Appendix1_SIC-NAICS Lists'!$A$2:$C$449,3,FALSE) -> No | AL15: S-1 for Matador Resources Company | AM15: 10-K for Matador Resources Company | AN15: http://www.sec.gov/Archives/edgar/data/1520006/000119312512027282/0001193125-12-027282-index.htm | AO15: http://www.sec.gov/Archives/edgar/data/1520006/000119312513170584/0001193125-13-170584-index.htm
A16: Cempra Holdings, LLC | B16: Included | C16: Yes | D16: Mark W. Hahn | E16: EVP and CFO | F16: Chapel Hill, North Carolina, United States | G16: 2012-02-03 | H16: 118613772 | I16: 0 | J16: 8400000 | K16: 6 | L16: 50400000 | M16: 12 | N16: 12 | O16: =203333 -> 203333 | P16: 47569 | Q16: =250027 -> 250027 | R16: 51568 | S16: 250902 | T16: 301595 | U16: 0 | V16: 190500 | W16: 0 | X16: 0 | Y16: 22152 | Z16: 24278 | AA16: 273054 | AB16: 325873 | AC16: 0 | AD16: 190500 | AE16: 273054 | AF16: 516373 | AG16: NS | AH16: NS | AI16: 2834 | AJ16: =VLOOKUP(AI16,'Appendix1_SIC-NAICS Lists'!$A$2:$B$449,2,FALSE) -> (2834) PHARMACEUTICAL PREPARATIONS | AK16: =VLOOKUP(AI16,'Appendix1_SIC-NAICS Lists'!$A$2:$C$449,3,FALSE) -> Yes | AL16: S-1 for Cempra Holdings, LLC | AM16: 10-K for Cempra Holdings, LLC | AN16: http://www.sec.gov/Archives/edgar/data/1461993/000119312512028248/0001193125-12-028248-index.htm | AO16: http://www.sec.gov/Archives/edgar/data/1461993/000119312513096011/0001193125-13-096011-index.htm
A17: Taylor Morrison Home Corporation | B17: Included | C17: Yes | D17: C. David Cone | E17: VP and CFO | F17: Scottsdale, Arizona, United States | G17: 2013-04-09 | H17: 2690797208 | I17: 1435721000 | J17: 28572000 | K17: 22 | L17: 628584000 | M17: 3 | N17: 12 | O17: 338460 | P17: 389800 | Q17: 400000 | R17: 539969 | S17: =IFERROR(O17+P17,"NS/10-K") -> 728260 | T17: =IFERROR(Q17+R17,"NS/10-K") -> 939969 | U17: 0 | V17: 2023000 | W17: 5328572 | X17: 261104 | Y17: 10680 | Z17: 18734 | AA17: =SUM(S17,Y17) -> 738940 | AB17: =SUM(T17,Z17) -> 958703 | AC17: =SUM(U17,W17) -> 5328572 | AD17: =SUM(V17,X17) -> 2284104 | AE17: =SUM(AA17,AC17) -> 6067512 | AF17: =SUM(AB17,AD17) -> 3242807 | AG17: * | AH17: * | AI17: 1531 | AJ17: =VLOOKUP(AI17,'Appendix1_SIC-NAICS Lists'!$A$2:$B$449,2,FALSE) -> (1531) OPERATIVE BUILDERS | AK17: =VLOOKUP(AI17,'Appendix1_SIC-NAICS Lists'!$A$2:$C$449,3,FALSE) -> No | AL17: =HYPERLINK(AN17,"S-1 for "&A17) -> S-1 for Taylor Morrison Home Corporation | AM17: =HYPERLINK(AO17,"10-K for "&A17) -> 10-K for Taylor Morrison Home Corporation | AN17: http://www.sec.gov/Archives/edgar/data/1562476/000119312513145609/0001193125-13-145609-index.htm | AO17: http://www.sec.gov/Archives/edgar/data/1562476/000119312514142548/0001193125-14-142548-index.htm | AR17: 84615 | AS17: 97450 | AT17: 0 | AU17: 1332143 | AV17: 2670
A18: Chimerix, Inc. | B18: CFO not included in summary compensation table | C18: Yes | D18: Timothy W. Trost | E18: Senior Vice President, CFO, and Corporate Secretary | F18: Durham, North Carolina, United States | G18: 2013-04-10 | H18: 341741190 | I18: 33720000 | J18: 7320000 | K18: 14 | L18: 102480000 | M18: 12 | N18: 12 | O18: =275000 -> 275000 | P18: 34375 | Q18: NS | R18: NS | S18: 309375 | T18: NS/10-K | U18: 0 | V18: NS | W18: 0 | X18: NS | Y18: 1318 | Z18: NS | AA18: 310693 | AB18: 0 | AC18: 0 | AD18: 0 | AE18: 310693 | AF18: 0 | AG18: 0.01 | AH18: * | AI18: 2834 | AJ18: =VLOOKUP(AI18,'Appendix1_SIC-NAICS Lists'!$A$2:$B$449,2,FALSE) -> (2834) PHARMACEUTICAL PREPARATIONS | AK18: =VLOOKUP(AI18,'Appendix1_SIC-NAICS Lists'!$A$2:$C$449,3,FALSE) -> Yes | AL18: S-1 for Chimerix, Inc. | AM18: 10-K for Chimerix, Inc. | AN18: http://www.sec.gov/Archives/edgar/data/1117480/000114420413018850/0001144204-13-018850-index.htm | AO18: http://www.sec.gov/Archives/edgar/data/1117480/000114420414025749/0001144204-14-025749-index.htm
A19: EVERTEC, Inc. | B19: Included | C19: Yes | D19: Juan J. Román | E19: Executive VP and CFO | F19: San Juan, Puerto Rico | G19: 2013-04-11 | H19: 1581922880 | I19: 341684000 | J19: 25263159 | K19: 20 | L19: 505263180 | M19: 12 | N19: 12 | O19: =375000 -> 375000 | P19: =15625+262500 -> 278125 | Q19: 375000 | R19: 15625 | S19: 653125 | T19: 390625 | U19: 0 | V19: 0 | W19: 0 | X19: 0 | Y19: 35997 | Z19: 217292 | AA19: 689122 | AB19: 607917 | AC19: 0 | AD19: 0 | AE19: 689122 | AF19: 607917 | AG19: * | AH19: * | AI19: 7374 | AJ19: =VLOOKUP(AI19,'Appendix1_SIC-NAICS Lists'!$A$2:$B$449,2,FALSE) -> (7374) SERVICES-COMPUTER PROCESSING & DATA PREPARATION | AK19: =VLOOKUP(AI19,'Appendix1_SIC-NAICS Lists'!$A$2:$C$449,3,FALSE) -> Yes | AL19: S-1 for EVERTEC, Inc. | AM19: 10-K for EVERTEC, Inc. | AN19: http://www.sec.gov/Archives/edgar/data/1559865/000119312513137643/0001193125-13-137643-index.htm | AO19: http://www.sec.gov/Archives/edgar/data/1559865/000119312514137791/0001193125-14-137791-index.htm
A20: Omthera Pharmaceuticals, Inc. | B20: Delisted | C20: No | D20: Christian S. Schade | E20: Executive VP and CFO | F20: Princeton, New Jersey, United States | G20: 2013-04-11 | H20: 195318944 | I20: 0 | J20: 8000000 | K20: 8 | L20: 64000000 | M20: 12 | N20: 10-K | O20: 300000 | P20: 0 | Q20: 10-K | R20: 10-K | S20: 300000 | T20: NS/10-K | U20: 0 | V20: 10-K | W20: 0 | X20: 10-K | Y20: 10000 | Z20: 10-K | AA20: 310000 | AB20: 0 | AC20: 0 | AD20: 0 | AE20: 310000 | AF20: 0 | AG20: 0.011 | AH20: * | AI20: 2834 | AJ20: =VLOOKUP(AI20,'Appendix1_SIC-NAICS Lists'!$A$2:$B$449,2,FALSE) -> (2834) PHARMACEUTICAL PREPARATIONS | AK20: =VLOOKUP(AI20,'Appendix1_SIC-NAICS Lists'!$A$2:$C$449,3,FALSE) -> Yes | AL20: S-1 for Omthera Pharmaceuticals, Inc. | AM20: 10-K for Omthera Pharmaceuticals, Inc. | AN20: http://www.sec.gov/Archives/edgar/data/1477598/000104746913004162/0001047469-13-004162-index.htm | AO20: 10-K
A21: Rally Software Development Corp. | B21: Included | C21: Yes | D21: James M. Lejeal | E21: CFO and Treasurer | F21: Boulder, Colorado, United States | G21: 2013-04-11 | H21: 318420606 | I21: 56846000 | J21: 6000000 | K21: 14 | L21: 84000000 | M21: 12 | N21: 12 | O21: =257500 -> 257500 | P21: 40000 | Q21: 295000 | R21: 126027 | S21: 297500 | T21: 421027 | U21: 0 | V21: 218290 | W21: 0 | X21: 397120 | Y21: 540 | Z21: 420 | AA21: 298040 | AB21: 421447 | AC21: 0 | AD21: 615410 | AE21: 298040 | AF21: 1036857 | AG21: 0.011 | AH21: * | AI21: 7372 | AJ21: =VLOOKUP(AI21,'Appendix1_SIC-NAICS Lists'!$A$2:$B$449,2,FALSE) -> (7372) SERVICES-PREPACKAGED SOFTWARE | AK21: =VLOOKUP(AI21,'Appendix1_SIC-NAICS Lists'!$A$2:$C$449,3,FALSE) -> Yes | AL21: S-1 for Rally Software Development Corp. | AM21: 10-K for Rally Software Development Corp. | AN21: http://www.sec.gov/Archives/edgar/data/1313911/000104746913003764/0001047469-13-003764-index.htm | AO21: http://www.sec.gov/Archives/edgar/data/1313911/000104746914004794/0001047469-14-004794-index.htm
A22: Fairway Group Holdings Corp. | B22: Included | C22: Yes | D22: Edward C. Arditte | E22: CFO | F22: New York, New York, United States | G22: 2013-04-16 | H22: 536670264 | I22: 632870000 | J22: 13650000 | K22: 13 | L22: 177450000 | M22: 4 | N22: 12 | O22: 361782 | P22: 300000 | Q22: 350000 | R22: 100000 | S22: 661782 | T22: 450000 | U22: 0 | V22: 563564 | W22: 0 | X22: 2565412 | Y22: 241497 | Z22: 100988 | AA22: 903279 | AB22: 550988 | AC22: 0 | AD22: 3128976 | AE22: 903279 | AF22: 3679964 | AG22: NS | AH22: * | AI22: 5411 | AJ22: =VLOOKUP(AI22,'Appendix1_SIC-NAICS Lists'!$A$2:$B$449,2,FALSE) -> (5411) RETAIL-GROCERY STORES | AK22: =VLOOKUP(AI22,'Appendix1_SIC-NAICS Lists'!$A$2:$C$449,3,FALSE) -> No | AL22: S-1 for Fairway Group Holdings Corp. | AM22: 10-K for Fairway Group Holdings Corp. | AN22: http://www.sec.gov/Archives/edgar/data/1555492/000104746913004387/0001047469-13-004387-index.htm | AO22: http://www.sec.gov/Archives/edgar/data/1555492/000104746914005891/0001047469-14-005891-index.htm | AR22: 120594 | AS22: 100000 | AT22: 0 | AU22: 0 | AV22: 80499
A23: Hannon Armstrong Sustainable Infrastructure | B23: S-11 | C23: Yes | D23: J. Brendan Herron | E23: Executive VP and CFO | F23: Annapolis, Maryland, United States | G23: 2013-04-17 | H23: 189092150 | I23: 1954000 | J23: 13333333 | K23: 12.5 | L23: 166666663 | M23: 12 | N23: 12 | O23: 295000 | P23: 0 | Q23: 276250 | R23: 25000 | S23: 295000 | T23: 301250 | U23: 0 | V23: 0 | W23: 874290 | X23: 728575 | Y23: 0 | Z23: 10200 | AA23: 295000 | AB23: 311450 | AC23: 874290 | AD23: 728575 | AE23: 1169290 | AF23: 1040025 | AG23: 0.081 | AH23: 0.014 | AI23: 6798 | AJ23: =VLOOKUP(AI23,'Appendix1_SIC-NAICS Lists'!$A$2:$B$449,2,FALSE) -> (6798) REAL ESTATE INVESTMENT TRUSTS | AK23: =VLOOKUP(AI23,'Appendix1_SIC-NAICS Lists'!$A$2:$C$449,3,FALSE) -> No | AL23: S-1 for Hannon Armstrong Sustainable Infrastructure | AM23: 10-K for Hannon Armstrong Sustainable Infrastructure | AN23: http://www.sec.gov/Archives/edgar/data/1561894/000119312513153870/0001193125-13-153870-index.htm | AO23: http://www.sec.gov/Archives/edgar/data/1561894/000119312514140703/0001193125-14-140703-index.htm
A24: Intelsat Global Holdings S.A. | B24: F-1 | C24: No | D24: Michael McDonnell | E24: Executive VP and CFO | F24: Luxembourg | G24: 2013-04-17 | H24: 1897407486 | I24: 2610152000 | J24: 19323672 | K24: 18 | L24: 347826096 | M24: 12 | N24: 10-K | O24: NS | P24: NS | Q24: 10-K | R24: 10-K | S24: NS/10-K | T24: NS/10-K | U24: NS | V24: 10-K | W24: NS | X24: 10-K | Y24: NS | Z24: 10-K | AA24: 0 | AB24: 0 | AC24: 0 | AD24: 0 | AE24: 0 | AF24: 0 | AG24: * | AH24: * | AI24: 4899 | AJ24: =VLOOKUP(AI24,'Appendix1_SIC-NAICS Lists'!$A$2:$B$449,2,FALSE) -> (4899) COMMUNICATIONS SERVICES, NEC | AK24: =VLOOKUP(AI24,'Appendix1_SIC-NAICS Lists'!$A$2:$C$449,3,FALSE) -> Yes | AL24: S-1 for Intelsat Global Holdings S.A. | AM24: 10-K for Intelsat Global Holdings S.A. | AN24: http://www.sec.gov/Archives/edgar/data/1525773/000119312513147847/0001193125-13-147847-index.htm | AO24: 10-K
A25: Taminco Corporation | B25: Included | C25: Yes | D25: Kurt Decat | E25: CFO | F25: Allentown, Pennsylvania, United States | G25: 2013-04-17 | H25: 978426570 | I25: 972000000 | J25: 15789474 | K25: 15 | L25: 236842110 | M25: 12 | N25: 12 | O25: 285870 | P25: 110302 | Q25: 326152 | R25: 149597 | S25: 396172 | T25: 475749 | U25: 1160276 | V25: 0 | W25: 0 | X25: 0 | Y25: =67631+43343 -> 110974 | Z25: =71616+73343 -> 144959 | AA25: 507146 | AB25: 620708 | AC25: 1160276 | AD25: 0 | AE25: 1667422 | AF25: 620708 | AG25: * | AH25: * | AI25: 2860 | AJ25: =VLOOKUP(AI25,'Appendix1_SIC-NAICS Lists'!$A$2:$B$449,2,FALSE) -> (2860) INDUSTRIAL ORGANIC CHEMICALS | AK25: =VLOOKUP(AI25,'Appendix1_SIC-NAICS Lists'!$A$2:$C$449,3,FALSE) -> No | AL25: S-1 for Taminco Corporation | AM25: 10-K for Taminco Corporation | AN25: http://www.sec.gov/Archives/edgar/data/1547063/000119312513154073/0001193125-13-154073-index.htm | AO25: http://www.sec.gov/Archives/edgar/data/1547063/000144530514001410/0001445305-14-001410-index.htm
A26: Blackhawk Network Holdings, Inc. | B26: Included | C26: Yes | D26: Jerry Ulrich | E26: CFO and Chief Administrative Officer | F26: Pleasanton, California, United States | G26: 2013-04-18 | H26: 1194531105 | I26: 959069000 | J26: 10000000 | K26: 23 | L26: 230000000 | M26: 12 | N26: 12 | O26: =346514 -> 346514 | P26: 290000 | Q26: 366683 | R26: 278993 | S26: 636514 | T26: 645676 | U26: 344896 | V26: 453816 | W26: 0 | X26: 0 | Y26: 16833 | Z26: =5907+13526 -> 19433 | AA26: 653347 | AB26: 665109 | AC26: 344896 | AD26: 453816 | AE26: 998243 | AF26: 1118925 | AG26: * | AH26: * | AI26: 6199 | AJ26: =VLOOKUP(AI26,'Appendix1_SIC-NAICS Lists'!$A$2:$B$449,2,FALSE) -> (6199) FINANCE SERVICES | AK26: =VLOOKUP(AI26,'Appendix1_SIC-NAICS Lists'!$A$2:$C$449,3,FALSE) -> No | AL26: S-1 for Blackhawk Network Holdings, Inc. | AM26: 10-K for Blackhawk Network Holdings, Inc. | AN26: http://www.sec.gov/Archives/edgar/data/1411488/000119312513153849/0001193125-13-153849-index.htm | AO26: http://www.sec.gov/Archives/edgar/data/1411488/000119312514138766/0001193125-14-138766-index.htm
A27: SeaWorld Entertainment, Inc. | B27: Included | C27: Yes | D27: James M. Heaney | E27: CFO | F27: Orlando, Florida, United States | G27: 2013-04-18 | H27: 2503899216 | I27: 1423752000 | J27: 26000000 | K27: 27 | L27: 702000000 | M27: =11+(12/31) -> 11.38709677 | N27: 12 | O27: 308811.2812 | P27: 276688.375 | Q27: 342000 | R27: =21011+276379 -> 297390 | S27: 585499.6562 | T27: 639390 | U27: 0 | V27: 0 | W27: 255545.4531 | X27: 338699 | Y27: 9248.727539 | Z27: 10059 | AA27: 594748.3838 | AB27: 649449 | AC27: 255545.4531 | AD27: 338699 | AE27: 850293.8369 | AF27: 988148 | AG27: 0 | AH27: * | AI27: 7990 | AJ27: =VLOOKUP(AI27,'Appendix1_SIC-NAICS Lists'!$A$2:$B$449,2,FALSE) -> (7990) SERVICES-MISCELLANEOUS AMUSEMENT & RECREATION | AK27: =VLOOKUP(AI27,'Appendix1_SIC-NAICS Lists'!$A$2:$C$449,3,FALSE) -> No | AL27: S-1 for SeaWorld Entertainment, Inc. | AM27: 10-K for SeaWorld Entertainment, Inc. | AN27: http://www.sec.gov/Archives/edgar/data/1564902/000119312513159967/0001193125-13-159967-index.htm | AO27: http://www.sec.gov/Archives/edgar/data/1564902/000119312514109073/0001193125-14-109073-index.htm | AR27: 283077 | AS27: 253631 | AT27: 0 | AU27: 234250 | AV27: 8478
A28: Ellington Residential Mortgage REIT | B28: S-11; not compensated by company | C28: Yes | D28: Lisa Mumford | E28: Chief Financial Officer and Treasurer | F28: Old Greenwich, Connecticut, United States | G28: 2013-05-01 | H28: 182667560 | I28: 238606 | J28: 6450000 | K28: 20 | L28: 129000000 | M28: 0 | N28: 9 | O28: NS | P28: NS | Q28: NS | R28: NS | S28: NS/10-K | T28: NS/10-K | U28: NS | V28: NS | W28: NS | X28: NS | Y28: NS | Z28: NS | AA28: 0 | AB28: 0 | AC28: 0 | AD28: 0 | AE28: 0 | AF28: 0 | AG28: 0 | AH28: 0 | AI28: 6798 | AJ28: =VLOOKUP(AI28,'Appendix1_SIC-NAICS Lists'!$A$2:$B$449,2,FALSE) -> (6798) REAL ESTATE INVESTMENT TRUSTS | AK28: =VLOOKUP(AI28,'Appendix1_SIC-NAICS Lists'!$A$2:$C$449,3,FALSE) -> No | AL28: S-1 for Ellington Residential Mortgage REIT | AM28: 10-K for Ellington Residential Mortgage REIT | AN28: http://www.sec.gov/Archives/edgar/data/1560672/000119312513189506/0001193125-13-189506-index.htm | AO28: http://www.sec.gov/Archives/edgar/data/1560672/000156067214000015/0001560672-14-000015-index.htm
A29: GW Pharmaceuticals plc | B29: F-1; not in U.S. dollars | C29: No | D29: Adam George | E29: CFO | F29: Salisbury, England, United Kingdom | G29: 2013-05-01 | H29: 130066346 | I29: 53428000 | J29: 3500000 | K29: 8.9 | L29: 31150000 | M29: =6+30/30 -> 7 | N29: 10-K | O29: NS | P29: NS | Q29: 10-K | R29: 10-K | S29: NS/10-K | T29: NS/10-K | U29: NS | V29: 10-K | W29: NS | X29: 10-K | Y29: NS | Z29: 10-K | AA29: 0 | AB29: 0 | AC29: 0 | AD29: 0 | AE29: 0 | AF29: 0 | AG29: * | AH29: * | AI29: 2834 | AJ29: =VLOOKUP(AI29,'Appendix1_SIC-NAICS Lists'!$A$2:$B$449,2,FALSE) -> (2834) PHARMACEUTICAL PREPARATIONS | AK29: =VLOOKUP(AI29,'Appendix1_SIC-NAICS Lists'!$A$2:$C$449,3,FALSE) -> Yes | AL29: S-1 for GW Pharmaceuticals plc | AM29: 10-K for GW Pharmaceuticals plc | AN29: http://www.sec.gov/Archives/edgar/data/1351288/000104746913004510/0001047469-13-004510-index.htm | AO29: 10-K
A30: ING U.S., Inc. | B30: Included | C30: Yes | D30: Ewout L. Steenbergen | E30: Director and CFO | F30: New York, New York, United States | G30: 2013-05-01 | H30: 5084999985 | I30: 9615300000 | J30: 65192307 | K30: 19.5 | L30: 1271249987 | M30: 12 | N30: 12 | O30: =498861 -> 498861 | P30: =281032 -> 281032 | Q30: 605768 | R30: 735711 | S30: 779893 | T30: 1341479 | U30: 0 | V30: 0 | W30: 314575 | X30: 1081229 | Y30: =680376+820688 -> 1501064 | Z30: =94001+637818 -> 731819 | AA30: 2280957 | AB30: 2073298 | AC30: 314575 | AD30: 1081229 | AE30: 2595532 | AF30: 3154527 | AG30: 0 | AH30: * | AI30: 6311 | AJ30: =VLOOKUP(AI30,'Appendix1_SIC-NAICS Lists'!$A$2:$B$449,2,FALSE) -> (6311) LIFE INSURANCE | AK30: =VLOOKUP(AI30,'Appendix1_SIC-NAICS Lists'!$A$2:$C$449,3,FALSE) -> No | AL30: S-1 for ING U.S., Inc. | AM30: 10-K for ING U.S., Inc. | AN30: http://www.sec.gov/Archives/edgar/data/1535929/000119312513182311/0001193125-13-182311-index.htm | AO30: http://www.sec.gov/Archives/edgar/data/1535929/000119312514237064/0001193125-14-237064-index.htm\
A31: Insys Therapeutics, Inc. | B31: Included | C31: Yes | D31: Darryl S. Baker | E31: CFO | F31: Chandler, Arizona, United States | G31: 2013-05-02 | H31: 166361816 | I31: 15476000 | J31: 4000000 | K31: 8 | L31: 32000000 | M31: =3+17/30 -> 3.566666667 | N31: 12 | O31: 108210 | P31: 63000 | Q31: 202917 | R31: 135000 | S31: =IFERROR(O31+P31,"NS/10-K") -> 171210 | T31: =IFERROR(Q31+R31,"NS/10-K") -> 337917 | U31: 2653305 | V31: 749522 | W31: 0 | X31: 0 | Y31: 477 | Z31: 957 | AA31: =SUM(S31,Y31) -> 171687 | AB31: =SUM(T31,Z31) -> 338874 | AC31: =SUM(U31,W31) -> 2653305 | AD31: =SUM(V31,X31) -> 749522 | AE31: =SUM(AA31,AC31) -> 2824992 | AF31: =SUM(AB31,AD31) -> 1088396 | AG31: * | AH31: * | AI31: 2834 | AJ31: =VLOOKUP(AI31,'Appendix1_SIC-NAICS Lists'!$A$2:$B$449,2,FALSE) -> (2834) PHARMACEUTICAL PREPARATIONS | AK31: =VLOOKUP(AI31,'Appendix1_SIC-NAICS Lists'!$A$2:$C$449,3,FALSE) -> Yes | AL31: =HYPERLINK(AN31,"S-1 for "&A31) -> S-1 for Insys Therapeutics, Inc. | AM31: =HYPERLINK(AO31,"10-K for "&A31) -> 10-K for Insys Therapeutics, Inc. | AN31: http://www.sec.gov/Archives/edgar/data/1516479/000119312513193907/0001193125-13-193907-index.htm | AO31: http://www.sec.gov/Archives/edgar/data/1516479/000143774914006620/0001437749-14-006620-index.htm | AR31: 36070 | AS31: 21000 | AT31: 884435 | AU31: 0 | AV31: 159
A32: QIWI plc | B32: F-1 | C32: No | D32: Evgeniy Filimonov | E32: CFO | F32: Nicosia, Cyprus | G32: 2013-05-02 | H32: 212500000 | I32: 293000000 | J32: 12500000 | K32: 17 | L32: 212500000 | M32: 12 | N32: 10-K | O32: NS | P32: NS | Q32: 10-K | R32: 10-K | S32: NS/10-K | T32: NS/10-K | U32: NS | V32: 10-K | W32: NS | X32: 10-K | Y32: NS | Z32: 10-K | AA32: 0 | AB32: 0 | AC32: 0 | AD32: 0 | AE32: 0 | AF32: 0 | AG32: * | AH32: 0.001 | AI32: 7389 | AJ32: =VLOOKUP(AI32,'Appendix1_SIC-NAICS Lists'!$A$2:$B$449,2,FALSE) -> (7389) SERVICES-BUSINESS SERVICES, NEC | AK32: =VLOOKUP(AI32,'Appendix1_SIC-NAICS Lists'!$A$2:$C$449,3,FALSE) -> No | AL32: S-1 for QIWI plc | AM32: 10-K for QIWI plc | AN32: http://www.sec.gov/Archives/edgar/data/1561566/000119312513188578/0001193125-13-188578-index.htm | AO32: 10-K
A33: Armada Hoffler Properties, Inc. | B33: S-11; CFO not included in summary compensation table | C33: Yes | D33: Michael P. O'Hara | E33: CFO | F33: Virginia Beach, Virginia, United States | G33: 2013-05-07 | H33: 341997454 | I33: 108482000 | J33: 16525000 | K33: 11.5 | L33: 190037500 | M33: 12 | N33: 12 | O33: NS | P33: NS | Q33: NS | R33: NS | S33: NS/10-K | T33: NS/10-K | U33: NS | V33: NS | W33: NS | X33: NS | Y33: NS | Z33: NS | AA33: 0 | AB33: 0 | AC33: 0 | AD33: 0 | AE33: 0 | AF33: 0 | AG33: NS | AH33: NS | AI33: 6798 | AJ33: =VLOOKUP(AI33,'Appendix1_SIC-NAICS Lists'!$A$2:$B$449,2,FALSE) -> (6798) REAL ESTATE INVESTMENT TRUSTS | AK33: =VLOOKUP(AI33,'Appendix1_SIC-NAICS Lists'!$A$2:$C$449,3,FALSE) -> No | AL33: S-1 for Armada Hoffler Properties, Inc. | AM33: 10-K for Armada Hoffler Properties, Inc. | AN33: http://www.sec.gov/Archives/edgar/data/1569187/000119312513197898/0001193125-13-197898-index.htm | AO33: http://www.sec.gov/Archives/edgar/data/1569187/000119312514167110/0001193125-14-167110-index.htm
A34: American Residential Properties, Inc. | B34: S-11; not employed as CFO for the full two years | C34: Yes | D34: Shant Koumriqian | E34: CFO and Treasurer | F34: Scottsdale, Arizona, United States | G34: 2013-05-08 | H34: 674955372 | I34: 2930000 | J34: 13700500 | K34: 21 | L34: 287710500 | M34: 3 | N34: 12 | O34: 67708 | P34: 51421 | Q34: 325000 | R34: 250000 | S34: 119129 | T34: 575000 | U34: 0 | V34: 0 | W34: 85000 | X34: 1178657 | Y34: 369 | Z34: 30440 | AA34: 119498 | AB34: 605440 | AC34: 85000 | AD34: 1178657 | AE34: 204498 | AF34: 1784097 | AG34: * | AH34: * | AI34: 6798 | AJ34: =VLOOKUP(AI34,'Appendix1_SIC-NAICS Lists'!$A$2:$B$449,2,FALSE) -> (6798) REAL ESTATE INVESTMENT TRUSTS | AK34: =VLOOKUP(AI34,'Appendix1_SIC-NAICS Lists'!$A$2:$C$449,3,FALSE) -> No | AL34: S-1 for American Residential Properties, Inc. | AM34: 10-K for American Residential Properties, Inc. | AN34: http://www.sec.gov/Archives/edgar/data/1548981/000119312513204839/0001193125-13-204839-index.htm | AO34: http://www.sec.gov/Archives/edgar/data/1548981/000119312514140726/0001193125-14-140726-index.htm
A35: Cyan, Inc. | B35: CFO not included in summary compensation table; not employed as CFO for the full two years | C35: Yes | D35: Michael W. Zellner | E35: Vice President and CFO | F35: Petaluma, California, United States | G35: 2013-05-08 | H35: 489844498 | I35: 108004000 | J35: 8000000 | K35: 11 | L35: 88000000 | M35: NS | N35: 12 | O35: NS | P35: NS | Q35: 256133 | R35: 0 | S35: NS/10-K | T35: 256133 | U35: NS | V35: 2509846 | W35: NS | X35: 0 | Y35: NS | Z35: 36239 | AA35: 0 | AB35: 292372 | AC35: 0 | AD35: 2509846 | AE35: 0 | AF35: 2802218 | AG35: NS | AH35: NS | AI35: 7373 | AJ35: =VLOOKUP(AI35,'Appendix1_SIC-NAICS Lists'!$A$2:$B$449,2,FALSE) -> (7373) SERVICES-COMPUTER INTEGRATED SYSTEMS DESIGN | AK35: =VLOOKUP(AI35,'Appendix1_SIC-NAICS Lists'!$A$2:$C$449,3,FALSE) -> Yes | AL35: S-1 for Cyan, Inc. | AM35: 10-K for Cyan, Inc. | AN35: http://www.sec.gov/Archives/edgar/data/1391636/000119312513200196/0001193125-13-200196-index.htm | AO35: http://www.sec.gov/Archives/edgar/data/1391636/000139163614000029/0001391636-14-000029-index.htm
A36: Emerge Energy Services LP | B36: Included | C36: Yes | D36: Robert Lane | E36: CFO | F36: Southlake, Texas, United States | G36: 2013-05-08 | H36: 394734560 | I36: 956863000 | J36: 7500000 | K36: 17 | L36: 127500000 | M36: 2 | N36: 12 | O36: 206772 | P36: 269934 | Q36: 256000 | R36: 153000 | S36: 476706 | T36: 409000 | U36: 0 | V36: 0 | W36: 0 | X36: 0 | Y36: 13338 | Z36: 22083 | AA36: 490044 | AB36: 431083 | AC36: 0 | AD36: 0 | AE36: 490044 | AF36: 431083 | AG36: NS | AH36: 0 | AI36: 1446 | AJ36: =VLOOKUP(AI36,'Appendix1_SIC-NAICS Lists'!$A$2:$B$449,2,FALSE) -> (1446) INDUSTRIAL SAND | AK36: =VLOOKUP(AI36,'Appendix1_SIC-NAICS Lists'!$A$2:$C$449,3,FALSE) -> No | AL36: S-1 for Emerge Energy Services LP | AM36: 10-K for Emerge Energy Services LP | AN36: http://www.sec.gov/Archives/edgar/data/1555177/000104746913005157/0001047469-13-005157-index.htm | AO36: http://www.sec.gov/Archives/edgar/data/1555177/000104746914002884/0001047469-14-002884-index.htm | AR36: 34462 | AS36: 44989 | AT36: 0 | AU36: 0 | AV36: 2223
A37: PennyMac Financial Services, Inc. | B37: CFO not included in summary compensation table | C37: Yes | D37: Anne McCallion | E37: CFO | F37: Moorpark, California, United States | G37: 2013-05-08 | H37: 200001078 | I37: 272965000 | J37: 11111111 | K37: 18 | L37: 199999998 | M37: 12 | N37: 12 | O37: NS | P37: NS | Q37: NS | R37: NS | S37: NS/10-K | T37: NS/10-K | U37: NS | V37: NS | W37: NS | X37: NS | Y37: NS | Z37: NS | AA37: 0 | AB37: 0 | AC37: 0 | AD37: 0 | AE37: 0 | AF37: 0 | AG37: NS | AH37: NS | AI37: 6162 | AJ37: =VLOOKUP(AI37,'Appendix1_SIC-NAICS Lists'!$A$2:$B$449,2,FALSE) -> (6162) MORTGAGE BANKERS & LOAN CORRESPONDENTS | AK37: =VLOOKUP(AI37,'Appendix1_SIC-NAICS Lists'!$A$2:$C$449,3,FALSE) -> No | AL37: S-1 for PennyMac Financial Services, Inc. | AM37: 10-K for PennyMac Financial Services, Inc. | AN37: http://www.sec.gov/Archives/edgar/data/1568669/000104746913005016/0001047469-13-005016-index.htm | AO37: http://www.sec.gov/Archives/edgar/data/1568669/000101968714001487/0001019687-14-001487-index.htm
A38: Quintiles Transnational Holdings Inc. | B38: Included | C38: Yes | D38: Kevin K. Gordon | E38: Executive VP and CFO | F38: Durham, North Carolina, United States | G38: 2013-05-08 | H38: 5156615600 | I38: 4865513000 | J38: 23684210 | K38: 40 | L38: 947368400 | M38: 12 | N38: 12 | O38: =500000 -> 500000 | P38: =334600+553350 -> 887950 | Q38: 570000 | R38: =500000+700000 -> 1200000 | S38: 1387950 | T38: 1770000 | U38: 1237431 | V38: 1834757 | W38: 0 | X38: 500033 | Y38: 55783 | Z38: 48783 | AA38: 1443733 | AB38: 1818783 | AC38: 1237431 | AD38: 2334790 | AE38: 2681164 | AF38: 4153573 | AG38: * | AH38: * | AI38: 8731 | AJ38: =VLOOKUP(AI38,'Appendix1_SIC-NAICS Lists'!$A$2:$B$449,2,FALSE) -> (8731) SERVICES-COMMERCIAL PHYSICAL & BIOLOGICAL RESEARCH | AK38: =VLOOKUP(AI38,'Appendix1_SIC-NAICS Lists'!$A$2:$C$449,3,FALSE) -> No | AL38: S-1 for Quintiles Transnational Holdings Inc. | AM38: 10-K for Quintiles Transnational Holdings Inc. | AN38: http://www.sec.gov/Archives/edgar/data/1478242/000119312513175430/0001193125-13-175430-index.htm | AO38: http://www.sec.gov/Archives/edgar/data/1478242/000119312514062786/0001193125-14-062786-index.htm
A39: Receptos, Inc. | B39: CFO not included in summary compensation table (in prior year); not employed as CFO for the full two years | C39: Yes | D39: Graham Cooper | E39: CFO | F39: San Diego, California, United States | G39: 2013-05-08 | H39: 246465002 | I39: 8647000 | J39: 5200000 | K39: 14 | L39: 72800000 | M39: 0 | N39: 11 | O39: NS | P39: NS | Q39: 254767 | R39: 119707 | S39: NS/10-K | T39: 374474 | U39: NS | V39: 1495027 | W39: NS | X39: 0 | Y39: NS | Z39: 24167 | AA39: 0 | AB39: 398641 | AC39: 0 | AD39: 1495027 | AE39: 0 | AF39: 1893668 | AG39: NS | AH39: NS | AI39: 2834 | AJ39: =VLOOKUP(AI39,'Appendix1_SIC-NAICS Lists'!$A$2:$B$449,2,FALSE) -> (2834) PHARMACEUTICAL PREPARATIONS | AK39: =VLOOKUP(AI39,'Appendix1_SIC-NAICS Lists'!$A$2:$C$449,3,FALSE) -> Yes | AL39: S-1 for Receptos, Inc. | AM39: 10-K for Receptos, Inc. | AN39: http://www.sec.gov/Archives/edgar/data/1463729/000104746913004886/0001047469-13-004886-index.htm | AO39: http://www.sec.gov/Archives/edgar/data/1463729/000119312514154948/0001193125-14-154948-index.htm
A40: TriState Capital Holdings, Inc. | B40: Included | C40: Yes | D40: Mark L. Sullivan | E40: Vice Chairman, CFO, and Director | F40: Pittsburgh, Pennsylvania, United States | G40: 2013-05-08 | H40: 319961959 | I40: 77233000 | J40: 5700000 | K40: 11.5 | L40: 65550000 | M40: 12 | N40: 12 | O40: =425000 -> 425000 | P40: 637500 | Q40: 475000 | R40: 319500 | S40: 1062500 | T40: 794500 | U40: 0 | V40: 0 | W40: 0 | X40: 0 | Y40: 16684 | Z40: 26861 | AA40: 1079184 | AB40: 821361 | AC40: 0 | AD40: 0 | AE40: 1079184 | AF40: 821361 | AG40: 0.026 | AH40: 0.021 | AI40: 6022 | AJ40: =VLOOKUP(AI40,'Appendix1_SIC-NAICS Lists'!$A$2:$B$449,2,FALSE) -> (6022) STATE COMMERCIAL BANKS | AK40: =VLOOKUP(AI40,'Appendix1_SIC-NAICS Lists'!$A$2:$C$449,3,FALSE) -> No | AL40: S-1 for TriState Capital Holdings, Inc. | AM40: 10-K for TriState Capital Holdings, Inc. | AN40: http://www.sec.gov/Archives/edgar/data/1380846/000119312513168284/0001193125-13-168284-index.htm | AO40: http://www.sec.gov/Archives/edgar/data/1380846/000138084614000014/0001380846-14-000014-index.htm
A41: BioAmber Inc. | B41: CFO not included in summary compensation table | C41: Yes | D41: Andrew P. Ashworth | E41: CFO | F41: Montreal, Quebec, Canada | G41: 2013-05-09 | H41: 184128150 | I41: 2291000 | J41: 8000000 | K41: 10 | L41: 80000000 | M41: 12 | N41: 12 | O41: NS | P41: NS | Q41: NS | R41: NS | S41: NS/10-K | T41: NS/10-K | U41: NS | V41: NS | W41: NS | X41: NS | Y41: NS | Z41: NS | AA41: 0 | AB41: 0 | AC41: 0 | AD41: 0 | AE41: 0 | AF41: 0 | AG41: 0.001 | AH41: * | AI41: 2860 | AJ41: =VLOOKUP(AI41,'Appendix1_SIC-NAICS Lists'!$A$2:$B$449,2,FALSE) -> (2860) INDUSTRIAL ORGANIC CHEMICALS | AK41: =VLOOKUP(AI41,'Appendix1_SIC-NAICS Lists'!$A$2:$C$449,3,FALSE) -> No | AL41: S-1 for BioAmber Inc. | AM41: 10-K for BioAmber Inc. | AN41: http://www.sec.gov/Archives/edgar/data/1534287/000119312513211269/0001193125-13-211269-index.htm | AO41: http://www.sec.gov/Archives/edgar/data/1534287/000119312514172003/0001193125-14-172003-index.htm
A42: First NBC Bank Holding Company | B42: Included | C42: Yes | D42: Mary Beth Verdigets | E42: Executive VP and CFO | F42: New Orleans, Louisiana, United States | G42: 2013-05-09 | H42: 413512608 | I42: 119593000 | J42: 4166667 | K42: 24 | L42: 100000008 | M42: 12 | N42: 12 | O42: =187500 -> 187500 | P42: 65000 | Q42: 205000 | R42: 77250 | S42: 252500 | T42: 282250 | U42: 25400 | V42: 37725 | W42: 0 | X42: 0 | Y42: 19006 | Z42: 21011 | AA42: 271506 | AB42: 303261 | AC42: 25400 | AD42: 37725 | AE42: 296906 | AF42: 340986 | AG42: * | AH42: * | AI42: 6022 | AJ42: =VLOOKUP(AI42,'Appendix1_SIC-NAICS Lists'!$A$2:$B$449,2,FALSE) -> (6022) STATE COMMERCIAL BANKS | AK42: =VLOOKUP(AI42,'Appendix1_SIC-NAICS Lists'!$A$2:$C$449,3,FALSE) -> No | AL42: S-1 for First NBC Bank Holding Company | AM42: 10-K for First NBC Bank Holding Company | AN42: http://www.sec.gov/Archives/edgar/data/1496631/000119312513182577/0001193125-13-182577-index.htm | AO42: http://www.sec.gov/Archives/edgar/data/1496631/000119312514148213/0001193125-14-148213-index.htm
A43: Capitol Acquisition Corp. II | B43: Not compensated by company; not employed as CFO for the full two years | C43: Yes | D43: L. Dyson Dryden | E43: CFO and Director | F43: Washington, District of Columbia, United States | G43: 2013-05-10 | H43: 225000000 | I43: 0 | J43: 18000000 | K43: 10 | L43: 180000000 | M43: 0 | N43: 10 | O43: NS | P43: NS | Q43: NS | R43: NS | S43: NS/10-K | T43: NS/10-K | U43: NS | V43: NS | W43: NS | X43: NS | Y43: NS | Z43: NS | AA43: 0 | AB43: 0 | AC43: 0 | AD43: 0 | AE43: 0 | AF43: 0 | AG43: 0.226 | AH43: 0.045 | AI43: 6770 | AJ43: =VLOOKUP(AI43,'Appendix1_SIC-NAICS Lists'!$A$2:$B$449,2,FALSE) -> (6770) BLANK CHECKS | AK43: =VLOOKUP(AI43,'Appendix1_SIC-NAICS Lists'!$A$2:$C$449,3,FALSE) -> No | AL43: S-1 for Capitol Acquisition Corp. II | AM43: 10-K for Capitol Acquisition Corp. II | AN43: http://www.sec.gov/Archives/edgar/data/1512499/000114420413024410/0001144204-13-024410-index.htm | AO43: http://www.sec.gov/Archives/edgar/data/1512499/000121390014001290/0001213900-14-001290-index.htm
A44: Tallgrass Energy Partners, LP | B44: Not compensated by company (in prior year); not employed as CFO for the full two years | C44: Yes | D44: Gary J. Brauchle | E44: Executive VP, CFO, and Treasurer | F44: Overland Park, Kansas, United States | G44: 2013-05-13 | H44: 522450000 | I44: 255580000 | J44: 13050000 | K44: 21.5 | L44: 280575000 | M44: 0 | N44: 11 | O44: NS | P44: NS | Q44: 250000 | R44: 200000 | S44: NS/10-K | T44: 450000 | U44: NS | V44: 0 | W44: NS | X44: 874500 | Y44: NS | Z44: 26432 | AA44: 0 | AB44: 476432 | AC44: 0 | AD44: 874500 | AE44: 0 | AF44: 1350932 | AG44: NS | AH44: 0 | AI44: 4922 | AJ44: =VLOOKUP(AI44,'Appendix1_SIC-NAICS Lists'!$A$2:$B$449,2,FALSE) -> (4922) NATURAL GAS TRANSMISSION | AK44: =VLOOKUP(AI44,'Appendix1_SIC-NAICS Lists'!$A$2:$C$449,3,FALSE) -> No | AL44: S-1 for Tallgrass Energy Partners, LP | AM44: 10-K for Tallgrass Energy Partners, LP | AN44: http://www.sec.gov/Archives/edgar/data/1569134/000119312513200204/0001193125-13-200204-index.htm | AO44: http://www.sec.gov/Archives/edgar/data/1569134/000119312514093830/0001193125-14-093830-index.htm
A45: Ambit Biosciences Corporation | B45: Included | C45: Yes | D45: Alan Fuhrman | E45: CFO | F45: San Diego, California, United States | G45: 2013-05-15 | H45: 141700464 | I45: 18992000 | J45: 8125000 | K45: 8 | L45: 65000000 | M45: 12 | N45: 12 | O45: =279812 -> 279812 | P45: 87095 | Q45: 302096 | R45: 81581 | S45: 366907 | T45: 383677 | U45: 362923 | V45: 503852 | W45: 0 | X45: 0 | Y45: 4343 | Z45: 4383 | AA45: 371250 | AB45: 388060 | AC45: 362923 | AD45: 503852 | AE45: 734173 | AF45: 891912 | AG45: * | AH45: * | AI45: 2834 | AJ45: =VLOOKUP(AI45,'Appendix1_SIC-NAICS Lists'!$A$2:$B$449,2,FALSE) -> (2834) PHARMACEUTICAL PREPARATIONS | AK45: =VLOOKUP(AI45,'Appendix1_SIC-NAICS Lists'!$A$2:$C$449,3,FALSE) -> Yes | AL45: S-1 for Ambit Biosciences Corporation | AM45: 10-K for Ambit Biosciences Corporation | AN45: http://www.sec.gov/Archives/edgar/data/1131543/000119312513220772/0001193125-13-220772-index.htm | AO45: http://www.sec.gov/Archives/edgar/data/1131543/000119312514137090/0001193125-14-137090-index.htm
A46: UBIC, Inc. | B46: F-1 | C46: No | D46: Seitaro Ishii | E46: CFO and Chief Administrative Officer | F46: Tokyo, Japan | G46: 2013-05-15 | H46: 143010398 | I46: 56493190 | J46: 1100000 | K46: 8.38 | L46: 9218000 | M46: 7 | N46: 10-K | O46: NS | P46: NS | Q46: 10-K | R46: 10-K | S46: NS/10-K | T46: NS/10-K | U46: NS | V46: 10-K | W46: NS | X46: 10-K | Y46: NS | Z46: 10-K | AA46: 0 | AB46: 0 | AC46: 0 | AD46: 0 | AE46: 0 | AF46: 0 | AG46: * | AH46: * | AI46: 7374 | AJ46: =VLOOKUP(AI46,'Appendix1_SIC-NAICS Lists'!$A$2:$B$449,2,FALSE) -> (7374) SERVICES-COMPUTER PROCESSING & DATA PREPARATION | AK46: =VLOOKUP(AI46,'Appendix1_SIC-NAICS Lists'!$A$2:$C$449,3,FALSE) -> Yes | AL46: S-1 for UBIC, Inc. | AM46: 10-K for UBIC, Inc. | AN46: http://www.sec.gov/Archives/edgar/data/1550935/000104746913005886/0001047469-13-005886-index.htm | AO46: 10-K
A47: Marketo, Inc. | B47: CFO not included in summary compensation table | C47: Yes | D47: Frederick A. Ball | E47: Senior VP and CFO | F47: San Mateo, California, United States | G47: 2013-05-16 | H47: 465193937 | I47: 65938000 | J47: 6059509 | K47: 13 | L47: 78773617 | M47: 12 | N47: 12 | O47: NS | P47: NS | Q47: 275000 | R47: 302750 | S47: NS/10-K | T47: 577750 | U47: NS | V47: 400640 | W47: NS | X47: 0 | Y47: NS | Z47: 0 | AA47: 0 | AB47: 577750 | AC47: 0 | AD47: 400640 | AE47: 0 | AF47: 978390 | AG47: * | AH47: * | AI47: 7372 | AJ47: =VLOOKUP(AI47,'Appendix1_SIC-NAICS Lists'!$A$2:$B$449,2,FALSE) -> (7372) SERVICES-PREPACKAGED SOFTWARE | AK47: =VLOOKUP(AI47,'Appendix1_SIC-NAICS Lists'!$A$2:$C$449,3,FALSE) -> Yes | AL47: S-1 for Marketo, Inc. | AM47: 10-K for Marketo, Inc. | AN47: http://www.sec.gov/Archives/edgar/data/1490660/000104746913005992/0001047469-13-005992-index.htm | AO47: http://www.sec.gov/Archives/edgar/data/1490660/000104746914004162/0001047469-14-004162-index.htm
A48: Tableau Software, Inc. | B48: Included | C48: Yes | D48: Thomas Walker | E48: CFO | F48: Seattle, Washington, United States | G48: 2013-05-16 | H48: 1782949748 | I48: 143066000 | J48: 8200000 | K48: 31 | L48: 254200000 | M48: 12 | N48: 12 | O48: =275000 -> 275000 | P48: =47500+27500 -> 75000 | Q48: 275000 | R48: =100000+27500 -> 127500 | S48: 350000 | T48: 402500 | U48: 1811557 | V48: 0 | W48: 0 | X48: 319000 | Y48: 35506 | Z48: 36641 | AA48: 385506 | AB48: 439141 | AC48: 1811557 | AD48: 319000 | AE48: 2197063 | AF48: 758141 | AG48: 0.0146 | AH48: 0.015 | AI48: 7372 | AJ48: =VLOOKUP(AI48,'Appendix1_SIC-NAICS Lists'!$A$2:$B$449,2,FALSE) -> (7372) SERVICES-PREPACKAGED SOFTWARE | AK48: =VLOOKUP(AI48,'Appendix1_SIC-NAICS Lists'!$A$2:$C$449,3,FALSE) -> Yes | AL48: S-1 for Tableau Software, Inc. | AM48: 10-K for Tableau Software, Inc. | AN48: http://www.sec.gov/Archives/edgar/data/1303652/000119312513221653/0001193125-13-221653-index.htm | AO48: http://www.sec.gov/Archives/edgar/data/1303652/000119312514118525/0001193125-14-118525-index.htm
A49: Alcobra Ltd. | B49: F-1 | C49: No | D49: Udi Gilboa | E49: CFO and Director | F49: Tel Aviv, Israel | G49: 2013-05-21 | H49: 89015072 | I49: 0 | J49: 3125000 | K49: 8 | L49: 25000000 | M49: 12 | N49: 10-K | O49: NS | P49: NS | Q49: 10-K | R49: 10-K | S49: NS/10-K | T49: NS/10-K | U49: NS | V49: 10-K | W49: NS | X49: 10-K | Y49: NS | Z49: 10-K | AA49: 0 | AB49: 0 | AC49: 0 | AD49: 0 | AE49: 0 | AF49: 0 | AG49: 0.347 | AH49: 0.267 | AI49: 2834 | AJ49: =VLOOKUP(AI49,'Appendix1_SIC-NAICS Lists'!$A$2:$B$449,2,FALSE) -> (2834) PHARMACEUTICAL PREPARATIONS | AK49: =VLOOKUP(AI49,'Appendix1_SIC-NAICS Lists'!$A$2:$C$449,3,FALSE) -> Yes | AL49: S-1 for Alcobra Ltd. | AM49: 10-K for Alcobra Ltd. | AN49: http://www.sec.gov/Archives/edgar/data/1566049/000114420413030425/0001144204-13-030425-index.htm | AO49: 10-K
A50: Portola Pharmaceuticals, Inc. | B50: Included | C50: Yes | D50: Mardi C. Dier | E50: Senior VP and CFO | F50: South San Francisco, California, United States | G50: 2013-05-21 | H50: 491302601 | I50: 72669000 | J50: 8422758 | K50: 14.5 | L50: 122129991 | M50: 12 | N50: 12 | O50: =326795 -> 326795 | P50: 68625 | Q50: 340491 | R50: =75000+147700 -> 222700 | S50: 395420 | T50: 563191 | U50: 357904 | V50: 1127535 | W50: 0 | X50: 0 | Y50: 500 | Z50: 500 | AA50: 395920 | AB50: 563691 | AC50: 357904 | AD50: 1127535 | AE50: 753824 | AF50: 1691226 | AG50: * | AH50: * | AI50: 2834 | AJ50: =VLOOKUP(AI50,'Appendix1_SIC-NAICS Lists'!$A$2:$B$449,2,FALSE) -> (2834) PHARMACEUTICAL PREPARATIONS | AK50: =VLOOKUP(AI50,'Appendix1_SIC-NAICS Lists'!$A$2:$C$449,3,FALSE) -> Yes | AL50: S-1 for Portola Pharmaceuticals, Inc. | AM50: 10-K for Portola Pharmaceuticals, Inc. | AN50: http://www.sec.gov/Archives/edgar/data/1269021/000119312513226283/0001193125-13-226283-index.htm | AO50: http://www.sec.gov/Archives/edgar/data/1269021/000119312514130583/0001193125-14-130583-index.htm
A51: ChannelAdvisor Corporation | B51: Included | C51: Yes | D51: John F. Baule | E51: CFO | F51: Morrisville, North Carolina, United States | G51: 2013-05-22 | H51: 286601854 | I51: 56343000 | J51: 5750000 | K51: 14 | L51: 80500000 | M51: =1+30/30 -> 2 | N51: 12 | O51: 287694 | P51: 0 | Q51: 275000 | R51: 125000 | S51: 287694 | T51: 400000 | U51: 3976668 | V51: 0 | W51: 0 | X51: 10-K | Y51: 2334 | Z51: 4223 | AA51: 290028 | AB51: 404223 | AC51: 3976668 | AD51: 0 | AE51: 4266696 | AF51: 404223 | AG51: 0.018 | AH51: 0.013 | AI51: 7372 | AJ51: =VLOOKUP(AI51,'Appendix1_SIC-NAICS Lists'!$A$2:$B$449,2,FALSE) -> (7372) SERVICES-PREPACKAGED SOFTWARE | AK51: =VLOOKUP(AI51,'Appendix1_SIC-NAICS Lists'!$A$2:$C$449,3,FALSE) -> Yes | AL51: S-1 for ChannelAdvisor Corporation | AM51: 10-K for ChannelAdvisor Corporation | AN51: http://www.sec.gov/Archives/edgar/data/1169652/000119312513211032/0001193125-13-211032-index.htm | AO51: http://www.sec.gov/Archives/edgar/data/1169652/000116965214000020/0001169652-14-000020-index.htm | AR51: 47949 | AS51: 0 | AT51: 662778 | AU51: 0 | AV51: 389
A52: Constellium N.V | B52: F-1; not in U.S. dollars | C52: No | D52: Didier Fontaine | E52: CFO | F52: Schiphol-Rijk, The Netherlands | G52: 2013-05-22 | H52: 333333330 | I52: 3610000000 | J52: 22222222 | K52: 15 | L52: 333333330 | M52: 4 | N52: 10-K | O52: NS | P52: NS | Q52: 10-K | R52: 10-K | S52: NS/10-K | T52: NS/10-K | U52: NS | V52: 10-K | W52: NS | X52: 10-K | Y52: NS | Z52: 10-K | AA52: 0 | AB52: 0 | AC52: 0 | AD52: 0 | AE52: 0 | AF52: 0 | AG52: NS | AH52: NS | AI52: 3341 | AJ52: =VLOOKUP(AI52,'Appendix1_SIC-NAICS Lists'!$A$2:$B$449,2,FALSE) -> (3341) SECONDARY SMELTING & REFINING OF NONFERROUS METALS | AK52: =VLOOKUP(AI52,'Appendix1_SIC-NAICS Lists'!$A$2:$C$449,3,FALSE) -> No | AL52: S-1 for Constellium N.V | AM52: 10-K for Constellium N.V | AN52: http://www.sec.gov/Archives/edgar/data/1563411/000119312513231536/0001193125-13-231536-index.htm | AO52: 10-K
A53: Global Brass and Copper Holdings, Inc. | B53: Included | C53: Yes | D53: Robert T. Micchelli | E53: CFO | F53: Schaumburg, Illinois, United States | G53: 2013-05-22 | H53: 232210000 | I53: 1652100000 | J53: 7000000 | K53: 11 | L53: 77000000 | M53: 12 | N53: 12 | O53: =386250 -> 386250 | P53: =180000+337319 -> 517319 | Q53: 398775 | R53: 263766 | S53: 903569 | T53: 662541 | U53: 0 | V53: 109208 | W53: 0 | X53: 335159 | Y53: 2384990 | Z53: 2467280 | AA53: 3288559 | AB53: 3129821 | AC53: 0 | AD53: 444367 | AE53: 3288559 | AF53: 3574188 | AG53: 0 | AH53: * | AI53: 3350 | AJ53: =VLOOKUP(AI53,'Appendix1_SIC-NAICS Lists'!$A$2:$B$449,2,FALSE) -> (3350) ROLLING DRAWING & EXTRUDING OF NONFERROUS METALS | AK53: =VLOOKUP(AI53,'Appendix1_SIC-NAICS Lists'!$A$2:$C$449,3,FALSE) -> No | AL53: S-1 for Global Brass and Copper Holdings, Inc. | AM53: 10-K for Global Brass and Copper Holdings, Inc. | AN53: http://www.sec.gov/Archives/edgar/data/1533526/000119312513230426/0001193125-13-230426-index.htm | AO53: http://www.sec.gov/Archives/edgar/data/1533526/000119312514134609/0001193125-14-134609-index.htm
A54: Ply Gem Holdings, Inc. | B54: Included | C54: Yes | D54: Shawn K. Poe | E54: VP and CFO | F54: Cary, North Carolina, United States | G54: 2013-05-22 | H54: 1359791328 | I54: 1139222000 | J54: 15789474 | K54: 21 | L54: 331578954 | M54: 12 | N54: 12 | O54: =350000 -> 350000 | P54: 259875 | Q54: 400000 | R54: 100000 | S54: 609875 | T54: 500000 | U54: 0 | V54: 0 | W54: 262500 | X54: 300000 | Y54: 31474 | Z54: 32746 | AA54: 641349 | AB54: 532746 | AC54: 262500 | AD54: 300000 | AE54: 903849 | AF54: 832746 | AG54: * | AH54: * | AI54: 3089 | AJ54: =VLOOKUP(AI54,'Appendix1_SIC-NAICS Lists'!$A$2:$B$449,2,FALSE) -> (3089) PLASTICS PRODUCTS, NEC | AK54: =VLOOKUP(AI54,'Appendix1_SIC-NAICS Lists'!$A$2:$C$449,3,FALSE) -> No | AL54: S-1 for Ply Gem Holdings, Inc. | AM54: 10-K for Ply Gem Holdings, Inc. | AN54: http://www.sec.gov/Archives/edgar/data/1284807/000119312513215370/0001193125-13-215370-index.htm | AO54: http://www.sec.gov/Archives/edgar/data/1284807/000128480714000025/0001284807-14-000025-index.htm
A55: Epizyme, Inc. | B55: Included | C55: Yes | D55: Jason P. Rhodes | E55: Executive VP and CFO | F55: Cambridge, Massachusetts, United States | G55: 2013-05-30 | H55: 414656460 | I55: 48450000 | J55: 5142000 | K55: 15 | L55: 77130000 | M55: 0 | N55: 10 | O55: =344793 -> 344793 | P55: 155157 | Q55: 436831.1875 | R55: 178999.2031 | S55: 499950 | T55: 615830.3906 | U55: 0 | V55: 3190160.5 | W55: 0 | X55: 0 | Y55: 949 | Z55: 1760.400024 | AA55: 500899 | AB55: 617590.7906 | AC55: 0 | AD55: 3190160.5 | AE55: 500899 | AF55: 3807751.291 | AG55: 0.014 | AH55: 0.013 | AI55: 2834 | AJ55: =VLOOKUP(AI55,'Appendix1_SIC-NAICS Lists'!$A$2:$B$449,2,FALSE) -> (2834) PHARMACEUTICAL PREPARATIONS | AK55: =VLOOKUP(AI55,'Appendix1_SIC-NAICS Lists'!$A$2:$C$449,3,FALSE) -> Yes | AL55: S-1 for Epizyme, Inc. | AM55: 10-K for Epizyme, Inc. | AN55: http://www.sec.gov/Archives/edgar/data/1571498/000119312513237139/0001193125-13-237139-index.htm | AO55: http://www.sec.gov/Archives/edgar/data/1571498/000119312514172649/0001193125-14-172649-index.htm | AW55: 364026 | AX55: 149166 | AY55: 2658467 | AZ55: 0 | BA55: 1467
A56: Kamada Ltd. | B56: F-1 | C56: No | D56: Gil Efron | E56: CFO | F56: Ness Ziona, Israel | G56: 2013-05-30 | H56: 317336365 | I56: 65669000 | J56: 5582636 | K56: 9.25 | L56: 51639383 | M56: 12 | N56: 10-K | O56: 189000 | P56: 36000 | Q56: 10-K | R56: 10-K | S56: 225000 | T56: NS/10-K | U56: 36000 | V56: 10-K | W56: 0 | X56: 10-K | Y56: 25000 | Z56: 10-K | AA56: 250000 | AB56: 0 | AC56: 36000 | AD56: 0 | AE56: 286000 | AF56: 0 | AG56: * | AH56: * | AI56: 2834 | AJ56: =VLOOKUP(AI56,'Appendix1_SIC-NAICS Lists'!$A$2:$B$449,2,FALSE) -> (2834) PHARMACEUTICAL PREPARATIONS | AK56: =VLOOKUP(AI56,'Appendix1_SIC-NAICS Lists'!$A$2:$C$449,3,FALSE) -> Yes | AL56: S-1 for Kamada Ltd. | AM56: 10-K for Kamada Ltd. | AN56: http://www.sec.gov/Archives/edgar/data/1567529/000114420413031877/0001144204-13-031877-index.htm | AO56: 10-K
A57: LightInTheBox Holding Co., Ltd. | B57: F-1 | C57: No | D57: Zheng (Richard) Xue | E57: CFO | F57: Beijing, Chao Yang District, China | G57: 2013-06-05 | H57: 465083278 | I57: 236433000 | J57: 8300000 | K57: 9.5 | L57: 78850000 | M57: 12 | N57: 10-K | O57: NS | P57: NS | Q57: 10-K | R57: 10-K | S57: NS/10-K | T57: NS/10-K | U57: NS | V57: 10-K | W57: NS | X57: 10-K | Y57: NS | Z57: 10-K | AA57: 0 | AB57: 0 | AC57: 0 | AD57: 0 | AE57: 0 | AF57: 0 | AG57: * | AH57: * | AI57: 5961 | AJ57: =VLOOKUP(AI57,'Appendix1_SIC-NAICS Lists'!$A$2:$B$449,2,FALSE) -> (5961) RETAIL-CATALOG & MAIL-ORDER HOUSES | AK57: =VLOOKUP(AI57,'Appendix1_SIC-NAICS Lists'!$A$2:$C$449,3,FALSE) -> No | AL57: S-1 for LightInTheBox Holding Co., Ltd. | AM57: 10-K for LightInTheBox Holding Co., Ltd. | AN57: http://www.sec.gov/Archives/edgar/data/1523836/000104746913006755/0001047469-13-006755-index.htm | AO57: 10-K
A58: RCS Capital Corporation | B58: Not compensated by company; not employed for the full two years | C58: Yes | D58: Brian S. Block | E58: CFO, Assistant Secretary, and Director | F58: New York, New York, United States | G58: 2013-06-05 | H58: 530000000 | I58: 469938000 | J58: 2500000 | K58: 20 | L58: 50000000 | M58: 0 | N58: 11 | O58: NS | P58: NS | Q58: NS | R58: NS | S58: NS/10-K | T58: NS/10-K | U58: NS | V58: NS | W58: NS | X58: NS | Y58: NS | Z58: NS | AA58: 0 | AB58: 0 | AC58: 0 | AD58: 0 | AE58: 0 | AF58: 0 | AG58: NS | AH58: NS | AI58: 6211 | AJ58: =VLOOKUP(AI58,'Appendix1_SIC-NAICS Lists'!$A$2:$B$449,2,FALSE) -> (6211) SECURITY BROKERS, DEALERS & FLOTATION COMPANIES | AK58: =VLOOKUP(AI58,'Appendix1_SIC-NAICS Lists'!$A$2:$C$449,3,FALSE) -> No | AL58: S-1 for RCS Capital Corporation | AM58: 10-K for RCS Capital Corporation | AN58: http://www.sec.gov/Archives/edgar/data/1568832/000114420413032186/0001144204-13-032186-index.htm | AO58: http://www.sec.gov/Archives/edgar/data/1568832/000114420414026512/0001144204-14-026512-index.htm
A59: Textura Corporation | B59: Included | C59: Yes | D59: Jillian Sheehan | E59: EVP and CFO | F59: Deerfield, Illinois, United States | G59: 2013-06-06 | H59: 328529205 | I59: 27327000 | J59: 5000000 | K59: 15 | L59: 75000000 | M59: 12 | N59: 12 | O59: =253750 -> 253750 | P59: 215000 | Q59: 280000 | R59: 419000 | S59: 468750 | T59: 699000 | U59: 362048 | V59: 455542 | W59: 0 | X59: 151875 | Y59: 8120 | Z59: 4528 | AA59: 476870 | AB59: 703528 | AC59: 362048 | AD59: 607417 | AE59: 838918 | AF59: 1310945 | AG59: * | AH59: * | AI59: 7372 | AJ59: =VLOOKUP(AI59,'Appendix1_SIC-NAICS Lists'!$A$2:$B$449,2,FALSE) -> (7372) SERVICES-PREPACKAGED SOFTWARE | AK59: =VLOOKUP(AI59,'Appendix1_SIC-NAICS Lists'!$A$2:$C$449,3,FALSE) -> Yes | AL59: S-1 for Textura Corporation | AM59: 10-K for Textura Corporation | AN59: http://www.sec.gov/Archives/edgar/data/1565337/000104746913006756/0001047469-13-006756-index.htm | AO59: http://www.sec.gov/Archives/edgar/data/1565337/000156533714000004/0001565337-14-000004-index.htm
A60: Gigamon Inc. | B60: Not employed as CFO for the full two years; CFO not included in summary compensation table (in year of IPO) | C60: Yes | D60: Duston M. Williams | E60: CFO | F60: Milpitas, California, United States | G60: 2013-06-11 | H60: 559768158 | I60: 105826000 | J60: 6750000 | K60: 19 | L60: 128250000 | M60: 10 | N60: 12 | O60: =192769 -> 192769 | P60: =100000+104300 -> 204300 | Q60: NS | R60: NS | S60: 397069 | T60: NS/10-K | U60: 2746400 | V60: NS | W60: 0 | X60: NS | Y60: 7500 | Z60: NS | AA60: 404569 | AB60: 0 | AC60: 2746400 | AD60: 0 | AE60: 3150969 | AF60: 0 | AG60: * | AH60: * | AI60: 7372 | AJ60: =VLOOKUP(AI60,'Appendix1_SIC-NAICS Lists'!$A$2:$B$449,2,FALSE) -> (7372) SERVICES-PREPACKAGED SOFTWARE | AK60: =VLOOKUP(AI60,'Appendix1_SIC-NAICS Lists'!$A$2:$C$449,3,FALSE) -> Yes | AL60: S-1 for Gigamon Inc. | AM60: 10-K for Gigamon Inc. | AN60: http://www.sec.gov/Archives/edgar/data/1484504/000119312513251697/0001193125-13-251697-index.htm | AO60: http://www.sec.gov/Archives/edgar/data/1484504/000119312514098056/0001193125-14-098056-index.htm
A61: Coty Inc. | B61: Included | C61: Yes | D61: Sergio Pedreiro | E61: CFO | F61: New York, New York, United States | G61: 2013-06-12 | H61: 6699534100 | I61: 4613700000 | J61: 57142857 | K61: 17.5 | L61: 999999998 | M61: 12 | N61: 12 | O61: 515000 | P61: 681300 | Q61: 550000 | R61: 253300 | S61: 1196300 | T61: 803300 | U61: 1493400 | V61: 0 | W61: 0 | X61: 1162500 | Y61: 0 | Z61: 21691 | AA61: 1196300 | AB61: 824991 | AC61: 1493400 | AD61: 1162500 | AE61: 2689700 | AF61: 1987491 | AG61: * | AH61: * | AI61: 2844 | AJ61: =VLOOKUP(AI61,'Appendix1_SIC-NAICS Lists'!$A$2:$B$449,2,FALSE) -> (2844) PERFUMES, COSMETICS & OTHER TOILET PREPARATIONS | AK61: =VLOOKUP(AI61,'Appendix1_SIC-NAICS Lists'!$A$2:$C$449,3,FALSE) -> No | AL61: S-1 for Coty Inc. | AM61: 10-K for Coty Inc. | AN61: http://www.sec.gov/Archives/edgar/data/1024305/000093041313003148/0000930413-13-003148-index.htm | AO61: http://www.sec.gov/Archives/edgar/data/1024305/000093041313004596/0000930413-13-004596-index.htm
A62: bluebird bio, Inc. | B62: Included | C62: Yes | D62: Jeffrey T. Walsh | E62: Chief Operating Officer and Secretary (Principal Financial Officer) | F62: Cambridge, Massachusetts, United States | G62: 2013-06-18 | H62: 387781288 | I62: 1382000 | J62: 5941176 | K62: 17 | L62: 100999992 | M62: 12 | N62: 12 | O62: 300758 | P62: 108000 | Q62: 321692 | R62: 147840 | S62: 408758 | T62: 469532 | U62: 0 | V62: 395790 | W62: 0 | X62: 0 | Y62: 0 | Z62: 0 | AA62: 408758 | AB62: 469532 | AC62: 0 | AD62: 395790 | AE62: 408758 | AF62: 865322 | AG62: * | AH62: * | AI62: 2836 | AJ62: =VLOOKUP(AI62,'Appendix1_SIC-NAICS Lists'!$A$2:$B$449,2,FALSE) -> (2836) BIOLOGICAL PRODUCTS, (NO DISGNOSTIC SUBSTANCES) | AK62: =VLOOKUP(AI62,'Appendix1_SIC-NAICS Lists'!$A$2:$C$449,3,FALSE) -> Yes | AL62: S-1 for bluebird bio, Inc. | AM62: 10-K for bluebird bio, Inc. | AN62: http://www.sec.gov/Archives/edgar/data/1293971/000119312513246004/0001193125-13-246004-index.htm | AO62: http://www.sec.gov/Archives/edgar/data/1293971/000119312514157089/0001193125-14-157089-index.htm
A63: PTC Therapeutics, Inc. | B63: CFO not included in summary compensation table | C63: Yes | D63: Shane Kovacs | E63: CFO | F63: South Plainfield, New Jersey, United States | G63: 2013-06-19 | H63: 355172850 | I63: 28562000 | J63: 8372000 | K63: 15 | L63: 125580000 | M63: 0 | N63: 7 | O63: NS | P63: NS | Q63: NS | R63: NS | S63: NS/10-K | T63: NS/10-K | U63: NS | V63: NS | W63: NS | X63: NS | Y63: NS | Z63: NS | AA63: 0 | AB63: 0 | AC63: 0 | AD63: 0 | AE63: 0 | AF63: 0 | AG63: NS | AH63: NS | AI63: 2834 | AJ63: =VLOOKUP(AI63,'Appendix1_SIC-NAICS Lists'!$A$2:$B$449,2,FALSE) -> (2834) PHARMACEUTICAL PREPARATIONS | AK63: =VLOOKUP(AI63,'Appendix1_SIC-NAICS Lists'!$A$2:$C$449,3,FALSE) -> Yes | AL63: S-1 for PTC Therapeutics, Inc. | AM63: 10-K for PTC Therapeutics, Inc. | AN63: http://www.sec.gov/Archives/edgar/data/1070081/000104746913006950/0001047469-13-006950-index.htm | AO63: http://www.sec.gov/Archives/edgar/data/1070081/000104746914004222/0001047469-14-004222-index.htm
A64: Gogo Inc. | B64: Included | C64: Yes | D64: Norman Smagley | E64: Executive VP and CFO | F64: Itasca, Illinois, United States | G64: 2013-06-20 | H64: 1443619906 | I64: 249996000 | J64: 11000000 | K64: 17 | L64: 187000000 | M64: 12 | N64: 12 | O64: =332000 -> 332000 | P64: 259375 | Q64: 338750 | R64: 461869 | S64: 591375 | T64: 800619 | U64: 0 | V64: 684383 | W64: 0 | X64: 0 | Y64: 0 | Z64: 1500 | AA64: 591375 | AB64: 802119 | AC64: 0 | AD64: 684383 | AE64: 591375 | AF64: 1486502 | AG64: 0.001 | AH64: 0.002 | AI64: 4899 | AJ64: =VLOOKUP(AI64,'Appendix1_SIC-NAICS Lists'!$A$2:$B$449,2,FALSE) -> (4899) COMMUNICATIONS SERVICES, NEC | AK64: =VLOOKUP(AI64,'Appendix1_SIC-NAICS Lists'!$A$2:$C$449,3,FALSE) -> Yes | AL64: S-1 for Gogo Inc. | AM64: 10-K for Gogo Inc. | AN64: http://www.sec.gov/Archives/edgar/data/1537054/000119312513261433/0001193125-13-261433-index.htm | AO64: http://www.sec.gov/Archives/edgar/data/1537054/000119312514146580/0001193125-14-146580-index.htm
A65: Esperion Therapeutics, Inc. | B65: Included | C65: Yes | D65: Tim M. Mayleben | E65: Principal Financial Officer | F65: Plymouth, Michigan, United States | G65: 2013-06-25 | H65: 204110270 | I65: 0 | J65: 5000000 | K65: 14 | L65: 70000000 | M65: 1 | N65: 10-K | O65: 300000 | P65: 0 | Q65: 400000 | R65: 160000 | S65: 300000 | T65: 560000 | U65: 0 | V65: 2890165 | W65: 0 | X65: 0 | Y65: 0 | Z65: 0 | AA65: 300000 | AB65: 560000 | AC65: 0 | AD65: 2890165 | AE65: 300000 | AF65: 3450165 | AG65: 0.03 | AH65: 0.022 | AI65: 2834 | AJ65: =VLOOKUP(AI65,'Appendix1_SIC-NAICS Lists'!$A$2:$B$449,2,FALSE) -> (2834) PHARMACEUTICAL PREPARATIONS | AK65: =VLOOKUP(AI65,'Appendix1_SIC-NAICS Lists'!$A$2:$C$449,3,FALSE) -> Yes | AL65: S-1 for Esperion Therapeutics, Inc. | AM65: 10-K for Esperion Therapeutics, Inc. | AN65: http://www.sec.gov/Archives/edgar/data/1434868/000104746913006896/0001047469-13-006896-index.htm | AO65: http://www.sec.gov/Archives/edgar/data/1434868/000104746914003436/0001047469-14-003436-index.htm | AR65: 25000 | AS65: 0 | AT65: 0 | AU65: 0 | AV65: 0
A66: Luxoft Holding, Inc | B66: F-1 | C66: No | D66: Roman Yakushkin | E66: CFO | F66: Tortola, British Virgin Islands | G66: 2013-06-25 | H66: 554864955 | I66: 314596000 | J66: 4092070 | K66: 17 | L66: 69565190 | M66: 12 | N66: 10-K | O66: NS | P66: NS | Q66: 10-K | R66: 10-K | S66: NS/10-K | T66: NS/10-K | U66: NS | V66: 10-K | W66: NS | X66: 10-K | Y66: NS | Z66: 10-K | AA66: 0 | AB66: 0 | AC66: 0 | AD66: 0 | AE66: 0 | AF66: 0 | AG66: * | AH66: 0 | AI66: 7371 | AJ66: =VLOOKUP(AI66,'Appendix1_SIC-NAICS Lists'!$A$2:$B$449,2,FALSE) -> (7371) SERVICES-COMPUTER PROGRAMMING SERVICES | AK66: =VLOOKUP(AI66,'Appendix1_SIC-NAICS Lists'!$A$2:$C$449,3,FALSE) -> Yes | AL66: S-1 for Luxoft Holding, Inc | AM66: 10-K for Luxoft Holding, Inc | AN66: http://www.sec.gov/Archives/edgar/data/1538375/000104746913007117/0001047469-13-007117-index.htm | AO66: 10-K
A67: NanoString Technologies, Inc. | B67: Included | C67: Yes | D67: James A. Johnson | E67: CFO | F67: Seattle, Washington, United States | G67: 2013-06-25 | H67: 145947450 | I67: 24147000 | J67: 5400000 | K67: 10 | L67: 54000000 | M67: 3 | N67: 12 | O67: 1050000 | P67: 718500 | Q67: 324167 | R67: =128975 -> 128975 | S67: 1768500 | T67: 453142 | U67: 164672 | V67: 114996 | W67: 0 | X67: 0 | Y67: 38880 | Z67: 0 | AA67: 1807380 | AB67: 453142 | AC67: 164672 | AD67: 114996 | AE67: 1972052 | AF67: 568138 | AG67: 0.0123 | AH67: * | AI67: 3826 | AJ67: =VLOOKUP(AI67,'Appendix1_SIC-NAICS Lists'!$A$2:$B$449,2,FALSE) -> (3826) LABORATORY ANALYTICAL INSTRUMENTS | AK67: =VLOOKUP(AI67,'Appendix1_SIC-NAICS Lists'!$A$2:$C$449,3,FALSE) -> Yes | AL67: S-1 for NanoString Technologies, Inc. | AM67: 10-K for NanoString Technologies, Inc. | AN67: http://www.sec.gov/Archives/edgar/data/1401708/000119312513256819/0001193125-13-256819-index.htm | AO67: http://www.sec.gov/Archives/edgar/data/1401708/000119312514118770/0001193125-14-118770-index.htm | AR67: 262500 | AS67: 179625 | AT67: 41168 | AU67: 0 | AV67: 9720
A68: Aratana Therapeutics, Inc. | B68: Included | C68: Yes | D68: Louise A. Mawhinney | E68: CFO | F68: Kansas City, Kansas, United States | G68: 2013-06-26 | H68: 119158596 | I68: 0 | J68: 5750000 | K68: 6 | L68: 34500000 | M68: 4 | N68: 0 | O68: 218943 | P68: 97500 | Q68: 0 | R68: 0 | S68: 316443 | T68: 0 | U68: 63000 | V68: 0 | W68: 51420 | X68: 0 | Y68: 0 | Z68: 0 | AA68: 316443 | AB68: 0 | AC68: 114420 | AD68: 0 | AE68: 430863 | AF68: 0 | AG68: * | AH68: * | AI68: 2834 | AJ68: =VLOOKUP(AI68,'Appendix1_SIC-NAICS Lists'!$A$2:$B$449,2,FALSE) -> (2834) PHARMACEUTICAL PREPARATIONS | AK68: =VLOOKUP(AI68,'Appendix1_SIC-NAICS Lists'!$A$2:$C$449,3,FALSE) -> Yes | AL68: S-1 for Aratana Therapeutics, Inc. | AM68: 10-K for Aratana Therapeutics, Inc. | AN68: http://www.sec.gov/Archives/edgar/data/1509190/000119312513271755/0001193125-13-271755-index.htm | AO68: http://www.sec.gov/Archives/edgar/data/1509190/000119312514167242/0001193125-14-167242-index.htm | AR68: 72981 | AS68: 32500 | AT68: 21000 | AU68: 17140 | AV68: 0
A69: CDW Corporation | B69: Included | C69: Yes | D69: Ann E. Ziegler | E69: Senior Vice President and CFO | F69: Vernon Hills, Illinois, United States | G69: 2013-06-26 | H69: 2863985376 | I69: 10220700000 | J69: 23250000 | K69: 17 | L69: 395250000 | M69: 12 | N69: 12 | O69: =320000 -> 320000 | P69: =525000+229012 -> 754012 | Q69: 400769 | R69: =654305+162680 -> 816985 | S69: 1074012 | T69: 1217754 | U69: 0 | V69: 0 | W69: 0 | X69: 0 | Y69: 5984 | Z69: 977174 | AA69: 1079996 | AB69: 2194928 | AC69: 0 | AD69: 0 | AE69: 1079996 | AF69: 2194928 | AG69: * | AH69: * | AI69: 5961 | AJ69: =VLOOKUP(AI69,'Appendix1_SIC-NAICS Lists'!$A$2:$B$449,2,FALSE) -> (5961) RETAIL-CATALOG & MAIL-ORDER HOUSES | AK69: =VLOOKUP(AI69,'Appendix1_SIC-NAICS Lists'!$A$2:$C$449,3,FALSE) -> No | AL69: S-1 for CDW Corporation | AM69: 10-K for CDW Corporation | AN69: http://www.sec.gov/Archives/edgar/data/1402057/000119312513271895/0001193125-13-271895-index.htm | AO69: http://www.sec.gov/Archives/edgar/data/1402057/000130817914000140/0001308179-14-000140-index.htm
A70: HD Supply Holdings, Inc. | B70: Not employed as CFO for the full two years | C70: Yes | D70: Ronald J. Domanico | E70: Senior VP and CFO | F70: Atlanta, Georgia, United States | G70: 2013-06-26 | H70: 3307862790 | I70: 8267000000 | J70: 53191489 | K70: 18 | L70: 957446802 | M70: 12 | N70: NS | O70: =558600 -> 558600 | P70: 469939 | Q70: 571465 | R70: 374160 | S70: 1028539 | T70: 945625 | U70: 0 | V70: 586300 | W70: 0 | X70: 0 | Y70: 52835 | Z70: 63630 | AA70: 1081374 | AB70: 1009255 | AC70: 0 | AD70: 586300 | AE70: 1081374 | AF70: 1595555 | AG70: * | AH70: * | AI70: 5000 | AJ70: =VLOOKUP(AI70,'Appendix1_SIC-NAICS Lists'!$A$2:$B$449,2,FALSE) -> (5000) WHOLESALE-DURABLE GOODS | AK70: =VLOOKUP(AI70,'Appendix1_SIC-NAICS Lists'!$A$2:$C$449,3,FALSE) -> No | AL70: S-1 for HD Supply Holdings, Inc. | AM70: 10-K for HD Supply Holdings, Inc. | AN70: http://www.sec.gov/Archives/edgar/data/1573097/000104746913006932/0001047469-13-006932-index.htm | AO70: http://www.sec.gov/Archives/edgar/data/1573097/000104746914003163/0001047469-14-003163-index.htm
A71: MedWorth Acquisition Corp. | B71: Not compensated by company; not employed as CFO for the full two years | C71: Yes | D71: Charles F. Fistel | E71: CEO, CFO, Treasurer, and Director | F71: Miami, Florida, United States | G71: 2013-06-26 | H71: 71074000 | I71: 0 | J71: 6600000 | K71: 8 | L71: 52800000 | M71: 0 | N71: =11+10/31 -> 11.32258065 | O71: NS | P71: NS | Q71: NS | R71: NS | S71: NS/10-K | T71: NS/10-K | U71: NS | V71: NS | W71: NS | X71: NS | Y71: NS | Z71: NS | AA71: 0 | AB71: 0 | AC71: 0 | AD71: 0 | AE71: 0 | AF71: 0 | AG71: 0.246 | AH71: 0.045 | AI71: 6770 | AJ71: =VLOOKUP(AI71,'Appendix1_SIC-NAICS Lists'!$A$2:$B$449,2,FALSE) -> (6770) BLANK CHECKS | AK71: =VLOOKUP(AI71,'Appendix1_SIC-NAICS Lists'!$A$2:$C$449,3,FALSE) -> No | AL71: S-1 for MedWorth Acquisition Corp. | AM71: 10-K for MedWorth Acquisition Corp. | AN71: http://www.sec.gov/Archives/edgar/data/1571088/000114420413034209/0001144204-13-034209-index.htm | AO71: http://www.sec.gov/Archives/edgar/data/1571088/000114420414018407/0001144204-14-018407-index.htm
A72: Silvercrest Asset Management Group Inc. | B72: Included | C72: Yes | D72: Scott A. Gerard | E72: Principal Financial and Accounting Officer | F72: New York, New York, United States | G72: 2013-06-26 | H72: 123750110 | I72: 53495000 | J72: 4790684 | K72: 11 | L72: 52697524 | M72: 12 | N72: 12 | O72: 339095 | P72: 350000 | Q72: 375000 | R72: 490000 | S72: 689095 | T72: 865000 | U72: 0 | V72: 0 | W72: =69167+4759 -> 73926 | X72: 16177 | Y72: 0 | Z72: 0 | AA72: 689095 | AB72: 865000 | AC72: 73926 | AD72: 16177 | AE72: 763021 | AF72: 881177 | AG72: * | AH72: * | AI72: 6282 | AJ72: =VLOOKUP(AI72,'Appendix1_SIC-NAICS Lists'!$A$2:$B$449,2,FALSE) -> (6282) INVESTMENT ADVICE | AK72: =VLOOKUP(AI72,'Appendix1_SIC-NAICS Lists'!$A$2:$C$449,3,FALSE) -> No | AL72: S-1 for Silvercrest Asset Management Group Inc. | AM72: 10-K for Silvercrest Asset Management Group Inc. | AN72: http://www.sec.gov/Archives/edgar/data/1549966/000119312513269385/0001193125-13-269385-index.htm | AO72: http://www.sec.gov/Archives/edgar/data/1549966/000119312514171988/0001193125-14-171988-index.htm
A73: Tremor Video, Inc. | B73: CFO not included in summary compensation table | C73: Yes | D73: Todd Sloan | E73: Senior VP, CFO, and Treasurer | F73: New York, New York, United States | G73: 2013-06-26 | H73: 494231040 | I73: 112683000 | J73: 7500000 | K73: 10 | L73: 75000000 | M73: 12 | N73: 12 | O73: NS | P73: NS | Q73: NS | R73: NS | S73: NS/10-K | T73: NS/10-K | U73: NS | V73: NS | W73: NS | X73: NS | Y73: NS | Z73: NS | AA73: 0 | AB73: 0 | AC73: 0 | AD73: 0 | AE73: 0 | AF73: 0 | AG73: NS | AH73: NS | AI73: 7311 | AJ73: =VLOOKUP(AI73,'Appendix1_SIC-NAICS Lists'!$A$2:$B$449,2,FALSE) -> (7311) SERVICES-ADVERTISING AGENCIES | AK73: =VLOOKUP(AI73,'Appendix1_SIC-NAICS Lists'!$A$2:$C$449,3,FALSE) -> No | AL73: S-1 for Tremor Video, Inc. | AM73: 10-K for Tremor Video, Inc. | AN73: http://www.sec.gov/Archives/edgar/data/1375796/000104746913006961/0001047469-13-006961-index.htm | AO73: http://www.sec.gov/Archives/edgar/data/1375796/000110465914031928/0001104659-14-031928-index.htm
A74: Prosensa Holding B.V. | B74: F-1 | C74: No | D74: Berndt A.E. Modig | E74: CFO and Management Board Director | F74: Leiden, The Netherlands | G74: 2013-06-27 | H74: 455029874 | I74: 6465899 | J74: 6000000 | K74: 13 | L74: 78000000 | M74: 12 | N74: 10-K | O74: NS | P74: NS | Q74: 10-K | R74: 10-K | S74: NS/10-K | T74: NS/10-K | U74: NS | V74: 10-K | W74: NS | X74: 10-K | Y74: NS | Z74: 10-K | AA74: 0 | AB74: 0 | AC74: 0 | AD74: 0 | AE74: 0 | AF74: 0 | AG74: * | AH74: * | AI74: 2834 | AJ74: =VLOOKUP(AI74,'Appendix1_SIC-NAICS Lists'!$A$2:$B$449,2,FALSE) -> (2834) PHARMACEUTICAL PREPARATIONS | AK74: =VLOOKUP(AI74,'Appendix1_SIC-NAICS Lists'!$A$2:$C$449,3,FALSE) -> Yes | AL74: S-1 for Prosensa Holding B.V. | AM74: 10-K for Prosensa Holding B.V. | AN74: http://www.sec.gov/Archives/edgar/data/1574111/000119312513274104/0001193125-13-274104-index.htm | AO74: 10-K
A75: Noodles & Company | B75: Included | C75: Yes | D75: Dave Boennighausen | E75: CFO | F75: Broomfield, Colorado, United States | G75: 2013-06-27 | H75: 514730268 | I75: 311802000 | J75: 5357143 | K75: 18 | L75: 96428574 | M75: 6 | N75: 12 | O75: 420384 | P75: 215000 | Q75: 239808 | R75: =50000+104468 -> 154468 | S75: 635384 | T75: 394276 | U75: 387380 | V75: 0 | W75: 0 | X75: 0 | Y75: 21920 | Z75: 9504 | AA75: 657304 | AB75: 403780 | AC75: 387380 | AD75: 0 | AE75: 1044684 | AF75: 403780 | AG75: * | AH75: * | AI75: 5812 | AJ75: =VLOOKUP(AI75,'Appendix1_SIC-NAICS Lists'!$A$2:$B$449,2,FALSE) -> (5812) RETAIL-EATING PLACES | AK75: =VLOOKUP(AI75,'Appendix1_SIC-NAICS Lists'!$A$2:$C$449,3,FALSE) -> No | AL75: S-1 for Noodles & Company | AM75: 10-K for Noodles & Company | AN75: http://www.sec.gov/Archives/edgar/data/1275158/000104746913007203/0001047469-13-007203-index.htm | AO75: http://www.sec.gov/Archives/edgar/data/1275158/000127515814000013/0001275158-14-000013-index.htm | AR75: 210192 | AS75: 107500 | AT75: 193690 | AU75: 0 | AV75: 10960
A76: NRG Yield, Inc. | B76: Not compensated by company; not employed as CFO for the full two years | C76: Yes | D76: Kirkland B. Andrews | E76: Executive VP and CFO | F76: Princeton, New Jersey, United States | G76: 2013-07-16 | H76: 1435500000 | I76: 184000000 | J76: 19575000 | K76: 22 | L76: 430650000 | M76: 1 | N76: 12 | O76: NS | P76: NS | Q76: NS | R76: NS | S76: NS/10-K | T76: NS/10-K | U76: NS | V76: NS | W76: NS | X76: NS | Y76: NS | Z76: NS | AA76: 0 | AB76: 0 | AC76: 0 | AD76: 0 | AE76: 0 | AF76: 0 | AG76: 0 | AH76: 0 | AI76: 4911 | AJ76: =VLOOKUP(AI76,'Appendix1_SIC-NAICS Lists'!$A$2:$B$449,2,FALSE) -> (4911) ELECTRIC SERVICES | AK76: =VLOOKUP(AI76,'Appendix1_SIC-NAICS Lists'!$A$2:$C$449,3,FALSE) -> No | AL76: S-1 for NRG Yield, Inc. | AM76: 10-K for NRG Yield, Inc. | AN76: http://www.sec.gov/Archives/edgar/data/1567683/000104746913007398/0001047469-13-007398-index.htm | AO76: http://www.sec.gov/Archives/edgar/data/1567683/000104746914002999/0001047469-14-002999-index.htm
A77: OncoMed Pharmaceuticals, Inc. | B77: CFO not included in summary compensation table | C77: Yes | D77: William D. Waddill | E77: Senior VP and CFO | F77: Redwood City, California, United States | G77: 2013-07-17 | H77: 460099407 | I77: 25098000 | J77: 4800000 | K77: 17 | L77: 81600000 | M77: 12 | N77: 12 | O77: NS | P77: NS | Q77: NS | R77: NS | S77: NS/10-K | T77: NS/10-K | U77: NS | V77: NS | W77: NS | X77: NS | Y77: NS | Z77: NS | AA77: 0 | AB77: 0 | AC77: 0 | AD77: 0 | AE77: 0 | AF77: 0 | AG77: NS | AH77: NS | AI77: 2834 | AJ77: =VLOOKUP(AI77,'Appendix1_SIC-NAICS Lists'!$A$2:$B$449,2,FALSE) -> (2834) PHARMACEUTICAL PREPARATIONS | AK77: =VLOOKUP(AI77,'Appendix1_SIC-NAICS Lists'!$A$2:$C$449,3,FALSE) -> Yes | AL77: S-1 for OncoMed Pharmaceuticals, Inc. | AM77: 10-K for OncoMed Pharmaceuticals, Inc. | AN77: http://www.sec.gov/Archives/edgar/data/1302573/000119312513292343/0001193125-13-292343-index.htm | AO77: http://www.sec.gov/Archives/edgar/data/1302573/000119312514163458/0001193125-14-163458-index.htm
A78: UCP, Inc. | B78: Included | C78: Yes | D78: William J. La Herran | E78: CFO and Treasurer | F78: San Jose, California, United States | G78: 2013-07-17 | H78: 116251500 | I78: 66394000 | J78: 7750000 | K78: 15 | L78: 116250000 | M78: 12 | N78: 12 | O78: =247680 -> 247680 | P78: 55901 | Q78: 319138 | R78: 187500 | S78: 303581 | T78: 506638 | U78: 0 | V78: 0 | W78: 0 | X78: 1098000 | Y78: 34188 | Z78: 60292 | AA78: 337769 | AB78: 566930 | AC78: 0 | AD78: 1098000 | AE78: 337769 | AF78: 1664930 | AG78: * | AH78: * | AI78: 1531 | AJ78: =VLOOKUP(AI78,'Appendix1_SIC-NAICS Lists'!$A$2:$B$449,2,FALSE) -> (1531) OPERATIVE BUILDERS | AK78: =VLOOKUP(AI78,'Appendix1_SIC-NAICS Lists'!$A$2:$C$449,3,FALSE) -> No | AL78: S-1 for UCP, Inc. | AM78: 10-K for UCP, Inc. | AN78: http://www.sec.gov/Archives/edgar/data/1572684/000119312513284096/0001193125-13-284096-index.htm | AO78: http://www.sec.gov/Archives/edgar/data/1572684/000119312514126174/0001193125-14-126174-index.htm
A79: Diamond Resorts International, Inc. | B79: Not compensated by company; not employed as CFO for the full two years | C79: Yes | D79: C. Alan Bentley | E79: Executive VP and CFO | F79: Las Vegas, Nevada, United States | G79: 2013-07-18 | H79: 1026117652 | I79: 568170000 | J79: 15500000 | K79: 14 | L79: 217000000 | M79: 0 | N79: 12 | O79: NS | P79: NS | Q79: NS | R79: NS | S79: NS/10-K | T79: NS/10-K | U79: NS | V79: 6825476 | W79: NS | X79: NS | Y79: NS | Z79: NS | AA79: 0 | AB79: 0 | AC79: 0 | AD79: 6825476 | AE79: 0 | AF79: 6825476 | AG79: NS | AH79: * | AI79: 7011 | AJ79: =VLOOKUP(AI79,'Appendix1_SIC-NAICS Lists'!$A$2:$B$449,2,FALSE) -> (7011) HOTELS & MOTELS | AK79: =VLOOKUP(AI79,'Appendix1_SIC-NAICS Lists'!$A$2:$C$449,3,FALSE) -> No | AL79: S-1 for Diamond Resorts International, Inc. | AM79: 10-K for Diamond Resorts International, Inc. | AN79: http://www.sec.gov/Archives/edgar/data/1566897/000119312513285354/0001193125-13-285354-index.htm | AO79: http://www.sec.gov/Archives/edgar/data/1566897/000119312514144625/0001193125-14-144625-index.htm
A80: Physicians Realty Trust | B80: S-11; CFO not included in summary compensation table; not employed as CFO for the full two years | C80: Yes | D80: John W. Lucey | E80: Senior VP, Principal Accounting and Reporting Officer (Principal Financial and Accounting Officer) | F80: Milwaukee, Wisconsin, United States | G80: 2013-07-18 | H80: 122874993 | I80: 13000183 | J80: 10434782 | K80: 11.5 | L80: 119999993 | M80: 0 | N80: 6 | O80: NS | P80: NS | Q80: NS | R80: NS | S80: NS/10-K | T80: NS/10-K | U80: NS | V80: NS | W80: NS | X80: NS | Y80: NS | Z80: NS | AA80: 0 | AB80: 0 | AC80: 0 | AD80: 0 | AE80: 0 | AF80: 0 | AG80: NS | AH80: * | AI80: 6798 | AJ80: =VLOOKUP(AI80,'Appendix1_SIC-NAICS Lists'!$A$2:$B$449,2,FALSE) -> (6798) REAL ESTATE INVESTMENT TRUSTS | AK80: =VLOOKUP(AI80,'Appendix1_SIC-NAICS Lists'!$A$2:$C$449,3,FALSE) -> No | AL80: S-1 for Physicians Realty Trust | AM80: 10-K for Physicians Realty Trust | AN80: http://www.sec.gov/Archives/edgar/data/1574540/000119312513288108/0001193125-13-288108-index.htm | AO80: http://www.sec.gov/Archives/edgar/data/1574540/000110465914021828/0001104659-14-021828-index.htm
A81: RetailMeNot, Inc. | B81: CFO not included in summary compensation table (in year of IPO); not employed as CFO for the full two years | C81: Yes | D81: Douglas C. Jeffries | E81: CFO | F81: Austin, Texas, United States | G81: 2013-07-18 | H81: 1054346454 | I81: 155599000 | J81: 9090908 | K81: 21 | L81: 190909068 | M81: =1/31 -> 0.03225806452 | N81: 12 | O81: 1308 | P81: 0 | Q81: NS | R81: NS | S81: 1308 | T81: NS/10-K | U81: 4464326 | V81: NS | W81: 0 | X81: NS | Y81: 0 | Z81: NS | AA81: 1308 | AB81: 0 | AC81: 4464326 | AD81: 0 | AE81: 4465634 | AF81: 0 | AG81: * | AH81: * | AI81: 7389 | AJ81: =VLOOKUP(AI81,'Appendix1_SIC-NAICS Lists'!$A$2:$B$449,2,FALSE) -> (7389) SERVICES-BUSINESS SERVICES, NEC | AK81: =VLOOKUP(AI81,'Appendix1_SIC-NAICS Lists'!$A$2:$C$449,3,FALSE) -> No | AL81: S-1 for RetailMeNot, Inc. | AM81: 10-K for RetailMeNot, Inc. | AN81: http://www.sec.gov/Archives/edgar/data/1475274/000119312513291943/0001193125-13-291943-index.htm | AO81: http://www.sec.gov/Archives/edgar/data/1475274/000119312514098185/0001193125-14-098185-index.htm
A82: Rexford Industrial Realty, Inc. | B82: S-11 | C82: Yes | D82: Adeel Khan | E82: CFO | F82: Los Angeles, California, United States | G82: 2013-07-18 | H82: 404976656 | I82: 35318000 | J82: 16000000 | K82: 14 | L82: 224000000 | M82: 10 | N82: 12 | O82: NS | P82: NS | Q82: 114231 | R82: 50000 | S82: NS/10-K | T82: 164231 | U82: NS | V82: 0 | W82: NS | X82: 275002 | Y82: NS | Z82: 0 | AA82: 0 | AB82: 164231 | AC82: 0 | AD82: 275002 | AE82: 0 | AF82: 439233 | AG82: NS | AH82: * | AI82: 6798 | AJ82: =VLOOKUP(AI82,'Appendix1_SIC-NAICS Lists'!$A$2:$B$449,2,FALSE) -> (6798) REAL ESTATE INVESTMENT TRUSTS | AK82: =VLOOKUP(AI82,'Appendix1_SIC-NAICS Lists'!$A$2:$C$449,3,FALSE) -> No | AL82: S-1 for Rexford Industrial Realty, Inc. | AM82: 10-K for Rexford Industrial Realty, Inc. | AN82: http://www.sec.gov/Archives/edgar/data/1571283/000119312513290831/0001193125-13-290831-index.htm | AO82: http://www.sec.gov/Archives/edgar/data/1571283/000119312514144344/0001193125-14-144344-index.htm
A83: Phillips 66 Partners LP | B83: CFO not included in summary compensation table; not employed as CFO for the full two years | C83: Yes | D83: Greg G. Maxwell | E83: VP and CFO | F83: Houston, Texas, United States | G83: 2013-07-22 | H83: 809993576 | I83: 82900000 | J83: 16425000 | K83: 23 | L83: 377775000 | M83: 0 | N83: 10 | O83: NS | P83: NS | Q83: NS | R83: NS | S83: NS/10-K | T83: NS/10-K | U83: NS | V83: NS | W83: NS | X83: NS | Y83: NS | Z83: NS | AA83: 0 | AB83: 0 | AC83: 0 | AD83: 0 | AE83: 0 | AF83: 0 | AG83: NS | AH83: 0 | AI83: 4610 | AJ83: =VLOOKUP(AI83,'Appendix1_SIC-NAICS Lists'!$A$2:$B$449,2,FALSE) -> (4610) PIPE LINES (NO NATURAL GAS) | AK83: =VLOOKUP(AI83,'Appendix1_SIC-NAICS Lists'!$A$2:$C$449,3,FALSE) -> No | AL83: S-1 for Phillips 66 Partners LP | AM83: 10-K for Phillips 66 Partners LP | AN83: http://www.sec.gov/Archives/edgar/data/1572910/000119312513289916/0001193125-13-289916-index.htm | AO83: http://www.sec.gov/Archives/edgar/data/1572910/000157291014000017/0001572910-14-000017-index.htm
A84: xG Technology, Inc. | B84: Included | C84: Yes | D84: Roger G. Branton | E84: CFO, Secretary, and Director | F84: Sarasota, Florida, United States | G84: 2013-07-22 | H84: 57584628 | I84: 0 | J84: 2006688 | K84: 5.51 | L84: 7364545 | M84: 12 | N84: 12 | O84: 275000 | P84: 0 | Q84: 275000 | R84: 0 | S84: 275000 | T84: 275000 | U84: 0 | V84: 38683 | W84: 6468 | X84: 0 | Y84: 10780 | Z84: 12442 | AA84: 285780 | AB84: 287442 | AC84: 6468 | AD84: 38683 | AE84: 292248 | AF84: 326125 | AG84: 0.6846 | AH84: NS | AI84: 3669 | AJ84: =VLOOKUP(AI84,'Appendix1_SIC-NAICS Lists'!$A$2:$B$449,2,FALSE) -> (3669) COMMUNICATIONS EQUIPMENT, NEC | AK84: =VLOOKUP(AI84,'Appendix1_SIC-NAICS Lists'!$A$2:$C$449,3,FALSE) -> Yes | AL84: S-1 for xG Technology, Inc. | AM84: 10-K for xG Technology, Inc. | AN84: http://www.sec.gov/Archives/edgar/data/1565228/000114420413039217/0001144204-13-039217-index.htm | AO84: http://www.sec.gov/Archives/edgar/data/1565228/000114420414026293/0001144204-14-026293-index.htm
A85: Agios Pharmaceuticals, Inc. | B85: Included | C85: Yes | D85: Glenn Goddard | E85: VP of Finance (Principal Financial and Accounting Officer) | F85: Cambridge, Massachusetts, United States | G85: 2013-07-23 | H85: 542297160 | I85: 25106000 | J85: 5888888 | K85: 18 | L85: 105999984 | M85: 12 | N85: 12 | O85: =253707 -> 253707 | P85: 30445 | Q85: 269138 | R85: 117000 | S85: 284152 | T85: 386138 | U85: 53805 | V85: 1076959 | W85: 0 | X85: 0 | Y85: 2264 | Z85: 2336 | AA85: 286416 | AB85: 388474 | AC85: 53805 | AD85: 1076959 | AE85: 340221 | AF85: 1465433 | AG85: * | AH85: * | AI85: 2834 | AJ85: =VLOOKUP(AI85,'Appendix1_SIC-NAICS Lists'!$A$2:$B$449,2,FALSE) -> (2834) PHARMACEUTICAL PREPARATIONS | AK85: =VLOOKUP(AI85,'Appendix1_SIC-NAICS Lists'!$A$2:$C$449,3,FALSE) -> Yes | AL85: S-1 for Agios Pharmaceuticals, Inc. | AM85: 10-K for Agios Pharmaceuticals, Inc. | AN85: http://www.sec.gov/Archives/edgar/data/1439222/000119312513291902/0001193125-13-291902-index.htm | AO85: http://www.sec.gov/Archives/edgar/data/1439222/000119312514133697/0001193125-14-133697-index.htm
A86: Graña y Montero S.A.A. | B86: F-1 | C86: No | D86: Monica Miloslavich Hart | E86: CFO and Principal Accounting Officer | F86: Lima, Peru | G86: 2013-07-23 | H86: 2772081086 | I86: 2085570000 | J86: 19534884 | K86: 21.13 | L86: 412772099 | M86: 12 | N86: 10-K | O86: NS | P86: NS | Q86: 10-K | R86: 10-K | S86: NS/10-K | T86: NS/10-K | U86: NS | V86: 10-K | W86: NS | X86: 10-K | Y86: NS | Z86: 10-K | AA86: 0 | AB86: 0 | AC86: 0 | AD86: 0 | AE86: 0 | AF86: 0 | AG86: NS | AH86: NS | AI86: 1600 | AJ86: =VLOOKUP(AI86,'Appendix1_SIC-NAICS Lists'!$A$2:$B$449,2,FALSE) -> (1600) HEAVY CONSTRUCTION OTHER THAN BLDG CONST - CONTRACTORS | AK86: =VLOOKUP(AI86,'Appendix1_SIC-NAICS Lists'!$A$2:$C$449,3,FALSE) -> No | AL86: S-1 for Graña y Montero S.A.A. | AM86: 10-K for Graña y Montero S.A.A. | AN86: http://www.sec.gov/Archives/edgar/data/1572621/000119312513293702/0001193125-13-293702-index.htm | AO86: 10-K
A87: Jones Energy, Inc. | B87: Not employed as CFO for the full two years | C87: Yes | D87: Robert J. Brooks | E87: Executive VP and CFO | F87: Austin, Texas, United States | G87: 2013-07-23 | H87: 740044995 | I87: 162497000 | J87: 12500000 | K87: 15 | L87: 187500000 | M87: 0 | N87: NS | O87: NS | P87: NS | Q87: NS | R87: NS | S87: NS/10-K | T87: NS/10-K | U87: NS | V87: NS | W87: NS | X87: NS | Y87: NS | Z87: NS | AA87: 0 | AB87: 0 | AC87: 0 | AD87: 0 | AE87: 0 | AF87: 0 | AG87: NS | AH87: NS | AI87: 1311 | AJ87: =VLOOKUP(AI87,'Appendix1_SIC-NAICS Lists'!$A$2:$B$449,2,FALSE) -> (1311) CRUDE PETROLEUM & NATURAL GAS | AK87: =VLOOKUP(AI87,'Appendix1_SIC-NAICS Lists'!$A$2:$C$449,3,FALSE) -> No | AL87: S-1 for Jones Energy, Inc. | AM87: 10-K for Jones Energy, Inc. | AN87: http://www.sec.gov/Archives/edgar/data/1573166/000104746913007491/0001047469-13-007491-index.htm | AO87: http://www.sec.gov/Archives/edgar/data/1573166/000104746914004020/0001047469-14-004020-index.htm
A88: Heat Biologics, Inc. | B88: CFO not included in summary compensation table; not employed as CFO for the full two years | C88: Yes | D88: Matthew Czajkowski | E88: CFO | F88: Chapel Hill, North Carolina, United States | G88: 2013-07-23 | H88: 60869420 | I88: 3110 | J88: 2500000 | K88: 10 | L88: 25000000 | M88: 0 | N88: 8 | O88: NS | P88: NS | Q88: 65645 | R88: 13125 | S88: NS/10-K | T88: 78770 | U88: NS | V88: 277970 | W88: NS | X88: 0 | Y88: NS | Z88: 0 | AA88: 0 | AB88: 78770 | AC88: 0 | AD88: 277970 | AE88: 0 | AF88: 356740 | AG88: * | AH88: * | AI88: 2834 | AJ88: =VLOOKUP(AI88,'Appendix1_SIC-NAICS Lists'!$A$2:$B$449,2,FALSE) -> (2834) PHARMACEUTICAL PREPARATIONS | AK88: =VLOOKUP(AI88,'Appendix1_SIC-NAICS Lists'!$A$2:$C$449,3,FALSE) -> Yes | AL88: S-1 for Heat Biologics, Inc. | AM88: 10-K for Heat Biologics, Inc. | AN88: http://www.sec.gov/Archives/edgar/data/1476963/000155335013000347/0001553350-13-000347-index.htm | AO88: http://www.sec.gov/Archives/edgar/data/1476963/000155335014000314/0001553350-14-000314-index.htm
A89: Conatus Pharmaceuticals Inc. | B89: CFO not included in summary compensation table | C89: Yes | D89: Charles J. Cashion | E89: Senior VP of Finance, CFO, and Secretary | F89: San Diego, California, United States | G89: 2013-07-24 | H89: 171330335 | I89: -6224 | J89: 6000000 | K89: 11 | L89: 66000000 | M89: 12 | N89: 12 | O89: NS | P89: NS | Q89: NS | R89: NS | S89: NS/10-K | T89: NS/10-K | U89: NS | V89: NS | W89: NS | X89: NS | Y89: NS | Z89: NS | AA89: 0 | AB89: 0 | AC89: 0 | AD89: 0 | AE89: 0 | AF89: 0 | AG89: NS | AH89: NS | AI89: 2834 | AJ89: =VLOOKUP(AI89,'Appendix1_SIC-NAICS Lists'!$A$2:$B$449,2,FALSE) -> (2834) PHARMACEUTICAL PREPARATIONS | AK89: =VLOOKUP(AI89,'Appendix1_SIC-NAICS Lists'!$A$2:$C$449,3,FALSE) -> Yes | AL89: S-1 for Conatus Pharmaceuticals Inc. | AM89: 10-K for Conatus Pharmaceuticals Inc. | AN89: http://www.sec.gov/Archives/edgar/data/1383701/000119312513298918/0001193125-13-298918-index.htm | AO89: http://www.sec.gov/Archives/edgar/data/1383701/000119312514162862/0001193125-14-162862-index.htm
A90: Cellular Dynamics International, Inc. | B90: CFO not included in summary compensation table | C90: Yes | D90: David S. Snyder | E90: EVP and CFO | F90: Madison, Wisconsin, United States | G90: 2013-07-24 | H90: 188816988 | I90: 7826000 | J90: 3846000 | K90: 12 | L90: 46152000 | M90: 12 | N90: 12 | O90: NS | P90: NS | Q90: NS | R90: NS | S90: NS/10-K | T90: NS/10-K | U90: NS | V90: NS | W90: NS | X90: NS | Y90: NS | Z90: NS | AA90: 0 | AB90: 0 | AC90: 0 | AD90: 0 | AE90: 0 | AF90: 0 | AG90: 0.015 | AH90: 0.011 | AI90: 2836 | AJ90: =VLOOKUP(AI90,'Appendix1_SIC-NAICS Lists'!$A$2:$B$449,2,FALSE) -> (2836) BIOLOGICAL PRODUCTS, (NO DISGNOSTIC SUBSTANCES) | AK90: =VLOOKUP(AI90,'Appendix1_SIC-NAICS Lists'!$A$2:$C$449,3,FALSE) -> Yes | AL90: S-1 for Cellular Dynamics International, Inc. | AM90: 10-K for Cellular Dynamics International, Inc. | AN90: http://www.sec.gov/Archives/edgar/data/1482080/000119312513294874/0001193125-13-294874-index.htm | AO90: http://www.sec.gov/Archives/edgar/data/1482080/000119312514106577/0001193125-14-106577-index.htm
A91: Onconova Therapeutics, Inc | B91: CFO not included in summary compensation table (in prior year); not employed as CFO for the full two years | C91: Yes | D91: Ajay Bansal | E91: Director and CFO | F91: Newtown, Pennsylvania, United States | G91: 2013-07-24 | H91: 309214170 | I91: 47108000 | J91: 5166667 | K91: 15 | L91: 77500005 | M91: 0 | N91: 10 | O91: NS | P91: NS | Q91: 238702 | R91: 109170 | S91: NS/10-K | T91: 347872 | U91: NS | V91: 1032935 | W91: NS | X91: 0 | Y91: NS | Z91: 7650 | AA91: 0 | AB91: 355522 | AC91: 0 | AD91: 1032935 | AE91: 0 | AF91: 1388457 | AG91: * | AH91: * | AI91: 2834 | AJ91: =VLOOKUP(AI91,'Appendix1_SIC-NAICS Lists'!$A$2:$B$449,2,FALSE) -> (2834) PHARMACEUTICAL PREPARATIONS | AK91: =VLOOKUP(AI91,'Appendix1_SIC-NAICS Lists'!$A$2:$C$449,3,FALSE) -> Yes | AL91: S-1 for Onconova Therapeutics, Inc | AM91: 10-K for Onconova Therapeutics, Inc | AN91: http://www.sec.gov/Archives/edgar/data/1130598/000104746913007620/0001047469-13-007620-index.htm | AO91: http://www.sec.gov/Archives/edgar/data/1130598/000110465914031546/0001104659-14-031546-index.htm
A92: WCI Communities, Inc | B92: Included | C92: Yes | D92: Russell Devendorf | E92: Senior VP and CFO | F92: Bonita Springs, Florida, United States | G92: 2013-07-24 | H92: 386520720 | I92: 261658000 | J92: 6819091 | K92: 15 | L92: 102286365 | M92: 12 | N92: 12 | O92: =275000 -> 275000 | P92: =134500+188698 -> 323198 | Q92: 275000 | R92: =124500+198000 -> 322500 | S92: 598198 | T92: 597500 | U92: 0 | V92: 0 | W92: 0 | X92: 2040272 | Y92: 3313 | Z92: 1547 | AA92: 601511 | AB92: 599047 | AC92: 0 | AD92: 2040272 | AE92: 601511 | AF92: 2639319 | AG92: * | AH92: * | AI92: 1531 | AJ92: =VLOOKUP(AI92,'Appendix1_SIC-NAICS Lists'!$A$2:$B$449,2,FALSE) -> (1531) OPERATIVE BUILDERS | AK92: =VLOOKUP(AI92,'Appendix1_SIC-NAICS Lists'!$A$2:$C$449,3,FALSE) -> No | AL92: S-1 for WCI Communities, Inc | AM92: 10-K for WCI Communities, Inc | AN92: http://www.sec.gov/Archives/edgar/data/1574532/000104746913007720/0001047469-13-007720-index.htm | AO92: http://www.sec.gov/Archives/edgar/data/1574532/000104746914002787/0001047469-14-002787-index.htm
A93: Liquid Holdings Group, LLC | B93: CFO not included in summary compensation table (in year prior to IPO); not employed as CFO for the full two years | C93: Yes | D93: Kenneth Shifrin | E93: CFO | F93: New York, New York, United States | G93: 2013-07-25 | H93: 220123512 | I93: 1762464 | J93: 3175000 | K93: 9 | L93: 28575000 | M93: 4 | N93: 12 | O93: NS | P93: NS | Q93: 291961 | R93: 0 | S93: NS/10-K | T93: 291961 | U93: NS | V93: 0 | W93: NS | X93: 722500 | Y93: NS | Z93: 0 | AA93: 0 | AB93: 291961 | AC93: 0 | AD93: 722500 | AE93: 0 | AF93: 1014461 | AG93: 0 | AH93: 0 | AI93: 7372 | AJ93: =VLOOKUP(AI93,'Appendix1_SIC-NAICS Lists'!$A$2:$B$449,2,FALSE) -> (7372) SERVICES-PREPACKAGED SOFTWARE | AK93: =VLOOKUP(AI93,'Appendix1_SIC-NAICS Lists'!$A$2:$C$449,3,FALSE) -> Yes | AL93: S-1 for Liquid Holdings Group, LLC | AM93: 10-K for Liquid Holdings Group, LLC | AN93: http://www.sec.gov/Archives/edgar/data/1562594/000119312513301376/0001193125-13-301376-index.htm | AO93: http://www.sec.gov/Archives/edgar/data/1562594/000114420414018933/0001144204-14-018933-index.htm
A94: Marlin Midstream Partners, LP | B94: Included | C94: Yes | D94: Amanda Bush | E94: CFO | F94: Houston, Texas, United States | G94: 2013-07-25 | H94: 174490900 | I94: 47919000 | J94: 6875000 | K94: 20 | L94: 137500000 | M94: 0 | N94: 9 | O94: NS | P94: NS | Q94: 131121.3281 | R94: 180000 | S94: NS/10-K | T94: 311121.3281 | U94: NS | V94: 0 | W94: NS | X94: 645829.3125 | Y94: NS | Z94: 3066.666748 | AA94: 0 | AB94: 314187.9949 | AC94: 0 | AD94: 645829.3125 | AE94: 0 | AF94: 960017.3074 | AG94: NS | AH94: 0 | AI94: 4922 | AJ94: =VLOOKUP(AI94,'Appendix1_SIC-NAICS Lists'!$A$2:$B$449,2,FALSE) -> (4922) NATURAL GAS TRANSMISSION | AK94: =VLOOKUP(AI94,'Appendix1_SIC-NAICS Lists'!$A$2:$C$449,3,FALSE) -> No | AL94: S-1 for Marlin Midstream Partners, LP | AM94: 10-K for Marlin Midstream Partners, LP | AN94: http://www.sec.gov/Archives/edgar/data/1575599/000119312513293601/0001193125-13-293601-index.htm | AO94: http://www.sec.gov/Archives/edgar/data/1575599/000157559914000005/0001575599-14-000005-index.htm | AW94: 98341 | AX94: 135000 | AY94: 0 | AZ94: 484372 | BA94: 2300
A95: Silver Eagle Acquisition Corp. | B95: Not compensated by company | C95: Yes | D95: James A. Graf | E95: VP, CFO, Treasurer, and Secretary | F95: Santa Monica, California, United States | G95: 2013-07-25 | H95: 375000000 | I95: 0 | J95: 30000000 | K95: 10 | L95: 300000000 | M95: 0 | N95: =8+20/30 -> 8.666666667 | O95: NS | P95: NS | Q95: NS | R95: NS | S95: =IFERROR(O95+P95,"NS/10-K") -> NS/10-K | T95: =IFERROR(Q95+R95,"NS/10-K") -> NS/10-K | U95: NS | V95: NS | W95: NS | X95: NS | Y95: NS | Z95: NS | AA95: =SUM(S95,Y95) -> 0 | AB95: =SUM(T95,Z95) -> 0 | AC95: =SUM(U95,W95) -> 0 | AD95: =SUM(V95,X95) -> 0 | AE95: =SUM(AA95,AC95) -> 0 | AF95: =SUM(AB95,AD95) -> 0 | AG95: 0.05 | AH95: * | AI95: 6770 | AJ95: =VLOOKUP(AI95,'Appendix1_SIC-NAICS Lists'!$A$2:$B$449,2,FALSE) -> (6770) BLANK CHECKS | AK95: =VLOOKUP(AI95,'Appendix1_SIC-NAICS Lists'!$A$2:$C$449,3,FALSE) -> No | AL95: =HYPERLINK(AN95,"S-1 for "&A95) -> S-1 for Silver Eagle Acquisition Corp. | AM95: =HYPERLINK(AO95,"10-K for "&A95) -> 10-K for Silver Eagle Acquisition Corp. | AN95: http://www.sec.gov/Archives/edgar/data/1575988/000114420413040900/0001144204-13-040900-index.htm | AO95: http://www.sec.gov/Archives/edgar/data/1575988/000114420414018367/0001144204-14-018367-index.htm
A96: American Homes 4 Rent | B96: S-11; not employed as CFO for the full two years | C96: Yes | D96: Peter J. Nelson | E96: CFO | F96: Agoura Hills, California, United States | G96: 2013-07-31 | H96: 3719950608 | I96: 11088000 | J96: 44117647 | K96: 16 | L96: 705882352 | M96: 3 | N96: 12 | O96: 0 | P96: 0 | Q96: 111781 | R96: 200000 | S96: 0 | T96: 311781 | U96: 424000 | V96: 474700 | W96: 0 | X96: 0 | Y96: 0 | Z96: 0 | AA96: 0 | AB96: 311781 | AC96: 424000 | AD96: 474700 | AE96: 424000 | AF96: 786481 | AG96: * | AH96: * | AI96: 6798 | AJ96: =VLOOKUP(AI96,'Appendix1_SIC-NAICS Lists'!$A$2:$B$449,2,FALSE) -> (6798) REAL ESTATE INVESTMENT TRUSTS | AK96: =VLOOKUP(AI96,'Appendix1_SIC-NAICS Lists'!$A$2:$C$449,3,FALSE) -> No | AL96: S-1 for American Homes 4 Rent | AM96: 10-K for American Homes 4 Rent | AN96: http://www.sec.gov/Archives/edgar/data/1562401/000119312513310464/0001193125-13-310464-index.htm | AO96: http://www.sec.gov/Archives/edgar/data/1562401/000104746914002998/0001047469-14-002998-index.htm
A97: Ardmore Shipping Corporation | B97: F-1 | C97: No | D97: Paul Tivnan | E97: CFO, Secretary, Treasurer, and Director | F97: Cork, Ireland | G97: 2013-07-31 | H97: 252700000 | I97: 25669000 | J97: 10000000 | K97: 14 | L97: 140000000 | M97: 12 | N97: 10-K | O97: NS | P97: NS | Q97: 10-K | R97: 10-K | S97: NS/10-K | T97: NS/10-K | U97: NS | V97: 10-K | W97: NS | X97: 10-K | Y97: NS | Z97: 10-K | AA97: 0 | AB97: 0 | AC97: 0 | AD97: 0 | AE97: 0 | AF97: 0 | AG97: NS | AH97: NS | AI97: 4412 | AJ97: =VLOOKUP(AI97,'Appendix1_SIC-NAICS Lists'!$A$2:$B$449,2,FALSE) -> (4412) DEEP SEA FOREIGN TRANSPORTATION OF FREIGHT | AK97: =VLOOKUP(AI97,'Appendix1_SIC-NAICS Lists'!$A$2:$C$449,3,FALSE) -> No | AL97: S-1 for Ardmore Shipping Corporation | AM97: 10-K for Ardmore Shipping Corporation | AN97: http://www.sec.gov/Archives/edgar/data/1577437/000119312513296491/0001193125-13-296491-index.htm | AO97: 10-K
A98: Sprouts Farmers Market, Inc. | B98: Included | C98: Yes | D98: Amin N. Maredia | E98: CFO and Treasurer | F98: Phoenix, Arizona, United States | G98: 2013-07-31 | H98: 2585860992 | I98: 1992797000 | J98: 18500000 | K98: 18 | L98: 333000000 | M98: 12 | N98: 12 | O98: =350000 -> 350000 | P98: 312375 | Q98: 360836 | R98: 378334 | S98: 662375 | T98: 739170 | U98: 0 | V98: 280386 | W98: 0 | X98: 0 | Y98: 22281 | Z98: 425768 | AA98: 684656 | AB98: 1164938 | AC98: 0 | AD98: 280386 | AE98: 684656 | AF98: 1445324 | AG98: * | AH98: * | AI98: 5411 | AJ98: =VLOOKUP(AI98,'Appendix1_SIC-NAICS Lists'!$A$2:$B$449,2,FALSE) -> (5411) RETAIL-GROCERY STORES | AK98: =VLOOKUP(AI98,'Appendix1_SIC-NAICS Lists'!$A$2:$C$449,3,FALSE) -> No | AL98: S-1 for Sprouts Farmers Market, Inc. | AM98: 10-K for Sprouts Farmers Market, Inc. | AN98: http://www.sec.gov/Archives/edgar/data/1575515/000119312513306993/0001193125-13-306993-index.htm | AO98: http://www.sec.gov/Archives/edgar/data/1575515/000119312514102330/0001193125-14-102330-index.htm
A99: Athlon Energy Inc. | B99: Not employed as CFO for the full two years; CFO not included in summary compensation table | C99: Yes | D99: William B. D. Butler | E99: VP and CFO | F99: Fort Worth, Texas, United States | G99: 2013-08-01 | H99: 1642581780 | I99: 178625000 | J99: 15789474 | K99: 20 | L99: 315789480 | M99: 0 | N99: 10 | O99: 0 | P99: 0 | Q99: 223333 | R99: =108750+217500 -> 326250 | S99: 0 | T99: 549583 | U99: NS | V99: 0 | W99: NS | X99: =116347+1601235 -> 1717582 | Y99: NS | Z99: 20010 | AA99: 0 | AB99: 569593 | AC99: 0 | AD99: 1717582 | AE99: 0 | AF99: 2287175 | AG99: NS | AH99: * | AI99: 1311 | AJ99: =VLOOKUP(AI99,'Appendix1_SIC-NAICS Lists'!$A$2:$B$449,2,FALSE) -> (1311) CRUDE PETROLEUM & NATURAL GAS | AK99: =VLOOKUP(AI99,'Appendix1_SIC-NAICS Lists'!$A$2:$C$449,3,FALSE) -> No | AL99: S-1 for Athlon Energy Inc. | AM99: 10-K for Athlon Energy Inc. | AN99: http://www.sec.gov/Archives/edgar/data/1574648/000104746913007683/0001047469-13-007683-index.htm | AO99: http://www.sec.gov/Archives/edgar/data/1574648/000104746914004311/0001047469-14-004311-index.htm
A100: Ideal Power Inc. | B100: Included | C100: Yes | D100: Timothy W. Burns | E100: CFO, Secretary, and Treasurer | F100: Spicewood, Texas, United States | G100: 2013-11-22 | H100: 31001785 | I100: 2153630 | J100: 3000000 | K100: 5 | L100: 15000000 | M100: 0 | N100: =2+11/31 -> 2.35483871 | O100: NS | P100: NS | Q100: 167310 | R100: 12594 | S100: =IFERROR(O100+P100,"NS/10-K") -> NS/10-K | T100: =IFERROR(Q100+R100,"NS/10-K") -> 179904 | U100: NS | V100: 678744 | W100: NS | X100: 0 | Y100: NS | Z100: 0 | AA100: =SUM(S100,Y100) -> 0 | AB100: =SUM(T100,Z100) -> 179904 | AC100: =SUM(U100,W100) -> 0 | AD100: =SUM(V100,X100) -> 678744 | AE100: =SUM(AA100,AC100) -> 0 | AF100: =SUM(AB100,AD100) -> 858648 | AG100: 0 | AH100: 0 | AI100: 3679 | AJ100: =VLOOKUP(AI100,'Appendix1_SIC-NAICS Lists'!$A$2:$B$449,2,FALSE) -> (3679) ELECTRONIC COMPONENTS, NEC | AK100: =VLOOKUP(AI100,'Appendix1_SIC-NAICS Lists'!$A$2:$C$449,3,FALSE) -> Yes | AL100: =HYPERLINK(AN100,"S-1 for "&A100) -> S-1 for Ideal Power Inc. | AM100: =HYPERLINK(AO100,"10-K for "&A100) -> 10-K for Ideal Power Inc. | AN100: http://www.sec.gov/Archives/edgar/data/1507957/000141588913002357/0001415889-13-002357-index.htm | AO100: http://www.sec.gov/Archives/edgar/data/1507957/000114420414018885/0001144204-14-018885-index.htm | AW100: 27885 | AX100: 2099 | AY100: 113124 | AZ100: 0 | BA100: 0
A101: Xencor, Inc. | B101: CFO not included in summary compensation table | C101: Yes | D101: John J. Kuch | E101: VP of Finance (Principal Financial and Accounting Officer) | F101: Monrovia, California, United States | G101: 2013-12-02 | H101: 161824168 | I101: 10853000 | J101: 12730000 | K101: 5.5 | L101: 70015000 | M101: 12 | N101: 12 | O101: NS | P101: NS | Q101: NS | R101: NS | S101: NS/10-K | T101: NS/10-K | U101: NS | V101: NS | W101: NS | X101: NS | Y101: NS | Z101: NS | AA101: 0 | AB101: 0 | AC101: 0 | AD101: 0 | AE101: 0 | AF101: 0 | AG101: NS | AH101: NS | AI101: 2834 | AJ101: =VLOOKUP(AI101,'Appendix1_SIC-NAICS Lists'!$A$2:$B$449,2,FALSE) -> (2834) PHARMACEUTICAL PREPARATIONS | AK101: =VLOOKUP(AI101,'Appendix1_SIC-NAICS Lists'!$A$2:$C$449,3,FALSE) -> Yes | AL101: S-1 for Xencor, Inc. | AM101: 10-K for Xencor, Inc. | AN101: http://www.sec.gov/Archives/edgar/data/1326732/000104746913010919/0001047469-13-010919-index.htm | AO101: http://www.sec.gov/Archives/edgar/data/1326732/000110465914031827/0001104659-14-031827-index.htm
A102: Kofax Limited | B102: F-1 | C102: No | D102: James Arnold, Jr. | E102: CFO | F102: Irvine, California, United States | G102: 2013-12-05 | H102: 536085336 | I102: 266318000 | J102: 2000000 | K102: 5.85 | L102: 11700000 | M102: 12 | N102: 10-K | O102: NS | P102: NS | Q102: 10-K | R102: 10-K | S102: NS/10-K | T102: NS/10-K | U102: NS | V102: 10-K | W102: NS | X102: 10-K | Y102: NS | Z102: 10-K | AA102: 0 | AB102: 0 | AC102: 0 | AD102: 0 | AE102: 0 | AF102: 0 | AG102: * | AH102: * | AI102: 7372 | AJ102: =VLOOKUP(AI102,'Appendix1_SIC-NAICS Lists'!$A$2:$B$449,2,FALSE) -> (7372) SERVICES-PREPACKAGED SOFTWARE | AK102: =VLOOKUP(AI102,'Appendix1_SIC-NAICS Lists'!$A$2:$C$449,3,FALSE) -> Yes | AL102: S-1 for Kofax Limited | AM102: 10-K for Kofax Limited | AN102: http://www.sec.gov/Archives/edgar/data/1556884/000119312513451469/0001193125-13-451469-index.htm | AO102: 10-K
A103: Autohome Inc. | B103: F-1 | C103: No | D103: Henry Hon / Nicholas Yik Kay Chong | E103: Co-Chief Financial Officers (and Director) | F103: Beijing, Haidian District, China | G103: 2013-12-10 | H103: 1767378412 | I103: 171945740 | J103: 7820000 | K103: 17 | L103: 132940000 | M103: 0 | N103: 10-K | O103: NS | P103: NS | Q103: 10-K | R103: 10-K | S103: NS/10-K | T103: NS/10-K | U103: NS | V103: 10-K | W103: NS | X103: 10-K | Y103: NS | Z103: 10-K | AA103: 0 | AB103: 0 | AC103: 0 | AD103: 0 | AE103: 0 | AF103: 0 | AG103: 0 | AH103: 0 | AI103: 7374 | AJ103: =VLOOKUP(AI103,'Appendix1_SIC-NAICS Lists'!$A$2:$B$449,2,FALSE) -> (7374) SERVICES-COMPUTER PROCESSING & DATA PREPARATION | AK103: =VLOOKUP(AI103,'Appendix1_SIC-NAICS Lists'!$A$2:$C$449,3,FALSE) -> Yes | AL103: S-1 for Autohome Inc. | AM103: 10-K for Autohome Inc. | AN103: http://www.sec.gov/Archives/edgar/data/1527636/000119312513466042/0001193125-13-466042-index.htm | AO103: 10-K
A104: Valero Energy Partners LP | B104: Not compensated by company; not employed as CFO for the full two years | C104: Yes | D104: Donna M. Titzman | E104: Director, Senior VP, CFO, and Treasurer | F104: San Antonio, Texas, United States | G104: 2013-12-10 | H104: 662169747 | I104: 93811000 | J104: 15000000 | K104: 23 | L104: 345000000 | M104: 0 | N104: 4 | O104: NS | P104: NS | Q104: NS | R104: NS | S104: NS/10-K | T104: NS/10-K | U104: NS | V104: NS | W104: NS | X104: NS | Y104: NS | Z104: NS | AA104: 0 | AB104: 0 | AC104: 0 | AD104: 0 | AE104: 0 | AF104: 0 | AG104: NS | AH104: 0 | AI104: 4610 | AJ104: =VLOOKUP(AI104,'Appendix1_SIC-NAICS Lists'!$A$2:$B$449,2,FALSE) -> (4610) PIPE LINES (NO NATURAL GAS) | AK104: =VLOOKUP(AI104,'Appendix1_SIC-NAICS Lists'!$A$2:$C$449,3,FALSE) -> No | AL104: S-1 for Valero Energy Partners LP | AM104: 10-K for Valero Energy Partners LP | AN104: http://www.sec.gov/Archives/edgar/data/1583103/000119312513458416/0001193125-13-458416-index.htm | AO104: http://www.sec.gov/Archives/edgar/data/1583103/000158310314000011/0001583103-14-000011-index.htm
A105: CatchMark Timber Trust, Inc. | B105: S-11 | C105: Yes | D105: Brian M. Davis | E105: Senior VP, CFO, Treasurer, and Assistant Secretary | F105: Norcross, Georgia, United States | G105: 2013-12-11 | H105: 316274909 | I105: 33584376 | J105: 10526316 | K105: 13.5 | L105: 142105266 | M105: 0 | N105: 10 | O105: NS | P105: NS | Q105: 56308 | R105: 0 | S105: NS/10-K | T105: 56308 | U105: NS | V105: 0 | W105: NS | X105: 596778 | Y105: NS | Z105: 563 | AA105: 0 | AB105: 56871 | AC105: 0 | AD105: 596778 | AE105: 0 | AF105: 653649 | AG105: * | AH105: * | AI105: 6798 | AJ105: =VLOOKUP(AI105,'Appendix1_SIC-NAICS Lists'!$A$2:$B$449,2,FALSE) -> (6798) REAL ESTATE INVESTMENT TRUSTS | AK105: =VLOOKUP(AI105,'Appendix1_SIC-NAICS Lists'!$A$2:$C$449,3,FALSE) -> No | AL105: S-1 for CatchMark Timber Trust, Inc. | AM105: 10-K for CatchMark Timber Trust, Inc. | AN105: http://www.sec.gov/Archives/edgar/data/1341141/000119312513453202/0001193125-13-453202-index.htm | AO105: http://www.sec.gov/Archives/edgar/data/1341141/000134114114000013/0001341141-14-000013-index.htm
A106: TetraLogic Pharmaceuticals Corporation | B106: Included | C106: Yes | D106: Pete A. Meyers | E106: CFO and Treasurer | F106: Malvern, Pennsylvania, United States | G106: 2013-12-11 | H106: 147818328 | I106: 0 | J106: 7150000 | K106: 7 | L106: 50050000 | M106: 0 | N106: 5 | O106: NS | P106: NS | Q106: 338904 | R106: 0 | S106: NS/10-K | T106: 338904 | U106: NS | V106: 6180561.5 | W106: NS | X106: 0 | Y106: NS | Z106: 192 | AA106: 0 | AB106: 339096 | AC106: 0 | AD106: 6180561.5 | AE106: 0 | AF106: 6519657.5 | AG106: NS | AH106: NS | AI106: 2834 | AJ106: =VLOOKUP(AI106,'Appendix1_SIC-NAICS Lists'!$A$2:$B$449,2,FALSE) -> (2834) PHARMACEUTICAL PREPARATIONS | AK106: =VLOOKUP(AI106,'Appendix1_SIC-NAICS Lists'!$A$2:$C$449,3,FALSE) -> Yes | AL106: S-1 for TetraLogic Pharmaceuticals Corporation | AM106: 10-K for TetraLogic Pharmaceuticals Corporation | AN106: http://www.sec.gov/Archives/edgar/data/1361248/000104746913011100/0001047469-13-011100-index.htm | AO106: http://www.sec.gov/Archives/edgar/data/1361248/000104746914003330/0001047469-14-003330-index.htm | AW106: 141210 | AX106: 0 | AY106: 2575234 | AZ106: 0 | BA106: 80
A107: ARAMARK Holdings Corporation | B107: Included | C107: No | D107: L. Frederick Sutherland | E107: EVP and CFO | F107: Philadelphia, Pennsylvania, United States | G107: 2013-12-11 | H107: 4596746900 | I107: 13946000000 | J107: 36250000 | K107: 20 | L107: 725000000 | M107: 12 | N107: 10-K | O107: 818000 | P107: 783000 | Q107: 10-K | R107: 10-K | S107: 1601000 | T107: NS/10-K | U107: 723363 | V107: 10-K | W107: 639676 | X107: 10-K | Y107: =58408+17915 -> 76323 | Z107: 10-K | AA107: 1677323 | AB107: 0 | AC107: 1363039 | AD107: 0 | AE107: 3040362 | AF107: 0 | AG107: 0.0147 | AH107: 0.0121 | AI107: 5812 | AJ107: =VLOOKUP(AI107,'Appendix1_SIC-NAICS Lists'!$A$2:$B$449,2,FALSE) -> (5812) RETAIL-EATING PLACES | AK107: =VLOOKUP(AI107,'Appendix1_SIC-NAICS Lists'!$A$2:$C$449,3,FALSE) -> No | AL107: S-1 for ARAMARK Holdings Corporation | AM107: 10-K for ARAMARK Holdings Corporation | AN107: http://www.sec.gov/Archives/edgar/data/1584509/000119312513458464/0001193125-13-458464-index.htm | AO107: 10-K
A108: Hilton Worldwide Holdings Inc. | B108: Included | C108: Yes | D108: Kevin J. Jacobs | E108: Executive VP and CFO | F108: McLean, Virginia, United States | G108: 2013-12-11 | H108: 19692307280 | I108: 9430000000 | J108: 117640624 | K108: 20 | L108: 2352812480 | M108: 0 | N108: 4 | O108: NS | P108: NS | Q108: 1500000 | R108: 1800000 | S108: NS/10-K | T108: 3300000 | U108: NS | V108: 0 | W108: NS | X108: 0 | Y108: NS | Z108: 32472 | AA108: 0 | AB108: 3332472 | AC108: 0 | AD108: 0 | AE108: 0 | AF108: 3332472 | AG108: * | AH108: * | AI108: 7011 | AJ108: =VLOOKUP(AI108,'Appendix1_SIC-NAICS Lists'!$A$2:$B$449,2,FALSE) -> (7011) HOTELS & MOTELS | AK108: =VLOOKUP(AI108,'Appendix1_SIC-NAICS Lists'!$A$2:$C$449,3,FALSE) -> No | AL108: S-1 for Hilton Worldwide Holdings Inc. | AM108: 10-K for Hilton Worldwide Holdings Inc. | AN108: http://www.sec.gov/Archives/edgar/data/1585689/000119312513458382/0001193125-13-458382-index.htm | AO108: http://www.sec.gov/Archives/edgar/data/1585689/000119312514132682/0001193125-14-132682-index.htm | AW108: 500000 | AX108: 600000 | AY108: 0 | AZ108: 0 | BA108: 10824
A109: Kindred Biosciences, Inc. | B109: Not employed as CFO for the full two years; CFO not included in summary compensation table | C109: Yes | D109: Stephen S. Galliker | E109: CFO | F109: Burlingame, California, United States | G109: 2013-12-11 | H109: 105335167 | I109: 2662 | J109: 7500000 | K109: 7 | L109: 52500000 | M109: 0 | N109: 3 | O109: NS | P109: NS | Q109: NS | R109: NS | S109: NS/10-K | T109: NS/10-K | U109: NS | V109: NS | W109: NS | X109: NS | Y109: NS | Z109: NS | AA109: 0 | AB109: 0 | AC109: 0 | AD109: 0 | AE109: 0 | AF109: 0 | AG109: * | AH109: * | AI109: 2834 | AJ109: =VLOOKUP(AI109,'Appendix1_SIC-NAICS Lists'!$A$2:$B$449,2,FALSE) -> (2834) PHARMACEUTICAL PREPARATIONS | AK109: =VLOOKUP(AI109,'Appendix1_SIC-NAICS Lists'!$A$2:$C$449,3,FALSE) -> Yes | AL109: S-1 for Kindred Biosciences, Inc. | AM109: 10-K for Kindred Biosciences, Inc. | AN109: http://www.sec.gov/Archives/edgar/data/1561743/000119312513466944/0001193125-13-466944-index.htm | AO109: http://www.sec.gov/Archives/edgar/data/1561743/000156174314000029/0001561743-14-000029-index.htm
A110: Scorpio Bulkers Inc. | B110: F-1; not compensated by company; not employed as CFO for the full two years | C110: No | D110: Hugh Baker | E110: CFO | F110: Monaco, Monaco | G110: 2013-12-11 | H110: 1293780257 | I110: 0 | J110: 31300000 | K110: 9.75 | L110: 305175000 | M110: =5+31/31 -> 6 | N110: 10-K | O110: NS | P110: NS | Q110: 10-K | R110: 10-K | S110: NS/10-K | T110: NS/10-K | U110: NS | V110: 10-K | W110: NS | X110: 10-K | Y110: NS | Z110: 10-K | AA110: 0 | AB110: 0 | AC110: 0 | AD110: 0 | AE110: 0 | AF110: 0 | AG110: NS | AH110: NS | AI110: 4412 | AJ110: =VLOOKUP(AI110,'Appendix1_SIC-NAICS Lists'!$A$2:$B$449,2,FALSE) -> (4412) DEEP SEA FOREIGN TRANSPORTATION OF FREIGHT | AK110: =VLOOKUP(AI110,'Appendix1_SIC-NAICS Lists'!$A$2:$C$449,3,FALSE) -> No | AL110: S-1 for Scorpio Bulkers Inc. | AM110: 10-K for Scorpio Bulkers Inc. | AN110: http://www.sec.gov/Archives/edgar/data/1587264/000119312513469389/0001193125-13-469389-index.htm | AO110: 10-K
A111: Cheniere Energy Partners LP Holdings, LLC | B111: Not compensated by company | C111: Yes | D111: H. Davis Thames | E111: CFO and Director | F111: Houston, Texas, United States | G111: 2013-12-12 | H111: 4634000000 | I111: 268557000 | J111: 36000000 | K111: 20 | L111: 720000000 | M111: 12 | N111: 12 | O111: NS | P111: NS | Q111: NS | R111: NS | S111: NS/10-K | T111: NS/10-K | U111: NS | V111: NS | W111: NS | X111: NS | Y111: NS | Z111: NS | AA111: 0 | AB111: 0 | AC111: 0 | AD111: 0 | AE111: 0 | AF111: 0 | AG111: NS | AH111: 0 | AI111: 4924 | AJ111: =VLOOKUP(AI111,'Appendix1_SIC-NAICS Lists'!$A$2:$B$449,2,FALSE) -> (4924) NATURAL GAS DISTRIBUTION | AK111: =VLOOKUP(AI111,'Appendix1_SIC-NAICS Lists'!$A$2:$C$449,3,FALSE) -> No | AL111: S-1 for Cheniere Energy Partners LP Holdings, LLC | AM111: 10-K for Cheniere Energy Partners LP Holdings, LLC | AN111: http://www.sec.gov/Archives/edgar/data/1582966/000119312513458389/0001193125-13-458389-index.htm | AO111: http://www.sec.gov/Archives/edgar/data/1582966/000158296614000014/0001582966-14-000014-index.htm
A112: Fidelity & Guaranty Life | B112: Not employed as CFO for the full two years | C112: No | D112: Wendy J.B. Young | E112: Senior VP and CFO | F112: Baltimore, Maryland, United States | G112: 2013-12-12 | H112: 964750000 | I112: 1345900000 | J112: 9750000 | K112: 17 | L112: 165750000 | M112: 0 | N112: 10-K | O112: 220000 | P112: =25000+77682 -> 102682 | Q112: 10-K | R112: 10-K | S112: 322682 | T112: NS/10-K | U112: 12000 | V112: 10-K | W112: 67994 | X112: 10-K | Y112: 71898 | Z112: 10-K | AA112: 394580 | AB112: 0 | AC112: 79994 | AD112: 0 | AE112: 474574 | AF112: 0 | AG112: 0 | AH112: NS | AI112: 6311 | AJ112: =VLOOKUP(AI112,'Appendix1_SIC-NAICS Lists'!$A$2:$B$449,2,FALSE) -> (6311) LIFE INSURANCE | AK112: =VLOOKUP(AI112,'Appendix1_SIC-NAICS Lists'!$A$2:$C$449,3,FALSE) -> No | AL112: S-1 for Fidelity & Guaranty Life | AM112: 10-K for Fidelity & Guaranty Life | AN112: http://www.sec.gov/Archives/edgar/data/1585064/000119312513460221/0001193125-13-460221-index.htm | AO112: 10-K
A113: Nimble Storage, Inc. | B113: CFO not included in summary compensation tables (for year of IPO) | C113: Yes | D113: Anup Singh | E113: CFO | F113: San Jose, California, United States | G113: 2013-12-12 | H113: 1475888400 | I113: 104192000 | J113: 8000000 | K113: 21 | L113: 168000000 | M113: 12 | N113: 12 | O113: 240000 | P113: 150213 | Q113: NS | R113: NS | S113: 390213 | T113: NS/10-K | U113: 0 | V113: NS | W113: 0 | X113: NS | Y113: 820 | Z113: NS | AA113: 391033 | AB113: 0 | AC113: 0 | AD113: 0 | AE113: 391033 | AF113: 0 | AG113: 0.011 | AH113: * | AI113: 3572 | AJ113: =VLOOKUP(AI113,'Appendix1_SIC-NAICS Lists'!$A$2:$B$449,2,FALSE) -> (3572) COMPUTER STORAGE DEVICES | AK113: =VLOOKUP(AI113,'Appendix1_SIC-NAICS Lists'!$A$2:$C$449,3,FALSE) -> Yes | AL113: S-1 for Nimble Storage, Inc. | AM113: 10-K for Nimble Storage, Inc. | AN113: http://www.sec.gov/Archives/edgar/data/1452751/000119312513469541/0001193125-13-469541-index.htm | AO113: http://www.sec.gov/Archives/edgar/data/1452751/000119312514219766/0001193125-14-219766-index.htm
